Workbook

Sheet Action

Sheet Statistiques
A1: Mois | B1: Janvier | C1: Février | D1: Mars | E1: Avril | F1: Mai | G1: Juin | H1: Juillet | I1: Août | J1: Septembre | K1: Octobre | L1: Novembre | M1: Décembre
A2: Electricité | B2: =Feuil1!B5 -> 103.00 € | C2: =Feuil1!J5 -> 103.00 € | D2: =Feuil1!R5 -> 103.00 € | E2: =Feuil1!Z5 -> 103.00 € | F2: =Feuil1!AH5 -> 103.00 € | G2: =Feuil1!AP5 -> 103.00 € | H2: =Feuil1!AX5 -> 103.00 € | I2: =Feuil1!BF5 -> 103.00 € | J2: =Feuil1!BN5 -> 103.00 € | K2: =Feuil1!BV5 -> 103.00 € | L2: =Feuil1!CD5 -> 103.00 € | M2: =Feuil1!CL5 -> 103.00 €
A3: Gaz | B3: =Feuil1!B6 -> 49.00 € | C3: =Feuil1!J6 -> 49.00 € | D3: =Feuil1!R6 -> 49.00 € | E3: =Feuil1!Z6 -> 49.00 € | F3: =Feuil1!AH6 -> 49.00 € | G3: =Feuil1!AP6 -> 49.00 € | H3: =Feuil1!AX6 -> 49.00 € | I3: =Feuil1!BF6 -> 49.00 € | J3: =Feuil1!BN6 -> 49.00 € | K3: =Feuil1!BV6 -> 49.00 € | L3: =Feuil1!CD6 -> 49.00 € | M3: =Feuil1!CL6 -> 49.00 €
A4: Bois | B4: =Feuil1!B7 -> 0.00 € | C4: =Feuil1!J7 -> 0.00 € | D4: =Feuil1!R7 -> 0.00 € | E4: =Feuil1!Z7 -> 0.00 € | F4: =Feuil1!AH7 -> 0.00 € | G4: =Feuil1!AP7 -> 0.00 € | H4: =Feuil1!AX7 -> 0.00 € | I4: =Feuil1!BF7 -> 0.00 € | J4: =Feuil1!BN7 -> 0.00 € | K4: =Feuil1!BV7 -> 0.00 € | L4: =Feuil1!CD7 -> 0.00 € | M4: =Feuil1!CL7 -> 0.00 €
A5: Eau | B5: =Feuil1!B8 -> 0.00 € | C5: =Feuil1!J8 -> 0.00 € | D5: =Feuil1!R8 -> 0.00 € | E5: =Feuil1!Z8 -> 0.00 € | F5: =Feuil1!AH8 -> 0.00 € | G5: =Feuil1!AP8 -> 0.00 € | H5: =Feuil1!AX8 -> 0.00 € | I5: =Feuil1!BF8 -> 0.00 € | J5: =Feuil1!BN8 -> 0.00 € | K5: =Feuil1!BV8 -> 0.00 € | L5: =Feuil1!CD8 -> 0.00 € | M5: =Feuil1!CL8 -> 0.00 €
A6: Jardin | B6: =Feuil1!B10 -> 0.00 € | C6: =Feuil1!J10 -> 0.00 € | D6: =Feuil1!R10 -> 0.00 € | E6: =Feuil1!Z10 -> 0.00 € | F6: =Feuil1!AH10 -> 0.00 € | G6: =Feuil1!AP10 -> 0.00 € | H6: =Feuil1!AX10 -> 0.00 € | I6: =Feuil1!BF10 -> 0.00 € | J6: =Feuil1!BN10 -> 0.00 € | K6: =Feuil1!BV10 -> 0.00 € | L6: =Feuil1!CD10 -> 0.00 € | M6: =Feuil1!CL10 -> 0.00 €
A7: Travaux | B7: =Feuil1!B11 -> 0.00 € | C7: =Feuil1!J11 -> -50.00 € | D7: =Feuil1!R11 -> -50.00 € | E7: =Feuil1!Z11 -> -50.00 € | F7: =Feuil1!AH11 -> -50.00 € | G7: =Feuil1!AP11 -> -50.00 € | H7: =Feuil1!AX11 -> -50.00 € | I7: =Feuil1!BF11 -> -50.00 € | J7: =Feuil1!BN11 -> -50.00 € | K7: =Feuil1!BV11 -> -50.00 € | L7: =Feuil1!CD11 -> -50.00 € | M7: =Feuil1!CL11 -> -50.00 €
A8: Prêt travaux | B8: =Feuil1!B12 -> 0.00 € | C8: =Feuil1!J12 -> 225.71 € | D8: =Feuil1!R12 -> 225.71 € | E8: =Feuil1!Z12 -> 225.71 € | F8: =Feuil1!AH12 -> 225.71 € | G8: =Feuil1!AP12 -> 225.71 € | H8: =Feuil1!AX12 -> 225.71 € | I8: =Feuil1!BF12 -> 225.71 € | J8: =Feuil1!BN12 -> 225.71 € | K8: =Feuil1!BV12 -> 225.71 € | L8: =Feuil1!CD12 -> 225.71 € | M8: =Feuil1!CL12 -> 225.71 €
A9: Loyer | B9: =Feuil1!B14 -> 0.00 € | C9: =Feuil1!J14 -> 0.00 € | D9: =Feuil1!R14 -> 0.00 € | E9: =Feuil1!Z14 -> 0.00 € | F9: =Feuil1!AH14 -> 0.00 € | G9: =Feuil1!AP14 -> 0.00 € | H9: =Feuil1!AX14 -> 0.00 € | I9: =Feuil1!BF14 -> 0.00 € | J9: =Feuil1!BN14 -> 0.00 € | K9: =Feuil1!BV14 -> 0.00 € | L9: =Feuil1!CD14 -> 0.00 € | M9: =Feuil1!CL14 -> 0.00 €
A10: Prêt maison | B10: =Feuil1!B15 -> 0.00 € | C10: =Feuil1!J15 -> 443.23 € | D10: =Feuil1!R15 -> 443.23 € | E10: =Feuil1!Z15 -> 443.23 € | F10: =Feuil1!AH15 -> 443.23 € | G10: =Feuil1!AP15 -> 443.23 € | H10: =Feuil1!AX15 -> 443.23 € | I10: =Feuil1!BF15 -> 443.23 € | J10: =Feuil1!BN15 -> 443.23 € | K10: =Feuil1!BV15 -> 443.23 € | L10: =Feuil1!CD15 -> 443.23 € | M10: =Feuil1!CL15 -> 443.23 €
A11: Carburant | B11: =Feuil1!B18 -> 0.00 € | C11: =Feuil1!J18 -> 0.00 € | D11: =Feuil1!R18 -> 0.00 € | E11: =Feuil1!Z18 -> 0.00 € | F11: =Feuil1!AH18 -> 0.00 € | G11: =Feuil1!AP18 -> 0.00 € | H11: =Feuil1!AX18 -> 0.00 € | I11: =Feuil1!BF18 -> 0.00 € | J11: =Feuil1!BN18 -> 0.00 € | K11: =Feuil1!BV18 -> 0.00 € | L11: =Feuil1!CD18 -> 0.00 € | M11: =Feuil1!CL18 -> 0.00 €
A12: Entretien voiture | B12: =Feuil1!B19 -> 0.00 € | C12: =Feuil1!J19 -> 0.00 € | D12: =Feuil1!R19 -> 0.00 € | E12: =Feuil1!Z19 -> 0.00 € | F12: =Feuil1!AH19 -> 0.00 € | G12: =Feuil1!AP19 -> 0.00 € | H12: =Feuil1!AX19 -> 0.00 € | I12: =Feuil1!BF19 -> 0.00 € | J12: =Feuil1!BN19 -> 0.00 € | K12: =Feuil1!BV19 -> 0.00 € | L12: =Feuil1!CD19 -> 0.00 € | M12: =Feuil1!CL19 -> 0.00 €
A13: Covoiturage | B13: =Feuil1!B20 -> 0.00 € | C13: =Feuil1!J20 -> 0.00 € | D13: =Feuil1!R20 -> 0.00 € | E13: =Feuil1!Z20 -> 0.00 € | F13: =Feuil1!AH20 -> 0.00 € | G13: =Feuil1!AP20 -> 0.00 € | H13: =Feuil1!AX20 -> 0.00 € | I13: =Feuil1!BF20 -> 0.00 € | J13: =Feuil1!BN20 -> 0.00 € | K13: =Feuil1!BV20 -> 0.00 € | L13: =Feuil1!CD20 -> 0.00 € | M13: =Feuil1!CL20 -> 0.00 €
A14: Prêt Duster | B14: =Feuil1!B21 -> 0.00 € | C14: =Feuil1!J21 -> 323.97 € | D14: =Feuil1!R21 -> 323.97 € | E14: =Feuil1!Z21 -> 323.97 € | F14: =Feuil1!AH21 -> 323.97 € | G14: =Feuil1!AP21 -> 323.97 € | H14: =Feuil1!AX21 -> 323.97 € | I14: =Feuil1!BF21 -> 323.97 € | J14: =Feuil1!BN21 -> 323.97 € | K14: =Feuil1!BV21 -> 323.97 € | L14: =Feuil1!CD21 -> 323.97 € | M14: =Feuil1!CL21 -> 323.97 €
A15: Consommable | B15: =Feuil1!B23 -> 0.00 € | C15: =Feuil1!J23 -> 0.00 € | D15: =Feuil1!R23 -> 0.00 € | E15: =Feuil1!Z23 -> 0.00 € | F15: =Feuil1!AH23 -> 0.00 € | G15: =Feuil1!AP23 -> 0.00 € | H15: =Feuil1!AX23 -> 0.00 € | I15: =Feuil1!BF23 -> 0.00 € | J15: =Feuil1!BN23 -> 0.00 € | K15: =Feuil1!BV23 -> 0.00 € | L15: =Feuil1!CD23 -> 0.00 € | M15: =Feuil1!CL23 -> 0.00 €
A16: Prêt conso | B16: =Feuil1!B24 -> 0.00 € | C16: =Feuil1!J24 -> 0.00 € | D16: =Feuil1!R24 -> 0.00 € | E16: =Feuil1!Z24 -> 0.00 € | F16: =Feuil1!AH24 -> 0.00 € | G16: =Feuil1!AP24 -> 0.00 € | H16: =Feuil1!AX24 -> 0.00 € | I16: =Feuil1!BF24 -> 0.00 € | J16: =Feuil1!BN24 -> 0.00 € | K16: =Feuil1!BV24 -> 0.00 € | L16: =Feuil1!CD24 -> 0.00 € | M16: =Feuil1!CL24 -> 0.00 €
A17: Téléphone | B17: =Feuil1!B25 -> 45.83 € | C17: =Feuil1!J25 -> 45.83 € | D17: =Feuil1!R25 -> 45.83 € | E17: =Feuil1!Z25 -> 45.83 € | F17: =Feuil1!AH25 -> 45.83 € | G17: =Feuil1!AP25 -> 45.83 € | H17: =Feuil1!AX25 -> 45.83 € | I17: =Feuil1!BF25 -> 45.83 € | J17: =Feuil1!BN25 -> 45.83 € | K17: =Feuil1!BV25 -> 45.83 € | L17: =Feuil1!CD25 -> 45.83 € | M17: =Feuil1!CL25 -> 45.83 €
A18: Divers | B18: =Feuil1!B26 -> 0.00 € | C18: =Feuil1!J26 -> 0.00 € | D18: =Feuil1!R26 -> 0.00 € | E18: =Feuil1!Z26 -> 0.00 € | F18: =Feuil1!AH26 -> 0.00 € | G18: =Feuil1!AP26 -> 0.00 € | H18: =Feuil1!AX26 -> 0.00 € | I18: =Feuil1!BF26 -> 0.00 € | J18: =Feuil1!BN26 -> 0.00 € | K18: =Feuil1!BV26 -> 0.00 € | L18: =Feuil1!CD26 -> 0.00 € | M18: =Feuil1!CL26 -> 0.00 €
A19: Medecin | B19: =Feuil1!B28 -> 0.00 € | C19: =Feuil1!J28 -> 0.00 € | D19: =Feuil1!R28 -> 0.00 € | E19: =Feuil1!Z28 -> 0.00 € | F19: =Feuil1!AH28 -> 0.00 € | G19: =Feuil1!AP28 -> 0.00 € | H19: =Feuil1!AX28 -> 0.00 € | I19: =Feuil1!BF28 -> 0.00 € | J19: =Feuil1!BN28 -> 0.00 € | K19: =Feuil1!BV28 -> 0.00 € | L19: =Feuil1!CD28 -> 0.00 € | M19: =Feuil1!CL28 -> 0.00 €
A20: Mutuelle | B20: =Feuil1!B29 -> 0.00 € | C20: =Feuil1!J29 -> 70.00 € | D20: =Feuil1!R29 -> 70.00 € | E20: =Feuil1!Z29 -> 70.00 € | F20: =Feuil1!AH29 -> 70.00 € | G20: =Feuil1!AP29 -> 70.00 € | H20: =Feuil1!AX29 -> 70.00 € | I20: =Feuil1!BF29 -> 70.00 € | J20: =Feuil1!BN29 -> 70.00 € | K20: =Feuil1!BV29 -> 70.00 € | L20: =Feuil1!CD29 -> 70.00 € | M20: =Feuil1!CL29 -> 70.00 €
A21: Thérapeuthe | B21: =Feuil1!B30 -> 0.00 € | C21: =Feuil1!J30 -> 0.00 € | D21: =Feuil1!R30 -> 0.00 € | E21: =Feuil1!Z30 -> 0.00 € | F21: =Feuil1!AH30 -> 0.00 € | G21: =Feuil1!AP30 -> 0.00 € | H21: =Feuil1!AX30 -> 0.00 € | I21: =Feuil1!BF30 -> 0.00 € | J21: =Feuil1!BN30 -> 0.00 € | K21: =Feuil1!BV30 -> 0.00 € | L21: =Feuil1!CD30 -> 0.00 € | M21: =Feuil1!CL30 -> 0.00 €
A22: Nourrice | B22: =Feuil1!B32 -> -319.07 € | C22: =Feuil1!J32 -> -199.07 € | D22: =Feuil1!R32 -> -199.07 € | E22: =Feuil1!Z32 -> -199.07 € | F22: =Feuil1!AH32 -> -199.07 € | G22: =Feuil1!AP32 -> -199.07 € | H22: =Feuil1!AX32 -> -199.07 € | I22: =Feuil1!BF32 -> -199.07 € | J22: =Feuil1!BN32 -> -199.07 € | K22: =Feuil1!BV32 -> -199.07 € | L22: =Feuil1!CD32 -> -199.07 € | M22: =Feuil1!CL32 -> -199.07 €
A23: Scolarité | B23: =Feuil1!B33 -> 55.14 € | C23: =Feuil1!J33 -> 0.00 € | D23: =Feuil1!R33 -> 0.00 € | E23: =Feuil1!Z33 -> 0.00 € | F23: =Feuil1!AH33 -> 0.00 € | G23: =Feuil1!AP33 -> 0.00 € | H23: =Feuil1!AX33 -> 0.00 € | I23: =Feuil1!BF33 -> 0.00 € | J23: =Feuil1!BN33 -> 0.00 € | K23: =Feuil1!BV33 -> 0.00 € | L23: =Feuil1!CD33 -> 0.00 € | M23: =Feuil1!CL33 -> 0.00 €
A24: Vétement | B24: =Feuil1!B35 -> 0.00 € | C24: =Feuil1!J35 -> 0.00 € | D24: =Feuil1!R35 -> 0.00 € | E24: =Feuil1!Z35 -> 0.00 € | F24: =Feuil1!AH35 -> 0.00 € | G24: =Feuil1!AP35 -> 0.00 € | H24: =Feuil1!AX35 -> 0.00 € | I24: =Feuil1!BF35 -> 0.00 € | J24: =Feuil1!BN35 -> 0.00 € | K24: =Feuil1!BV35 -> 0.00 € | L24: =Feuil1!CD35 -> 0.00 € | M24: =Feuil1!CL35 -> 0.00 €
A25: Coiffeur | B25: =Feuil1!B36 -> 0.00 € | C25: =Feuil1!J36 -> 0.00 € | D25: =Feuil1!R36 -> 0.00 € | E25: =Feuil1!Z36 -> 0.00 € | F25: =Feuil1!AH36 -> 0.00 € | G25: =Feuil1!AP36 -> 0.00 € | H25: =Feuil1!AX36 -> 0.00 € | I25: =Feuil1!BF36 -> 0.00 € | J25: =Feuil1!BN36 -> 0.00 € | K25: =Feuil1!BV36 -> 0.00 € | L25: =Feuil1!CD36 -> 0.00 € | M25: =Feuil1!CL36 -> 0.00 €
A26: Loisir | B26: =Feuil1!B38 -> 33.73 € | C26: =Feuil1!J38 -> 14.74 € | D26: =Feuil1!R38 -> 14.74 € | E26: =Feuil1!Z38 -> 14.74 € | F26: =Feuil1!AH38 -> 14.74 € | G26: =Feuil1!AP38 -> 14.74 € | H26: =Feuil1!AX38 -> 14.74 € | I26: =Feuil1!BF38 -> 14.74 € | J26: =Feuil1!BN38 -> 14.74 € | K26: =Feuil1!BV38 -> 14.74 € | L26: =Feuil1!CD38 -> 14.74 € | M26: =Feuil1!CL38 -> 14.74 €
A27: Restaurant | B27: =Feuil1!B39 -> 0.00 € | C27: =Feuil1!J39 -> 0.00 € | D27: =Feuil1!R39 -> 0.00 € | E27: =Feuil1!Z39 -> 0.00 € | F27: =Feuil1!AH39 -> 0.00 € | G27: =Feuil1!AP39 -> 0.00 € | H27: =Feuil1!AX39 -> 0.00 € | I27: =Feuil1!BF39 -> 0.00 € | J27: =Feuil1!BN39 -> 0.00 € | K27: =Feuil1!BV39 -> 0.00 € | L27: =Feuil1!CD39 -> 0.00 € | M27: =Feuil1!CL39 -> 0.00 €
A28: Sorties diverses | B28: =Feuil1!B40 -> 0.00 € | C28: =Feuil1!J40 -> 0.00 € | D28: =Feuil1!R40 -> 0.00 € | E28: =Feuil1!Z40 -> 0.00 € | F28: =Feuil1!AH40 -> 0.00 € | G28: =Feuil1!AP40 -> 0.00 € | H28: =Feuil1!AX40 -> 0.00 € | I28: =Feuil1!BF40 -> 0.00 € | J28: =Feuil1!BN40 -> 0.00 € | K28: =Feuil1!BV40 -> 0.00 € | L28: =Feuil1!CD40 -> 0.00 € | M28: =Feuil1!CL40 -> 0.00 €
A29: Vacances | B29: =Feuil1!B41 -> 0.00 € | C29: =Feuil1!J41 -> 0.00 € | D29: =Feuil1!R41 -> 0.00 € | E29: =Feuil1!Z41 -> 0.00 € | F29: =Feuil1!AH41 -> 0.00 € | G29: =Feuil1!AP41 -> 0.00 € | H29: =Feuil1!AX41 -> 0.00 € | I29: =Feuil1!BF41 -> 0.00 € | J29: =Feuil1!BN41 -> 0.00 € | K29: =Feuil1!BV41 -> 0.00 € | L29: =Feuil1!CD41 -> 0.00 € | M29: =Feuil1!CL41 -> 0.00 €
A30: Animaux | B30: =Feuil1!B42 -> 0.00 € | C30: =Feuil1!J42 -> 0.00 € | D30: =Feuil1!R42 -> 0.00 € | E30: =Feuil1!Z42 -> 0.00 € | F30: =Feuil1!AH42 -> 0.00 € | G30: =Feuil1!AP42 -> 0.00 € | H30: =Feuil1!AX42 -> 0.00 € | I30: =Feuil1!BF42 -> 0.00 € | J30: =Feuil1!BN42 -> 0.00 € | K30: =Feuil1!BV42 -> 0.00 € | L30: =Feuil1!CD42 -> 0.00 € | M30: =Feuil1!CL42 -> 0.00 €
A31: Cadeaux | B31: =Feuil1!B43 -> 0.00 € | C31: =Feuil1!J43 -> 0.00 € | D31: =Feuil1!R43 -> 0.00 € | E31: =Feuil1!Z43 -> 0.00 € | F31: =Feuil1!AH43 -> 0.00 € | G31: =Feuil1!AP43 -> 0.00 € | H31: =Feuil1!AX43 -> 0.00 € | I31: =Feuil1!BF43 -> 0.00 € | J31: =Feuil1!BN43 -> 0.00 € | K31: =Feuil1!BV43 -> 0.00 € | L31: =Feuil1!CD43 -> 0.00 € | M31: =Feuil1!CL43 -> 0.00 €
A32: Sport | B32: =Feuil1!B44 -> 0.00 € | C32: =Feuil1!J44 -> 0.00 € | D32: =Feuil1!R44 -> 0.00 € | E32: =Feuil1!Z44 -> 0.00 € | F32: =Feuil1!AH44 -> 0.00 € | G32: =Feuil1!AP44 -> 0.00 € | H32: =Feuil1!AX44 -> 0.00 € | I32: =Feuil1!BF44 -> 0.00 € | J32: =Feuil1!BN44 -> 0.00 € | K32: =Feuil1!BV44 -> 0.00 € | L32: =Feuil1!CD44 -> 0.00 € | M32: =Feuil1!CL44 -> 0.00 €
A33: Voyages | B33: =Feuil1!B45 -> 0.00 € | C33: =Feuil1!J45 -> 0.00 € | D33: =Feuil1!R45 -> 0.00 € | E33: =Feuil1!Z45 -> 0.00 € | F33: =Feuil1!AH45 -> 0.00 € | G33: =Feuil1!AP45 -> 0.00 € | H33: =Feuil1!AX45 -> 0.00 € | I33: =Feuil1!BF45 -> 0.00 € | J33: =Feuil1!BN45 -> 0.00 € | K33: =Feuil1!BV45 -> 0.00 € | L33: =Feuil1!CD45 -> 0.00 € | M33: =Feuil1!CL45 -> 0.00 €
A34: Assurances | B34: =Feuil1!B47 -> 0.00 € | C34: =Feuil1!J47 -> 0.00 € | D34: =Feuil1!R47 -> 0.00 € | E34: =Feuil1!Z47 -> 0.00 € | F34: =Feuil1!AH47 -> 0.00 € | G34: =Feuil1!AP47 -> 0.00 € | H34: =Feuil1!AX47 -> 0.00 € | I34: =Feuil1!BF47 -> 0.00 € | J34: =Feuil1!BN47 -> 0.00 € | K34: =Feuil1!BV47 -> 0.00 € | L34: =Feuil1!CD47 -> 0.00 € | M34: =Feuil1!CL47 -> 0.00 €
A35: Salaire | B35: =Feuil1!B48 -> -3,444.13 € | C35: =Feuil1!J48 -> -3,564.13 € | D35: =Feuil1!R48 -> -3,564.13 € | E35: =Feuil1!Z48 -> -3,564.13 € | F35: =Feuil1!AH48 -> -3,564.13 € | G35: =Feuil1!AP48 -> -3,564.13 € | H35: =Feuil1!AX48 -> -3,564.13 € | I35: =Feuil1!BF48 -> -3,564.13 € | J35: =Feuil1!BN48 -> -3,564.13 € | K35: =Feuil1!BV48 -> -3,564.13 € | L35: =Feuil1!CD48 -> -3,564.13 € | M35: =Feuil1!CL48 -> -3,564.13 €
A36: Dette | B36: =Feuil1!B49 -> 0.00 € | C36: =Feuil1!J49 -> 0.00 € | D36: =Feuil1!R49 -> 0.00 € | E36: =Feuil1!Z49 -> 0.00 € | F36: =Feuil1!AH49 -> 0.00 € | G36: =Feuil1!AP49 -> 0.00 € | H36: =Feuil1!AX49 -> 0.00 € | I36: =Feuil1!BF49 -> 0.00 € | J36: =Feuil1!BN49 -> 0.00 € | K36: =Feuil1!BV49 -> 0.00 € | L36: =Feuil1!CD49 -> 0.00 € | M36: =Feuil1!CL49 -> 0.00 €
A37: Prêt | B37: =Feuil1!B50 -> 0.00 € | C37: =Feuil1!J50 -> 0.00 € | D37: =Feuil1!R50 -> 0.00 € | E37: =Feuil1!Z50 -> 0.00 € | F37: =Feuil1!AH50 -> 0.00 € | G37: =Feuil1!AP50 -> 0.00 € | H37: =Feuil1!AX50 -> 0.00 € | I37: =Feuil1!BF50 -> 0.00 € | J37: =Feuil1!BN50 -> 0.00 € | K37: =Feuil1!BV50 -> 0.00 € | L37: =Feuil1!CD50 -> 0.00 € | M37: =Feuil1!CL50 -> 0.00 €
A38: Frais boulot | B38: =Feuil1!B51 -> 0.00 € | C38: =Feuil1!J51 -> 0.00 € | D38: =Feuil1!R51 -> 0.00 € | E38: =Feuil1!Z51 -> 0.00 € | F38: =Feuil1!AH51 -> 0.00 € | G38: =Feuil1!AP51 -> 0.00 € | H38: =Feuil1!AX51 -> 0.00 € | I38: =Feuil1!BF51 -> 0.00 € | J38: =Feuil1!BN51 -> 0.00 € | K38: =Feuil1!BV51 -> 0.00 € | L38: =Feuil1!CD51 -> 0.00 € | M38: =Feuil1!CL51 -> 0.00 €
A39: Remboursement | B39: =Feuil1!B52 -> 0.00 € | C39: =Feuil1!J52 -> 0.00 € | D39: =Feuil1!R52 -> 0.00 € | E39: =Feuil1!Z52 -> 0.00 € | F39: =Feuil1!AH52 -> 0.00 € | G39: =Feuil1!AP52 -> 0.00 € | H39: =Feuil1!AX52 -> 0.00 € | I39: =Feuil1!BF52 -> 0.00 € | J39: =Feuil1!BN52 -> 0.00 € | K39: =Feuil1!BV52 -> 0.00 € | L39: =Feuil1!CD52 -> 0.00 € | M39: =Feuil1!CL52 -> 0.00 €
A40: Frais Banquaire | B40: =Feuil1!B53 -> 0.00 € | C40: =Feuil1!J53 -> 14.28 € | D40: =Feuil1!R53 -> 14.28 € | E40: =Feuil1!Z53 -> 14.28 € | F40: =Feuil1!AH53 -> 14.28 € | G40: =Feuil1!AP53 -> 14.28 € | H40: =Feuil1!AX53 -> 14.28 € | I40: =Feuil1!BF53 -> 14.28 € | J40: =Feuil1!BN53 -> 14.28 € | K40: =Feuil1!BV53 -> 14.28 € | L40: =Feuil1!CD53 -> 14.28 € | M40: =Feuil1!CL53 -> 14.28 €
A41: Frais asso | B41: =Feuil1!B54 -> 0.00 € | C41: =Feuil1!J54 -> 0.00 € | D41: =Feuil1!R54 -> 0.00 € | E41: =Feuil1!Z54 -> 0.00 € | F41: =Feuil1!AH54 -> 0.00 € | G41: =Feuil1!AP54 -> 0.00 € | H41: =Feuil1!AX54 -> 0.00 € | I41: =Feuil1!BF54 -> 0.00 € | J41: =Feuil1!BN54 -> 0.00 € | K41: =Feuil1!BV54 -> 0.00 € | L41: =Feuil1!CD54 -> 0.00 € | M41: =Feuil1!CL54 -> 0.00 €
A42: autre revenu | B42: =Feuil1!B55 -> 0.00 € | C42: =Feuil1!J55 -> 0.00 € | D42: =Feuil1!R55 -> 0.00 € | E42: =Feuil1!Z55 -> 0.00 € | F42: =Feuil1!AH55 -> 0.00 € | G42: =Feuil1!AP55 -> 0.00 € | H42: =Feuil1!AX55 -> 0.00 € | I42: =Feuil1!BF55 -> 0.00 € | J42: =Feuil1!BN55 -> 0.00 € | K42: =Feuil1!BV55 -> 0.00 € | L42: =Feuil1!CD55 -> 0.00 € | M42: =Feuil1!CL55 -> 0.00 €
A43: Impot et taxe | B43: =Feuil1!B56 -> 0.00 € | C43: =Feuil1!J56 -> 0.00 € | D43: =Feuil1!R56 -> 0.00 € | E43: =Feuil1!Z56 -> 0.00 € | F43: =Feuil1!AH56 -> 0.00 € | G43: =Feuil1!AP56 -> 0.00 € | H43: =Feuil1!AX56 -> 0.00 € | I43: =Feuil1!BF56 -> 0.00 € | J43: =Feuil1!BN56 -> 0.00 € | K43: =Feuil1!BV56 -> 0.00 € | L43: =Feuil1!CD56 -> 0.00 € | M43: =Feuil1!CL56 -> 0.00 €
A44: Epargne | B44: =Feuil1!B58 -> 70.00 € | C44: =Feuil1!J58 -> 70.00 € | D44: =Feuil1!R58 -> 70.00 € | E44: =Feuil1!Z58 -> 70.00 € | F44: =Feuil1!AH58 -> 70.00 € | G44: =Feuil1!AP58 -> 70.00 € | H44: =Feuil1!AX58 -> 70.00 € | I44: =Feuil1!BF58 -> 70.00 € | J44: =Feuil1!BN58 -> 70.00 € | K44: =Feuil1!BV58 -> 70.00 € | L44: =Feuil1!CD58 -> 70.00 € | M44: =Feuil1!CL58 -> 70.00 €
A45: Epargne enfant | B45: =Feuil1!B59 -> 0.00 € | C45: =Feuil1!J59 -> 0.00 € | D45: =Feuil1!R59 -> 0.00 € | E45: =Feuil1!Z59 -> 0.00 € | F45: =Feuil1!AH59 -> 0.00 € | G45: =Feuil1!AP59 -> 0.00 € | H45: =Feuil1!AX59 -> 0.00 € | I45: =Feuil1!BF59 -> 0.00 € | J45: =Feuil1!BN59 -> 0.00 € | K45: =Feuil1!BV59 -> 0.00 € | L45: =Feuil1!CD59 -> 0.00 € | M45: =Feuil1!CL59 -> 0.00 €
A46: Investissement pièces | B46: =Feuil1!B60 -> 0.00 € | C46: =Feuil1!J60 -> 0.00 € | D46: =Feuil1!R60 -> 0.00 € | E46: =Feuil1!Z60 -> 0.00 € | F46: =Feuil1!AH60 -> 0.00 € | G46: =Feuil1!AP60 -> 0.00 € | H46: =Feuil1!AX60 -> 0.00 € | I46: =Feuil1!BF60 -> 0.00 € | J46: =Feuil1!BN60 -> 0.00 € | K46: =Feuil1!BV60 -> 0.00 € | L46: =Feuil1!CD60 -> 0.00 € | M46: =Feuil1!CL60 -> 0.00 €
A47: Stock mapie | B47: =Feuil1!B61 -> 0.00 € | C47: =Feuil1!J61 -> 0.00 € | D47: =Feuil1!R61 -> 0.00 € | E47: =Feuil1!Z61 -> 0.00 € | F47: =Feuil1!AH61 -> 0.00 € | G47: =Feuil1!AP61 -> 0.00 € | H47: =Feuil1!AX61 -> 0.00 € | I47: =Feuil1!BF61 -> 0.00 € | J47: =Feuil1!BN61 -> 0.00 € | K47: =Feuil1!BV61 -> 0.00 € | L47: =Feuil1!CD61 -> 0.00 € | M47: =Feuil1!CL61 -> 0.00 €
B50: Electricité | C50: Carburant | D50: Medecin | E50: Investissement pièces | F50: Consommable
A51: Janvier | B51: =IF(B50="","",VLOOKUP(B$50,$A$1:$M$47,2,0)) -> 103 | C51: =IF(C50="","",VLOOKUP(C$50,$A$1:$M$47,2,0)) -> 0 | D51: 0 | E51: 0 | F51: 0
A52: Février | B52: =IF(B50="","",VLOOKUP(B$50,$A$1:$M$47,3,0)) -> 103 | C52: =IF(C50="","",VLOOKUP(C$50,$A$1:$M$47,3,0)) -> 0 | D52: 0 | E52: 0 | F52: 0
A53: Mars | B53: =IF(B50="","",VLOOKUP(B$50,$A$1:$M$47,4,0)) -> 103 | C53: =IF(C50="","",VLOOKUP(C$50,$A$1:$M$47,4,0)) -> 0 | D53: 0 | E53: 0 | F53: 0
A54: Avril | B54: =IF(B50="","",VLOOKUP(B$50,$A$1:$M$47,5,0)) -> 103 | C54: =IF(C50="","",VLOOKUP(C$50,$A$1:$M$47,5,0)) -> 0 | D54: 0 | E54: 0 | F54: 0
A55: Mai | B55: =IF(B50="","",VLOOKUP(B$50,$A$1:$M$47,6,0)) -> 103 | C55: =IF(C50="","",VLOOKUP(C$50,$A$1:$M$47,6,0)) -> 0 | D55: 0 | E55: 0 | F55: 0
A56: Juin | B56: =IF(B50="","",VLOOKUP(B$50,$A$1:$M$47,7,0)) -> 103 | C56: =IF(C50="","",VLOOKUP(C$50,$A$1:$M$47,7,0)) -> 0 | D56: 0 | E56: 0 | F56: 0
A57: Juillet | B57: =IF(B50="","",VLOOKUP(B$50,$A$1:$M$47,8,0)) -> 103 | C57: =IF(C50="","",VLOOKUP(C$50,$A$1:$M$47,8,0)) -> 0 | D57: 0 | E57: 0 | F57: 0
A58: Août | B58: =IF(B50="","",VLOOKUP(B$50,$A$1:$M$47,9,0)) -> 103 | C58: =IF(C50="","",VLOOKUP(C$50,$A$1:$M$47,9,0)) -> 0 | D58: 0 | E58: 0 | F58: 0
A59: Septembre | B59: =IF(B50="","",VLOOKUP(B$50,$A$1:$M$47,10,0)) -> 103 | C59: =IF(C50="","",VLOOKUP(C$50,$A$1:$M$47,10,0)) -> 0 | D59: 0 | E59: 0 | F59: 0
A60: Octobre | B60: =IF(B50="","",VLOOKUP(B$50,$A$1:$M$47,11,0)) -> 103 | C60: =IF(C50="","",VLOOKUP(C$50,$A$1:$M$47,11,0)) -> 0 | D60: 0 | E60: 0 | F60: 0
A61: Novembre | B61: =IF(B50="","",VLOOKUP(B$50,$A$1:$M$47,12,0)) -> 103 | C61: =IF(C50="","",VLOOKUP(C$50,$A$1:$M$47,12,0)) -> 0 | D61: 0 | E61: 0 | F61: 0

Sheet recapitulatif
B1: Mois | D1: Janvier | I1: Février | N1: Mars | S1: Avril | X1: Mai | AC1: Juin | AH1: Juillet | AM1: Août | AR1: Septembre | AW1: Octobre | BB1: Novembre | BG1: Décembre
F2: Cpt joint | G2: LivA Charlie | H2: LEP charlie
B3: Electricité | C3: 0 € | D3: =C3+E3 -> 105 € | E3: =SUM(F3:H3) -> 105 € | F3: =SUMPRODUCT(('Janvier '!$D$164:$D$232=$B3)*'Janvier '!$G$164:$G$232) -> 105.00 € | G3: =SUMPRODUCT(('Janvier '!$M$13:$M$46=$B3)*'Janvier '!$P$13:$P$46)-SUMPRODUCT(('Janvier '!$M$58:$M$73=$B3)*'Janvier '!$P$58:$P$73) -> 0.00 € | H3: =SUMPRODUCT(('Janvier '!$V$8:$V$76=$B3)*'Janvier '!$Y$8:$Y$76) -> 0.00 € | I3: =H3+J3 -> 105 € | J3: =SUM(K3:M3) -> 105 € | K3: =SUMPRODUCT((Fevrier!$D$164:$D$232=$B3)*Fevrier!$G$164:$G$232) -> 105.00 € | L3: =SUMPRODUCT((Fevrier!$M$13:$M$46=$B3)*Fevrier!$P$13:$P$46)-SUMPRODUCT((Fevrier!$M$58:$M$73=$B3)*Fevrier!$P$58:$P$73) -> 0.00 € | M3: =SUMPRODUCT((Fevrier!$V$8:$V$76=$B3)*Fevrier!$Y$8:$Y$76) -> 0.00 € | N3: =M3+O3 -> 105 € | O3: =SUM(P3:R3) -> 105 € | P3: =SUMPRODUCT((Mars!$D$164:$D$232=$B3)*Mars!$G$164:$G$232) -> 105.00 € | Q3: =SUMPRODUCT((Mars!$M$13:$M$46=$B3)*Mars!$P$13:$P$46)-SUMPRODUCT((Mars!$M$58:$M$73=$B3)*Mars!$P$58:$P$73) -> 0.00 € | R3: =SUMPRODUCT((Mars!$V$8:$V$76=$B3)*Mars!$Y$8:$Y$76) -> 0.00 € | S3: =R3+T3 -> 105 € | T3: =SUM(U3:W3) -> 105 € | U3: =SUMPRODUCT((Avril!$D$164:$D$232=$B3)*Avril!$G$164:$G$232) -> 105.00 € | V3: =SUMPRODUCT((Avril!$M$13:$M$46=$B3)*Avril!$P$13:$P$46)-SUMPRODUCT((Avril!$M$58:$M$73=$B3)*Avril!$P$58:$P$73) -> 0.00 € | W3: =SUMPRODUCT((Avril!$V$8:$V$76=$B3)*Avril!$Y$8:$Y$76) -> 0.00 € | X3: =W3+Y3 -> 105 € | Y3: =SUM(Z3:AB3) -> 105 € | Z3: =SUMPRODUCT((Mai!$D$164:$D$232=$B3)*Mai!$G$164:$G$232) -> 105.00 € | AA3: =SUMPRODUCT((Mai!$M$13:$M$46=$B3)*Mai!$P$13:$P$46)-SUMPRODUCT((Mai!$M$58:$M$73=$B3)*Mai!$P$58:$P$73) -> 0.00 € | AB3: =SUMPRODUCT((Mai!$V$8:$V$76=$B3)*Mai!$Y$8:$Y$76) -> 0.00 € | AC3: =AB3+AD3 -> 105 € | AD3: =SUM(AE3:AG3) -> 105 € | AE3: =SUMPRODUCT((Juin!$D$164:$D$232=$B3)*Juin!$G$164:$G$232) -> 105.00 € | AF3: =SUMPRODUCT((Juin!$M$13:$M$46=$B3)*Juin!$P$13:$P$46)-SUMPRODUCT((Juin!$M$58:$M$73=$B3)*Juin!$P$58:$P$73) -> 0.00 € | AG3: =SUMPRODUCT((Juin!$V$8:$V$76=$B3)*Juin!$Y$8:$Y$76) -> 0.00 € | AH3: =AG3+AI3 -> 105 € | AI3: =SUM(AJ3:AL3) -> 105 € | AJ3: =SUMPRODUCT((Juillet!$D$164:$D$232=$B3)*Juillet!$G$164:$G$232) -> 105.00 € | AK3: =SUMPRODUCT((Juillet!$M$13:$M$46=$B3)*Juillet!$P$13:$P$46)-SUMPRODUCT((Juillet!$M$58:$M$73=$B3)*Juillet!$P$58:$P$73) -> 0.00 € | AL3: =SUMPRODUCT((Juillet!$V$8:$V$76=$B3)*Juillet!$Y$8:$Y$76) -> 0.00 € | AM3: =AL3+AN3 -> 105 € | AN3: =SUM(AO3:AQ3) -> 105 € | AO3: =SUMPRODUCT((Aout!$D$164:$D$232=$B3)*Aout!$G$164:$G$232) -> 105.00 € | AP3: =SUMPRODUCT((Aout!$M$13:$M$46=$B3)*Aout!$P$13:$P$46)-SUMPRODUCT((Aout!$M$58:$M$73=$B3)*Aout!$P$58:$P$73) -> 0.00 € | AQ3: =SUMPRODUCT((Aout!$V$8:$V$76=$B3)*Aout!$Y$8:$Y$76) -> 0.00 € | AR3: =AQ3+AS3 -> 105 € | AS3: =SUM(AT3:AV3) -> 105 € | AT3: =SUMPRODUCT((Septembre!$D$164:$D$232=$B3)*Septembre!$G$164:$G$232) -> 105.00 € | AU3: =SUMPRODUCT((Septembre!$M$13:$M$46=$B3)*Septembre!$P$13:$P$46)-SUMPRODUCT((Septembre!$M$58:$M$73=$B3)*Septembre!$P$58:$P$73) -> 0.00 € | AV3: =SUMPRODUCT((Septembre!$V$8:$V$76=$B3)*Septembre!$Y$8:$Y$76) -> 0.00 € | AW3: =AV3+AX3 -> 105 € | AX3: =SUM(AY3:BA3) -> 105 € | AY3: =SUMPRODUCT((Octobre!$D$164:$D$232=$B3)*Octobre!$G$164:$G$232) -> 105.00 € | AZ3: =SUMPRODUCT((Octobre!$M$13:$M$46=$B3)*Octobre!$P$13:$P$46)-SUMPRODUCT((Octobre!$M$58:$M$73=$B3)*Octobre!$P$58:$P$73) -> 0.00 € | BA3: =SUMPRODUCT((Octobre!$V$8:$V$76=$B3)*Octobre!$Y$8:$Y$76) -> 0.00 € | BB3: =BA3+BC3 -> 105 € | BC3: =SUM(BD3:BF3) -> 105 € | BD3: =SUMPRODUCT((Novembre!$D$164:$D$232=$B3)*Novembre!$G$164:$G$232) -> 105.00 € | BE3: =SUMPRODUCT((Novembre!$M$13:$M$46=$B3)*Novembre!$P$13:$P$46)-SUMPRODUCT((Novembre!$M$58:$M$73=$B3)*Novembre!$P$58:$P$73) -> 0.00 € | BF3: =SUMPRODUCT((Novembre!$V$8:$V$76=$B3)*Novembre!$Y$8:$Y$76) -> 0.00 € | BG3: =BF3+BH3 -> 105 € | BH3: =SUM(BI3:BK3) -> 105 € | BI3: =SUMPRODUCT((Décembre!$D$164:$D$232=$B3)*Décembre!$G$164:$G$232) -> 105.00 € | BJ3: =SUMPRODUCT((Décembre!$M$13:$M$46=$B3)*Décembre!$P$13:$P$46)-SUMPRODUCT((Décembre!$M$58:$M$73=$B3)*Décembre!$P$58:$P$73) -> 0.00 € | BK3: =SUMPRODUCT((Décembre!$V$8:$V$76=$B3)*Décembre!$Y$8:$Y$76) -> 0.00 €
E4: 103 € | F4: =SUMPRODUCT(('Janvier '!$D$164:$D$232=$B3)*'Janvier '!$F$164:$F$232) -> 103 € | G4: =SUMPRODUCT(('Janvier '!$M$13:$M$46=$B3)*'Janvier '!$O$13:$O$46)+SUMPRODUCT(('Janvier '!$M$58:$M$73=$B3)*'Janvier '!$O$58:$O$73) -> 0 € | H4: =SUMPRODUCT(('Janvier '!$V$8:$V$76=$B3)*'Janvier '!$X$8:$X$76) -> 0 € | J4: 103 € | K4: =SUMPRODUCT((Fevrier!$D$164:$D$232=$B3)*Fevrier!$F$164:$F$232) -> 103 € | L4: =SUMPRODUCT((Fevrier!$M$13:$M$46=$B3)*Fevrier!$O$13:$O$46)+SUMPRODUCT((Fevrier!$M$58:$M$73=$B3)*Fevrier!$O$58:$O$73) -> 0 € | M4: =SUMPRODUCT((Fevrier!$V$8:$V$76=$B3)*Fevrier!$X$8:$X$76) -> 0 € | O4: 103 € | P4: =SUMPRODUCT((Mars!$D$164:$D$232=$B3)*Mars!$F$164:$F$232) -> 103 € | Q4: =SUMPRODUCT((Mars!$M$13:$M$46=$B3)*Mars!$O$13:$O$46)+SUMPRODUCT((Mars!$M$58:$M$73=$B3)*Mars!$O$58:$O$73) -> 0 € | R4: =SUMPRODUCT((Mars!$V$8:$V$76=$B3)*Mars!$X$8:$X$76) -> 0 € | T4: 103 € | U4: =SUMPRODUCT((Avril!$D$164:$D$232=$B3)*Avril!$F$164:$F$232) -> 103 € | V4: =SUMPRODUCT((Avril!$M$13:$M$46=$B3)*Avril!$O$13:$O$46)+SUMPRODUCT((Avril!$M$58:$M$73=$B3)*Avril!$O$58:$O$73) -> 0 € | W4: =SUMPRODUCT((Avril!$V$8:$V$76=$B3)*Avril!$X$8:$X$76) -> 0 € | Y4: 103 € | Z4: =SUMPRODUCT((Mai!$D$164:$D$232=$B3)*Mai!$F$164:$F$232) -> 103 € | AA4: =SUMPRODUCT((Mai!$M$13:$M$46=$B3)*Mai!$O$13:$O$46)+SUMPRODUCT((Mai!$M$58:$M$73=$B3)*Mai!$O$58:$O$73) -> 0 € | AB4: =SUMPRODUCT((Mai!$V$8:$V$76=$B3)*Mai!$X$8:$X$76) -> 0 € | AD4: 103 € | AE4: =SUMPRODUCT((Juin!$D$164:$D$232=$B3)*Juin!$F$164:$F$232) -> 103 € | AF4: =SUMPRODUCT((Juin!$M$13:$M$46=$B3)*Juin!$O$13:$O$46)+SUMPRODUCT((Juin!$M$58:$M$73=$B3)*Juin!$O$58:$O$73) -> 0 € | AG4: =SUMPRODUCT((Juin!$V$8:$V$76=$B3)*Juin!$X$8:$X$76) -> 0 € | AI4: 103 € | AJ4: =SUMPRODUCT((Juillet!$D$164:$D$232=$B3)*Juillet!$F$164:$F$232) -> 103 € | AK4: =SUMPRODUCT((Juillet!$M$13:$M$46=$B3)*Juillet!$O$13:$O$46)+SUMPRODUCT((Juillet!$M$58:$M$73=$B3)*Juillet!$O$58:$O$73) -> 0 € | AL4: =SUMPRODUCT((Juillet!$V$8:$V$76=$B3)*Juillet!$X$8:$X$76) -> 0 € | AN4: 103 € | AO4: =SUMPRODUCT((Aout!$D$164:$D$232=$B3)*Aout!$F$164:$F$232) -> 103 € | AP4: =SUMPRODUCT((Aout!$M$13:$M$46=$B3)*Aout!$O$13:$O$46)+SUMPRODUCT((Aout!$M$58:$M$73=$B3)*Aout!$O$58:$O$73) -> 0 € | AQ4: =SUMPRODUCT((Aout!$V$8:$V$76=$B3)*Aout!$X$8:$X$76) -> 0 € | AS4: 103 € | AT4: =SUMPRODUCT((Septembre!$D$164:$D$232=$B3)*Septembre!$F$164:$F$232) -> 103 € | AU4: =SUMPRODUCT((Septembre!$M$13:$M$46=$B3)*Septembre!$O$13:$O$46)+SUMPRODUCT((Septembre!$M$58:$M$73=$B3)*Septembre!$O$58:$O$73) -> 0 € | AV4: =SUMPRODUCT((Septembre!$V$8:$V$76=$B3)*Septembre!$X$8:$X$76) -> 0 € | AX4: 103 € | AY4: =SUMPRODUCT((Octobre!$D$164:$D$232=$B3)*Octobre!$F$164:$F$232) -> 103 € | AZ4: =SUMPRODUCT((Octobre!$M$13:$M$46=$B3)*Octobre!$O$13:$O$46)+SUMPRODUCT((Octobre!$M$58:$M$73=$B3)*Octobre!$O$58:$O$73) -> 0 € | BA4: =SUMPRODUCT((Octobre!$V$8:$V$76=$B3)*Octobre!$X$8:$X$76) -> 0 € | BC4: 103 € | BD4: =SUMPRODUCT((Novembre!$D$164:$D$232=$B3)*Novembre!$F$164:$F$232) -> 103 € | BE4: =SUMPRODUCT((Novembre!$M$13:$M$46=$B3)*Novembre!$O$13:$O$46)+SUMPRODUCT((Novembre!$M$58:$M$73=$B3)*Novembre!$O$58:$O$73) -> 0 € | BF4: =SUMPRODUCT((Novembre!$V$8:$V$76=$B3)*Novembre!$X$8:$X$76) -> 0 € | BH4: 103 € | BI4: =SUMPRODUCT((Décembre!$D$164:$D$232=$B3)*Décembre!$F$164:$F$232) -> 103 € | BJ4: =SUMPRODUCT((Décembre!$M$13:$M$46=$B3)*Décembre!$O$13:$O$46)+SUMPRODUCT((Décembre!$M$58:$M$73=$B3)*Décembre!$O$58:$O$73) -> 0 € | BK4: =SUMPRODUCT((Décembre!$V$8:$V$76=$B3)*Décembre!$X$8:$X$76) -> 0 €
B5: Gaz | C5: 0 € | D5: =C5+E5 -> 70 € | E5: 70 € | F5: =SUMPRODUCT(('Janvier '!$D$164:$D$232=$B5)*'Janvier '!$G$164:$G$232) -> 70.00 € | G5: =SUMPRODUCT(('Janvier '!$M$13:$M$46=$B5)*'Janvier '!$P$13:$P$46)-SUMPRODUCT(('Janvier '!$M$58:$M$73=$B5)*'Janvier '!$P$58:$P$73) -> 0.00 € | H5: =SUMPRODUCT(('Janvier '!$V$8:$V$76=$B5)*'Janvier '!$Y$8:$Y$76) -> 0.00 € | I5: =H5+J5 -> 70 € | J5: 70 € | K5: =SUMPRODUCT((Fevrier!$D$164:$D$232=$B5)*Fevrier!$G$164:$G$232) -> 70.00 € | L5: =SUMPRODUCT((Fevrier!$M$13:$M$46=$B5)*Fevrier!$P$13:$P$46)-SUMPRODUCT((Fevrier!$M$58:$M$73=$B5)*Fevrier!$P$58:$P$73) -> 0.00 € | M5: =SUMPRODUCT((Fevrier!$V$8:$V$76=$B5)*Fevrier!$Y$8:$Y$76) -> 0.00 € | N5: =M5+O5 -> 70 € | O5: 70 € | P5: =SUMPRODUCT((Mars!$D$164:$D$232=$B5)*Mars!$G$164:$G$232) -> 70.00 € | Q5: =SUMPRODUCT((Mars!$M$13:$M$46=$B5)*Mars!$P$13:$P$46)-SUMPRODUCT((Mars!$M$58:$M$73=$B5)*Mars!$P$58:$P$73) -> 0.00 € | R5: =SUMPRODUCT((Mars!$V$8:$V$76=$B5)*Mars!$Y$8:$Y$76) -> 0.00 € | S5: =R5+T5 -> 70 € | T5: 70 € | U5: =SUMPRODUCT((Avril!$D$164:$D$232=$B5)*Avril!$G$164:$G$232) -> 70.00 € | V5: =SUMPRODUCT((Avril!$M$13:$M$46=$B5)*Avril!$P$13:$P$46)-SUMPRODUCT((Avril!$M$58:$M$73=$B5)*Avril!$P$58:$P$73) -> 0.00 € | W5: =SUMPRODUCT((Avril!$V$8:$V$76=$B5)*Avril!$Y$8:$Y$76) -> 0.00 € | X5: =W5+Y5 -> 70 € | Y5: 70 € | Z5: =SUMPRODUCT((Mai!$D$164:$D$232=$B5)*Mai!$G$164:$G$232) -> 70.00 € | AA5: =SUMPRODUCT((Mai!$M$13:$M$46=$B5)*Mai!$P$13:$P$46)-SUMPRODUCT((Mai!$M$58:$M$73=$B5)*Mai!$P$58:$P$73) -> 0.00 € | AB5: =SUMPRODUCT((Mai!$V$8:$V$76=$B5)*Mai!$Y$8:$Y$76) -> 0.00 € | AC5: =AB5+AD5 -> 70 € | AD5: 70 € | AE5: =SUMPRODUCT((Juin!$D$164:$D$232=$B5)*Juin!$G$164:$G$232) -> 70.00 € | AF5: =SUMPRODUCT((Juin!$M$13:$M$46=$B5)*Juin!$P$13:$P$46)-SUMPRODUCT((Juin!$M$58:$M$73=$B5)*Juin!$P$58:$P$73) -> 0.00 € | AG5: =SUMPRODUCT((Juin!$V$8:$V$76=$B5)*Juin!$Y$8:$Y$76) -> 0.00 € | AH5: =AG5+AI5 -> 70 € | AI5: 70 € | AJ5: =SUMPRODUCT((Juillet!$D$164:$D$232=$B5)*Juillet!$G$164:$G$232) -> 70.00 € | AK5: =SUMPRODUCT((Juillet!$M$13:$M$46=$B5)*Juillet!$P$13:$P$46)-SUMPRODUCT((Juillet!$M$58:$M$73=$B5)*Juillet!$P$58:$P$73) -> 0.00 € | AL5: =SUMPRODUCT((Juillet!$V$8:$V$76=$B5)*Juillet!$Y$8:$Y$76) -> 0.00 € | AM5: =AL5+AN5 -> 70 € | AN5: 70 € | AO5: =SUMPRODUCT((Aout!$D$164:$D$232=$B5)*Aout!$G$164:$G$232) -> 70.00 € | AP5: =SUMPRODUCT((Aout!$M$13:$M$46=$B5)*Aout!$P$13:$P$46)-SUMPRODUCT((Aout!$M$58:$M$73=$B5)*Aout!$P$58:$P$73) -> 0.00 € | AQ5: =SUMPRODUCT((Aout!$V$8:$V$76=$B5)*Aout!$Y$8:$Y$76) -> 0.00 € | AR5: =AQ5+AS5 -> 70 € | AS5: 70 € | AT5: =SUMPRODUCT((Septembre!$D$164:$D$232=$B5)*Septembre!$G$164:$G$232) -> 70.00 € | AU5: =SUMPRODUCT((Septembre!$M$13:$M$46=$B5)*Septembre!$P$13:$P$46)-SUMPRODUCT((Septembre!$M$58:$M$73=$B5)*Septembre!$P$58:$P$73) -> 0.00 € | AV5: =SUMPRODUCT((Septembre!$V$8:$V$76=$B5)*Septembre!$Y$8:$Y$76) -> 0.00 € | AW5: =AV5+AX5 -> 70 € | AX5: 70 € | AY5: =SUMPRODUCT((Octobre!$D$164:$D$232=$B5)*Octobre!$G$164:$G$232) -> 70.00 € | AZ5: =SUMPRODUCT((Octobre!$M$13:$M$46=$B5)*Octobre!$P$13:$P$46)-SUMPRODUCT((Octobre!$M$58:$M$73=$B5)*Octobre!$P$58:$P$73) -> 0.00 € | BA5: =SUMPRODUCT((Octobre!$V$8:$V$76=$B5)*Octobre!$Y$8:$Y$76) -> 0.00 € | BB5: =BA5+BC5 -> 70 € | BC5: 70 € | BD5: =SUMPRODUCT((Novembre!$D$164:$D$232=$B5)*Novembre!$G$164:$G$232) -> 70.00 € | BE5: =SUMPRODUCT((Novembre!$M$13:$M$46=$B5)*Novembre!$P$13:$P$46)-SUMPRODUCT((Novembre!$M$58:$M$73=$B5)*Novembre!$P$58:$P$73) -> 0.00 € | BF5: =SUMPRODUCT((Novembre!$V$8:$V$76=$B5)*Novembre!$Y$8:$Y$76) -> 0.00 € | BG5: =BF5+BH5 -> 70 € | BH5: 70 € | BI5: =SUMPRODUCT((Décembre!$D$164:$D$232=$B5)*Décembre!$G$164:$G$232) -> 70.00 € | BJ5: =SUMPRODUCT((Décembre!$M$13:$M$46=$B5)*Décembre!$P$13:$P$46)-SUMPRODUCT((Décembre!$M$58:$M$73=$B5)*Décembre!$P$58:$P$73) -> 0.00 € | BK5: =SUMPRODUCT((Décembre!$V$8:$V$76=$B5)*Décembre!$Y$8:$Y$76) -> 0.00 €
E6: 49 € | F6: =SUMPRODUCT(('Janvier '!$D$164:$D$232=$B5)*'Janvier '!$F$164:$F$232) -> 49 € | G6: =SUMPRODUCT(('Janvier '!$M$13:$M$46=$B5)*'Janvier '!$O$13:$O$46)+SUMPRODUCT(('Janvier '!$M$58:$M$73=$B5)*'Janvier '!$O$58:$O$73) -> 0 € | H6: =SUMPRODUCT(('Janvier '!$V$8:$V$76=$B5)*'Janvier '!$X$8:$X$76) -> 0 € | J6: 49 € | K6: =SUMPRODUCT((Fevrier!$D$164:$D$232=$B5)*Fevrier!$F$164:$F$232) -> 49 € | L6: =SUMPRODUCT((Fevrier!$M$13:$M$46=$B5)*Fevrier!$O$13:$O$46)+SUMPRODUCT((Fevrier!$M$58:$M$73=$B5)*Fevrier!$O$58:$O$73) -> 0 € | M6: =SUMPRODUCT((Fevrier!$V$8:$V$76=$B5)*Fevrier!$X$8:$X$76) -> 0 € | O6: 49 € | P6: =SUMPRODUCT((Mars!$D$164:$D$232=$B5)*Mars!$F$164:$F$232) -> 49 € | Q6: =SUMPRODUCT((Mars!$M$13:$M$46=$B5)*Mars!$O$13:$O$46)+SUMPRODUCT((Mars!$M$58:$M$73=$B5)*Mars!$O$58:$O$73) -> 0 € | R6: =SUMPRODUCT((Mars!$V$8:$V$76=$B5)*Mars!$X$8:$X$76) -> 0 € | T6: 49 € | U6: =SUMPRODUCT((Avril!$D$164:$D$232=$B5)*Avril!$F$164:$F$232) -> 49 € | V6: =SUMPRODUCT((Avril!$M$13:$M$46=$B5)*Avril!$O$13:$O$46)+SUMPRODUCT((Avril!$M$58:$M$73=$B5)*Avril!$O$58:$O$73) -> 0 € | W6: =SUMPRODUCT((Avril!$V$8:$V$76=$B5)*Avril!$X$8:$X$76) -> 0 € | Y6: 49 € | Z6: =SUMPRODUCT((Mai!$D$164:$D$232=$B5)*Mai!$F$164:$F$232) -> 49 € | AA6: =SUMPRODUCT((Mai!$M$13:$M$46=$B5)*Mai!$O$13:$O$46)+SUMPRODUCT((Mai!$M$58:$M$73=$B5)*Mai!$O$58:$O$73) -> 0 € | AB6: =SUMPRODUCT((Mai!$V$8:$V$76=$B5)*Mai!$X$8:$X$76) -> 0 € | AD6: 49 € | AE6: =SUMPRODUCT((Juin!$D$164:$D$232=$B5)*Juin!$F$164:$F$232) -> 49 € | AF6: =SUMPRODUCT((Juin!$M$13:$M$46=$B5)*Juin!$O$13:$O$46)+SUMPRODUCT((Juin!$M$58:$M$73=$B5)*Juin!$O$58:$O$73) -> 0 € | AG6: =SUMPRODUCT((Juin!$V$8:$V$76=$B5)*Juin!$X$8:$X$76) -> 0 € | AI6: 49 € | AJ6: =SUMPRODUCT((Juillet!$D$164:$D$232=$B5)*Juillet!$F$164:$F$232) -> 49 € | AK6: =SUMPRODUCT((Juillet!$M$13:$M$46=$B5)*Juillet!$O$13:$O$46)+SUMPRODUCT((Juillet!$M$58:$M$73=$B5)*Juillet!$O$58:$O$73) -> 0 € | AL6: =SUMPRODUCT((Juillet!$V$8:$V$76=$B5)*Juillet!$X$8:$X$76) -> 0 € | AN6: 49 € | AO6: =SUMPRODUCT((Aout!$D$164:$D$232=$B5)*Aout!$F$164:$F$232) -> 49 € | AP6: =SUMPRODUCT((Aout!$M$13:$M$46=$B5)*Aout!$O$13:$O$46)+SUMPRODUCT((Aout!$M$58:$M$73=$B5)*Aout!$O$58:$O$73) -> 0 € | AQ6: =SUMPRODUCT((Aout!$V$8:$V$76=$B5)*Aout!$X$8:$X$76) -> 0 € | AS6: 49 € | AT6: =SUMPRODUCT((Septembre!$D$164:$D$232=$B5)*Septembre!$F$164:$F$232) -> 49 € | AU6: =SUMPRODUCT((Septembre!$M$13:$M$46=$B5)*Septembre!$O$13:$O$46)+SUMPRODUCT((Septembre!$M$58:$M$73=$B5)*Septembre!$O$58:$O$73) -> 0 € | AV6: =SUMPRODUCT((Septembre!$V$8:$V$76=$B5)*Septembre!$X$8:$X$76) -> 0 € | AX6: 49 € | AY6: =SUMPRODUCT((Octobre!$D$164:$D$232=$B5)*Octobre!$F$164:$F$232) -> 49 € | AZ6: =SUMPRODUCT((Octobre!$M$13:$M$46=$B5)*Octobre!$O$13:$O$46)+SUMPRODUCT((Octobre!$M$58:$M$73=$B5)*Octobre!$O$58:$O$73) -> 0 € | BA6: =SUMPRODUCT((Octobre!$V$8:$V$76=$B5)*Octobre!$X$8:$X$76) -> 0 € | BC6: 49 € | BD6: =SUMPRODUCT((Novembre!$D$164:$D$232=$B5)*Novembre!$F$164:$F$232) -> 49 € | BE6: =SUMPRODUCT((Novembre!$M$13:$M$46=$B5)*Novembre!$O$13:$O$46)+SUMPRODUCT((Novembre!$M$58:$M$73=$B5)*Novembre!$O$58:$O$73) -> 0 € | BF6: =SUMPRODUCT((Novembre!$V$8:$V$76=$B5)*Novembre!$X$8:$X$76) -> 0 € | BH6: 49 € | BI6: =SUMPRODUCT((Décembre!$D$164:$D$232=$B5)*Décembre!$F$164:$F$232) -> 49 € | BJ6: =SUMPRODUCT((Décembre!$M$13:$M$46=$B5)*Décembre!$O$13:$O$46)+SUMPRODUCT((Décembre!$M$58:$M$73=$B5)*Décembre!$O$58:$O$73) -> 0 € | BK6: =SUMPRODUCT((Décembre!$V$8:$V$76=$B5)*Décembre!$X$8:$X$76) -> 0 €
B7: Bois | C7: 0 € | D7: =C7+E7 -> 60 € | E7: 60 € | F7: =SUMPRODUCT(('Janvier '!$D$164:$D$232=$B7)*'Janvier '!$G$164:$G$232) -> 60.00 € | G7: =SUMPRODUCT(('Janvier '!$M$13:$M$46=$B7)*'Janvier '!$P$13:$P$46)-SUMPRODUCT(('Janvier '!$M$58:$M$73=$B7)*'Janvier '!$P$58:$P$73) -> 0.00 € | H7: =SUMPRODUCT(('Janvier '!$V$8:$V$76=$B7)*'Janvier '!$Y$8:$Y$76) -> 0.00 € | I7: =H7+J7 -> 60 € | J7: 60 € | K7: =SUMPRODUCT((Fevrier!$D$164:$D$232=$B7)*Fevrier!$G$164:$G$232) -> 60.00 € | L7: =SUMPRODUCT((Fevrier!$M$13:$M$46=$B7)*Fevrier!$P$13:$P$46)-SUMPRODUCT((Fevrier!$M$58:$M$73=$B7)*Fevrier!$P$58:$P$73) -> 0.00 € | M7: =SUMPRODUCT((Fevrier!$V$8:$V$76=$B7)*Fevrier!$Y$8:$Y$76) -> 0.00 € | N7: =M7+O7 -> 60 € | O7: 60 € | P7: =SUMPRODUCT((Mars!$D$164:$D$232=$B7)*Mars!$G$164:$G$232) -> 60.00 € | Q7: =SUMPRODUCT((Mars!$M$13:$M$46=$B7)*Mars!$P$13:$P$46)-SUMPRODUCT((Mars!$M$58:$M$73=$B7)*Mars!$P$58:$P$73) -> 0.00 € | R7: =SUMPRODUCT((Mars!$V$8:$V$76=$B7)*Mars!$Y$8:$Y$76) -> 0.00 € | S7: =R7+T7 -> 60 € | T7: 60 € | U7: =SUMPRODUCT((Avril!$D$164:$D$232=$B7)*Avril!$G$164:$G$232) -> 60.00 € | V7: =SUMPRODUCT((Avril!$M$13:$M$46=$B7)*Avril!$P$13:$P$46)-SUMPRODUCT((Avril!$M$58:$M$73=$B7)*Avril!$P$58:$P$73) -> 0.00 € | W7: =SUMPRODUCT((Avril!$V$8:$V$76=$B7)*Avril!$Y$8:$Y$76) -> 0.00 € | X7: =W7+Y7 -> 60 € | Y7: 60 € | Z7: =SUMPRODUCT((Mai!$D$164:$D$232=$B7)*Mai!$G$164:$G$232) -> 60.00 € | AA7: =SUMPRODUCT((Mai!$M$13:$M$46=$B7)*Mai!$P$13:$P$46)-SUMPRODUCT((Mai!$M$58:$M$73=$B7)*Mai!$P$58:$P$73) -> 0.00 € | AB7: =SUMPRODUCT((Mai!$V$8:$V$76=$B7)*Mai!$Y$8:$Y$76) -> 0.00 € | AC7: =AB7+AD7 -> 60 € | AD7: 60 € | AE7: =SUMPRODUCT((Juin!$D$164:$D$232=$B7)*Juin!$G$164:$G$232) -> 60.00 € | AF7: =SUMPRODUCT((Juin!$M$13:$M$46=$B7)*Juin!$P$13:$P$46)-SUMPRODUCT((Juin!$M$58:$M$73=$B7)*Juin!$P$58:$P$73) -> 0.00 € | AG7: =SUMPRODUCT((Juin!$V$8:$V$76=$B7)*Juin!$Y$8:$Y$76) -> 0.00 € | AH7: =AG7+AI7 -> 60 € | AI7: 60 € | AJ7: =SUMPRODUCT((Juillet!$D$164:$D$232=$B7)*Juillet!$G$164:$G$232) -> 60.00 € | AK7: =SUMPRODUCT((Juillet!$M$13:$M$46=$B7)*Juillet!$P$13:$P$46)-SUMPRODUCT((Juillet!$M$58:$M$73=$B7)*Juillet!$P$58:$P$73) -> 0.00 € | AL7: =SUMPRODUCT((Juillet!$V$8:$V$76=$B7)*Juillet!$Y$8:$Y$76) -> 0.00 € | AM7: =AL7+AN7 -> 60 € | AN7: 60 € | AO7: =SUMPRODUCT((Aout!$D$164:$D$232=$B7)*Aout!$G$164:$G$232) -> 60.00 € | AP7: =SUMPRODUCT((Aout!$M$13:$M$46=$B7)*Aout!$P$13:$P$46)-SUMPRODUCT((Aout!$M$58:$M$73=$B7)*Aout!$P$58:$P$73) -> 0.00 € | AQ7: =SUMPRODUCT((Aout!$V$8:$V$76=$B7)*Aout!$Y$8:$Y$76) -> 0.00 € | AR7: =AQ7+AS7 -> 60 € | AS7: 60 € | AT7: =SUMPRODUCT((Septembre!$D$164:$D$232=$B7)*Septembre!$G$164:$G$232) -> 60.00 € | AU7: =SUMPRODUCT((Septembre!$M$13:$M$46=$B7)*Septembre!$P$13:$P$46)-SUMPRODUCT((Septembre!$M$58:$M$73=$B7)*Septembre!$P$58:$P$73) -> 0.00 € | AV7: =SUMPRODUCT((Septembre!$V$8:$V$76=$B7)*Septembre!$Y$8:$Y$76) -> 0.00 € | AW7: =AV7+AX7 -> 60 € | AX7: 60 € | AY7: =SUMPRODUCT((Octobre!$D$164:$D$232=$B7)*Octobre!$G$164:$G$232) -> 60.00 € | AZ7: =SUMPRODUCT((Octobre!$M$13:$M$46=$B7)*Octobre!$P$13:$P$46)-SUMPRODUCT((Octobre!$M$58:$M$73=$B7)*Octobre!$P$58:$P$73) -> 0.00 € | BA7: =SUMPRODUCT((Octobre!$V$8:$V$76=$B7)*Octobre!$Y$8:$Y$76) -> 0.00 € | BB7: =BA7+BC7 -> 60 € | BC7: 60 € | BD7: =SUMPRODUCT((Novembre!$D$164:$D$232=$B7)*Novembre!$G$164:$G$232) -> 60.00 € | BE7: =SUMPRODUCT((Novembre!$M$13:$M$46=$B7)*Novembre!$P$13:$P$46)-SUMPRODUCT((Novembre!$M$58:$M$73=$B7)*Novembre!$P$58:$P$73) -> 0.00 € | BF7: =SUMPRODUCT((Novembre!$V$8:$V$76=$B7)*Novembre!$Y$8:$Y$76) -> 0.00 € | BG7: =BF7+BH7 -> 60 € | BH7: 60 € | BI7: =SUMPRODUCT((Décembre!$D$164:$D$232=$B7)*Décembre!$G$164:$G$232) -> 60.00 € | BJ7: =SUMPRODUCT((Décembre!$M$13:$M$46=$B7)*Décembre!$P$13:$P$46)-SUMPRODUCT((Décembre!$M$58:$M$73=$B7)*Décembre!$P$58:$P$73) -> 0.00 € | BK7: =SUMPRODUCT((Décembre!$V$8:$V$76=$B7)*Décembre!$Y$8:$Y$76) -> 0.00 €
E8: 0 € | F8: =SUMPRODUCT(('Janvier '!$D$164:$D$232=$B7)*'Janvier '!$F$164:$F$232) -> 0 € | G8: =SUMPRODUCT(('Janvier '!$M$13:$M$46=$B7)*'Janvier '!$O$13:$O$46)+SUMPRODUCT(('Janvier '!$M$58:$M$73=$B7)*'Janvier '!$O$58:$O$73) -> 0 € | H8: =SUMPRODUCT(('Janvier '!$V$8:$V$76=$B7)*'Janvier '!$X$8:$X$76) -> 0 € | J8: 0 € | K8: =SUMPRODUCT((Fevrier!$D$164:$D$232=$B7)*Fevrier!$F$164:$F$232) -> 0 € | L8: =SUMPRODUCT((Fevrier!$M$13:$M$46=$B7)*Fevrier!$O$13:$O$46)+SUMPRODUCT((Fevrier!$M$58:$M$73=$B7)*Fevrier!$O$58:$O$73) -> 0 € | M8: =SUMPRODUCT((Fevrier!$V$8:$V$76=$B7)*Fevrier!$X$8:$X$76) -> 0 € | O8: 0 € | P8: =SUMPRODUCT((Mars!$D$164:$D$232=$B7)*Mars!$F$164:$F$232) -> 0 € | Q8: =SUMPRODUCT((Mars!$M$13:$M$46=$B7)*Mars!$O$13:$O$46)+SUMPRODUCT((Mars!$M$58:$M$73=$B7)*Mars!$O$58:$O$73) -> 0 € | R8: =SUMPRODUCT((Mars!$V$8:$V$76=$B7)*Mars!$X$8:$X$76) -> 0 € | T8: 0 € | U8: =SUMPRODUCT((Avril!$D$164:$D$232=$B7)*Avril!$F$164:$F$232) -> 0 € | V8: =SUMPRODUCT((Avril!$M$13:$M$46=$B7)*Avril!$O$13:$O$46)+SUMPRODUCT((Avril!$M$58:$M$73=$B7)*Avril!$O$58:$O$73) -> 0 € | W8: =SUMPRODUCT((Avril!$V$8:$V$76=$B7)*Avril!$X$8:$X$76) -> 0 € | Y8: 0 € | Z8: =SUMPRODUCT((Mai!$D$164:$D$232=$B7)*Mai!$F$164:$F$232) -> 0 € | AA8: =SUMPRODUCT((Mai!$M$13:$M$46=$B7)*Mai!$O$13:$O$46)+SUMPRODUCT((Mai!$M$58:$M$73=$B7)*Mai!$O$58:$O$73) -> 0 € | AB8: =SUMPRODUCT((Mai!$V$8:$V$76=$B7)*Mai!$X$8:$X$76) -> 0 € | AD8: 0 € | AE8: =SUMPRODUCT((Juin!$D$164:$D$232=$B7)*Juin!$F$164:$F$232) -> 0 € | AF8: =SUMPRODUCT((Juin!$M$13:$M$46=$B7)*Juin!$O$13:$O$46)+SUMPRODUCT((Juin!$M$58:$M$73=$B7)*Juin!$O$58:$O$73) -> 0 € | AG8: =SUMPRODUCT((Juin!$V$8:$V$76=$B7)*Juin!$X$8:$X$76) -> 0 € | AI8: 0 € | AJ8: =SUMPRODUCT((Juillet!$D$164:$D$232=$B7)*Juillet!$F$164:$F$232) -> 0 € | AK8: =SUMPRODUCT((Juillet!$M$13:$M$46=$B7)*Juillet!$O$13:$O$46)+SUMPRODUCT((Juillet!$M$58:$M$73=$B7)*Juillet!$O$58:$O$73) -> 0 € | AL8: =SUMPRODUCT((Juillet!$V$8:$V$76=$B7)*Juillet!$X$8:$X$76) -> 0 € | AN8: 0 € | AO8: =SUMPRODUCT((Aout!$D$164:$D$232=$B7)*Aout!$F$164:$F$232) -> 0 € | AP8: =SUMPRODUCT((Aout!$M$13:$M$46=$B7)*Aout!$O$13:$O$46)+SUMPRODUCT((Aout!$M$58:$M$73=$B7)*Aout!$O$58:$O$73) -> 0 € | AQ8: =SUMPRODUCT((Aout!$V$8:$V$76=$B7)*Aout!$X$8:$X$76) -> 0 € | AS8: 0 € | AT8: =SUMPRODUCT((Septembre!$D$164:$D$232=$B7)*Septembre!$F$164:$F$232) -> 0 € | AU8: =SUMPRODUCT((Septembre!$M$13:$M$46=$B7)*Septembre!$O$13:$O$46)+SUMPRODUCT((Septembre!$M$58:$M$73=$B7)*Septembre!$O$58:$O$73) -> 0 € | AV8: =SUMPRODUCT((Septembre!$V$8:$V$76=$B7)*Septembre!$X$8:$X$76) -> 0 € | AX8: 0 € | AY8: =SUMPRODUCT((Octobre!$D$164:$D$232=$B7)*Octobre!$F$164:$F$232) -> 0 € | AZ8: =SUMPRODUCT((Octobre!$M$13:$M$46=$B7)*Octobre!$O$13:$O$46)+SUMPRODUCT((Octobre!$M$58:$M$73=$B7)*Octobre!$O$58:$O$73) -> 0 € | BA8: =SUMPRODUCT((Octobre!$V$8:$V$76=$B7)*Octobre!$X$8:$X$76) -> 0 € | BC8: 0 € | BD8: =SUMPRODUCT((Novembre!$D$164:$D$232=$B7)*Novembre!$F$164:$F$232) -> 0 € | BE8: =SUMPRODUCT((Novembre!$M$13:$M$46=$B7)*Novembre!$O$13:$O$46)+SUMPRODUCT((Novembre!$M$58:$M$73=$B7)*Novembre!$O$58:$O$73) -> 0 € | BF8: =SUMPRODUCT((Novembre!$V$8:$V$76=$B7)*Novembre!$X$8:$X$76) -> 0 € | BH8: 0 € | BI8: =SUMPRODUCT((Décembre!$D$164:$D$232=$B7)*Décembre!$F$164:$F$232) -> 0 € | BJ8: =SUMPRODUCT((Décembre!$M$13:$M$46=$B7)*Décembre!$O$13:$O$46)+SUMPRODUCT((Décembre!$M$58:$M$73=$B7)*Décembre!$O$58:$O$73) -> 0 € | BK8: =SUMPRODUCT((Décembre!$V$8:$V$76=$B7)*Décembre!$X$8:$X$76) -> 0 €
B9: Eau | C9: 0 € | D9: =C9+E9 -> 55 € | E9: 55 € | F9: =SUMPRODUCT(('Janvier '!$D$164:$D$232=$B9)*'Janvier '!$G$164:$G$232) -> 55.00 € | G9: =SUMPRODUCT(('Janvier '!$M$13:$M$46=$B9)*'Janvier '!$P$13:$P$46)-SUMPRODUCT(('Janvier '!$M$58:$M$73=$B9)*'Janvier '!$P$58:$P$73) -> 0.00 € | H9: =SUMPRODUCT(('Janvier '!$V$8:$V$76=$B9)*'Janvier '!$Y$8:$Y$76) -> 0.00 € | I9: =H9+J9 -> 55 € | J9: 55 € | K9: =SUMPRODUCT((Fevrier!$D$164:$D$232=$B9)*Fevrier!$G$164:$G$232) -> 55.00 € | L9: =SUMPRODUCT((Fevrier!$M$13:$M$46=$B9)*Fevrier!$P$13:$P$46)-SUMPRODUCT((Fevrier!$M$58:$M$73=$B9)*Fevrier!$P$58:$P$73) -> 0.00 € | M9: =SUMPRODUCT((Fevrier!$V$8:$V$76=$B9)*Fevrier!$Y$8:$Y$76) -> 0.00 € | N9: =M9+O9 -> 55 € | O9: 55 € | P9: =SUMPRODUCT((Mars!$D$164:$D$232=$B9)*Mars!$G$164:$G$232) -> 55.00 € | Q9: =SUMPRODUCT((Mars!$M$13:$M$46=$B9)*Mars!$P$13:$P$46)-SUMPRODUCT((Mars!$M$58:$M$73=$B9)*Mars!$P$58:$P$73) -> 0.00 € | R9: =SUMPRODUCT((Mars!$V$8:$V$76=$B9)*Mars!$Y$8:$Y$76) -> 0.00 € | S9: =R9+T9 -> 55 € | T9: 55 € | U9: =SUMPRODUCT((Avril!$D$164:$D$232=$B9)*Avril!$G$164:$G$232) -> 55.00 € | V9: =SUMPRODUCT((Avril!$M$13:$M$46=$B9)*Avril!$P$13:$P$46)-SUMPRODUCT((Avril!$M$58:$M$73=$B9)*Avril!$P$58:$P$73) -> 0.00 € | W9: =SUMPRODUCT((Avril!$V$8:$V$76=$B9)*Avril!$Y$8:$Y$76) -> 0.00 € | X9: =W9+Y9 -> 55 € | Y9: 55 € | Z9: =SUMPRODUCT((Mai!$D$164:$D$232=$B9)*Mai!$G$164:$G$232) -> 55.00 € | AA9: =SUMPRODUCT((Mai!$M$13:$M$46=$B9)*Mai!$P$13:$P$46)-SUMPRODUCT((Mai!$M$58:$M$73=$B9)*Mai!$P$58:$P$73) -> 0.00 € | AB9: =SUMPRODUCT((Mai!$V$8:$V$76=$B9)*Mai!$Y$8:$Y$76) -> 0.00 € | AC9: =AB9+AD9 -> 55 € | AD9: 55 € | AE9: =SUMPRODUCT((Juin!$D$164:$D$232=$B9)*Juin!$G$164:$G$232) -> 55.00 € | AF9: =SUMPRODUCT((Juin!$M$13:$M$46=$B9)*Juin!$P$13:$P$46)-SUMPRODUCT((Juin!$M$58:$M$73=$B9)*Juin!$P$58:$P$73) -> 0.00 € | AG9: =SUMPRODUCT((Juin!$V$8:$V$76=$B9)*Juin!$Y$8:$Y$76) -> 0.00 € | AH9: =AG9+AI9 -> 55 € | AI9: 55 € | AJ9: =SUMPRODUCT((Juillet!$D$164:$D$232=$B9)*Juillet!$G$164:$G$232) -> 55.00 € | AK9: =SUMPRODUCT((Juillet!$M$13:$M$46=$B9)*Juillet!$P$13:$P$46)-SUMPRODUCT((Juillet!$M$58:$M$73=$B9)*Juillet!$P$58:$P$73) -> 0.00 € | AL9: =SUMPRODUCT((Juillet!$V$8:$V$76=$B9)*Juillet!$Y$8:$Y$76) -> 0.00 € | AM9: =AL9+AN9 -> 55 € | AN9: 55 € | AO9: =SUMPRODUCT((Aout!$D$164:$D$232=$B9)*Aout!$G$164:$G$232) -> 55.00 € | AP9: =SUMPRODUCT((Aout!$M$13:$M$46=$B9)*Aout!$P$13:$P$46)-SUMPRODUCT((Aout!$M$58:$M$73=$B9)*Aout!$P$58:$P$73) -> 0.00 € | AQ9: =SUMPRODUCT((Aout!$V$8:$V$76=$B9)*Aout!$Y$8:$Y$76) -> 0.00 € | AR9: =AQ9+AS9 -> 55 € | AS9: 55 € | AT9: =SUMPRODUCT((Septembre!$D$164:$D$232=$B9)*Septembre!$G$164:$G$232) -> 55.00 € | AU9: =SUMPRODUCT((Septembre!$M$13:$M$46=$B9)*Septembre!$P$13:$P$46)-SUMPRODUCT((Septembre!$M$58:$M$73=$B9)*Septembre!$P$58:$P$73) -> 0.00 € | AV9: =SUMPRODUCT((Septembre!$V$8:$V$76=$B9)*Septembre!$Y$8:$Y$76) -> 0.00 € | AW9: =AV9+AX9 -> 55 € | AX9: 55 € | AY9: =SUMPRODUCT((Octobre!$D$164:$D$232=$B9)*Octobre!$G$164:$G$232) -> 55.00 € | AZ9: =SUMPRODUCT((Octobre!$M$13:$M$46=$B9)*Octobre!$P$13:$P$46)-SUMPRODUCT((Octobre!$M$58:$M$73=$B9)*Octobre!$P$58:$P$73) -> 0.00 € | BA9: =SUMPRODUCT((Octobre!$V$8:$V$76=$B9)*Octobre!$Y$8:$Y$76) -> 0.00 € | BB9: =BA9+BC9 -> 55 € | BC9: 55 € | BD9: =SUMPRODUCT((Novembre!$D$164:$D$232=$B9)*Novembre!$G$164:$G$232) -> 55.00 € | BE9: =SUMPRODUCT((Novembre!$M$13:$M$46=$B9)*Novembre!$P$13:$P$46)-SUMPRODUCT((Novembre!$M$58:$M$73=$B9)*Novembre!$P$58:$P$73) -> 0.00 € | BF9: =SUMPRODUCT((Novembre!$V$8:$V$76=$B9)*Novembre!$Y$8:$Y$76) -> 0.00 € | BG9: =BF9+BH9 -> 55 € | BH9: 55 € | BI9: =SUMPRODUCT((Décembre!$D$164:$D$232=$B9)*Décembre!$G$164:$G$232) -> 55.00 € | BJ9: =SUMPRODUCT((Décembre!$M$13:$M$46=$B9)*Décembre!$P$13:$P$46)-SUMPRODUCT((Décembre!$M$58:$M$73=$B9)*Décembre!$P$58:$P$73) -> 0.00 € | BK9: =SUMPRODUCT((Décembre!$V$8:$V$76=$B9)*Décembre!$Y$8:$Y$76) -> 0.00 €
E10: 0 € | F10: =SUMPRODUCT(('Janvier '!$D$164:$D$232=$B9)*'Janvier '!$F$164:$F$232) -> 0 € | G10: =SUMPRODUCT(('Janvier '!$M$13:$M$46=$B9)*'Janvier '!$O$13:$O$46)+SUMPRODUCT(('Janvier '!$M$58:$M$73=$B9)*'Janvier '!$O$58:$O$73) -> 0 € | H10: =SUMPRODUCT(('Janvier '!$V$8:$V$76=$B9)*'Janvier '!$X$8:$X$76) -> 0 € | J10: 0 € | K10: =SUMPRODUCT((Fevrier!$D$164:$D$232=$B9)*Fevrier!$F$164:$F$232) -> 0 € | L10: =SUMPRODUCT((Fevrier!$M$13:$M$46=$B9)*Fevrier!$O$13:$O$46)+SUMPRODUCT((Fevrier!$M$58:$M$73=$B9)*Fevrier!$O$58:$O$73) -> 0 € | M10: =SUMPRODUCT((Fevrier!$V$8:$V$76=$B9)*Fevrier!$X$8:$X$76) -> 0 € | O10: 0 € | P10: =SUMPRODUCT((Mars!$D$164:$D$232=$B9)*Mars!$F$164:$F$232) -> 0 € | Q10: =SUMPRODUCT((Mars!$M$13:$M$46=$B9)*Mars!$O$13:$O$46)+SUMPRODUCT((Mars!$M$58:$M$73=$B9)*Mars!$O$58:$O$73) -> 0 € | R10: =SUMPRODUCT((Mars!$V$8:$V$76=$B9)*Mars!$X$8:$X$76) -> 0 € | T10: 0 € | U10: =SUMPRODUCT((Avril!$D$164:$D$232=$B9)*Avril!$F$164:$F$232) -> 0 € | V10: =SUMPRODUCT((Avril!$M$13:$M$46=$B9)*Avril!$O$13:$O$46)+SUMPRODUCT((Avril!$M$58:$M$73=$B9)*Avril!$O$58:$O$73) -> 0 € | W10: =SUMPRODUCT((Avril!$V$8:$V$76=$B9)*Avril!$X$8:$X$76) -> 0 € | Y10: 0 € | Z10: =SUMPRODUCT((Mai!$D$164:$D$232=$B9)*Mai!$F$164:$F$232) -> 0 € | AA10: =SUMPRODUCT((Mai!$M$13:$M$46=$B9)*Mai!$O$13:$O$46)+SUMPRODUCT((Mai!$M$58:$M$73=$B9)*Mai!$O$58:$O$73) -> 0 € | AB10: =SUMPRODUCT((Mai!$V$8:$V$76=$B9)*Mai!$X$8:$X$76) -> 0 € | AD10: 0 € | AE10: =SUMPRODUCT((Juin!$D$164:$D$232=$B9)*Juin!$F$164:$F$232) -> 0 € | AF10: =SUMPRODUCT((Juin!$M$13:$M$46=$B9)*Juin!$O$13:$O$46)+SUMPRODUCT((Juin!$M$58:$M$73=$B9)*Juin!$O$58:$O$73) -> 0 € | AG10: =SUMPRODUCT((Juin!$V$8:$V$76=$B9)*Juin!$X$8:$X$76) -> 0 € | AI10: 0 € | AJ10: =SUMPRODUCT((Juillet!$D$164:$D$232=$B9)*Juillet!$F$164:$F$232) -> 0 € | AK10: =SUMPRODUCT((Juillet!$M$13:$M$46=$B9)*Juillet!$O$13:$O$46)+SUMPRODUCT((Juillet!$M$58:$M$73=$B9)*Juillet!$O$58:$O$73) -> 0 € | AL10: =SUMPRODUCT((Juillet!$V$8:$V$76=$B9)*Juillet!$X$8:$X$76) -> 0 € | AN10: 0 € | AO10: =SUMPRODUCT((Aout!$D$164:$D$232=$B9)*Aout!$F$164:$F$232) -> 0 € | AP10: =SUMPRODUCT((Aout!$M$13:$M$46=$B9)*Aout!$O$13:$O$46)+SUMPRODUCT((Aout!$M$58:$M$73=$B9)*Aout!$O$58:$O$73) -> 0 € | AQ10: =SUMPRODUCT((Aout!$V$8:$V$76=$B9)*Aout!$X$8:$X$76) -> 0 € | AS10: 0 € | AT10: =SUMPRODUCT((Septembre!$D$164:$D$232=$B9)*Septembre!$F$164:$F$232) -> 0 € | AU10: =SUMPRODUCT((Septembre!$M$13:$M$46=$B9)*Septembre!$O$13:$O$46)+SUMPRODUCT((Septembre!$M$58:$M$73=$B9)*Septembre!$O$58:$O$73) -> 0 € | AV10: =SUMPRODUCT((Septembre!$V$8:$V$76=$B9)*Septembre!$X$8:$X$76) -> 0 € | AX10: 0 € | AY10: =SUMPRODUCT((Octobre!$D$164:$D$232=$B9)*Octobre!$F$164:$F$232) -> 0 € | AZ10: =SUMPRODUCT((Octobre!$M$13:$M$46=$B9)*Octobre!$O$13:$O$46)+SUMPRODUCT((Octobre!$M$58:$M$73=$B9)*Octobre!$O$58:$O$73) -> 0 € | BA10: =SUMPRODUCT((Octobre!$V$8:$V$76=$B9)*Octobre!$X$8:$X$76) -> 0 € | BC10: 0 € | BD10: =SUMPRODUCT((Novembre!$D$164:$D$232=$B9)*Novembre!$F$164:$F$232) -> 0 € | BE10: =SUMPRODUCT((Novembre!$M$13:$M$46=$B9)*Novembre!$O$13:$O$46)+SUMPRODUCT((Novembre!$M$58:$M$73=$B9)*Novembre!$O$58:$O$73) -> 0 € | BF10: =SUMPRODUCT((Novembre!$V$8:$V$76=$B9)*Novembre!$X$8:$X$76) -> 0 € | BH10: 0 € | BI10: =SUMPRODUCT((Décembre!$D$164:$D$232=$B9)*Décembre!$F$164:$F$232) -> 0 € | BJ10: =SUMPRODUCT((Décembre!$M$13:$M$46=$B9)*Décembre!$O$13:$O$46)+SUMPRODUCT((Décembre!$M$58:$M$73=$B9)*Décembre!$O$58:$O$73) -> 0 € | BK10: =SUMPRODUCT((Décembre!$V$8:$V$76=$B9)*Décembre!$X$8:$X$76) -> 0 €
B11: Animaux | C11: 0 € | D11: =C11+E11 -> 70 € | E11: 70 € | F11: =SUMPRODUCT(('Janvier '!$D$164:$D$232=$B11)*'Janvier '!$G$164:$G$232) -> 0.00 € | G11: =SUMPRODUCT(('Janvier '!$M$13:$M$46=$B11)*'Janvier '!$P$13:$P$46) -> 70.00 € | H11: =SUMPRODUCT(('Janvier '!$V$8:$V$76=$B11)*'Janvier '!$Y$8:$Y$76) -> 0.00 € | I11: =H11+J11 -> 70 € | J11: 70 € | K11: =SUMPRODUCT((Fevrier!$D$164:$D$232=$B11)*Fevrier!$G$164:$G$232) -> 0.00 € | L11: =SUMPRODUCT((Fevrier!$M$13:$M$46=$B11)*Fevrier!$P$13:$P$46) -> 70.00 € | M11: =SUMPRODUCT((Fevrier!$V$8:$V$76=$B11)*Fevrier!$Y$8:$Y$76) -> 0.00 € | N11: =M11+O11 -> 70 € | O11: 70 € | P11: =SUMPRODUCT((Mars!$D$164:$D$232=$B11)*Mars!$G$164:$G$232) -> 0.00 € | Q11: =SUMPRODUCT((Mars!$M$13:$M$46=$B11)*Mars!$P$13:$P$46) -> 70.00 € | R11: =SUMPRODUCT((Mars!$V$8:$V$76=$B11)*Mars!$Y$8:$Y$76) -> 0.00 € | S11: =R11+T11 -> 70 € | T11: 70 € | U11: =SUMPRODUCT((Avril!$D$164:$D$232=$B11)*Avril!$G$164:$G$232) -> 0.00 € | V11: =SUMPRODUCT((Avril!$M$13:$M$46=$B11)*Avril!$P$13:$P$46) -> 70.00 € | W11: =SUMPRODUCT((Avril!$V$8:$V$76=$B11)*Avril!$Y$8:$Y$76) -> 0.00 € | X11: =W11+Y11 -> 70 € | Y11: 70 € | Z11: =SUMPRODUCT((Mai!$D$164:$D$232=$B11)*Mai!$G$164:$G$232) -> 0.00 € | AA11: =SUMPRODUCT((Mai!$M$13:$M$46=$B11)*Mai!$P$13:$P$46) -> 70.00 € | AB11: =SUMPRODUCT((Mai!$V$8:$V$76=$B11)*Mai!$Y$8:$Y$76) -> 0.00 € | AC11: =AB11+AD11 -> 70 € | AD11: 70 € | AE11: =SUMPRODUCT((Juin!$D$164:$D$232=$B11)*Juin!$G$164:$G$232) -> 0.00 € | AF11: =SUMPRODUCT((Juin!$M$13:$M$46=$B11)*Juin!$P$13:$P$46) -> 70.00 € | AG11: =SUMPRODUCT((Juin!$V$8:$V$76=$B11)*Juin!$Y$8:$Y$76) -> 0.00 € | AH11: =AG11+AI11 -> 70 € | AI11: 70 € | AJ11: =SUMPRODUCT((Juillet!$D$164:$D$232=$B11)*Juillet!$G$164:$G$232) -> 0.00 € | AK11: =SUMPRODUCT((Juillet!$M$13:$M$46=$B11)*Juillet!$P$13:$P$46) -> 70.00 € | AL11: =SUMPRODUCT((Juillet!$V$8:$V$76=$B11)*Juillet!$Y$8:$Y$76) -> 0.00 € | AM11: =AL11+AN11 -> 70 € | AN11: 70 € | AO11: =SUMPRODUCT((Aout!$D$164:$D$232=$B11)*Aout!$G$164:$G$232) -> 0.00 € | AP11: =SUMPRODUCT((Aout!$M$13:$M$46=$B11)*Aout!$P$13:$P$46) -> 70.00 € | AQ11: =SUMPRODUCT((Aout!$V$8:$V$76=$B11)*Aout!$Y$8:$Y$76) -> 0.00 € | AR11: =AQ11+AS11 -> 70 € | AS11: 70 € | AT11: =SUMPRODUCT((Septembre!$D$164:$D$232=$B11)*Septembre!$G$164:$G$232) -> 0.00 € | AU11: =SUMPRODUCT((Septembre!$M$13:$M$46=$B11)*Septembre!$P$13:$P$46) -> 70.00 € | AV11: =SUMPRODUCT((Septembre!$V$8:$V$76=$B11)*Septembre!$Y$8:$Y$76) -> 0.00 € | AW11: =AV11+AX11 -> 70 € | AX11: 70 € | AY11: =SUMPRODUCT((Octobre!$D$164:$D$232=$B11)*Octobre!$G$164:$G$232) -> 0.00 € | AZ11: =SUMPRODUCT((Octobre!$M$13:$M$46=$B11)*Octobre!$P$13:$P$46) -> 70.00 € | BA11: =SUMPRODUCT((Octobre!$V$8:$V$76=$B11)*Octobre!$Y$8:$Y$76) -> 0.00 € | BB11: =BA11+BC11 -> 70 € | BC11: 70 € | BD11: =SUMPRODUCT((Novembre!$D$164:$D$232=$B11)*Novembre!$G$164:$G$232) -> 0.00 € | BE11: =SUMPRODUCT((Novembre!$M$13:$M$46=$B11)*Novembre!$P$13:$P$46) -> 70.00 € | BF11: =SUMPRODUCT((Novembre!$V$8:$V$76=$B11)*Novembre!$Y$8:$Y$76) -> 0.00 € | BG11: =BF11+BH11 -> 70 € | BH11: 70 € | BI11: =SUMPRODUCT((Décembre!$D$164:$D$232=$B11)*Décembre!$G$164:$G$232) -> 0.00 € | BJ11: =SUMPRODUCT((Décembre!$M$13:$M$46=$B11)*Décembre!$P$13:$P$46) -> 70.00 € | BK11: =SUMPRODUCT((Décembre!$V$8:$V$76=$B11)*Décembre!$Y$8:$Y$76) -> 0.00 €
E12: 0 € | F12: =SUMPRODUCT(('Janvier '!$D$164:$D$232=$B11)*'Janvier '!$F$164:$F$232) -> 0 € | G12: =SUMPRODUCT(('Janvier '!$M$13:$M$46=$B11)*'Janvier '!$O$13:$O$46) -> 0 € | H12: =SUMPRODUCT(('Janvier '!$V$8:$V$76=$B11)*'Janvier '!$X$8:$X$76) -> 0 € | J12: 0 € | K12: =SUMPRODUCT((Fevrier!$D$164:$D$232=$B11)*Fevrier!$F$164:$F$232) -> 0 € | L12: =SUMPRODUCT((Fevrier!$M$13:$M$46=$B11)*Fevrier!$O$13:$O$46) -> 0 € | M12: =SUMPRODUCT((Fevrier!$V$8:$V$76=$B11)*Fevrier!$X$8:$X$76) -> 0 € | O12: 0 € | P12: =SUMPRODUCT((Mars!$D$164:$D$232=$B11)*Mars!$F$164:$F$232) -> 0 € | Q12: =SUMPRODUCT((Mars!$M$13:$M$46=$B11)*Mars!$O$13:$O$46) -> 0 € | R12: =SUMPRODUCT((Mars!$V$8:$V$76=$B11)*Mars!$X$8:$X$76) -> 0 € | T12: 0 € | U12: =SUMPRODUCT((Avril!$D$164:$D$232=$B11)*Avril!$F$164:$F$232) -> 0 € | V12: =SUMPRODUCT((Avril!$M$13:$M$46=$B11)*Avril!$O$13:$O$46) -> 0 € | W12: =SUMPRODUCT((Avril!$V$8:$V$76=$B11)*Avril!$X$8:$X$76) -> 0 € | Y12: 0 € | Z12: =SUMPRODUCT((Mai!$D$164:$D$232=$B11)*Mai!$F$164:$F$232) -> 0 € | AA12: =SUMPRODUCT((Mai!$M$13:$M$46=$B11)*Mai!$O$13:$O$46) -> 0 € | AB12: =SUMPRODUCT((Mai!$V$8:$V$76=$B11)*Mai!$X$8:$X$76) -> 0 € | AD12: 0 € | AE12: =SUMPRODUCT((Juin!$D$164:$D$232=$B11)*Juin!$F$164:$F$232) -> 0 € | AF12: =SUMPRODUCT((Juin!$M$13:$M$46=$B11)*Juin!$O$13:$O$46) -> 0 € | AG12: =SUMPRODUCT((Juin!$V$8:$V$76=$B11)*Juin!$X$8:$X$76) -> 0 € | AI12: 0 € | AJ12: =SUMPRODUCT((Juillet!$D$164:$D$232=$B11)*Juillet!$F$164:$F$232) -> 0 € | AK12: =SUMPRODUCT((Juillet!$M$13:$M$46=$B11)*Juillet!$O$13:$O$46) -> 0 € | AL12: =SUMPRODUCT((Juillet!$V$8:$V$76=$B11)*Juillet!$X$8:$X$76) -> 0 € | AN12: 0 € | AO12: =SUMPRODUCT((Aout!$D$164:$D$232=$B11)*Aout!$F$164:$F$232) -> 0 € | AP12: =SUMPRODUCT((Aout!$M$13:$M$46=$B11)*Aout!$O$13:$O$46) -> 0 € | AQ12: =SUMPRODUCT((Aout!$V$8:$V$76=$B11)*Aout!$X$8:$X$76) -> 0 € | AS12: 0 € | AT12: =SUMPRODUCT((Septembre!$D$164:$D$232=$B11)*Septembre!$F$164:$F$232) -> 0 € | AU12: =SUMPRODUCT((Septembre!$M$13:$M$46=$B11)*Septembre!$O$13:$O$46) -> 0 € | AV12: =SUMPRODUCT((Septembre!$V$8:$V$76=$B11)*Septembre!$X$8:$X$76) -> 0 € | AX12: 0 € | AY12: =SUMPRODUCT((Octobre!$D$164:$D$232=$B11)*Octobre!$F$164:$F$232) -> 0 € | AZ12: =SUMPRODUCT((Octobre!$M$13:$M$46=$B11)*Octobre!$O$13:$O$46) -> 0 € | BA12: =SUMPRODUCT((Octobre!$V$8:$V$76=$B11)*Octobre!$X$8:$X$76) -> 0 € | BC12: 0 € | BD12: =SUMPRODUCT((Novembre!$D$164:$D$232=$B11)*Novembre!$F$164:$F$232) -> 0 € | BE12: =SUMPRODUCT((Novembre!$M$13:$M$46=$B11)*Novembre!$O$13:$O$46) -> 0 € | BF12: =SUMPRODUCT((Novembre!$V$8:$V$76=$B11)*Novembre!$X$8:$X$76) -> 0 € | BH12: 0 € | BI12: =SUMPRODUCT((Décembre!$D$164:$D$232=$B11)*Décembre!$F$164:$F$232) -> 0 € | BJ12: =SUMPRODUCT((Décembre!$M$13:$M$46=$B11)*Décembre!$O$13:$O$46) -> 0 € | BK12: =SUMPRODUCT((Décembre!$V$8:$V$76=$B11)*Décembre!$X$8:$X$76) -> 0 €
B13: Assurances | C13: 0 € | D13: =C13+E13 -> 130 € | E13: 130 € | F13: =SUMPRODUCT(('Janvier '!$D$164:$D$232=$B13)*'Janvier '!$G$164:$G$232) -> 130.00 € | G13: =SUMPRODUCT(('Janvier '!$M$13:$M$46=$B13)*'Janvier '!$P$13:$P$46)-SUMPRODUCT(('Janvier '!$M$58:$M$73=$B13)*'Janvier '!$P$58:$P$73) -> 0.00 € | H13: =SUMPRODUCT(('Janvier '!$V$8:$V$76=$B13)*'Janvier '!$Y$8:$Y$76) -> 0.00 € | I13: =H13+J13 -> 130 € | J13: 130 € | K13: =SUMPRODUCT((Fevrier!$D$164:$D$232=$B13)*Fevrier!$G$164:$G$232) -> 130.00 € | L13: =SUMPRODUCT((Fevrier!$M$13:$M$46=$B13)*Fevrier!$P$13:$P$46)-SUMPRODUCT((Fevrier!$M$58:$M$73=$B13)*Fevrier!$P$58:$P$73) -> 0.00 € | M13: =SUMPRODUCT((Fevrier!$V$8:$V$76=$B13)*Fevrier!$Y$8:$Y$76) -> 0.00 € | N13: =M13+O13 -> 130 € | O13: 130 € | P13: =SUMPRODUCT((Mars!$D$164:$D$232=$B13)*Mars!$G$164:$G$232) -> 130.00 € | Q13: =SUMPRODUCT((Mars!$M$13:$M$46=$B13)*Mars!$P$13:$P$46)-SUMPRODUCT((Mars!$M$58:$M$73=$B13)*Mars!$P$58:$P$73) -> 0.00 € | R13: =SUMPRODUCT((Mars!$V$8:$V$76=$B13)*Mars!$Y$8:$Y$76) -> 0.00 € | S13: =R13+T13 -> 130 € | T13: 130 € | U13: =SUMPRODUCT((Avril!$D$164:$D$232=$B13)*Avril!$G$164:$G$232) -> 130.00 € | V13: =SUMPRODUCT((Avril!$M$13:$M$46=$B13)*Avril!$P$13:$P$46)-SUMPRODUCT((Avril!$M$58:$M$73=$B13)*Avril!$P$58:$P$73) -> 0.00 € | W13: =SUMPRODUCT((Avril!$V$8:$V$76=$B13)*Avril!$Y$8:$Y$76) -> 0.00 € | X13: =W13+Y13 -> 130 € | Y13: 130 € | Z13: =SUMPRODUCT((Mai!$D$164:$D$232=$B13)*Mai!$G$164:$G$232) -> 130.00 € | AA13: =SUMPRODUCT((Mai!$M$13:$M$46=$B13)*Mai!$P$13:$P$46)-SUMPRODUCT((Mai!$M$58:$M$73=$B13)*Mai!$P$58:$P$73) -> 0.00 € | AB13: =SUMPRODUCT((Mai!$V$8:$V$76=$B13)*Mai!$Y$8:$Y$76) -> 0.00 € | AC13: =AB13+AD13 -> 130 € | AD13: 130 € | AE13: =SUMPRODUCT((Juin!$D$164:$D$232=$B13)*Juin!$G$164:$G$232) -> 130.00 € | AF13: =SUMPRODUCT((Juin!$M$13:$M$46=$B13)*Juin!$P$13:$P$46)-SUMPRODUCT((Juin!$M$58:$M$73=$B13)*Juin!$P$58:$P$73) -> 0.00 € | AG13: =SUMPRODUCT((Juin!$V$8:$V$76=$B13)*Juin!$Y$8:$Y$76) -> 0.00 € | AH13: =AG13+AI13 -> 130 € | AI13: 130 € | AJ13: =SUMPRODUCT((Juillet!$D$164:$D$232=$B13)*Juillet!$G$164:$G$232) -> 130.00 € | AK13: =SUMPRODUCT((Juillet!$M$13:$M$46=$B13)*Juillet!$P$13:$P$46)-SUMPRODUCT((Juillet!$M$58:$M$73=$B13)*Juillet!$P$58:$P$73) -> 0.00 € | AL13: =SUMPRODUCT((Juillet!$V$8:$V$76=$B13)*Juillet!$Y$8:$Y$76) -> 0.00 € | AM13: =AL13+AN13 -> 130 € | AN13: 130 € | AO13: =SUMPRODUCT((Aout!$D$164:$D$232=$B13)*Aout!$G$164:$G$232) -> 130.00 € | AP13: =SUMPRODUCT((Aout!$M$13:$M$46=$B13)*Aout!$P$13:$P$46)-SUMPRODUCT((Aout!$M$58:$M$73=$B13)*Aout!$P$58:$P$73) -> 0.00 € | AQ13: =SUMPRODUCT((Aout!$V$8:$V$76=$B13)*Aout!$Y$8:$Y$76) -> 0.00 € | AR13: =AQ13+AS13 -> 130 € | AS13: 130 € | AT13: =SUMPRODUCT((Septembre!$D$164:$D$232=$B13)*Septembre!$G$164:$G$232) -> 130.00 € | AU13: =SUMPRODUCT((Septembre!$M$13:$M$46=$B13)*Septembre!$P$13:$P$46)-SUMPRODUCT((Septembre!$M$58:$M$73=$B13)*Septembre!$P$58:$P$73) -> 0.00 € | AV13: =SUMPRODUCT((Septembre!$V$8:$V$76=$B13)*Septembre!$Y$8:$Y$76) -> 0.00 € | AW13: =AV13+AX13 -> 130 € | AX13: 130 € | AY13: =SUMPRODUCT((Octobre!$D$164:$D$232=$B13)*Octobre!$G$164:$G$232) -> 130.00 € | AZ13: =SUMPRODUCT((Octobre!$M$13:$M$46=$B13)*Octobre!$P$13:$P$46)-SUMPRODUCT((Octobre!$M$58:$M$73=$B13)*Octobre!$P$58:$P$73) -> 0.00 € | BA13: =SUMPRODUCT((Octobre!$V$8:$V$76=$B13)*Octobre!$Y$8:$Y$76) -> 0.00 € | BB13: =BA13+BC13 -> 130 € | BC13: 130 € | BD13: =SUMPRODUCT((Novembre!$D$164:$D$232=$B13)*Novembre!$G$164:$G$232) -> 130.00 € | BE13: =SUMPRODUCT((Novembre!$M$13:$M$46=$B13)*Novembre!$P$13:$P$46)-SUMPRODUCT((Novembre!$M$58:$M$73=$B13)*Novembre!$P$58:$P$73) -> 0.00 € | BF13: =SUMPRODUCT((Novembre!$V$8:$V$76=$B13)*Novembre!$Y$8:$Y$76) -> 0.00 € | BG13: =BF13+BH13 -> 130 € | BH13: 130 € | BI13: =SUMPRODUCT((Décembre!$D$164:$D$232=$B13)*Décembre!$G$164:$G$232) -> 130.00 € | BJ13: =SUMPRODUCT((Décembre!$M$13:$M$46=$B13)*Décembre!$P$13:$P$46)-SUMPRODUCT((Décembre!$M$58:$M$73=$B13)*Décembre!$P$58:$P$73) -> 0.00 € | BK13: =SUMPRODUCT((Décembre!$V$8:$V$76=$B13)*Décembre!$Y$8:$Y$76) -> 0.00 €
E14: 0 € | F14: =SUMPRODUCT(('Janvier '!$D$164:$D$232=$B13)*'Janvier '!$F$164:$F$232) -> 0 € | G14: =SUMPRODUCT(('Janvier '!$M$13:$M$46=$B13)*'Janvier '!$O$13:$O$46)+SUMPRODUCT(('Janvier '!$M$58:$M$73=$B13)*'Janvier '!$O$58:$O$73) -> 0 € | H14: =SUMPRODUCT(('Janvier '!$V$8:$V$76=$B13)*'Janvier '!$X$8:$X$76) -> 0 € | J14: 0 € | K14: =SUMPRODUCT((Fevrier!$D$164:$D$232=$B13)*Fevrier!$F$164:$F$232) -> 0 € | L14: =SUMPRODUCT((Fevrier!$M$13:$M$46=$B13)*Fevrier!$O$13:$O$46)+SUMPRODUCT((Fevrier!$M$58:$M$73=$B13)*Fevrier!$O$58:$O$73) -> 0 € | M14: =SUMPRODUCT((Fevrier!$V$8:$V$76=$B13)*Fevrier!$X$8:$X$76) -> 0 € | O14: 0 € | P14: =SUMPRODUCT((Mars!$D$164:$D$232=$B13)*Mars!$F$164:$F$232) -> 0 € | Q14: =SUMPRODUCT((Mars!$M$13:$M$46=$B13)*Mars!$O$13:$O$46)+SUMPRODUCT((Mars!$M$58:$M$73=$B13)*Mars!$O$58:$O$73) -> 0 € | R14: =SUMPRODUCT((Mars!$V$8:$V$76=$B13)*Mars!$X$8:$X$76) -> 0 € | T14: 0 € | U14: =SUMPRODUCT((Avril!$D$164:$D$232=$B13)*Avril!$F$164:$F$232) -> 0 € | V14: =SUMPRODUCT((Avril!$M$13:$M$46=$B13)*Avril!$O$13:$O$46)+SUMPRODUCT((Avril!$M$58:$M$73=$B13)*Avril!$O$58:$O$73) -> 0 € | W14: =SUMPRODUCT((Avril!$V$8:$V$76=$B13)*Avril!$X$8:$X$76) -> 0 € | Y14: 0 € | Z14: =SUMPRODUCT((Mai!$D$164:$D$232=$B13)*Mai!$F$164:$F$232) -> 0 € | AA14: =SUMPRODUCT((Mai!$M$13:$M$46=$B13)*Mai!$O$13:$O$46)+SUMPRODUCT((Mai!$M$58:$M$73=$B13)*Mai!$O$58:$O$73) -> 0 € | AB14: =SUMPRODUCT((Mai!$V$8:$V$76=$B13)*Mai!$X$8:$X$76) -> 0 € | AD14: 0 € | AE14: =SUMPRODUCT((Juin!$D$164:$D$232=$B13)*Juin!$F$164:$F$232) -> 0 € | AF14: =SUMPRODUCT((Juin!$M$13:$M$46=$B13)*Juin!$O$13:$O$46)+SUMPRODUCT((Juin!$M$58:$M$73=$B13)*Juin!$O$58:$O$73) -> 0 € | AG14: =SUMPRODUCT((Juin!$V$8:$V$76=$B13)*Juin!$X$8:$X$76) -> 0 € | AI14: 0 € | AJ14: =SUMPRODUCT((Juillet!$D$164:$D$232=$B13)*Juillet!$F$164:$F$232) -> 0 € | AK14: =SUMPRODUCT((Juillet!$M$13:$M$46=$B13)*Juillet!$O$13:$O$46)+SUMPRODUCT((Juillet!$M$58:$M$73=$B13)*Juillet!$O$58:$O$73) -> 0 € | AL14: =SUMPRODUCT((Juillet!$V$8:$V$76=$B13)*Juillet!$X$8:$X$76) -> 0 € | AN14: 0 € | AO14: =SUMPRODUCT((Aout!$D$164:$D$232=$B13)*Aout!$F$164:$F$232) -> 0 € | AP14: =SUMPRODUCT((Aout!$M$13:$M$46=$B13)*Aout!$O$13:$O$46)+SUMPRODUCT((Aout!$M$58:$M$73=$B13)*Aout!$O$58:$O$73) -> 0 € | AQ14: =SUMPRODUCT((Aout!$V$8:$V$76=$B13)*Aout!$X$8:$X$76) -> 0 € | AS14: 0 € | AT14: =SUMPRODUCT((Septembre!$D$164:$D$232=$B13)*Septembre!$F$164:$F$232) -> 0 € | AU14: =SUMPRODUCT((Septembre!$M$13:$M$46=$B13)*Septembre!$O$13:$O$46)+SUMPRODUCT((Septembre!$M$58:$M$73=$B13)*Septembre!$O$58:$O$73) -> 0 € | AV14: =SUMPRODUCT((Septembre!$V$8:$V$76=$B13)*Septembre!$X$8:$X$76) -> 0 € | AX14: 0 € | AY14: =SUMPRODUCT((Octobre!$D$164:$D$232=$B13)*Octobre!$F$164:$F$232) -> 0 € | AZ14: =SUMPRODUCT((Octobre!$M$13:$M$46=$B13)*Octobre!$O$13:$O$46)+SUMPRODUCT((Octobre!$M$58:$M$73=$B13)*Octobre!$O$58:$O$73) -> 0 € | BA14: =SUMPRODUCT((Octobre!$V$8:$V$76=$B13)*Octobre!$X$8:$X$76) -> 0 € | BC14: 0 € | BD14: =SUMPRODUCT((Novembre!$D$164:$D$232=$B13)*Novembre!$F$164:$F$232) -> 0 € | BE14: =SUMPRODUCT((Novembre!$M$13:$M$46=$B13)*Novembre!$O$13:$O$46)+SUMPRODUCT((Novembre!$M$58:$M$73=$B13)*Novembre!$O$58:$O$73) -> 0 € | BF14: =SUMPRODUCT((Novembre!$V$8:$V$76=$B13)*Novembre!$X$8:$X$76) -> 0 € | BH14: 0 € | BI14: =SUMPRODUCT((Décembre!$D$164:$D$232=$B13)*Décembre!$F$164:$F$232) -> 0 € | BJ14: =SUMPRODUCT((Décembre!$M$13:$M$46=$B13)*Décembre!$O$13:$O$46)+SUMPRODUCT((Décembre!$M$58:$M$73=$B13)*Décembre!$O$58:$O$73) -> 0 € | BK14: =SUMPRODUCT((Décembre!$V$8:$V$76=$B13)*Décembre!$X$8:$X$76) -> 0 €
B15: Téléphone | C15: 0 € | D15: =C15+E15 -> 55 € | E15: 55 € | F15: =SUMPRODUCT(('Janvier '!$D$164:$D$232=$B15)*'Janvier '!$G$164:$G$232) -> 55.00 € | G15: =SUMPRODUCT(('Janvier '!$M$13:$M$46=$B15)*'Janvier '!$P$13:$P$46)-SUMPRODUCT(('Janvier '!$M$58:$M$73=$B15)*'Janvier '!$P$58:$P$73) -> 0.00 € | H15: =SUMPRODUCT(('Janvier '!$V$8:$V$76=$B15)*'Janvier '!$Y$8:$Y$76) -> 0.00 € | I15: =H15+J15 -> 55 € | J15: 55 € | K15: =SUMPRODUCT((Fevrier!$D$164:$D$232=$B15)*Fevrier!$G$164:$G$232) -> 55.00 € | L15: =SUMPRODUCT((Fevrier!$M$13:$M$46=$B15)*Fevrier!$P$13:$P$46)-SUMPRODUCT((Fevrier!$M$58:$M$73=$B15)*Fevrier!$P$58:$P$73) -> 0.00 € | M15: =SUMPRODUCT((Fevrier!$V$8:$V$76=$B15)*Fevrier!$Y$8:$Y$76) -> 0.00 € | N15: =M15+O15 -> 55 € | O15: 55 € | P15: =SUMPRODUCT((Mars!$D$164:$D$232=$B15)*Mars!$G$164:$G$232) -> 55.00 € | Q15: =SUMPRODUCT((Mars!$M$13:$M$46=$B15)*Mars!$P$13:$P$46)-SUMPRODUCT((Mars!$M$58:$M$73=$B15)*Mars!$P$58:$P$73) -> 0.00 € | R15: =SUMPRODUCT((Mars!$V$8:$V$76=$B15)*Mars!$Y$8:$Y$76) -> 0.00 € | S15: =R15+T15 -> 55 € | T15: 55 € | U15: =SUMPRODUCT((Avril!$D$164:$D$232=$B15)*Avril!$G$164:$G$232) -> 55.00 € | V15: =SUMPRODUCT((Avril!$M$13:$M$46=$B15)*Avril!$P$13:$P$46)-SUMPRODUCT((Avril!$M$58:$M$73=$B15)*Avril!$P$58:$P$73) -> 0.00 € | W15: =SUMPRODUCT((Avril!$V$8:$V$76=$B15)*Avril!$Y$8:$Y$76) -> 0.00 € | X15: =W15+Y15 -> 55 € | Y15: 55 € | Z15: =SUMPRODUCT((Mai!$D$164:$D$232=$B15)*Mai!$G$164:$G$232) -> 55.00 € | AA15: =SUMPRODUCT((Mai!$M$13:$M$46=$B15)*Mai!$P$13:$P$46)-SUMPRODUCT((Mai!$M$58:$M$73=$B15)*Mai!$P$58:$P$73) -> 0.00 € | AB15: =SUMPRODUCT((Mai!$V$8:$V$76=$B15)*Mai!$Y$8:$Y$76) -> 0.00 € | AC15: =AB15+AD15 -> 55 € | AD15: 55 € | AE15: =SUMPRODUCT((Juin!$D$164:$D$232=$B15)*Juin!$G$164:$G$232) -> 55.00 € | AF15: =SUMPRODUCT((Juin!$M$13:$M$46=$B15)*Juin!$P$13:$P$46)-SUMPRODUCT((Juin!$M$58:$M$73=$B15)*Juin!$P$58:$P$73) -> 0.00 € | AG15: =SUMPRODUCT((Juin!$V$8:$V$76=$B15)*Juin!$Y$8:$Y$76) -> 0.00 € | AH15: =AG15+AI15 -> 55 € | AI15: 55 € | AJ15: =SUMPRODUCT((Juillet!$D$164:$D$232=$B15)*Juillet!$G$164:$G$232) -> 55.00 € | AK15: =SUMPRODUCT((Juillet!$M$13:$M$46=$B15)*Juillet!$P$13:$P$46)-SUMPRODUCT((Juillet!$M$58:$M$73=$B15)*Juillet!$P$58:$P$73) -> 0.00 € | AL15: =SUMPRODUCT((Juillet!$V$8:$V$76=$B15)*Juillet!$Y$8:$Y$76) -> 0.00 € | AM15: =AL15+AN15 -> 55 € | AN15: 55 € | AO15: =SUMPRODUCT((Aout!$D$164:$D$232=$B15)*Aout!$G$164:$G$232) -> 55.00 € | AP15: =SUMPRODUCT((Aout!$M$13:$M$46=$B15)*Aout!$P$13:$P$46)-SUMPRODUCT((Aout!$M$58:$M$73=$B15)*Aout!$P$58:$P$73) -> 0.00 € | AQ15: =SUMPRODUCT((Aout!$V$8:$V$76=$B15)*Aout!$Y$8:$Y$76) -> 0.00 € | AR15: =AQ15+AS15 -> 55 € | AS15: 55 € | AT15: =SUMPRODUCT((Septembre!$D$164:$D$232=$B15)*Septembre!$G$164:$G$232) -> 55.00 € | AU15: =SUMPRODUCT((Septembre!$M$13:$M$46=$B15)*Septembre!$P$13:$P$46)-SUMPRODUCT((Septembre!$M$58:$M$73=$B15)*Septembre!$P$58:$P$73) -> 0.00 € | AV15: =SUMPRODUCT((Septembre!$V$8:$V$76=$B15)*Septembre!$Y$8:$Y$76) -> 0.00 € | AW15: =AV15+AX15 -> 55 € | AX15: 55 € | AY15: =SUMPRODUCT((Octobre!$D$164:$D$232=$B15)*Octobre!$G$164:$G$232) -> 55.00 € | AZ15: =SUMPRODUCT((Octobre!$M$13:$M$46=$B15)*Octobre!$P$13:$P$46)-SUMPRODUCT((Octobre!$M$58:$M$73=$B15)*Octobre!$P$58:$P$73) -> 0.00 € | BA15: =SUMPRODUCT((Octobre!$V$8:$V$76=$B15)*Octobre!$Y$8:$Y$76) -> 0.00 € | BB15: =BA15+BC15 -> 55 € | BC15: 55 € | BD15: =SUMPRODUCT((Novembre!$D$164:$D$232=$B15)*Novembre!$G$164:$G$232) -> 55.00 € | BE15: =SUMPRODUCT((Novembre!$M$13:$M$46=$B15)*Novembre!$P$13:$P$46)-SUMPRODUCT((Novembre!$M$58:$M$73=$B15)*Novembre!$P$58:$P$73) -> 0.00 € | BF15: =SUMPRODUCT((Novembre!$V$8:$V$76=$B15)*Novembre!$Y$8:$Y$76) -> 0.00 € | BG15: =BF15+BH15 -> 55 € | BH15: 55 € | BI15: =SUMPRODUCT((Décembre!$D$164:$D$232=$B15)*Décembre!$G$164:$G$232) -> 55.00 € | BJ15: =SUMPRODUCT((Décembre!$M$13:$M$46=$B15)*Décembre!$P$13:$P$46)-SUMPRODUCT((Décembre!$M$58:$M$73=$B15)*Décembre!$P$58:$P$73) -> 0.00 € | BK15: =SUMPRODUCT((Décembre!$V$8:$V$76=$B15)*Décembre!$Y$8:$Y$76) -> 0.00 €
E16: 46 € | F16: =SUMPRODUCT(('Janvier '!$D$164:$D$232=$B15)*'Janvier '!$F$164:$F$232) -> 46 € | G16: =SUMPRODUCT(('Janvier '!$M$13:$M$46=$B15)*'Janvier '!$O$13:$O$46)+SUMPRODUCT(('Janvier '!$M$58:$M$73=$B15)*'Janvier '!$O$58:$O$73) -> 0 € | H16: =SUMPRODUCT(('Janvier '!$V$8:$V$76=$B15)*'Janvier '!$X$8:$X$76) -> 0 € | J16: 46 € | K16: =SUMPRODUCT((Fevrier!$D$164:$D$232=$B15)*Fevrier!$F$164:$F$232) -> 46 € | L16: =SUMPRODUCT((Fevrier!$M$13:$M$46=$B15)*Fevrier!$O$13:$O$46)+SUMPRODUCT((Fevrier!$M$58:$M$73=$B15)*Fevrier!$O$58:$O$73) -> 0 € | M16: =SUMPRODUCT((Fevrier!$V$8:$V$76=$B15)*Fevrier!$X$8:$X$76) -> 0 € | O16: 46 € | P16: =SUMPRODUCT((Mars!$D$164:$D$232=$B15)*Mars!$F$164:$F$232) -> 46 € | Q16: =SUMPRODUCT((Mars!$M$13:$M$46=$B15)*Mars!$O$13:$O$46)+SUMPRODUCT((Mars!$M$58:$M$73=$B15)*Mars!$O$58:$O$73) -> 0 € | R16: =SUMPRODUCT((Mars!$V$8:$V$76=$B15)*Mars!$X$8:$X$76) -> 0 € | T16: 46 € | U16: =SUMPRODUCT((Avril!$D$164:$D$232=$B15)*Avril!$F$164:$F$232) -> 46 € | V16: =SUMPRODUCT((Avril!$M$13:$M$46=$B15)*Avril!$O$13:$O$46)+SUMPRODUCT((Avril!$M$58:$M$73=$B15)*Avril!$O$58:$O$73) -> 0 € | W16: =SUMPRODUCT((Avril!$V$8:$V$76=$B15)*Avril!$X$8:$X$76) -> 0 € | Y16: 46 € | Z16: =SUMPRODUCT((Mai!$D$164:$D$232=$B15)*Mai!$F$164:$F$232) -> 46 € | AA16: =SUMPRODUCT((Mai!$M$13:$M$46=$B15)*Mai!$O$13:$O$46)+SUMPRODUCT((Mai!$M$58:$M$73=$B15)*Mai!$O$58:$O$73) -> 0 € | AB16: =SUMPRODUCT((Mai!$V$8:$V$76=$B15)*Mai!$X$8:$X$76) -> 0 € | AD16: 46 € | AE16: =SUMPRODUCT((Juin!$D$164:$D$232=$B15)*Juin!$F$164:$F$232) -> 46 € | AF16: =SUMPRODUCT((Juin!$M$13:$M$46=$B15)*Juin!$O$13:$O$46)+SUMPRODUCT((Juin!$M$58:$M$73=$B15)*Juin!$O$58:$O$73) -> 0 € | AG16: =SUMPRODUCT((Juin!$V$8:$V$76=$B15)*Juin!$X$8:$X$76) -> 0 € | AI16: 46 € | AJ16: =SUMPRODUCT((Juillet!$D$164:$D$232=$B15)*Juillet!$F$164:$F$232) -> 46 € | AK16: =SUMPRODUCT((Juillet!$M$13:$M$46=$B15)*Juillet!$O$13:$O$46)+SUMPRODUCT((Juillet!$M$58:$M$73=$B15)*Juillet!$O$58:$O$73) -> 0 € | AL16: =SUMPRODUCT((Juillet!$V$8:$V$76=$B15)*Juillet!$X$8:$X$76) -> 0 € | AN16: 46 € | AO16: =SUMPRODUCT((Aout!$D$164:$D$232=$B15)*Aout!$F$164:$F$232) -> 46 € | AP16: =SUMPRODUCT((Aout!$M$13:$M$46=$B15)*Aout!$O$13:$O$46)+SUMPRODUCT((Aout!$M$58:$M$73=$B15)*Aout!$O$58:$O$73) -> 0 € | AQ16: =SUMPRODUCT((Aout!$V$8:$V$76=$B15)*Aout!$X$8:$X$76) -> 0 € | AS16: 46 € | AT16: =SUMPRODUCT((Septembre!$D$164:$D$232=$B15)*Septembre!$F$164:$F$232) -> 46 € | AU16: =SUMPRODUCT((Septembre!$M$13:$M$46=$B15)*Septembre!$O$13:$O$46)+SUMPRODUCT((Septembre!$M$58:$M$73=$B15)*Septembre!$O$58:$O$73) -> 0 € | AV16: =SUMPRODUCT((Septembre!$V$8:$V$76=$B15)*Septembre!$X$8:$X$76) -> 0 € | AX16: 46 € | AY16: =SUMPRODUCT((Octobre!$D$164:$D$232=$B15)*Octobre!$F$164:$F$232) -> 46 € | AZ16: =SUMPRODUCT((Octobre!$M$13:$M$46=$B15)*Octobre!$O$13:$O$46)+SUMPRODUCT((Octobre!$M$58:$M$73=$B15)*Octobre!$O$58:$O$73) -> 0 € | BA16: =SUMPRODUCT((Octobre!$V$8:$V$76=$B15)*Octobre!$X$8:$X$76) -> 0 € | BC16: 46 € | BD16: =SUMPRODUCT((Novembre!$D$164:$D$232=$B15)*Novembre!$F$164:$F$232) -> 46 € | BE16: =SUMPRODUCT((Novembre!$M$13:$M$46=$B15)*Novembre!$O$13:$O$46)+SUMPRODUCT((Novembre!$M$58:$M$73=$B15)*Novembre!$O$58:$O$73) -> 0 € | BF16: =SUMPRODUCT((Novembre!$V$8:$V$76=$B15)*Novembre!$X$8:$X$76) -> 0 € | BH16: 46 € | BI16: =SUMPRODUCT((Décembre!$D$164:$D$232=$B15)*Décembre!$F$164:$F$232) -> 46 € | BJ16: =SUMPRODUCT((Décembre!$M$13:$M$46=$B15)*Décembre!$O$13:$O$46)+SUMPRODUCT((Décembre!$M$58:$M$73=$B15)*Décembre!$O$58:$O$73) -> 0 € | BK16: =SUMPRODUCT((Décembre!$V$8:$V$76=$B15)*Décembre!$X$8:$X$76) -> 0 €
B17: Nourrice | C17: 0 € | D17: =C17+E17 -> 489 € | E17: 489 € | F17: =SUMPRODUCT(('Janvier '!$D$164:$D$232=$B17)*'Janvier '!$G$164:$G$232) -> 489.07 € | G17: =SUMPRODUCT(('Janvier '!$M$13:$M$46=$B17)*'Janvier '!$P$13:$P$46)-SUMPRODUCT(('Janvier '!$M$58:$M$73=$B17)*'Janvier '!$P$58:$P$73) -> 0.00 € | H17: =SUMPRODUCT(('Janvier '!$V$8:$V$76=$B17)*'Janvier '!$Y$8:$Y$76) -> 0.00 € | I17: =H17+J17 -> 369 € | J17: 369 € | K17: =SUMPRODUCT((Fevrier!$D$164:$D$232=$B17)*Fevrier!$G$164:$G$232) -> 369.07 € | L17: =SUMPRODUCT((Fevrier!$M$13:$M$46=$B17)*Fevrier!$P$13:$P$46)-SUMPRODUCT((Fevrier!$M$58:$M$73=$B17)*Fevrier!$P$58:$P$73) -> 0.00 € | M17: =SUMPRODUCT((Fevrier!$V$8:$V$76=$B17)*Fevrier!$Y$8:$Y$76) -> 0.00 € | N17: =M17+O17 -> 369 € | O17: 369 € | P17: =SUMPRODUCT((Mars!$D$164:$D$232=$B17)*Mars!$G$164:$G$232) -> 369.07 € | Q17: =SUMPRODUCT((Mars!$M$13:$M$46=$B17)*Mars!$P$13:$P$46)-SUMPRODUCT((Mars!$M$58:$M$73=$B17)*Mars!$P$58:$P$73) -> 0.00 € | R17: =SUMPRODUCT((Mars!$V$8:$V$76=$B17)*Mars!$Y$8:$Y$76) -> 0.00 € | S17: =R17+T17 -> 369 € | T17: 369 € | U17: =SUMPRODUCT((Avril!$D$164:$D$232=$B17)*Avril!$G$164:$G$232) -> 369.07 € | V17: =SUMPRODUCT((Avril!$M$13:$M$46=$B17)*Avril!$P$13:$P$46)-SUMPRODUCT((Avril!$M$58:$M$73=$B17)*Avril!$P$58:$P$73) -> 0.00 € | W17: =SUMPRODUCT((Avril!$V$8:$V$76=$B17)*Avril!$Y$8:$Y$76) -> 0.00 € | X17: =W17+Y17 -> 369 € | Y17: 369 € | Z17: =SUMPRODUCT((Mai!$D$164:$D$232=$B17)*Mai!$G$164:$G$232) -> 369.07 € | AA17: =SUMPRODUCT((Mai!$M$13:$M$46=$B17)*Mai!$P$13:$P$46)-SUMPRODUCT((Mai!$M$58:$M$73=$B17)*Mai!$P$58:$P$73) -> 0.00 € | AB17: =SUMPRODUCT((Mai!$V$8:$V$76=$B17)*Mai!$Y$8:$Y$76) -> 0.00 € | AC17: =AB17+AD17 -> 369 € | AD17: 369 € | AE17: =SUMPRODUCT((Juin!$D$164:$D$232=$B17)*Juin!$G$164:$G$232) -> 369.07 € | AF17: =SUMPRODUCT((Juin!$M$13:$M$46=$B17)*Juin!$P$13:$P$46)-SUMPRODUCT((Juin!$M$58:$M$73=$B17)*Juin!$P$58:$P$73) -> 0.00 € | AG17: =SUMPRODUCT((Juin!$V$8:$V$76=$B17)*Juin!$Y$8:$Y$76) -> 0.00 € | AH17: =AG17+AI17 -> 369 € | AI17: 369 € | AJ17: =SUMPRODUCT((Juillet!$D$164:$D$232=$B17)*Juillet!$G$164:$G$232) -> 369.07 € | AK17: =SUMPRODUCT((Juillet!$M$13:$M$46=$B17)*Juillet!$P$13:$P$46)-SUMPRODUCT((Juillet!$M$58:$M$73=$B17)*Juillet!$P$58:$P$73) -> 0.00 € | AL17: =SUMPRODUCT((Juillet!$V$8:$V$76=$B17)*Juillet!$Y$8:$Y$76) -> 0.00 € | AM17: =AL17+AN17 -> 369 € | AN17: 369 € | AO17: =SUMPRODUCT((Aout!$D$164:$D$232=$B17)*Aout!$G$164:$G$232) -> 369.07 € | AP17: =SUMPRODUCT((Aout!$M$13:$M$46=$B17)*Aout!$P$13:$P$46)-SUMPRODUCT((Aout!$M$58:$M$73=$B17)*Aout!$P$58:$P$73) -> 0.00 € | AQ17: =SUMPRODUCT((Aout!$V$8:$V$76=$B17)*Aout!$Y$8:$Y$76) -> 0.00 € | AR17: =AQ17+AS17 -> 369 € | AS17: 369 € | AT17: =SUMPRODUCT((Septembre!$D$164:$D$232=$B17)*Septembre!$G$164:$G$232) -> 369.07 € | AU17: =SUMPRODUCT((Septembre!$M$13:$M$46=$B17)*Septembre!$P$13:$P$46)-SUMPRODUCT((Septembre!$M$58:$M$73=$B17)*Septembre!$P$58:$P$73) -> 0.00 € | AV17: =SUMPRODUCT((Septembre!$V$8:$V$76=$B17)*Septembre!$Y$8:$Y$76) -> 0.00 € | AW17: =AV17+AX17 -> 369 € | AX17: 369 € | AY17: =SUMPRODUCT((Octobre!$D$164:$D$232=$B17)*Octobre!$G$164:$G$232) -> 369.07 € | AZ17: =SUMPRODUCT((Octobre!$M$13:$M$46=$B17)*Octobre!$P$13:$P$46)-SUMPRODUCT((Octobre!$M$58:$M$73=$B17)*Octobre!$P$58:$P$73) -> 0.00 € | BA17: =SUMPRODUCT((Octobre!$V$8:$V$76=$B17)*Octobre!$Y$8:$Y$76) -> 0.00 € | BB17: =BA17+BC17 -> 369 € | BC17: 369 € | BD17: =SUMPRODUCT((Novembre!$D$164:$D$232=$B17)*Novembre!$G$164:$G$232) -> 369.07 € | BE17: =SUMPRODUCT((Novembre!$M$13:$M$46=$B17)*Novembre!$P$13:$P$46)-SUMPRODUCT((Novembre!$M$58:$M$73=$B17)*Novembre!$P$58:$P$73) -> 0.00 € | BF17: =SUMPRODUCT((Novembre!$V$8:$V$76=$B17)*Novembre!$Y$8:$Y$76) -> 0.00 € | BG17: =BF17+BH17 -> 369 € | BH17: 369 € | BI17: =SUMPRODUCT((Décembre!$D$164:$D$232=$B17)*Décembre!$G$164:$G$232) -> 369.07 € | BJ17: =SUMPRODUCT((Décembre!$M$13:$M$46=$B17)*Décembre!$P$13:$P$46)-SUMPRODUCT((Décembre!$M$58:$M$73=$B17)*Décembre!$P$58:$P$73) -> 0.00 € | BK17: =SUMPRODUCT((Décembre!$V$8:$V$76=$B17)*Décembre!$Y$8:$Y$76) -> 0.00 €
E18: 0 € | F18: =SUMPRODUCT(('Janvier '!$D$164:$D$232=$B17)*'Janvier '!$F$164:$F$232) -> 0 € | G18: =SUMPRODUCT(('Janvier '!$M$13:$M$46=$B17)*'Janvier '!$O$13:$O$46)+SUMPRODUCT(('Janvier '!$M$58:$M$73=$B17)*'Janvier '!$O$58:$O$73) -> 0 € | H18: =SUMPRODUCT(('Janvier '!$V$8:$V$76=$B17)*'Janvier '!$X$8:$X$76) -> 0 € | J18: 0 € | K18: =SUMPRODUCT((Fevrier!$D$164:$D$232=$B17)*Fevrier!$F$164:$F$232) -> 0 € | L18: =SUMPRODUCT((Fevrier!$M$13:$M$46=$B17)*Fevrier!$O$13:$O$46)+SUMPRODUCT((Fevrier!$M$58:$M$73=$B17)*Fevrier!$O$58:$O$73) -> 0 € | M18: =SUMPRODUCT((Fevrier!$V$8:$V$76=$B17)*Fevrier!$X$8:$X$76) -> 0 € | O18: 0 € | P18: =SUMPRODUCT((Mars!$D$164:$D$232=$B17)*Mars!$F$164:$F$232) -> 0 € | Q18: =SUMPRODUCT((Mars!$M$13:$M$46=$B17)*Mars!$O$13:$O$46)+SUMPRODUCT((Mars!$M$58:$M$73=$B17)*Mars!$O$58:$O$73) -> 0 € | R18: =SUMPRODUCT((Mars!$V$8:$V$76=$B17)*Mars!$X$8:$X$76) -> 0 € | T18: 0 € | U18: =SUMPRODUCT((Avril!$D$164:$D$232=$B17)*Avril!$F$164:$F$232) -> 0 € | V18: =SUMPRODUCT((Avril!$M$13:$M$46=$B17)*Avril!$O$13:$O$46)+SUMPRODUCT((Avril!$M$58:$M$73=$B17)*Avril!$O$58:$O$73) -> 0 € | W18: =SUMPRODUCT((Avril!$V$8:$V$76=$B17)*Avril!$X$8:$X$76) -> 0 € | Y18: 0 € | Z18: =SUMPRODUCT((Mai!$D$164:$D$232=$B17)*Mai!$F$164:$F$232) -> 0 € | AA18: =SUMPRODUCT((Mai!$M$13:$M$46=$B17)*Mai!$O$13:$O$46)+SUMPRODUCT((Mai!$M$58:$M$73=$B17)*Mai!$O$58:$O$73) -> 0 € | AB18: =SUMPRODUCT((Mai!$V$8:$V$76=$B17)*Mai!$X$8:$X$76) -> 0 € | AD18: 0 € | AE18: =SUMPRODUCT((Juin!$D$164:$D$232=$B17)*Juin!$F$164:$F$232) -> 0 € | AF18: =SUMPRODUCT((Juin!$M$13:$M$46=$B17)*Juin!$O$13:$O$46)+SUMPRODUCT((Juin!$M$58:$M$73=$B17)*Juin!$O$58:$O$73) -> 0 € | AG18: =SUMPRODUCT((Juin!$V$8:$V$76=$B17)*Juin!$X$8:$X$76) -> 0 € | AI18: 0 € | AJ18: =SUMPRODUCT((Juillet!$D$164:$D$232=$B17)*Juillet!$F$164:$F$232) -> 0 € | AK18: =SUMPRODUCT((Juillet!$M$13:$M$46=$B17)*Juillet!$O$13:$O$46)+SUMPRODUCT((Juillet!$M$58:$M$73=$B17)*Juillet!$O$58:$O$73) -> 0 € | AL18: =SUMPRODUCT((Juillet!$V$8:$V$76=$B17)*Juillet!$X$8:$X$76) -> 0 € | AN18: 0 € | AO18: =SUMPRODUCT((Aout!$D$164:$D$232=$B17)*Aout!$F$164:$F$232) -> 0 € | AP18: =SUMPRODUCT((Aout!$M$13:$M$46=$B17)*Aout!$O$13:$O$46)+SUMPRODUCT((Aout!$M$58:$M$73=$B17)*Aout!$O$58:$O$73) -> 0 € | AQ18: =SUMPRODUCT((Aout!$V$8:$V$76=$B17)*Aout!$X$8:$X$76) -> 0 € | AS18: 0 € | AT18: =SUMPRODUCT((Septembre!$D$164:$D$232=$B17)*Septembre!$F$164:$F$232) -> 0 € | AU18: =SUMPRODUCT((Septembre!$M$13:$M$46=$B17)*Septembre!$O$13:$O$46)+SUMPRODUCT((Septembre!$M$58:$M$73=$B17)*Septembre!$O$58:$O$73) -> 0 € | AV18: =SUMPRODUCT((Septembre!$V$8:$V$76=$B17)*Septembre!$X$8:$X$76) -> 0 € | AX18: 0 € | AY18: =SUMPRODUCT((Octobre!$D$164:$D$232=$B17)*Octobre!$F$164:$F$232) -> 0 € | AZ18: =SUMPRODUCT((Octobre!$M$13:$M$46=$B17)*Octobre!$O$13:$O$46)+SUMPRODUCT((Octobre!$M$58:$M$73=$B17)*Octobre!$O$58:$O$73) -> 0 € | BA18: =SUMPRODUCT((Octobre!$V$8:$V$76=$B17)*Octobre!$X$8:$X$76) -> 0 € | BC18: 0 € | BD18: =SUMPRODUCT((Novembre!$D$164:$D$232=$B17)*Novembre!$F$164:$F$232) -> 0 € | BE18: =SUMPRODUCT((Novembre!$M$13:$M$46=$B17)*Novembre!$O$13:$O$46)+SUMPRODUCT((Novembre!$M$58:$M$73=$B17)*Novembre!$O$58:$O$73) -> 0 € | BF18: =SUMPRODUCT((Novembre!$V$8:$V$76=$B17)*Novembre!$X$8:$X$76) -> 0 € | BH18: 0 € | BI18: =SUMPRODUCT((Décembre!$D$164:$D$232=$B17)*Décembre!$F$164:$F$232) -> 0 € | BJ18: =SUMPRODUCT((Décembre!$M$13:$M$46=$B17)*Décembre!$O$13:$O$46)+SUMPRODUCT((Décembre!$M$58:$M$73=$B17)*Décembre!$O$58:$O$73) -> 0 € | BK18: =SUMPRODUCT((Décembre!$V$8:$V$76=$B17)*Décembre!$X$8:$X$76) -> 0 €
B19: Covoiturage | C19: 0 € | D19: =C19+E19 -> 0 € | E19: 0 € | F19: =SUMPRODUCT(('Janvier '!$D$164:$D$232=$B19)*'Janvier '!$G$164:$G$232) -> 0.00 € | G19: =SUMPRODUCT(('Janvier '!$M$13:$M$46=$B19)*'Janvier '!$P$13:$P$46)-SUMPRODUCT(('Janvier '!$M$58:$M$73=$B19)*'Janvier '!$P$58:$P$73) -> 0.00 € | H19: =SUMPRODUCT(('Janvier '!$V$8:$V$76=$B19)*'Janvier '!$Y$8:$Y$76) -> 0.00 € | I19: =H19+J19 -> 0 € | J19: 0 € | K19: =SUMPRODUCT((Fevrier!$D$164:$D$232=$B19)*Fevrier!$G$164:$G$232) -> 0.00 € | L19: =SUMPRODUCT((Fevrier!$M$13:$M$46=$B19)*Fevrier!$P$13:$P$46)-SUMPRODUCT((Fevrier!$M$58:$M$73=$B19)*Fevrier!$P$58:$P$73) -> 0.00 € | M19: =SUMPRODUCT((Fevrier!$V$8:$V$76=$B19)*Fevrier!$Y$8:$Y$76) -> 0.00 € | N19: =M19+O19 -> 0 € | O19: 0 € | P19: =SUMPRODUCT((Mars!$D$164:$D$232=$B19)*Mars!$G$164:$G$232) -> 0.00 € | Q19: =SUMPRODUCT((Mars!$M$13:$M$46=$B19)*Mars!$P$13:$P$46)-SUMPRODUCT((Mars!$M$58:$M$73=$B19)*Mars!$P$58:$P$73) -> 0.00 € | R19: =SUMPRODUCT((Mars!$V$8:$V$76=$B19)*Mars!$Y$8:$Y$76) -> 0.00 € | S19: =R19+T19 -> 0 € | T19: 0 € | U19: =SUMPRODUCT((Avril!$D$164:$D$232=$B19)*Avril!$G$164:$G$232) -> 0.00 € | V19: =SUMPRODUCT((Avril!$M$13:$M$46=$B19)*Avril!$P$13:$P$46)-SUMPRODUCT((Avril!$M$58:$M$73=$B19)*Avril!$P$58:$P$73) -> 0.00 € | W19: =SUMPRODUCT((Avril!$V$8:$V$76=$B19)*Avril!$Y$8:$Y$76) -> 0.00 € | X19: =W19+Y19 -> 0 € | Y19: 0 € | Z19: =SUMPRODUCT((Mai!$D$164:$D$232=$B19)*Mai!$G$164:$G$232) -> 0.00 € | AA19: =SUMPRODUCT((Mai!$M$13:$M$46=$B19)*Mai!$P$13:$P$46)-SUMPRODUCT((Mai!$M$58:$M$73=$B19)*Mai!$P$58:$P$73) -> 0.00 € | AB19: =SUMPRODUCT((Mai!$V$8:$V$76=$B19)*Mai!$Y$8:$Y$76) -> 0.00 € | AC19: =AB19+AD19 -> 0 € | AD19: 0 € | AE19: =SUMPRODUCT((Juin!$D$164:$D$232=$B19)*Juin!$G$164:$G$232) -> 0.00 € | AF19: =SUMPRODUCT((Juin!$M$13:$M$46=$B19)*Juin!$P$13:$P$46)-SUMPRODUCT((Juin!$M$58:$M$73=$B19)*Juin!$P$58:$P$73) -> 0.00 € | AG19: =SUMPRODUCT((Juin!$V$8:$V$76=$B19)*Juin!$Y$8:$Y$76) -> 0.00 € | AH19: =AG19+AI19 -> 0 € | AI19: 0 € | AJ19: =SUMPRODUCT((Juillet!$D$164:$D$232=$B19)*Juillet!$G$164:$G$232) -> 0.00 € | AK19: =SUMPRODUCT((Juillet!$M$13:$M$46=$B19)*Juillet!$P$13:$P$46)-SUMPRODUCT((Juillet!$M$58:$M$73=$B19)*Juillet!$P$58:$P$73) -> 0.00 € | AL19: =SUMPRODUCT((Juillet!$V$8:$V$76=$B19)*Juillet!$Y$8:$Y$76) -> 0.00 € | AM19: =AL19+AN19 -> 0 € | AN19: 0 € | AO19: =SUMPRODUCT((Aout!$D$164:$D$232=$B19)*Aout!$G$164:$G$232) -> 0.00 € | AP19: =SUMPRODUCT((Aout!$M$13:$M$46=$B19)*Aout!$P$13:$P$46)-SUMPRODUCT((Aout!$M$58:$M$73=$B19)*Aout!$P$58:$P$73) -> 0.00 € | AQ19: =SUMPRODUCT((Aout!$V$8:$V$76=$B19)*Aout!$Y$8:$Y$76) -> 0.00 € | AR19: =AQ19+AS19 -> 0 € | AS19: 0 € | AT19: =SUMPRODUCT((Septembre!$D$164:$D$232=$B19)*Septembre!$G$164:$G$232) -> 0.00 € | AU19: =SUMPRODUCT((Septembre!$M$13:$M$46=$B19)*Septembre!$P$13:$P$46)-SUMPRODUCT((Septembre!$M$58:$M$73=$B19)*Septembre!$P$58:$P$73) -> 0.00 € | AV19: =SUMPRODUCT((Septembre!$V$8:$V$76=$B19)*Septembre!$Y$8:$Y$76) -> 0.00 € | AW19: =AV19+AX19 -> 0 € | AX19: 0 € | AY19: =SUMPRODUCT((Octobre!$D$164:$D$232=$B19)*Octobre!$G$164:$G$232) -> 0.00 € | AZ19: =SUMPRODUCT((Octobre!$M$13:$M$46=$B19)*Octobre!$P$13:$P$46)-SUMPRODUCT((Octobre!$M$58:$M$73=$B19)*Octobre!$P$58:$P$73) -> 0.00 € | BA19: =SUMPRODUCT((Octobre!$V$8:$V$76=$B19)*Octobre!$Y$8:$Y$76) -> 0.00 € | BB19: =BA19+BC19 -> 0 € | BC19: 0 € | BD19: =SUMPRODUCT((Novembre!$D$164:$D$232=$B19)*Novembre!$G$164:$G$232) -> 0.00 € | BE19: =SUMPRODUCT((Novembre!$M$13:$M$46=$B19)*Novembre!$P$13:$P$46)-SUMPRODUCT((Novembre!$M$58:$M$73=$B19)*Novembre!$P$58:$P$73) -> 0.00 € | BF19: =SUMPRODUCT((Novembre!$V$8:$V$76=$B19)*Novembre!$Y$8:$Y$76) -> 0.00 € | BG19: =BF19+BH19 -> 0 € | BH19: 0 € | BI19: =SUMPRODUCT((Décembre!$D$164:$D$232=$B19)*Décembre!$G$164:$G$232) -> 0.00 € | BJ19: =SUMPRODUCT((Décembre!$M$13:$M$46=$B19)*Décembre!$P$13:$P$46)-SUMPRODUCT((Décembre!$M$58:$M$73=$B19)*Décembre!$P$58:$P$73) -> 0.00 € | BK19: =SUMPRODUCT((Décembre!$V$8:$V$76=$B19)*Décembre!$Y$8:$Y$76) -> 0.00 €
E20: 0 € | F20: =SUMPRODUCT(('Janvier '!$D$164:$D$232=$B19)*'Janvier '!$F$164:$F$232) -> 0 € | G20: =SUMPRODUCT(('Janvier '!$M$13:$M$46=$B19)*'Janvier '!$O$13:$O$46)+SUMPRODUCT(('Janvier '!$M$58:$M$73=$B19)*'Janvier '!$O$58:$O$73) -> 0 € | H20: =SUMPRODUCT(('Janvier '!$V$8:$V$76=$B19)*'Janvier '!$X$8:$X$76) -> 0 € | J20: 0 € | K20: =SUMPRODUCT((Fevrier!$D$164:$D$232=$B19)*Fevrier!$F$164:$F$232) -> 0 € | L20: =SUMPRODUCT((Fevrier!$M$13:$M$46=$B19)*Fevrier!$O$13:$O$46)+SUMPRODUCT((Fevrier!$M$58:$M$73=$B19)*Fevrier!$O$58:$O$73) -> 0 € | M20: =SUMPRODUCT((Fevrier!$V$8:$V$76=$B19)*Fevrier!$X$8:$X$76) -> 0 € | O20: 0 € | P20: =SUMPRODUCT((Mars!$D$164:$D$232=$B19)*Mars!$F$164:$F$232) -> 0 € | Q20: =SUMPRODUCT((Mars!$M$13:$M$46=$B19)*Mars!$O$13:$O$46)+SUMPRODUCT((Mars!$M$58:$M$73=$B19)*Mars!$O$58:$O$73) -> 0 € | R20: =SUMPRODUCT((Mars!$V$8:$V$76=$B19)*Mars!$X$8:$X$76) -> 0 € | T20: 0 € | U20: =SUMPRODUCT((Avril!$D$164:$D$232=$B19)*Avril!$F$164:$F$232) -> 0 € | V20: =SUMPRODUCT((Avril!$M$13:$M$46=$B19)*Avril!$O$13:$O$46)+SUMPRODUCT((Avril!$M$58:$M$73=$B19)*Avril!$O$58:$O$73) -> 0 € | W20: =SUMPRODUCT((Avril!$V$8:$V$76=$B19)*Avril!$X$8:$X$76) -> 0 € | Y20: 0 € | Z20: =SUMPRODUCT((Mai!$D$164:$D$232=$B19)*Mai!$F$164:$F$232) -> 0 € | AA20: =SUMPRODUCT((Mai!$M$13:$M$46=$B19)*Mai!$O$13:$O$46)+SUMPRODUCT((Mai!$M$58:$M$73=$B19)*Mai!$O$58:$O$73) -> 0 € | AB20: =SUMPRODUCT((Mai!$V$8:$V$76=$B19)*Mai!$X$8:$X$76) -> 0 € | AD20: 0 € | AE20: =SUMPRODUCT((Juin!$D$164:$D$232=$B19)*Juin!$F$164:$F$232) -> 0 € | AF20: =SUMPRODUCT((Juin!$M$13:$M$46=$B19)*Juin!$O$13:$O$46)+SUMPRODUCT((Juin!$M$58:$M$73=$B19)*Juin!$O$58:$O$73) -> 0 € | AG20: =SUMPRODUCT((Juin!$V$8:$V$76=$B19)*Juin!$X$8:$X$76) -> 0 € | AI20: 0 € | AJ20: =SUMPRODUCT((Juillet!$D$164:$D$232=$B19)*Juillet!$F$164:$F$232) -> 0 € | AK20: =SUMPRODUCT((Juillet!$M$13:$M$46=$B19)*Juillet!$O$13:$O$46)+SUMPRODUCT((Juillet!$M$58:$M$73=$B19)*Juillet!$O$58:$O$73) -> 0 € | AL20: =SUMPRODUCT((Juillet!$V$8:$V$76=$B19)*Juillet!$X$8:$X$76) -> 0 € | AN20: 0 € | AO20: =SUMPRODUCT((Aout!$D$164:$D$232=$B19)*Aout!$F$164:$F$232) -> 0 € | AP20: =SUMPRODUCT((Aout!$M$13:$M$46=$B19)*Aout!$O$13:$O$46)+SUMPRODUCT((Aout!$M$58:$M$73=$B19)*Aout!$O$58:$O$73) -> 0 € | AQ20: =SUMPRODUCT((Aout!$V$8:$V$76=$B19)*Aout!$X$8:$X$76) -> 0 € | AS20: 0 € | AT20: =SUMPRODUCT((Septembre!$D$164:$D$232=$B19)*Septembre!$F$164:$F$232) -> 0 € | AU20: =SUMPRODUCT((Septembre!$M$13:$M$46=$B19)*Septembre!$O$13:$O$46)+SUMPRODUCT((Septembre!$M$58:$M$73=$B19)*Septembre!$O$58:$O$73) -> 0 € | AV20: =SUMPRODUCT((Septembre!$V$8:$V$76=$B19)*Septembre!$X$8:$X$76) -> 0 € | AX20: 0 € | AY20: =SUMPRODUCT((Octobre!$D$164:$D$232=$B19)*Octobre!$F$164:$F$232) -> 0 € | AZ20: =SUMPRODUCT((Octobre!$M$13:$M$46=$B19)*Octobre!$O$13:$O$46)+SUMPRODUCT((Octobre!$M$58:$M$73=$B19)*Octobre!$O$58:$O$73) -> 0 € | BA20: =SUMPRODUCT((Octobre!$V$8:$V$76=$B19)*Octobre!$X$8:$X$76) -> 0 € | BC20: 0 € | BD20: =SUMPRODUCT((Novembre!$D$164:$D$232=$B19)*Novembre!$F$164:$F$232) -> 0 € | BE20: =SUMPRODUCT((Novembre!$M$13:$M$46=$B19)*Novembre!$O$13:$O$46)+SUMPRODUCT((Novembre!$M$58:$M$73=$B19)*Novembre!$O$58:$O$73) -> 0 € | BF20: =SUMPRODUCT((Novembre!$V$8:$V$76=$B19)*Novembre!$X$8:$X$76) -> 0 € | BH20: 0 € | BI20: =SUMPRODUCT((Décembre!$D$164:$D$232=$B19)*Décembre!$F$164:$F$232) -> 0 € | BJ20: =SUMPRODUCT((Décembre!$M$13:$M$46=$B19)*Décembre!$O$13:$O$46)+SUMPRODUCT((Décembre!$M$58:$M$73=$B19)*Décembre!$O$58:$O$73) -> 0 € | BK20: =SUMPRODUCT((Décembre!$V$8:$V$76=$B19)*Décembre!$X$8:$X$76) -> 0 €
B21: Frais Banquaire | C21: 0 € | D21: =C21+E21 -> 20 € | E21: 20 € | F21: =SUMPRODUCT(('Janvier '!$D$164:$D$232=$B21)*'Janvier '!$G$164:$G$232) -> 20.00 € | G21: =SUMPRODUCT(('Janvier '!$M$13:$M$46=$B21)*'Janvier '!$P$13:$P$46)-SUMPRODUCT(('Janvier '!$M$58:$M$73=$B21)*'Janvier '!$P$58:$P$73) -> 0.00 € | H21: =SUMPRODUCT(('Janvier '!$V$8:$V$76=$B21)*'Janvier '!$Y$8:$Y$76) -> 0.00 € | I21: =H21+J21 -> 29 € | J21: 29 € | K21: =SUMPRODUCT((Fevrier!$D$164:$D$232=$B21)*Fevrier!$G$164:$G$232) -> 29.18 € | L21: =SUMPRODUCT((Fevrier!$M$13:$M$46=$B21)*Fevrier!$P$13:$P$46)-SUMPRODUCT((Fevrier!$M$58:$M$73=$B21)*Fevrier!$P$58:$P$73) -> 0.00 € | M21: =SUMPRODUCT((Fevrier!$V$8:$V$76=$B21)*Fevrier!$Y$8:$Y$76) -> 0.00 € | N21: =M21+O21 -> 29 € | O21: 29 € | P21: =SUMPRODUCT((Mars!$D$164:$D$232=$B21)*Mars!$G$164:$G$232) -> 29.18 € | Q21: =SUMPRODUCT((Mars!$M$13:$M$46=$B21)*Mars!$P$13:$P$46)-SUMPRODUCT((Mars!$M$58:$M$73=$B21)*Mars!$P$58:$P$73) -> 0.00 € | R21: =SUMPRODUCT((Mars!$V$8:$V$76=$B21)*Mars!$Y$8:$Y$76) -> 0.00 € | S21: =R21+T21 -> 29 € | T21: 29 € | U21: =SUMPRODUCT((Avril!$D$164:$D$232=$B21)*Avril!$G$164:$G$232) -> 29.18 € | V21: =SUMPRODUCT((Avril!$M$13:$M$46=$B21)*Avril!$P$13:$P$46)-SUMPRODUCT((Avril!$M$58:$M$73=$B21)*Avril!$P$58:$P$73) -> 0.00 € | W21: =SUMPRODUCT((Avril!$V$8:$V$76=$B21)*Avril!$Y$8:$Y$76) -> 0.00 € | X21: =W21+Y21 -> 29 € | Y21: 29 € | Z21: =SUMPRODUCT((Mai!$D$164:$D$232=$B21)*Mai!$G$164:$G$232) -> 29.18 € | AA21: =SUMPRODUCT((Mai!$M$13:$M$46=$B21)*Mai!$P$13:$P$46)-SUMPRODUCT((Mai!$M$58:$M$73=$B21)*Mai!$P$58:$P$73) -> 0.00 € | AB21: =SUMPRODUCT((Mai!$V$8:$V$76=$B21)*Mai!$Y$8:$Y$76) -> 0.00 € | AC21: =AB21+AD21 -> 29 € | AD21: 29 € | AE21: =SUMPRODUCT((Juin!$D$164:$D$232=$B21)*Juin!$G$164:$G$232) -> 29.18 € | AF21: =SUMPRODUCT((Juin!$M$13:$M$46=$B21)*Juin!$P$13:$P$46)-SUMPRODUCT((Juin!$M$58:$M$73=$B21)*Juin!$P$58:$P$73) -> 0.00 € | AG21: =SUMPRODUCT((Juin!$V$8:$V$76=$B21)*Juin!$Y$8:$Y$76) -> 0.00 € | AH21: =AG21+AI21 -> 29 € | AI21: 29 € | AJ21: =SUMPRODUCT((Juillet!$D$164:$D$232=$B21)*Juillet!$G$164:$G$232) -> 29.18 € | AK21: =SUMPRODUCT((Juillet!$M$13:$M$46=$B21)*Juillet!$P$13:$P$46)-SUMPRODUCT((Juillet!$M$58:$M$73=$B21)*Juillet!$P$58:$P$73) -> 0.00 € | AL21: =SUMPRODUCT((Juillet!$V$8:$V$76=$B21)*Juillet!$Y$8:$Y$76) -> 0.00 € | AM21: =AL21+AN21 -> 29 € | AN21: 29 € | AO21: =SUMPRODUCT((Aout!$D$164:$D$232=$B21)*Aout!$G$164:$G$232) -> 29.18 € | AP21: =SUMPRODUCT((Aout!$M$13:$M$46=$B21)*Aout!$P$13:$P$46)-SUMPRODUCT((Aout!$M$58:$M$73=$B21)*Aout!$P$58:$P$73) -> 0.00 € | AQ21: =SUMPRODUCT((Aout!$V$8:$V$76=$B21)*Aout!$Y$8:$Y$76) -> 0.00 € | AR21: =AQ21+AS21 -> 29 € | AS21: 29 € | AT21: =SUMPRODUCT((Septembre!$D$164:$D$232=$B21)*Septembre!$G$164:$G$232) -> 29.18 € | AU21: =SUMPRODUCT((Septembre!$M$13:$M$46=$B21)*Septembre!$P$13:$P$46)-SUMPRODUCT((Septembre!$M$58:$M$73=$B21)*Septembre!$P$58:$P$73) -> 0.00 € | AV21: =SUMPRODUCT((Septembre!$V$8:$V$76=$B21)*Septembre!$Y$8:$Y$76) -> 0.00 € | AW21: =AV21+AX21 -> 29 € | AX21: 29 € | AY21: =SUMPRODUCT((Octobre!$D$164:$D$232=$B21)*Octobre!$G$164:$G$232) -> 29.18 € | AZ21: =SUMPRODUCT((Octobre!$M$13:$M$46=$B21)*Octobre!$P$13:$P$46)-SUMPRODUCT((Octobre!$M$58:$M$73=$B21)*Octobre!$P$58:$P$73) -> 0.00 € | BA21: =SUMPRODUCT((Octobre!$V$8:$V$76=$B21)*Octobre!$Y$8:$Y$76) -> 0.00 € | BB21: =BA21+BC21 -> 29 € | BC21: 29 € | BD21: =SUMPRODUCT((Novembre!$D$164:$D$232=$B21)*Novembre!$G$164:$G$232) -> 29.18 € | BE21: =SUMPRODUCT((Novembre!$M$13:$M$46=$B21)*Novembre!$P$13:$P$46)-SUMPRODUCT((Novembre!$M$58:$M$73=$B21)*Novembre!$P$58:$P$73) -> 0.00 € | BF21: =SUMPRODUCT((Novembre!$V$8:$V$76=$B21)*Novembre!$Y$8:$Y$76) -> 0.00 € | BG21: =BF21+BH21 -> 29 € | BH21: 29 € | BI21: =SUMPRODUCT((Décembre!$D$164:$D$232=$B21)*Décembre!$G$164:$G$232) -> 29.18 € | BJ21: =SUMPRODUCT((Décembre!$M$13:$M$46=$B21)*Décembre!$P$13:$P$46)-SUMPRODUCT((Décembre!$M$58:$M$73=$B21)*Décembre!$P$58:$P$73) -> 0.00 € | BK21: =SUMPRODUCT((Décembre!$V$8:$V$76=$B21)*Décembre!$Y$8:$Y$76) -> 0.00 €
E22: 0 € | F22: =SUMPRODUCT(('Janvier '!$D$164:$D$232=$B21)*'Janvier '!$F$164:$F$232) -> 0 € | G22: =SUMPRODUCT(('Janvier '!$M$13:$M$46=$B21)*'Janvier '!$O$13:$O$46)+SUMPRODUCT(('Janvier '!$M$58:$M$73=$B21)*'Janvier '!$O$58:$O$73) -> 0 € | H22: =SUMPRODUCT(('Janvier '!$V$8:$V$76=$B21)*'Janvier '!$X$8:$X$76) -> 0 € | J22: 23 € | K22: =SUMPRODUCT((Fevrier!$D$164:$D$232=$B21)*Fevrier!$F$164:$F$232) -> 23 € | L22: =SUMPRODUCT((Fevrier!$M$13:$M$46=$B21)*Fevrier!$O$13:$O$46)+SUMPRODUCT((Fevrier!$M$58:$M$73=$B21)*Fevrier!$O$58:$O$73) -> 0 € | M22: =SUMPRODUCT((Fevrier!$V$8:$V$76=$B21)*Fevrier!$X$8:$X$76) -> 0 € | O22: 23 € | P22: =SUMPRODUCT((Mars!$D$164:$D$232=$B21)*Mars!$F$164:$F$232) -> 23 € | Q22: =SUMPRODUCT((Mars!$M$13:$M$46=$B21)*Mars!$O$13:$O$46)+SUMPRODUCT((Mars!$M$58:$M$73=$B21)*Mars!$O$58:$O$73) -> 0 € | R22: =SUMPRODUCT((Mars!$V$8:$V$76=$B21)*Mars!$X$8:$X$76) -> 0 € | T22: 23 € | U22: =SUMPRODUCT((Avril!$D$164:$D$232=$B21)*Avril!$F$164:$F$232) -> 23 € | V22: =SUMPRODUCT((Avril!$M$13:$M$46=$B21)*Avril!$O$13:$O$46)+SUMPRODUCT((Avril!$M$58:$M$73=$B21)*Avril!$O$58:$O$73) -> 0 € | W22: =SUMPRODUCT((Avril!$V$8:$V$76=$B21)*Avril!$X$8:$X$76) -> 0 € | Y22: 23 € | Z22: =SUMPRODUCT((Mai!$D$164:$D$232=$B21)*Mai!$F$164:$F$232) -> 23 € | AA22: =SUMPRODUCT((Mai!$M$13:$M$46=$B21)*Mai!$O$13:$O$46)+SUMPRODUCT((Mai!$M$58:$M$73=$B21)*Mai!$O$58:$O$73) -> 0 € | AB22: =SUMPRODUCT((Mai!$V$8:$V$76=$B21)*Mai!$X$8:$X$76) -> 0 € | AD22: 23 € | AE22: =SUMPRODUCT((Juin!$D$164:$D$232=$B21)*Juin!$F$164:$F$232) -> 23 € | AF22: =SUMPRODUCT((Juin!$M$13:$M$46=$B21)*Juin!$O$13:$O$46)+SUMPRODUCT((Juin!$M$58:$M$73=$B21)*Juin!$O$58:$O$73) -> 0 € | AG22: =SUMPRODUCT((Juin!$V$8:$V$76=$B21)*Juin!$X$8:$X$76) -> 0 € | AI22: 23 € | AJ22: =SUMPRODUCT((Juillet!$D$164:$D$232=$B21)*Juillet!$F$164:$F$232) -> 23 € | AK22: =SUMPRODUCT((Juillet!$M$13:$M$46=$B21)*Juillet!$O$13:$O$46)+SUMPRODUCT((Juillet!$M$58:$M$73=$B21)*Juillet!$O$58:$O$73) -> 0 € | AL22: =SUMPRODUCT((Juillet!$V$8:$V$76=$B21)*Juillet!$X$8:$X$76) -> 0 € | AN22: 23 € | AO22: =SUMPRODUCT((Aout!$D$164:$D$232=$B21)*Aout!$F$164:$F$232) -> 23 € | AP22: =SUMPRODUCT((Aout!$M$13:$M$46=$B21)*Aout!$O$13:$O$46)+SUMPRODUCT((Aout!$M$58:$M$73=$B21)*Aout!$O$58:$O$73) -> 0 € | AQ22: =SUMPRODUCT((Aout!$V$8:$V$76=$B21)*Aout!$X$8:$X$76) -> 0 € | AS22: 23 € | AT22: =SUMPRODUCT((Septembre!$D$164:$D$232=$B21)*Septembre!$F$164:$F$232) -> 23 € | AU22: =SUMPRODUCT((Septembre!$M$13:$M$46=$B21)*Septembre!$O$13:$O$46)+SUMPRODUCT((Septembre!$M$58:$M$73=$B21)*Septembre!$O$58:$O$73) -> 0 € | AV22: =SUMPRODUCT((Septembre!$V$8:$V$76=$B21)*Septembre!$X$8:$X$76) -> 0 € | AX22: 23 € | AY22: =SUMPRODUCT((Octobre!$D$164:$D$232=$B21)*Octobre!$F$164:$F$232) -> 23 € | AZ22: =SUMPRODUCT((Octobre!$M$13:$M$46=$B21)*Octobre!$O$13:$O$46)+SUMPRODUCT((Octobre!$M$58:$M$73=$B21)*Octobre!$O$58:$O$73) -> 0 € | BA22: =SUMPRODUCT((Octobre!$V$8:$V$76=$B21)*Octobre!$X$8:$X$76) -> 0 € | BC22: 23 € | BD22: =SUMPRODUCT((Novembre!$D$164:$D$232=$B21)*Novembre!$F$164:$F$232) -> 23 € | BE22: =SUMPRODUCT((Novembre!$M$13:$M$46=$B21)*Novembre!$O$13:$O$46)+SUMPRODUCT((Novembre!$M$58:$M$73=$B21)*Novembre!$O$58:$O$73) -> 0 € | BF22: =SUMPRODUCT((Novembre!$V$8:$V$76=$B21)*Novembre!$X$8:$X$76) -> 0 € | BH22: 23 € | BI22: =SUMPRODUCT((Décembre!$D$164:$D$232=$B21)*Décembre!$F$164:$F$232) -> 23 € | BJ22: =SUMPRODUCT((Décembre!$M$13:$M$46=$B21)*Décembre!$O$13:$O$46)+SUMPRODUCT((Décembre!$M$58:$M$73=$B21)*Décembre!$O$58:$O$73) -> 0 € | BK22: =SUMPRODUCT((Décembre!$V$8:$V$76=$B21)*Décembre!$X$8:$X$76) -> 0 €
B23: Entretien voiture | C23: 0 € | D23: =C23+E23 -> 75 € | E23: 75 € | F23: =SUMPRODUCT(('Janvier '!$D$164:$D$232=$B23)*'Janvier '!$G$164:$G$232) -> 75.00 € | G23: =SUMPRODUCT(('Janvier '!$M$13:$M$46=$B23)*'Janvier '!$P$13:$P$46)-SUMPRODUCT(('Janvier '!$M$58:$M$73=$B23)*'Janvier '!$P$58:$P$73) -> 0.00 € | H23: =SUMPRODUCT(('Janvier '!$V$8:$V$76=$B23)*'Janvier '!$Y$8:$Y$76) -> 0.00 € | I23: =H23+J23 -> 75 € | J23: 75 € | K23: =SUMPRODUCT((Fevrier!$D$164:$D$232=$B23)*Fevrier!$G$164:$G$232) -> 75.00 € | L23: =SUMPRODUCT((Fevrier!$M$13:$M$46=$B23)*Fevrier!$P$13:$P$46)-SUMPRODUCT((Fevrier!$M$58:$M$73=$B23)*Fevrier!$P$58:$P$73) -> 0.00 € | M23: =SUMPRODUCT((Fevrier!$V$8:$V$76=$B23)*Fevrier!$Y$8:$Y$76) -> 0.00 € | N23: =M23+O23 -> 75 € | O23: 75 € | P23: =SUMPRODUCT((Mars!$D$164:$D$232=$B23)*Mars!$G$164:$G$232) -> 75.00 € | Q23: =SUMPRODUCT((Mars!$M$13:$M$46=$B23)*Mars!$P$13:$P$46)-SUMPRODUCT((Mars!$M$58:$M$73=$B23)*Mars!$P$58:$P$73) -> 0.00 € | R23: =SUMPRODUCT((Mars!$V$8:$V$76=$B23)*Mars!$Y$8:$Y$76) -> 0.00 € | S23: =R23+T23 -> 75 € | T23: 75 € | U23: =SUMPRODUCT((Avril!$D$164:$D$232=$B23)*Avril!$G$164:$G$232) -> 75.00 € | V23: =SUMPRODUCT((Avril!$M$13:$M$46=$B23)*Avril!$P$13:$P$46)-SUMPRODUCT((Avril!$M$58:$M$73=$B23)*Avril!$P$58:$P$73) -> 0.00 € | W23: =SUMPRODUCT((Avril!$V$8:$V$76=$B23)*Avril!$Y$8:$Y$76) -> 0.00 € | X23: =W23+Y23 -> 75 € | Y23: 75 € | Z23: =SUMPRODUCT((Mai!$D$164:$D$232=$B23)*Mai!$G$164:$G$232) -> 75.00 € | AA23: =SUMPRODUCT((Mai!$M$13:$M$46=$B23)*Mai!$P$13:$P$46)-SUMPRODUCT((Mai!$M$58:$M$73=$B23)*Mai!$P$58:$P$73) -> 0.00 € | AB23: =SUMPRODUCT((Mai!$V$8:$V$76=$B23)*Mai!$Y$8:$Y$76) -> 0.00 € | AC23: =AB23+AD23 -> 75 € | AD23: 75 € | AE23: =SUMPRODUCT((Juin!$D$164:$D$232=$B23)*Juin!$G$164:$G$232) -> 75.00 € | AF23: =SUMPRODUCT((Juin!$M$13:$M$46=$B23)*Juin!$P$13:$P$46)-SUMPRODUCT((Juin!$M$58:$M$73=$B23)*Juin!$P$58:$P$73) -> 0.00 € | AG23: =SUMPRODUCT((Juin!$V$8:$V$76=$B23)*Juin!$Y$8:$Y$76) -> 0.00 € | AH23: =AG23+AI23 -> 75 € | AI23: 75 € | AJ23: =SUMPRODUCT((Juillet!$D$164:$D$232=$B23)*Juillet!$G$164:$G$232) -> 75.00 € | AK23: =SUMPRODUCT((Juillet!$M$13:$M$46=$B23)*Juillet!$P$13:$P$46)-SUMPRODUCT((Juillet!$M$58:$M$73=$B23)*Juillet!$P$58:$P$73) -> 0.00 € | AL23: =SUMPRODUCT((Juillet!$V$8:$V$76=$B23)*Juillet!$Y$8:$Y$76) -> 0.00 € | AM23: =AL23+AN23 -> 75 € | AN23: 75 € | AO23: =SUMPRODUCT((Aout!$D$164:$D$232=$B23)*Aout!$G$164:$G$232) -> 75.00 € | AP23: =SUMPRODUCT((Aout!$M$13:$M$46=$B23)*Aout!$P$13:$P$46)-SUMPRODUCT((Aout!$M$58:$M$73=$B23)*Aout!$P$58:$P$73) -> 0.00 € | AQ23: =SUMPRODUCT((Aout!$V$8:$V$76=$B23)*Aout!$Y$8:$Y$76) -> 0.00 € | AR23: =AQ23+AS23 -> 75 € | AS23: 75 € | AT23: =SUMPRODUCT((Septembre!$D$164:$D$232=$B23)*Septembre!$G$164:$G$232) -> 75.00 € | AU23: =SUMPRODUCT((Septembre!$M$13:$M$46=$B23)*Septembre!$P$13:$P$46)-SUMPRODUCT((Septembre!$M$58:$M$73=$B23)*Septembre!$P$58:$P$73) -> 0.00 € | AV23: =SUMPRODUCT((Septembre!$V$8:$V$76=$B23)*Septembre!$Y$8:$Y$76) -> 0.00 € | AW23: =AV23+AX23 -> 75 € | AX23: 75 € | AY23: =SUMPRODUCT((Octobre!$D$164:$D$232=$B23)*Octobre!$G$164:$G$232) -> 75.00 € | AZ23: =SUMPRODUCT((Octobre!$M$13:$M$46=$B23)*Octobre!$P$13:$P$46)-SUMPRODUCT((Octobre!$M$58:$M$73=$B23)*Octobre!$P$58:$P$73) -> 0.00 € | BA23: =SUMPRODUCT((Octobre!$V$8:$V$76=$B23)*Octobre!$Y$8:$Y$76) -> 0.00 € | BB23: =BA23+BC23 -> 75 € | BC23: 75 € | BD23: =SUMPRODUCT((Novembre!$D$164:$D$232=$B23)*Novembre!$G$164:$G$232) -> 75.00 € | BE23: =SUMPRODUCT((Novembre!$M$13:$M$46=$B23)*Novembre!$P$13:$P$46)-SUMPRODUCT((Novembre!$M$58:$M$73=$B23)*Novembre!$P$58:$P$73) -> 0.00 € | BF23: =SUMPRODUCT((Novembre!$V$8:$V$76=$B23)*Novembre!$Y$8:$Y$76) -> 0.00 € | BG23: =BF23+BH23 -> 75 € | BH23: 75 € | BI23: =SUMPRODUCT((Décembre!$D$164:$D$232=$B23)*Décembre!$G$164:$G$232) -> 75.00 € | BJ23: =SUMPRODUCT((Décembre!$M$13:$M$46=$B23)*Décembre!$P$13:$P$46)-SUMPRODUCT((Décembre!$M$58:$M$73=$B23)*Décembre!$P$58:$P$73) -> 0.00 € | BK23: =SUMPRODUCT((Décembre!$V$8:$V$76=$B23)*Décembre!$Y$8:$Y$76) -> 0.00 €
E24: 0 € | F24: =SUMPRODUCT(('Janvier '!$D$164:$D$232=$B23)*'Janvier '!$F$164:$F$232) -> 0 € | G24: =SUMPRODUCT(('Janvier '!$M$13:$M$46=$B23)*'Janvier '!$O$13:$O$46)+SUMPRODUCT(('Janvier '!$M$58:$M$73=$B23)*'Janvier '!$O$58:$O$73) -> 0 € | H24: =SUMPRODUCT(('Janvier '!$V$8:$V$76=$B23)*'Janvier '!$X$8:$X$76) -> 0 € | J24: 0 € | K24: =SUMPRODUCT((Fevrier!$D$164:$D$232=$B23)*Fevrier!$F$164:$F$232) -> 0 € | L24: =SUMPRODUCT((Fevrier!$M$13:$M$46=$B23)*Fevrier!$O$13:$O$46)+SUMPRODUCT((Fevrier!$M$58:$M$73=$B23)*Fevrier!$O$58:$O$73) -> 0 € | M24: =SUMPRODUCT((Fevrier!$V$8:$V$76=$B23)*Fevrier!$X$8:$X$76) -> 0 € | O24: 0 € | P24: =SUMPRODUCT((Mars!$D$164:$D$232=$B23)*Mars!$F$164:$F$232) -> 0 € | Q24: =SUMPRODUCT((Mars!$M$13:$M$46=$B23)*Mars!$O$13:$O$46)+SUMPRODUCT((Mars!$M$58:$M$73=$B23)*Mars!$O$58:$O$73) -> 0 € | R24: =SUMPRODUCT((Mars!$V$8:$V$76=$B23)*Mars!$X$8:$X$76) -> 0 € | T24: 0 € | U24: =SUMPRODUCT((Avril!$D$164:$D$232=$B23)*Avril!$F$164:$F$232) -> 0 € | V24: =SUMPRODUCT((Avril!$M$13:$M$46=$B23)*Avril!$O$13:$O$46)+SUMPRODUCT((Avril!$M$58:$M$73=$B23)*Avril!$O$58:$O$73) -> 0 € | W24: =SUMPRODUCT((Avril!$V$8:$V$76=$B23)*Avril!$X$8:$X$76) -> 0 € | Y24: 0 € | Z24: =SUMPRODUCT((Mai!$D$164:$D$232=$B23)*Mai!$F$164:$F$232) -> 0 € | AA24: =SUMPRODUCT((Mai!$M$13:$M$46=$B23)*Mai!$O$13:$O$46)+SUMPRODUCT((Mai!$M$58:$M$73=$B23)*Mai!$O$58:$O$73) -> 0 € | AB24: =SUMPRODUCT((Mai!$V$8:$V$76=$B23)*Mai!$X$8:$X$76) -> 0 € | AD24: 0 € | AE24: =SUMPRODUCT((Juin!$D$164:$D$232=$B23)*Juin!$F$164:$F$232) -> 0 € | AF24: =SUMPRODUCT((Juin!$M$13:$M$46=$B23)*Juin!$O$13:$O$46)+SUMPRODUCT((Juin!$M$58:$M$73=$B23)*Juin!$O$58:$O$73) -> 0 € | AG24: =SUMPRODUCT((Juin!$V$8:$V$76=$B23)*Juin!$X$8:$X$76) -> 0 € | AI24: 0 € | AJ24: =SUMPRODUCT((Juillet!$D$164:$D$232=$B23)*Juillet!$F$164:$F$232) -> 0 € | AK24: =SUMPRODUCT((Juillet!$M$13:$M$46=$B23)*Juillet!$O$13:$O$46)+SUMPRODUCT((Juillet!$M$58:$M$73=$B23)*Juillet!$O$58:$O$73) -> 0 € | AL24: =SUMPRODUCT((Juillet!$V$8:$V$76=$B23)*Juillet!$X$8:$X$76) -> 0 € | AN24: 0 € | AO24: =SUMPRODUCT((Aout!$D$164:$D$232=$B23)*Aout!$F$164:$F$232) -> 0 € | AP24: =SUMPRODUCT((Aout!$M$13:$M$46=$B23)*Aout!$O$13:$O$46)+SUMPRODUCT((Aout!$M$58:$M$73=$B23)*Aout!$O$58:$O$73) -> 0 € | AQ24: =SUMPRODUCT((Aout!$V$8:$V$76=$B23)*Aout!$X$8:$X$76) -> 0 € | AS24: 0 € | AT24: =SUMPRODUCT((Septembre!$D$164:$D$232=$B23)*Septembre!$F$164:$F$232) -> 0 € | AU24: =SUMPRODUCT((Septembre!$M$13:$M$46=$B23)*Septembre!$O$13:$O$46)+SUMPRODUCT((Septembre!$M$58:$M$73=$B23)*Septembre!$O$58:$O$73) -> 0 € | AV24: =SUMPRODUCT((Septembre!$V$8:$V$76=$B23)*Septembre!$X$8:$X$76) -> 0 € | AX24: 0 € | AY24: =SUMPRODUCT((Octobre!$D$164:$D$232=$B23)*Octobre!$F$164:$F$232) -> 0 € | AZ24: =SUMPRODUCT((Octobre!$M$13:$M$46=$B23)*Octobre!$O$13:$O$46)+SUMPRODUCT((Octobre!$M$58:$M$73=$B23)*Octobre!$O$58:$O$73) -> 0 € | BA24: =SUMPRODUCT((Octobre!$V$8:$V$76=$B23)*Octobre!$X$8:$X$76) -> 0 € | BC24: 0 € | BD24: =SUMPRODUCT((Novembre!$D$164:$D$232=$B23)*Novembre!$F$164:$F$232) -> 0 € | BE24: =SUMPRODUCT((Novembre!$M$13:$M$46=$B23)*Novembre!$O$13:$O$46)+SUMPRODUCT((Novembre!$M$58:$M$73=$B23)*Novembre!$O$58:$O$73) -> 0 € | BF24: =SUMPRODUCT((Novembre!$V$8:$V$76=$B23)*Novembre!$X$8:$X$76) -> 0 € | BH24: 0 € | BI24: =SUMPRODUCT((Décembre!$D$164:$D$232=$B23)*Décembre!$F$164:$F$232) -> 0 € | BJ24: =SUMPRODUCT((Décembre!$M$13:$M$46=$B23)*Décembre!$O$13:$O$46)+SUMPRODUCT((Décembre!$M$58:$M$73=$B23)*Décembre!$O$58:$O$73) -> 0 € | BK24: =SUMPRODUCT((Décembre!$V$8:$V$76=$B23)*Décembre!$X$8:$X$76) -> 0 €
B25: Travaux | C25: 0 € | D25: =C25+E25 -> 50 € | E25: 50 € | F25: =SUMPRODUCT(('Janvier '!$D$164:$D$232=$B25)*'Janvier '!$G$164:$G$232) -> 0.00 € | G25: =SUMPRODUCT(('Janvier '!$M$13:$M$46=$B25)*'Janvier '!$P$13:$P$46)-SUMPRODUCT(('Janvier '!$M$58:$M$73=$B25)*'Janvier '!$P$58:$P$73) -> 0.00 € | H25: =SUMPRODUCT(('Janvier '!$V$8:$V$76=$B25)*'Janvier '!$Y$8:$Y$76) -> 50.00 € | I25: =H25+J25 -> 100 € | J25: 50 € | K25: =SUMPRODUCT((Fevrier!$D$164:$D$232=$B25)*Fevrier!$G$164:$G$232) -> 0.00 € | L25: =SUMPRODUCT((Fevrier!$M$13:$M$46=$B25)*Fevrier!$P$13:$P$46)-SUMPRODUCT((Fevrier!$M$58:$M$73=$B25)*Fevrier!$P$58:$P$73) -> 0.00 € | M25: =SUMPRODUCT((Fevrier!$V$8:$V$76=$B25)*Fevrier!$Y$8:$Y$76) -> 50.00 € | N25: =M25+O25 -> 100 € | O25: 50 € | P25: =SUMPRODUCT((Mars!$D$164:$D$232=$B25)*Mars!$G$164:$G$232) -> 0.00 € | Q25: =SUMPRODUCT((Mars!$M$13:$M$46=$B25)*Mars!$P$13:$P$46)-SUMPRODUCT((Mars!$M$58:$M$73=$B25)*Mars!$P$58:$P$73) -> 0.00 € | R25: =SUMPRODUCT((Mars!$V$8:$V$76=$B25)*Mars!$Y$8:$Y$76) -> 50.00 € | S25: =R25+T25 -> 100 € | T25: 50 € | U25: =SUMPRODUCT((Avril!$D$164:$D$232=$B25)*Avril!$G$164:$G$232) -> 0.00 € | V25: =SUMPRODUCT((Avril!$M$13:$M$46=$B25)*Avril!$P$13:$P$46)-SUMPRODUCT((Avril!$M$58:$M$73=$B25)*Avril!$P$58:$P$73) -> 0.00 € | W25: =SUMPRODUCT((Avril!$V$8:$V$76=$B25)*Avril!$Y$8:$Y$76) -> 50.00 € | X25: =W25+Y25 -> 100 € | Y25: 50 € | Z25: =SUMPRODUCT((Mai!$D$164:$D$232=$B25)*Mai!$G$164:$G$232) -> 0.00 € | AA25: =SUMPRODUCT((Mai!$M$13:$M$46=$B25)*Mai!$P$13:$P$46)-SUMPRODUCT((Mai!$M$58:$M$73=$B25)*Mai!$P$58:$P$73) -> 0.00 € | AB25: =SUMPRODUCT((Mai!$V$8:$V$76=$B25)*Mai!$Y$8:$Y$76) -> 50.00 € | AC25: =AB25+AD25 -> 100 € | AD25: 50 € | AE25: =SUMPRODUCT((Juin!$D$164:$D$232=$B25)*Juin!$G$164:$G$232) -> 0.00 € | AF25: =SUMPRODUCT((Juin!$M$13:$M$46=$B25)*Juin!$P$13:$P$46)-SUMPRODUCT((Juin!$M$58:$M$73=$B25)*Juin!$P$58:$P$73) -> 0.00 € | AG25: =SUMPRODUCT((Juin!$V$8:$V$76=$B25)*Juin!$Y$8:$Y$76) -> 50.00 € | AH25: =AG25+AI25 -> 100 € | AI25: 50 € | AJ25: =SUMPRODUCT((Juillet!$D$164:$D$232=$B25)*Juillet!$G$164:$G$232) -> 0.00 € | AK25: =SUMPRODUCT((Juillet!$M$13:$M$46=$B25)*Juillet!$P$13:$P$46)-SUMPRODUCT((Juillet!$M$58:$M$73=$B25)*Juillet!$P$58:$P$73) -> 0.00 € | AL25: =SUMPRODUCT((Juillet!$V$8:$V$76=$B25)*Juillet!$Y$8:$Y$76) -> 50.00 € | AM25: =AL25+AN25 -> 100 € | AN25: 50 € | AO25: =SUMPRODUCT((Aout!$D$164:$D$232=$B25)*Aout!$G$164:$G$232) -> 0.00 € | AP25: =SUMPRODUCT((Aout!$M$13:$M$46=$B25)*Aout!$P$13:$P$46)-SUMPRODUCT((Aout!$M$58:$M$73=$B25)*Aout!$P$58:$P$73) -> 0.00 € | AQ25: =SUMPRODUCT((Aout!$V$8:$V$76=$B25)*Aout!$Y$8:$Y$76) -> 50.00 € | AR25: =AQ25+AS25 -> 100 € | AS25: 50 € | AT25: =SUMPRODUCT((Septembre!$D$164:$D$232=$B25)*Septembre!$G$164:$G$232) -> 0.00 € | AU25: =SUMPRODUCT((Septembre!$M$13:$M$46=$B25)*Septembre!$P$13:$P$46)-SUMPRODUCT((Septembre!$M$58:$M$73=$B25)*Septembre!$P$58:$P$73) -> 0.00 € | AV25: =SUMPRODUCT((Septembre!$V$8:$V$76=$B25)*Septembre!$Y$8:$Y$76) -> 50.00 € | AW25: =AV25+AX25 -> 100 € | AX25: 50 € | AY25: =SUMPRODUCT((Octobre!$D$164:$D$232=$B25)*Octobre!$G$164:$G$232) -> 0.00 € | AZ25: =SUMPRODUCT((Octobre!$M$13:$M$46=$B25)*Octobre!$P$13:$P$46)-SUMPRODUCT((Octobre!$M$58:$M$73=$B25)*Octobre!$P$58:$P$73) -> 0.00 € | BA25: =SUMPRODUCT((Octobre!$V$8:$V$76=$B25)*Octobre!$Y$8:$Y$76) -> 50.00 € | BB25: =BA25+BC25 -> 100 € | BC25: 50 € | BD25: =SUMPRODUCT((Novembre!$D$164:$D$232=$B25)*Novembre!$G$164:$G$232) -> 0.00 € | BE25: =SUMPRODUCT((Novembre!$M$13:$M$46=$B25)*Novembre!$P$13:$P$46)-SUMPRODUCT((Novembre!$M$58:$M$73=$B25)*Novembre!$P$58:$P$73) -> 0.00 € | BF25: =SUMPRODUCT((Novembre!$V$8:$V$76=$B25)*Novembre!$Y$8:$Y$76) -> 50.00 € | BG25: =BF25+BH25 -> 100 € | BH25: 50 € | BI25: =SUMPRODUCT((Décembre!$D$164:$D$232=$B25)*Décembre!$G$164:$G$232) -> 0.00 € | BJ25: =SUMPRODUCT((Décembre!$M$13:$M$46=$B25)*Décembre!$P$13:$P$46)-SUMPRODUCT((Décembre!$M$58:$M$73=$B25)*Décembre!$P$58:$P$73) -> 0.00 € | BK25: =SUMPRODUCT((Décembre!$V$8:$V$76=$B25)*Décembre!$Y$8:$Y$76) -> 50.00 €
E26: 0 € | F26: =SUMPRODUCT(('Janvier '!$D$164:$D$232=$B25)*'Janvier '!$F$164:$F$232) -> 0 € | G26: =SUMPRODUCT(('Janvier '!$M$13:$M$46=$B25)*'Janvier '!$O$13:$O$46)+SUMPRODUCT(('Janvier '!$M$58:$M$73=$B25)*'Janvier '!$O$58:$O$73) -> 0 € | H26: =SUMPRODUCT(('Janvier '!$V$8:$V$76=$B25)*'Janvier '!$X$8:$X$76) -> 0 € | J26: 0 € | K26: =SUMPRODUCT((Fevrier!$D$164:$D$232=$B25)*Fevrier!$F$164:$F$232) -> 0 € | L26: =SUMPRODUCT((Fevrier!$M$13:$M$46=$B25)*Fevrier!$O$13:$O$46)+SUMPRODUCT((Fevrier!$M$58:$M$73=$B25)*Fevrier!$O$58:$O$73) -> 0 € | M26: =SUMPRODUCT((Fevrier!$V$8:$V$76=$B25)*Fevrier!$X$8:$X$76) -> 0 € | O26: 0 € | P26: =SUMPRODUCT((Mars!$D$164:$D$232=$B25)*Mars!$F$164:$F$232) -> 0 € | Q26: =SUMPRODUCT((Mars!$M$13:$M$46=$B25)*Mars!$O$13:$O$46)+SUMPRODUCT((Mars!$M$58:$M$73=$B25)*Mars!$O$58:$O$73) -> 0 € | R26: =SUMPRODUCT((Mars!$V$8:$V$76=$B25)*Mars!$X$8:$X$76) -> 0 € | T26: 0 € | U26: =SUMPRODUCT((Avril!$D$164:$D$232=$B25)*Avril!$F$164:$F$232) -> 0 € | V26: =SUMPRODUCT((Avril!$M$13:$M$46=$B25)*Avril!$O$13:$O$46)+SUMPRODUCT((Avril!$M$58:$M$73=$B25)*Avril!$O$58:$O$73) -> 0 € | W26: =SUMPRODUCT((Avril!$V$8:$V$76=$B25)*Avril!$X$8:$X$76) -> 0 € | Y26: 0 € | Z26: =SUMPRODUCT((Mai!$D$164:$D$232=$B25)*Mai!$F$164:$F$232) -> 0 € | AA26: =SUMPRODUCT((Mai!$M$13:$M$46=$B25)*Mai!$O$13:$O$46)+SUMPRODUCT((Mai!$M$58:$M$73=$B25)*Mai!$O$58:$O$73) -> 0 € | AB26: =SUMPRODUCT((Mai!$V$8:$V$76=$B25)*Mai!$X$8:$X$76) -> 0 € | AD26: 0 € | AE26: =SUMPRODUCT((Juin!$D$164:$D$232=$B25)*Juin!$F$164:$F$232) -> 0 € | AF26: =SUMPRODUCT((Juin!$M$13:$M$46=$B25)*Juin!$O$13:$O$46)+SUMPRODUCT((Juin!$M$58:$M$73=$B25)*Juin!$O$58:$O$73) -> 0 € | AG26: =SUMPRODUCT((Juin!$V$8:$V$76=$B25)*Juin!$X$8:$X$76) -> 0 € | AI26: 0 € | AJ26: =SUMPRODUCT((Juillet!$D$164:$D$232=$B25)*Juillet!$F$164:$F$232) -> 0 € | AK26: =SUMPRODUCT((Juillet!$M$13:$M$46=$B25)*Juillet!$O$13:$O$46)+SUMPRODUCT((Juillet!$M$58:$M$73=$B25)*Juillet!$O$58:$O$73) -> 0 € | AL26: =SUMPRODUCT((Juillet!$V$8:$V$76=$B25)*Juillet!$X$8:$X$76) -> 0 € | AN26: 0 € | AO26: =SUMPRODUCT((Aout!$D$164:$D$232=$B25)*Aout!$F$164:$F$232) -> 0 € | AP26: =SUMPRODUCT((Aout!$M$13:$M$46=$B25)*Aout!$O$13:$O$46)+SUMPRODUCT((Aout!$M$58:$M$73=$B25)*Aout!$O$58:$O$73) -> 0 € | AQ26: =SUMPRODUCT((Aout!$V$8:$V$76=$B25)*Aout!$X$8:$X$76) -> 0 € | AS26: 0 € | AT26: =SUMPRODUCT((Septembre!$D$164:$D$232=$B25)*Septembre!$F$164:$F$232) -> 0 € | AU26: =SUMPRODUCT((Septembre!$M$13:$M$46=$B25)*Septembre!$O$13:$O$46)+SUMPRODUCT((Septembre!$M$58:$M$73=$B25)*Septembre!$O$58:$O$73) -> 0 € | AV26: =SUMPRODUCT((Septembre!$V$8:$V$76=$B25)*Septembre!$X$8:$X$76) -> 0 € | AX26: 0 € | AY26: =SUMPRODUCT((Octobre!$D$164:$D$232=$B25)*Octobre!$F$164:$F$232) -> 0 € | AZ26: =SUMPRODUCT((Octobre!$M$13:$M$46=$B25)*Octobre!$O$13:$O$46)+SUMPRODUCT((Octobre!$M$58:$M$73=$B25)*Octobre!$O$58:$O$73) -> 0 € | BA26: =SUMPRODUCT((Octobre!$V$8:$V$76=$B25)*Octobre!$X$8:$X$76) -> 0 € | BC26: 0 € | BD26: =SUMPRODUCT((Novembre!$D$164:$D$232=$B25)*Novembre!$F$164:$F$232) -> 0 € | BE26: =SUMPRODUCT((Novembre!$M$13:$M$46=$B25)*Novembre!$O$13:$O$46)+SUMPRODUCT((Novembre!$M$58:$M$73=$B25)*Novembre!$O$58:$O$73) -> 0 € | BF26: =SUMPRODUCT((Novembre!$V$8:$V$76=$B25)*Novembre!$X$8:$X$76) -> 0 € | BH26: 0 € | BI26: =SUMPRODUCT((Décembre!$D$164:$D$232=$B25)*Décembre!$F$164:$F$232) -> 0 € | BJ26: =SUMPRODUCT((Décembre!$M$13:$M$46=$B25)*Décembre!$O$13:$O$46)+SUMPRODUCT((Décembre!$M$58:$M$73=$B25)*Décembre!$O$58:$O$73) -> 0 € | BK26: =SUMPRODUCT((Décembre!$V$8:$V$76=$B25)*Décembre!$X$8:$X$76) -> 0 €
B27: Prêt travaux | C27: 0 € | D27: =C27+E27 -> 226 € | E27: 226 € | F27: =SUMPRODUCT(('Janvier '!$D$164:$D$232=$B27)*'Janvier '!$G$164:$G$232) -> 225.71 € | G27: =SUMPRODUCT(('Janvier '!$M$13:$M$46=$B27)*'Janvier '!$P$13:$P$46)-SUMPRODUCT(('Janvier '!$M$58:$M$73=$B27)*'Janvier '!$P$58:$P$73) -> 0.00 € | H27: =SUMPRODUCT(('Janvier '!$V$8:$V$76=$B27)*'Janvier '!$Y$8:$Y$76) -> 0.00 € | I27: =H27+J27 -> 226 € | J27: 226 € | K27: =SUMPRODUCT((Fevrier!$D$164:$D$232=$B27)*Fevrier!$G$164:$G$232) -> 225.71 € | L27: =SUMPRODUCT((Fevrier!$M$13:$M$46=$B27)*Fevrier!$P$13:$P$46)-SUMPRODUCT((Fevrier!$M$58:$M$73=$B27)*Fevrier!$P$58:$P$73) -> 0.00 € | M27: =SUMPRODUCT((Fevrier!$V$8:$V$76=$B27)*Fevrier!$Y$8:$Y$76) -> 0.00 € | N27: =M27+O27 -> 226 € | O27: 226 € | P27: =SUMPRODUCT((Mars!$D$164:$D$232=$B27)*Mars!$G$164:$G$232) -> 225.71 € | Q27: =SUMPRODUCT((Mars!$M$13:$M$46=$B27)*Mars!$P$13:$P$46)-SUMPRODUCT((Mars!$M$58:$M$73=$B27)*Mars!$P$58:$P$73) -> 0.00 € | R27: =SUMPRODUCT((Mars!$V$8:$V$76=$B27)*Mars!$Y$8:$Y$76) -> 0.00 € | S27: =R27+T27 -> 226 € | T27: 226 € | U27: =SUMPRODUCT((Avril!$D$164:$D$232=$B27)*Avril!$G$164:$G$232) -> 225.71 € | V27: =SUMPRODUCT((Avril!$M$13:$M$46=$B27)*Avril!$P$13:$P$46)-SUMPRODUCT((Avril!$M$58:$M$73=$B27)*Avril!$P$58:$P$73) -> 0.00 € | W27: =SUMPRODUCT((Avril!$V$8:$V$76=$B27)*Avril!$Y$8:$Y$76) -> 0.00 € | X27: =W27+Y27 -> 226 € | Y27: 226 € | Z27: =SUMPRODUCT((Mai!$D$164:$D$232=$B27)*Mai!$G$164:$G$232) -> 225.71 € | AA27: =SUMPRODUCT((Mai!$M$13:$M$46=$B27)*Mai!$P$13:$P$46)-SUMPRODUCT((Mai!$M$58:$M$73=$B27)*Mai!$P$58:$P$73) -> 0.00 € | AB27: =SUMPRODUCT((Mai!$V$8:$V$76=$B27)*Mai!$Y$8:$Y$76) -> 0.00 € | AC27: =AB27+AD27 -> 226 € | AD27: 226 € | AE27: =SUMPRODUCT((Juin!$D$164:$D$232=$B27)*Juin!$G$164:$G$232) -> 225.71 € | AF27: =SUMPRODUCT((Juin!$M$13:$M$46=$B27)*Juin!$P$13:$P$46)-SUMPRODUCT((Juin!$M$58:$M$73=$B27)*Juin!$P$58:$P$73) -> 0.00 € | AG27: =SUMPRODUCT((Juin!$V$8:$V$76=$B27)*Juin!$Y$8:$Y$76) -> 0.00 € | AH27: =AG27+AI27 -> 226 € | AI27: 226 € | AJ27: =SUMPRODUCT((Juillet!$D$164:$D$232=$B27)*Juillet!$G$164:$G$232) -> 225.71 € | AK27: =SUMPRODUCT((Juillet!$M$13:$M$46=$B27)*Juillet!$P$13:$P$46)-SUMPRODUCT((Juillet!$M$58:$M$73=$B27)*Juillet!$P$58:$P$73) -> 0.00 € | AL27: =SUMPRODUCT((Juillet!$V$8:$V$76=$B27)*Juillet!$Y$8:$Y$76) -> 0.00 € | AM27: =AL27+AN27 -> 226 € | AN27: 226 € | AO27: =SUMPRODUCT((Aout!$D$164:$D$232=$B27)*Aout!$G$164:$G$232) -> 225.71 € | AP27: =SUMPRODUCT((Aout!$M$13:$M$46=$B27)*Aout!$P$13:$P$46)-SUMPRODUCT((Aout!$M$58:$M$73=$B27)*Aout!$P$58:$P$73) -> 0.00 € | AQ27: =SUMPRODUCT((Aout!$V$8:$V$76=$B27)*Aout!$Y$8:$Y$76) -> 0.00 € | AR27: =AQ27+AS27 -> 226 € | AS27: 226 € | AT27: =SUMPRODUCT((Septembre!$D$164:$D$232=$B27)*Septembre!$G$164:$G$232) -> 225.71 € | AU27: =SUMPRODUCT((Septembre!$M$13:$M$46=$B27)*Septembre!$P$13:$P$46)-SUMPRODUCT((Septembre!$M$58:$M$73=$B27)*Septembre!$P$58:$P$73) -> 0.00 € | AV27: =SUMPRODUCT((Septembre!$V$8:$V$76=$B27)*Septembre!$Y$8:$Y$76) -> 0.00 € | AW27: =AV27+AX27 -> 226 € | AX27: 226 € | AY27: =SUMPRODUCT((Octobre!$D$164:$D$232=$B27)*Octobre!$G$164:$G$232) -> 225.71 € | AZ27: =SUMPRODUCT((Octobre!$M$13:$M$46=$B27)*Octobre!$P$13:$P$46)-SUMPRODUCT((Octobre!$M$58:$M$73=$B27)*Octobre!$P$58:$P$73) -> 0.00 € | BA27: =SUMPRODUCT((Octobre!$V$8:$V$76=$B27)*Octobre!$Y$8:$Y$76) -> 0.00 € | BB27: =BA27+BC27 -> 226 € | BC27: 226 € | BD27: =SUMPRODUCT((Novembre!$D$164:$D$232=$B27)*Novembre!$G$164:$G$232) -> 225.71 € | BE27: =SUMPRODUCT((Novembre!$M$13:$M$46=$B27)*Novembre!$P$13:$P$46)-SUMPRODUCT((Novembre!$M$58:$M$73=$B27)*Novembre!$P$58:$P$73) -> 0.00 € | BF27: =SUMPRODUCT((Novembre!$V$8:$V$76=$B27)*Novembre!$Y$8:$Y$76) -> 0.00 € | BG27: =BF27+BH27 -> 226 € | BH27: 226 € | BI27: =SUMPRODUCT((Décembre!$D$164:$D$232=$B27)*Décembre!$G$164:$G$232) -> 225.71 € | BJ27: =SUMPRODUCT((Décembre!$M$13:$M$46=$B27)*Décembre!$P$13:$P$46)-SUMPRODUCT((Décembre!$M$58:$M$73=$B27)*Décembre!$P$58:$P$73) -> 0.00 € | BK27: =SUMPRODUCT((Décembre!$V$8:$V$76=$B27)*Décembre!$Y$8:$Y$76) -> 0.00 €
E28: 0 € | F28: =SUMPRODUCT(('Janvier '!$D$164:$D$232=$B27)*'Janvier '!$F$164:$F$232) -> 0 € | G28: =SUMPRODUCT(('Janvier '!$M$13:$M$46=$B27)*'Janvier '!$O$13:$O$46)+SUMPRODUCT(('Janvier '!$M$58:$M$73=$B27)*'Janvier '!$O$58:$O$73) -> 0 € | H28: =SUMPRODUCT(('Janvier '!$V$8:$V$76=$B27)*'Janvier '!$X$8:$X$76) -> 0 € | J28: 226 € | K28: =SUMPRODUCT((Fevrier!$D$164:$D$232=$B27)*Fevrier!$F$164:$F$232) -> 226 € | L28: =SUMPRODUCT((Fevrier!$M$13:$M$46=$B27)*Fevrier!$O$13:$O$46)+SUMPRODUCT((Fevrier!$M$58:$M$73=$B27)*Fevrier!$O$58:$O$73) -> 0 € | M28: =SUMPRODUCT((Fevrier!$V$8:$V$76=$B27)*Fevrier!$X$8:$X$76) -> 0 € | O28: 226 € | P28: =SUMPRODUCT((Mars!$D$164:$D$232=$B27)*Mars!$F$164:$F$232) -> 226 € | Q28: =SUMPRODUCT((Mars!$M$13:$M$46=$B27)*Mars!$O$13:$O$46)+SUMPRODUCT((Mars!$M$58:$M$73=$B27)*Mars!$O$58:$O$73) -> 0 € | R28: =SUMPRODUCT((Mars!$V$8:$V$76=$B27)*Mars!$X$8:$X$76) -> 0 € | T28: 226 € | U28: =SUMPRODUCT((Avril!$D$164:$D$232=$B27)*Avril!$F$164:$F$232) -> 226 € | V28: =SUMPRODUCT((Avril!$M$13:$M$46=$B27)*Avril!$O$13:$O$46)+SUMPRODUCT((Avril!$M$58:$M$73=$B27)*Avril!$O$58:$O$73) -> 0 € | W28: =SUMPRODUCT((Avril!$V$8:$V$76=$B27)*Avril!$X$8:$X$76) -> 0 € | Y28: 226 € | Z28: =SUMPRODUCT((Mai!$D$164:$D$232=$B27)*Mai!$F$164:$F$232) -> 226 € | AA28: =SUMPRODUCT((Mai!$M$13:$M$46=$B27)*Mai!$O$13:$O$46)+SUMPRODUCT((Mai!$M$58:$M$73=$B27)*Mai!$O$58:$O$73) -> 0 € | AB28: =SUMPRODUCT((Mai!$V$8:$V$76=$B27)*Mai!$X$8:$X$76) -> 0 € | AD28: 226 € | AE28: =SUMPRODUCT((Juin!$D$164:$D$232=$B27)*Juin!$F$164:$F$232) -> 226 € | AF28: =SUMPRODUCT((Juin!$M$13:$M$46=$B27)*Juin!$O$13:$O$46)+SUMPRODUCT((Juin!$M$58:$M$73=$B27)*Juin!$O$58:$O$73) -> 0 € | AG28: =SUMPRODUCT((Juin!$V$8:$V$76=$B27)*Juin!$X$8:$X$76) -> 0 € | AI28: 226 € | AJ28: =SUMPRODUCT((Juillet!$D$164:$D$232=$B27)*Juillet!$F$164:$F$232) -> 226 € | AK28: =SUMPRODUCT((Juillet!$M$13:$M$46=$B27)*Juillet!$O$13:$O$46)+SUMPRODUCT((Juillet!$M$58:$M$73=$B27)*Juillet!$O$58:$O$73) -> 0 € | AL28: =SUMPRODUCT((Juillet!$V$8:$V$76=$B27)*Juillet!$X$8:$X$76) -> 0 € | AN28: 226 € | AO28: =SUMPRODUCT((Aout!$D$164:$D$232=$B27)*Aout!$F$164:$F$232) -> 226 € | AP28: =SUMPRODUCT((Aout!$M$13:$M$46=$B27)*Aout!$O$13:$O$46)+SUMPRODUCT((Aout!$M$58:$M$73=$B27)*Aout!$O$58:$O$73) -> 0 € | AQ28: =SUMPRODUCT((Aout!$V$8:$V$76=$B27)*Aout!$X$8:$X$76) -> 0 € | AS28: 226 € | AT28: =SUMPRODUCT((Septembre!$D$164:$D$232=$B27)*Septembre!$F$164:$F$232) -> 226 € | AU28: =SUMPRODUCT((Septembre!$M$13:$M$46=$B27)*Septembre!$O$13:$O$46)+SUMPRODUCT((Septembre!$M$58:$M$73=$B27)*Septembre!$O$58:$O$73) -> 0 € | AV28: =SUMPRODUCT((Septembre!$V$8:$V$76=$B27)*Septembre!$X$8:$X$76) -> 0 € | AX28: 226 € | AY28: =SUMPRODUCT((Octobre!$D$164:$D$232=$B27)*Octobre!$F$164:$F$232) -> 226 € | AZ28: =SUMPRODUCT((Octobre!$M$13:$M$46=$B27)*Octobre!$O$13:$O$46)+SUMPRODUCT((Octobre!$M$58:$M$73=$B27)*Octobre!$O$58:$O$73) -> 0 € | BA28: =SUMPRODUCT((Octobre!$V$8:$V$76=$B27)*Octobre!$X$8:$X$76) -> 0 € | BC28: 226 € | BD28: =SUMPRODUCT((Novembre!$D$164:$D$232=$B27)*Novembre!$F$164:$F$232) -> 226 € | BE28: =SUMPRODUCT((Novembre!$M$13:$M$46=$B27)*Novembre!$O$13:$O$46)+SUMPRODUCT((Novembre!$M$58:$M$73=$B27)*Novembre!$O$58:$O$73) -> 0 € | BF28: =SUMPRODUCT((Novembre!$V$8:$V$76=$B27)*Novembre!$X$8:$X$76) -> 0 € | BH28: 226 € | BI28: =SUMPRODUCT((Décembre!$D$164:$D$232=$B27)*Décembre!$F$164:$F$232) -> 226 € | BJ28: =SUMPRODUCT((Décembre!$M$13:$M$46=$B27)*Décembre!$O$13:$O$46)+SUMPRODUCT((Décembre!$M$58:$M$73=$B27)*Décembre!$O$58:$O$73) -> 0 € | BK28: =SUMPRODUCT((Décembre!$V$8:$V$76=$B27)*Décembre!$X$8:$X$76) -> 0 €
B29: Prêt maison | C29: 0 € | D29: =C29+E29 -> 443 € | E29: 443 € | F29: =SUMPRODUCT(('Janvier '!$D$164:$D$232=$B29)*'Janvier '!$G$164:$G$232) -> 443.23 € | G29: =SUMPRODUCT(('Janvier '!$M$13:$M$46=$B29)*'Janvier '!$P$13:$P$46)-SUMPRODUCT(('Janvier '!$M$58:$M$73=$B29)*'Janvier '!$P$58:$P$73) -> 0.00 € | H29: =SUMPRODUCT(('Janvier '!$V$8:$V$76=$B29)*'Janvier '!$Y$8:$Y$76) -> 0.00 € | I29: =H29+J29 -> 443 € | J29: 443 € | K29: =SUMPRODUCT((Fevrier!$D$164:$D$232=$B29)*Fevrier!$G$164:$G$232) -> 443.23 € | L29: =SUMPRODUCT((Fevrier!$M$13:$M$46=$B29)*Fevrier!$P$13:$P$46)-SUMPRODUCT((Fevrier!$M$58:$M$73=$B29)*Fevrier!$P$58:$P$73) -> 0.00 € | M29: =SUMPRODUCT((Fevrier!$V$8:$V$76=$B29)*Fevrier!$Y$8:$Y$76) -> 0.00 € | N29: =M29+O29 -> 443 € | O29: 443 € | P29: =SUMPRODUCT((Mars!$D$164:$D$232=$B29)*Mars!$G$164:$G$232) -> 443.23 € | Q29: =SUMPRODUCT((Mars!$M$13:$M$46=$B29)*Mars!$P$13:$P$46)-SUMPRODUCT((Mars!$M$58:$M$73=$B29)*Mars!$P$58:$P$73) -> 0.00 € | R29: =SUMPRODUCT((Mars!$V$8:$V$76=$B29)*Mars!$Y$8:$Y$76) -> 0.00 € | S29: =R29+T29 -> 443 € | T29: 443 € | U29: =SUMPRODUCT((Avril!$D$164:$D$232=$B29)*Avril!$G$164:$G$232) -> 443.23 € | V29: =SUMPRODUCT((Avril!$M$13:$M$46=$B29)*Avril!$P$13:$P$46)-SUMPRODUCT((Avril!$M$58:$M$73=$B29)*Avril!$P$58:$P$73) -> 0.00 € | W29: =SUMPRODUCT((Avril!$V$8:$V$76=$B29)*Avril!$Y$8:$Y$76) -> 0.00 € | X29: =W29+Y29 -> 443 € | Y29: 443 € | Z29: =SUMPRODUCT((Mai!$D$164:$D$232=$B29)*Mai!$G$164:$G$232) -> 443.23 € | AA29: =SUMPRODUCT((Mai!$M$13:$M$46=$B29)*Mai!$P$13:$P$46)-SUMPRODUCT((Mai!$M$58:$M$73=$B29)*Mai!$P$58:$P$73) -> 0.00 € | AB29: =SUMPRODUCT((Mai!$V$8:$V$76=$B29)*Mai!$Y$8:$Y$76) -> 0.00 € | AC29: =AB29+AD29 -> 443 € | AD29: 443 € | AE29: =SUMPRODUCT((Juin!$D$164:$D$232=$B29)*Juin!$G$164:$G$232) -> 443.23 € | AF29: =SUMPRODUCT((Juin!$M$13:$M$46=$B29)*Juin!$P$13:$P$46)-SUMPRODUCT((Juin!$M$58:$M$73=$B29)*Juin!$P$58:$P$73) -> 0.00 € | AG29: =SUMPRODUCT((Juin!$V$8:$V$76=$B29)*Juin!$Y$8:$Y$76) -> 0.00 € | AH29: =AG29+AI29 -> 443 € | AI29: 443 € | AJ29: =SUMPRODUCT((Juillet!$D$164:$D$232=$B29)*Juillet!$G$164:$G$232) -> 443.23 € | AK29: =SUMPRODUCT((Juillet!$M$13:$M$46=$B29)*Juillet!$P$13:$P$46)-SUMPRODUCT((Juillet!$M$58:$M$73=$B29)*Juillet!$P$58:$P$73) -> 0.00 € | AL29: =SUMPRODUCT((Juillet!$V$8:$V$76=$B29)*Juillet!$Y$8:$Y$76) -> 0.00 € | AM29: =AL29+AN29 -> 443 € | AN29: 443 € | AO29: =SUMPRODUCT((Aout!$D$164:$D$232=$B29)*Aout!$G$164:$G$232) -> 443.23 € | AP29: =SUMPRODUCT((Aout!$M$13:$M$46=$B29)*Aout!$P$13:$P$46)-SUMPRODUCT((Aout!$M$58:$M$73=$B29)*Aout!$P$58:$P$73) -> 0.00 € | AQ29: =SUMPRODUCT((Aout!$V$8:$V$76=$B29)*Aout!$Y$8:$Y$76) -> 0.00 € | AR29: =AQ29+AS29 -> 443 € | AS29: 443 € | AT29: =SUMPRODUCT((Septembre!$D$164:$D$232=$B29)*Septembre!$G$164:$G$232) -> 443.23 € | AU29: =SUMPRODUCT((Septembre!$M$13:$M$46=$B29)*Septembre!$P$13:$P$46)-SUMPRODUCT((Septembre!$M$58:$M$73=$B29)*Septembre!$P$58:$P$73) -> 0.00 € | AV29: =SUMPRODUCT((Septembre!$V$8:$V$76=$B29)*Septembre!$Y$8:$Y$76) -> 0.00 € | AW29: =AV29+AX29 -> 443 € | AX29: 443 € | AY29: =SUMPRODUCT((Octobre!$D$164:$D$232=$B29)*Octobre!$G$164:$G$232) -> 443.23 € | AZ29: =SUMPRODUCT((Octobre!$M$13:$M$46=$B29)*Octobre!$P$13:$P$46)-SUMPRODUCT((Octobre!$M$58:$M$73=$B29)*Octobre!$P$58:$P$73) -> 0.00 € | BA29: =SUMPRODUCT((Octobre!$V$8:$V$76=$B29)*Octobre!$Y$8:$Y$76) -> 0.00 € | BB29: =BA29+BC29 -> 443 € | BC29: 443 € | BD29: =SUMPRODUCT((Novembre!$D$164:$D$232=$B29)*Novembre!$G$164:$G$232) -> 443.23 € | BE29: =SUMPRODUCT((Novembre!$M$13:$M$46=$B29)*Novembre!$P$13:$P$46)-SUMPRODUCT((Novembre!$M$58:$M$73=$B29)*Novembre!$P$58:$P$73) -> 0.00 € | BF29: =SUMPRODUCT((Novembre!$V$8:$V$76=$B29)*Novembre!$Y$8:$Y$76) -> 0.00 € | BG29: =BF29+BH29 -> 443 € | BH29: 443 € | BI29: =SUMPRODUCT((Décembre!$D$164:$D$232=$B29)*Décembre!$G$164:$G$232) -> 443.23 € | BJ29: =SUMPRODUCT((Décembre!$M$13:$M$46=$B29)*Décembre!$P$13:$P$46)-SUMPRODUCT((Décembre!$M$58:$M$73=$B29)*Décembre!$P$58:$P$73) -> 0.00 € | BK29: =SUMPRODUCT((Décembre!$V$8:$V$76=$B29)*Décembre!$Y$8:$Y$76) -> 0.00 €
E30: 0 € | F30: =SUMPRODUCT(('Janvier '!$D$164:$D$232=$B29)*'Janvier '!$F$164:$F$232) -> 0 € | G30: =SUMPRODUCT(('Janvier '!$M$13:$M$46=$B29)*'Janvier '!$O$13:$O$46)+SUMPRODUCT(('Janvier '!$M$58:$M$73=$B29)*'Janvier '!$O$58:$O$73) -> 0 € | H30: =SUMPRODUCT(('Janvier '!$V$8:$V$76=$B29)*'Janvier '!$X$8:$X$76) -> 0 € | J30: 443 € | K30: =SUMPRODUCT((Fevrier!$D$164:$D$232=$B29)*Fevrier!$F$164:$F$232) -> 443 € | L30: =SUMPRODUCT((Fevrier!$M$13:$M$46=$B29)*Fevrier!$O$13:$O$46)+SUMPRODUCT((Fevrier!$M$58:$M$73=$B29)*Fevrier!$O$58:$O$73) -> 0 € | M30: =SUMPRODUCT((Fevrier!$V$8:$V$76=$B29)*Fevrier!$X$8:$X$76) -> 0 € | O30: 443 € | P30: =SUMPRODUCT((Mars!$D$164:$D$232=$B29)*Mars!$F$164:$F$232) -> 443 € | Q30: =SUMPRODUCT((Mars!$M$13:$M$46=$B29)*Mars!$O$13:$O$46)+SUMPRODUCT((Mars!$M$58:$M$73=$B29)*Mars!$O$58:$O$73) -> 0 € | R30: =SUMPRODUCT((Mars!$V$8:$V$76=$B29)*Mars!$X$8:$X$76) -> 0 € | T30: 443 € | U30: =SUMPRODUCT((Avril!$D$164:$D$232=$B29)*Avril!$F$164:$F$232) -> 443 € | V30: =SUMPRODUCT((Avril!$M$13:$M$46=$B29)*Avril!$O$13:$O$46)+SUMPRODUCT((Avril!$M$58:$M$73=$B29)*Avril!$O$58:$O$73) -> 0 € | W30: =SUMPRODUCT((Avril!$V$8:$V$76=$B29)*Avril!$X$8:$X$76) -> 0 € | Y30: 443 € | Z30: =SUMPRODUCT((Mai!$D$164:$D$232=$B29)*Mai!$F$164:$F$232) -> 443 € | AA30: =SUMPRODUCT((Mai!$M$13:$M$46=$B29)*Mai!$O$13:$O$46)+SUMPRODUCT((Mai!$M$58:$M$73=$B29)*Mai!$O$58:$O$73) -> 0 € | AB30: =SUMPRODUCT((Mai!$V$8:$V$76=$B29)*Mai!$X$8:$X$76) -> 0 € | AD30: 443 € | AE30: =SUMPRODUCT((Juin!$D$164:$D$232=$B29)*Juin!$F$164:$F$232) -> 443 € | AF30: =SUMPRODUCT((Juin!$M$13:$M$46=$B29)*Juin!$O$13:$O$46)+SUMPRODUCT((Juin!$M$58:$M$73=$B29)*Juin!$O$58:$O$73) -> 0 € | AG30: =SUMPRODUCT((Juin!$V$8:$V$76=$B29)*Juin!$X$8:$X$76) -> 0 € | AI30: 443 € | AJ30: =SUMPRODUCT((Juillet!$D$164:$D$232=$B29)*Juillet!$F$164:$F$232) -> 443 € | AK30: =SUMPRODUCT((Juillet!$M$13:$M$46=$B29)*Juillet!$O$13:$O$46)+SUMPRODUCT((Juillet!$M$58:$M$73=$B29)*Juillet!$O$58:$O$73) -> 0 € | AL30: =SUMPRODUCT((Juillet!$V$8:$V$76=$B29)*Juillet!$X$8:$X$76) -> 0 € | AN30: 443 € | AO30: =SUMPRODUCT((Aout!$D$164:$D$232=$B29)*Aout!$F$164:$F$232) -> 443 € | AP30: =SUMPRODUCT((Aout!$M$13:$M$46=$B29)*Aout!$O$13:$O$46)+SUMPRODUCT((Aout!$M$58:$M$73=$B29)*Aout!$O$58:$O$73) -> 0 € | AQ30: =SUMPRODUCT((Aout!$V$8:$V$76=$B29)*Aout!$X$8:$X$76) -> 0 € | AS30: 443 € | AT30: =SUMPRODUCT((Septembre!$D$164:$D$232=$B29)*Septembre!$F$164:$F$232) -> 443 € | AU30: =SUMPRODUCT((Septembre!$M$13:$M$46=$B29)*Septembre!$O$13:$O$46)+SUMPRODUCT((Septembre!$M$58:$M$73=$B29)*Septembre!$O$58:$O$73) -> 0 € | AV30: =SUMPRODUCT((Septembre!$V$8:$V$76=$B29)*Septembre!$X$8:$X$76) -> 0 € | AX30: 443 € | AY30: =SUMPRODUCT((Octobre!$D$164:$D$232=$B29)*Octobre!$F$164:$F$232) -> 443 € | AZ30: =SUMPRODUCT((Octobre!$M$13:$M$46=$B29)*Octobre!$O$13:$O$46)+SUMPRODUCT((Octobre!$M$58:$M$73=$B29)*Octobre!$O$58:$O$73) -> 0 € | BA30: =SUMPRODUCT((Octobre!$V$8:$V$76=$B29)*Octobre!$X$8:$X$76) -> 0 € | BC30: 443 € | BD30: =SUMPRODUCT((Novembre!$D$164:$D$232=$B29)*Novembre!$F$164:$F$232) -> 443 € | BE30: =SUMPRODUCT((Novembre!$M$13:$M$46=$B29)*Novembre!$O$13:$O$46)+SUMPRODUCT((Novembre!$M$58:$M$73=$B29)*Novembre!$O$58:$O$73) -> 0 € | BF30: =SUMPRODUCT((Novembre!$V$8:$V$76=$B29)*Novembre!$X$8:$X$76) -> 0 € | BH30: 443 € | BI30: =SUMPRODUCT((Décembre!$D$164:$D$232=$B29)*Décembre!$F$164:$F$232) -> 443 € | BJ30: =SUMPRODUCT((Décembre!$M$13:$M$46=$B29)*Décembre!$O$13:$O$46)+SUMPRODUCT((Décembre!$M$58:$M$73=$B29)*Décembre!$O$58:$O$73) -> 0 € | BK30: =SUMPRODUCT((Décembre!$V$8:$V$76=$B29)*Décembre!$X$8:$X$76) -> 0 €
B31: Jardin | C31: 0 € | D31: =C31+E31 -> 0 € | E31: 0 € | F31: =SUMPRODUCT(('Janvier '!$D$164:$D$232=$B31)*'Janvier '!$G$164:$G$232) -> 0.00 € | G31: =SUMPRODUCT(('Janvier '!$M$13:$M$46=$B31)*'Janvier '!$P$13:$P$46)-SUMPRODUCT(('Janvier '!$M$58:$M$73=$B31)*'Janvier '!$P$58:$P$73) -> 0.00 € | H31: =SUMPRODUCT(('Janvier '!$V$8:$V$76=$B31)*'Janvier '!$Y$8:$Y$76) -> 0.00 € | I31: =H31+J31 -> 0 € | J31: 0 € | K31: =SUMPRODUCT((Fevrier!$D$164:$D$232=$B31)*Fevrier!$G$164:$G$232) -> 0.00 € | L31: =SUMPRODUCT((Fevrier!$M$13:$M$46=$B31)*Fevrier!$P$13:$P$46)-SUMPRODUCT((Fevrier!$M$58:$M$73=$B31)*Fevrier!$P$58:$P$73) -> 0.00 € | M31: =SUMPRODUCT((Fevrier!$V$8:$V$76=$B31)*Fevrier!$Y$8:$Y$76) -> 0.00 € | N31: =M31+O31 -> 0 € | O31: 0 € | P31: =SUMPRODUCT((Mars!$D$164:$D$232=$B31)*Mars!$G$164:$G$232) -> 0.00 € | Q31: =SUMPRODUCT((Mars!$M$13:$M$46=$B31)*Mars!$P$13:$P$46)-SUMPRODUCT((Mars!$M$58:$M$73=$B31)*Mars!$P$58:$P$73) -> 0.00 € | R31: =SUMPRODUCT((Mars!$V$8:$V$76=$B31)*Mars!$Y$8:$Y$76) -> 0.00 € | S31: =R31+T31 -> 0 € | T31: 0 € | U31: =SUMPRODUCT((Avril!$D$164:$D$232=$B31)*Avril!$G$164:$G$232) -> 0.00 € | V31: =SUMPRODUCT((Avril!$M$13:$M$46=$B31)*Avril!$P$13:$P$46)-SUMPRODUCT((Avril!$M$58:$M$73=$B31)*Avril!$P$58:$P$73) -> 0.00 € | W31: =SUMPRODUCT((Avril!$V$8:$V$76=$B31)*Avril!$Y$8:$Y$76) -> 0.00 € | X31: =W31+Y31 -> 0 € | Y31: 0 € | Z31: =SUMPRODUCT((Mai!$D$164:$D$232=$B31)*Mai!$G$164:$G$232) -> 0.00 € | AA31: =SUMPRODUCT((Mai!$M$13:$M$46=$B31)*Mai!$P$13:$P$46)-SUMPRODUCT((Mai!$M$58:$M$73=$B31)*Mai!$P$58:$P$73) -> 0.00 € | AB31: =SUMPRODUCT((Mai!$V$8:$V$76=$B31)*Mai!$Y$8:$Y$76) -> 0.00 € | AC31: =AB31+AD31 -> 0 € | AD31: 0 € | AE31: =SUMPRODUCT((Juin!$D$164:$D$232=$B31)*Juin!$G$164:$G$232) -> 0.00 € | AF31: =SUMPRODUCT((Juin!$M$13:$M$46=$B31)*Juin!$P$13:$P$46)-SUMPRODUCT((Juin!$M$58:$M$73=$B31)*Juin!$P$58:$P$73) -> 0.00 € | AG31: =SUMPRODUCT((Juin!$V$8:$V$76=$B31)*Juin!$Y$8:$Y$76) -> 0.00 € | AH31: =AG31+AI31 -> 0 € | AI31: 0 € | AJ31: =SUMPRODUCT((Juillet!$D$164:$D$232=$B31)*Juillet!$G$164:$G$232) -> 0.00 € | AK31: =SUMPRODUCT((Juillet!$M$13:$M$46=$B31)*Juillet!$P$13:$P$46)-SUMPRODUCT((Juillet!$M$58:$M$73=$B31)*Juillet!$P$58:$P$73) -> 0.00 € | AL31: =SUMPRODUCT((Juillet!$V$8:$V$76=$B31)*Juillet!$Y$8:$Y$76) -> 0.00 € | AM31: =AL31+AN31 -> 0 € | AN31: 0 € | AO31: =SUMPRODUCT((Aout!$D$164:$D$232=$B31)*Aout!$G$164:$G$232) -> 0.00 € | AP31: =SUMPRODUCT((Aout!$M$13:$M$46=$B31)*Aout!$P$13:$P$46)-SUMPRODUCT((Aout!$M$58:$M$73=$B31)*Aout!$P$58:$P$73) -> 0.00 € | AQ31: =SUMPRODUCT((Aout!$V$8:$V$76=$B31)*Aout!$Y$8:$Y$76) -> 0.00 € | AR31: =AQ31+AS31 -> 0 € | AS31: 0 € | AT31: =SUMPRODUCT((Septembre!$D$164:$D$232=$B31)*Septembre!$G$164:$G$232) -> 0.00 € | AU31: =SUMPRODUCT((Septembre!$M$13:$M$46=$B31)*Septembre!$P$13:$P$46)-SUMPRODUCT((Septembre!$M$58:$M$73=$B31)*Septembre!$P$58:$P$73) -> 0.00 € | AV31: =SUMPRODUCT((Septembre!$V$8:$V$76=$B31)*Septembre!$Y$8:$Y$76) -> 0.00 € | AW31: =AV31+AX31 -> 0 € | AX31: 0 € | AY31: =SUMPRODUCT((Octobre!$D$164:$D$232=$B31)*Octobre!$G$164:$G$232) -> 0.00 € | AZ31: =SUMPRODUCT((Octobre!$M$13:$M$46=$B31)*Octobre!$P$13:$P$46)-SUMPRODUCT((Octobre!$M$58:$M$73=$B31)*Octobre!$P$58:$P$73) -> 0.00 € | BA31: =SUMPRODUCT((Octobre!$V$8:$V$76=$B31)*Octobre!$Y$8:$Y$76) -> 0.00 € | BB31: =BA31+BC31 -> 0 € | BC31: 0 € | BD31: =SUMPRODUCT((Novembre!$D$164:$D$232=$B31)*Novembre!$G$164:$G$232) -> 0.00 € | BE31: =SUMPRODUCT((Novembre!$M$13:$M$46=$B31)*Novembre!$P$13:$P$46)-SUMPRODUCT((Novembre!$M$58:$M$73=$B31)*Novembre!$P$58:$P$73) -> 0.00 € | BF31: =SUMPRODUCT((Novembre!$V$8:$V$76=$B31)*Novembre!$Y$8:$Y$76) -> 0.00 € | BG31: =BF31+BH31 -> 0 € | BH31: 0 € | BI31: =SUMPRODUCT((Décembre!$D$164:$D$232=$B31)*Décembre!$G$164:$G$232) -> 0.00 € | BJ31: =SUMPRODUCT((Décembre!$M$13:$M$46=$B31)*Décembre!$P$13:$P$46)-SUMPRODUCT((Décembre!$M$58:$M$73=$B31)*Décembre!$P$58:$P$73) -> 0.00 € | BK31: =SUMPRODUCT((Décembre!$V$8:$V$76=$B31)*Décembre!$Y$8:$Y$76) -> 0.00 €
E32: 0 € | F32: =SUMPRODUCT(('Janvier '!$D$164:$D$232=$B31)*'Janvier '!$F$164:$F$232) -> 0 € | G32: =SUMPRODUCT(('Janvier '!$M$13:$M$46=$B31)*'Janvier '!$O$13:$O$46)+SUMPRODUCT(('Janvier '!$M$58:$M$73=$B31)*'Janvier '!$O$58:$O$73) -> 0 € | H32: =SUMPRODUCT(('Janvier '!$V$8:$V$76=$B31)*'Janvier '!$X$8:$X$76) -> 0 € | J32: 0 € | K32: =SUMPRODUCT((Fevrier!$D$164:$D$232=$B31)*Fevrier!$F$164:$F$232) -> 0 € | L32: =SUMPRODUCT((Fevrier!$M$13:$M$46=$B31)*Fevrier!$O$13:$O$46)+SUMPRODUCT((Fevrier!$M$58:$M$73=$B31)*Fevrier!$O$58:$O$73) -> 0 € | M32: =SUMPRODUCT((Fevrier!$V$8:$V$76=$B31)*Fevrier!$X$8:$X$76) -> 0 € | O32: 0 € | P32: =SUMPRODUCT((Mars!$D$164:$D$232=$B31)*Mars!$F$164:$F$232) -> 0 € | Q32: =SUMPRODUCT((Mars!$M$13:$M$46=$B31)*Mars!$O$13:$O$46)+SUMPRODUCT((Mars!$M$58:$M$73=$B31)*Mars!$O$58:$O$73) -> 0 € | R32: =SUMPRODUCT((Mars!$V$8:$V$76=$B31)*Mars!$X$8:$X$76) -> 0 € | T32: 0 € | U32: =SUMPRODUCT((Avril!$D$164:$D$232=$B31)*Avril!$F$164:$F$232) -> 0 € | V32: =SUMPRODUCT((Avril!$M$13:$M$46=$B31)*Avril!$O$13:$O$46)+SUMPRODUCT((Avril!$M$58:$M$73=$B31)*Avril!$O$58:$O$73) -> 0 € | W32: =SUMPRODUCT((Avril!$V$8:$V$76=$B31)*Avril!$X$8:$X$76) -> 0 € | Y32: 0 € | Z32: =SUMPRODUCT((Mai!$D$164:$D$232=$B31)*Mai!$F$164:$F$232) -> 0 € | AA32: =SUMPRODUCT((Mai!$M$13:$M$46=$B31)*Mai!$O$13:$O$46)+SUMPRODUCT((Mai!$M$58:$M$73=$B31)*Mai!$O$58:$O$73) -> 0 € | AB32: =SUMPRODUCT((Mai!$V$8:$V$76=$B31)*Mai!$X$8:$X$76) -> 0 € | AD32: 0 € | AE32: =SUMPRODUCT((Juin!$D$164:$D$232=$B31)*Juin!$F$164:$F$232) -> 0 € | AF32: =SUMPRODUCT((Juin!$M$13:$M$46=$B31)*Juin!$O$13:$O$46)+SUMPRODUCT((Juin!$M$58:$M$73=$B31)*Juin!$O$58:$O$73) -> 0 € | AG32: =SUMPRODUCT((Juin!$V$8:$V$76=$B31)*Juin!$X$8:$X$76) -> 0 € | AI32: 0 € | AJ32: =SUMPRODUCT((Juillet!$D$164:$D$232=$B31)*Juillet!$F$164:$F$232) -> 0 € | AK32: =SUMPRODUCT((Juillet!$M$13:$M$46=$B31)*Juillet!$O$13:$O$46)+SUMPRODUCT((Juillet!$M$58:$M$73=$B31)*Juillet!$O$58:$O$73) -> 0 € | AL32: =SUMPRODUCT((Juillet!$V$8:$V$76=$B31)*Juillet!$X$8:$X$76) -> 0 € | AN32: 0 € | AO32: =SUMPRODUCT((Aout!$D$164:$D$232=$B31)*Aout!$F$164:$F$232) -> 0 € | AP32: =SUMPRODUCT((Aout!$M$13:$M$46=$B31)*Aout!$O$13:$O$46)+SUMPRODUCT((Aout!$M$58:$M$73=$B31)*Aout!$O$58:$O$73) -> 0 € | AQ32: =SUMPRODUCT((Aout!$V$8:$V$76=$B31)*Aout!$X$8:$X$76) -> 0 € | AS32: 0 € | AT32: =SUMPRODUCT((Septembre!$D$164:$D$232=$B31)*Septembre!$F$164:$F$232) -> 0 € | AU32: =SUMPRODUCT((Septembre!$M$13:$M$46=$B31)*Septembre!$O$13:$O$46)+SUMPRODUCT((Septembre!$M$58:$M$73=$B31)*Septembre!$O$58:$O$73) -> 0 € | AV32: =SUMPRODUCT((Septembre!$V$8:$V$76=$B31)*Septembre!$X$8:$X$76) -> 0 € | AX32: 0 € | AY32: =SUMPRODUCT((Octobre!$D$164:$D$232=$B31)*Octobre!$F$164:$F$232) -> 0 € | AZ32: =SUMPRODUCT((Octobre!$M$13:$M$46=$B31)*Octobre!$O$13:$O$46)+SUMPRODUCT((Octobre!$M$58:$M$73=$B31)*Octobre!$O$58:$O$73) -> 0 € | BA32: =SUMPRODUCT((Octobre!$V$8:$V$76=$B31)*Octobre!$X$8:$X$76) -> 0 € | BC32: 0 € | BD32: =SUMPRODUCT((Novembre!$D$164:$D$232=$B31)*Novembre!$F$164:$F$232) -> 0 € | BE32: =SUMPRODUCT((Novembre!$M$13:$M$46=$B31)*Novembre!$O$13:$O$46)+SUMPRODUCT((Novembre!$M$58:$M$73=$B31)*Novembre!$O$58:$O$73) -> 0 € | BF32: =SUMPRODUCT((Novembre!$V$8:$V$76=$B31)*Novembre!$X$8:$X$76) -> 0 € | BH32: 0 € | BI32: =SUMPRODUCT((Décembre!$D$164:$D$232=$B31)*Décembre!$F$164:$F$232) -> 0 € | BJ32: =SUMPRODUCT((Décembre!$M$13:$M$46=$B31)*Décembre!$O$13:$O$46)+SUMPRODUCT((Décembre!$M$58:$M$73=$B31)*Décembre!$O$58:$O$73) -> 0 € | BK32: =SUMPRODUCT((Décembre!$V$8:$V$76=$B31)*Décembre!$X$8:$X$76) -> 0 €
B33: Sport | C33: 0 € | D33: =C33+E33 -> 130 € | E33: 130 € | F33: =SUMPRODUCT(('Janvier '!$D$164:$D$232=$B33)*'Janvier '!$G$164:$G$232) -> 130.00 € | G33: =SUMPRODUCT(('Janvier '!$M$13:$M$46=$B33)*'Janvier '!$P$13:$P$46)-SUMPRODUCT(('Janvier '!$M$58:$M$73=$B33)*'Janvier '!$P$58:$P$73) -> 0.00 € | H33: =SUMPRODUCT(('Janvier '!$V$8:$V$76=$B33)*'Janvier '!$Y$8:$Y$76) -> 0.00 € | I33: =H33+J33 -> 130 € | J33: 130 € | K33: =SUMPRODUCT((Fevrier!$D$164:$D$232=$B33)*Fevrier!$G$164:$G$232) -> 130.00 € | L33: =SUMPRODUCT((Fevrier!$M$13:$M$46=$B33)*Fevrier!$P$13:$P$46)-SUMPRODUCT((Fevrier!$M$58:$M$73=$B33)*Fevrier!$P$58:$P$73) -> 0.00 € | M33: =SUMPRODUCT((Fevrier!$V$8:$V$76=$B33)*Fevrier!$Y$8:$Y$76) -> 0.00 € | N33: =M33+O33 -> 130 € | O33: 130 € | P33: =SUMPRODUCT((Mars!$D$164:$D$232=$B33)*Mars!$G$164:$G$232) -> 130.00 € | Q33: =SUMPRODUCT((Mars!$M$13:$M$46=$B33)*Mars!$P$13:$P$46)-SUMPRODUCT((Mars!$M$58:$M$73=$B33)*Mars!$P$58:$P$73) -> 0.00 € | R33: =SUMPRODUCT((Mars!$V$8:$V$76=$B33)*Mars!$Y$8:$Y$76) -> 0.00 € | S33: =R33+T33 -> 130 € | T33: 130 € | U33: =SUMPRODUCT((Avril!$D$164:$D$232=$B33)*Avril!$G$164:$G$232) -> 130.00 € | V33: =SUMPRODUCT((Avril!$M$13:$M$46=$B33)*Avril!$P$13:$P$46)-SUMPRODUCT((Avril!$M$58:$M$73=$B33)*Avril!$P$58:$P$73) -> 0.00 € | W33: =SUMPRODUCT((Avril!$V$8:$V$76=$B33)*Avril!$Y$8:$Y$76) -> 0.00 € | X33: =W33+Y33 -> 130 € | Y33: 130 € | Z33: =SUMPRODUCT((Mai!$D$164:$D$232=$B33)*Mai!$G$164:$G$232) -> 130.00 € | AA33: =SUMPRODUCT((Mai!$M$13:$M$46=$B33)*Mai!$P$13:$P$46)-SUMPRODUCT((Mai!$M$58:$M$73=$B33)*Mai!$P$58:$P$73) -> 0.00 € | AB33: =SUMPRODUCT((Mai!$V$8:$V$76=$B33)*Mai!$Y$8:$Y$76) -> 0.00 € | AC33: =AB33+AD33 -> 130 € | AD33: 130 € | AE33: =SUMPRODUCT((Juin!$D$164:$D$232=$B33)*Juin!$G$164:$G$232) -> 130.00 € | AF33: =SUMPRODUCT((Juin!$M$13:$M$46=$B33)*Juin!$P$13:$P$46)-SUMPRODUCT((Juin!$M$58:$M$73=$B33)*Juin!$P$58:$P$73) -> 0.00 € | AG33: =SUMPRODUCT((Juin!$V$8:$V$76=$B33)*Juin!$Y$8:$Y$76) -> 0.00 € | AH33: =AG33+AI33 -> 130 € | AI33: 130 € | AJ33: =SUMPRODUCT((Juillet!$D$164:$D$232=$B33)*Juillet!$G$164:$G$232) -> 130.00 € | AK33: =SUMPRODUCT((Juillet!$M$13:$M$46=$B33)*Juillet!$P$13:$P$46)-SUMPRODUCT((Juillet!$M$58:$M$73=$B33)*Juillet!$P$58:$P$73) -> 0.00 € | AL33: =SUMPRODUCT((Juillet!$V$8:$V$76=$B33)*Juillet!$Y$8:$Y$76) -> 0.00 € | AM33: =AL33+AN33 -> 130 € | AN33: 130 € | AO33: =SUMPRODUCT((Aout!$D$164:$D$232=$B33)*Aout!$G$164:$G$232) -> 130.00 € | AP33: =SUMPRODUCT((Aout!$M$13:$M$46=$B33)*Aout!$P$13:$P$46)-SUMPRODUCT((Aout!$M$58:$M$73=$B33)*Aout!$P$58:$P$73) -> 0.00 € | AQ33: =SUMPRODUCT((Aout!$V$8:$V$76=$B33)*Aout!$Y$8:$Y$76) -> 0.00 € | AR33: =AQ33+AS33 -> 130 € | AS33: 130 € | AT33: =SUMPRODUCT((Septembre!$D$164:$D$232=$B33)*Septembre!$G$164:$G$232) -> 130.00 € | AU33: =SUMPRODUCT((Septembre!$M$13:$M$46=$B33)*Septembre!$P$13:$P$46)-SUMPRODUCT((Septembre!$M$58:$M$73=$B33)*Septembre!$P$58:$P$73) -> 0.00 € | AV33: =SUMPRODUCT((Septembre!$V$8:$V$76=$B33)*Septembre!$Y$8:$Y$76) -> 0.00 € | AW33: =AV33+AX33 -> 130 € | AX33: 130 € | AY33: =SUMPRODUCT((Octobre!$D$164:$D$232=$B33)*Octobre!$G$164:$G$232) -> 130.00 € | AZ33: =SUMPRODUCT((Octobre!$M$13:$M$46=$B33)*Octobre!$P$13:$P$46)-SUMPRODUCT((Octobre!$M$58:$M$73=$B33)*Octobre!$P$58:$P$73) -> 0.00 € | BA33: =SUMPRODUCT((Octobre!$V$8:$V$76=$B33)*Octobre!$Y$8:$Y$76) -> 0.00 € | BB33: =BA33+BC33 -> 130 € | BC33: 130 € | BD33: =SUMPRODUCT((Novembre!$D$164:$D$232=$B33)*Novembre!$G$164:$G$232) -> 130.00 € | BE33: =SUMPRODUCT((Novembre!$M$13:$M$46=$B33)*Novembre!$P$13:$P$46)-SUMPRODUCT((Novembre!$M$58:$M$73=$B33)*Novembre!$P$58:$P$73) -> 0.00 € | BF33: =SUMPRODUCT((Novembre!$V$8:$V$76=$B33)*Novembre!$Y$8:$Y$76) -> 0.00 € | BG33: =BF33+BH33 -> 130 € | BH33: 130 € | BI33: =SUMPRODUCT((Décembre!$D$164:$D$232=$B33)*Décembre!$G$164:$G$232) -> 130.00 € | BJ33: =SUMPRODUCT((Décembre!$M$13:$M$46=$B33)*Décembre!$P$13:$P$46)-SUMPRODUCT((Décembre!$M$58:$M$73=$B33)*Décembre!$P$58:$P$73) -> 0.00 € | BK33: =SUMPRODUCT((Décembre!$V$8:$V$76=$B33)*Décembre!$Y$8:$Y$76) -> 0.00 €
E34: 0 € | F34: =SUMPRODUCT(('Janvier '!$D$164:$D$232=$B33)*'Janvier '!$F$164:$F$232) -> 0 € | G34: =SUMPRODUCT(('Janvier '!$M$13:$M$46=$B33)*'Janvier '!$O$13:$O$46)+SUMPRODUCT(('Janvier '!$M$58:$M$73=$B33)*'Janvier '!$O$58:$O$73) -> 0 € | H34: =SUMPRODUCT(('Janvier '!$V$8:$V$76=$B33)*'Janvier '!$X$8:$X$76) -> 0 € | J34: 0 € | K34: =SUMPRODUCT((Fevrier!$D$164:$D$232=$B33)*Fevrier!$F$164:$F$232) -> 0 € | L34: =SUMPRODUCT((Fevrier!$M$13:$M$46=$B33)*Fevrier!$O$13:$O$46)+SUMPRODUCT((Fevrier!$M$58:$M$73=$B33)*Fevrier!$O$58:$O$73) -> 0 € | M34: =SUMPRODUCT((Fevrier!$V$8:$V$76=$B33)*Fevrier!$X$8:$X$76) -> 0 € | O34: 0 € | P34: =SUMPRODUCT((Mars!$D$164:$D$232=$B33)*Mars!$F$164:$F$232) -> 0 € | Q34: =SUMPRODUCT((Mars!$M$13:$M$46=$B33)*Mars!$O$13:$O$46)+SUMPRODUCT((Mars!$M$58:$M$73=$B33)*Mars!$O$58:$O$73) -> 0 € | R34: =SUMPRODUCT((Mars!$V$8:$V$76=$B33)*Mars!$X$8:$X$76) -> 0 € | T34: 0 € | U34: =SUMPRODUCT((Avril!$D$164:$D$232=$B33)*Avril!$F$164:$F$232) -> 0 € | V34: =SUMPRODUCT((Avril!$M$13:$M$46=$B33)*Avril!$O$13:$O$46)+SUMPRODUCT((Avril!$M$58:$M$73=$B33)*Avril!$O$58:$O$73) -> 0 € | W34: =SUMPRODUCT((Avril!$V$8:$V$76=$B33)*Avril!$X$8:$X$76) -> 0 € | Y34: 0 € | Z34: =SUMPRODUCT((Mai!$D$164:$D$232=$B33)*Mai!$F$164:$F$232) -> 0 € | AA34: =SUMPRODUCT((Mai!$M$13:$M$46=$B33)*Mai!$O$13:$O$46)+SUMPRODUCT((Mai!$M$58:$M$73=$B33)*Mai!$O$58:$O$73) -> 0 € | AB34: =SUMPRODUCT((Mai!$V$8:$V$76=$B33)*Mai!$X$8:$X$76) -> 0 € | AD34: 0 € | AE34: =SUMPRODUCT((Juin!$D$164:$D$232=$B33)*Juin!$F$164:$F$232) -> 0 € | AF34: =SUMPRODUCT((Juin!$M$13:$M$46=$B33)*Juin!$O$13:$O$46)+SUMPRODUCT((Juin!$M$58:$M$73=$B33)*Juin!$O$58:$O$73) -> 0 € | AG34: =SUMPRODUCT((Juin!$V$8:$V$76=$B33)*Juin!$X$8:$X$76) -> 0 € | AI34: 0 € | AJ34: =SUMPRODUCT((Juillet!$D$164:$D$232=$B33)*Juillet!$F$164:$F$232) -> 0 € | AK34: =SUMPRODUCT((Juillet!$M$13:$M$46=$B33)*Juillet!$O$13:$O$46)+SUMPRODUCT((Juillet!$M$58:$M$73=$B33)*Juillet!$O$58:$O$73) -> 0 € | AL34: =SUMPRODUCT((Juillet!$V$8:$V$76=$B33)*Juillet!$X$8:$X$76) -> 0 € | AN34: 0 € | AO34: =SUMPRODUCT((Aout!$D$164:$D$232=$B33)*Aout!$F$164:$F$232) -> 0 € | AP34: =SUMPRODUCT((Aout!$M$13:$M$46=$B33)*Aout!$O$13:$O$46)+SUMPRODUCT((Aout!$M$58:$M$73=$B33)*Aout!$O$58:$O$73) -> 0 € | AQ34: =SUMPRODUCT((Aout!$V$8:$V$76=$B33)*Aout!$X$8:$X$76) -> 0 € | AS34: 0 € | AT34: =SUMPRODUCT((Septembre!$D$164:$D$232=$B33)*Septembre!$F$164:$F$232) -> 0 € | AU34: =SUMPRODUCT((Septembre!$M$13:$M$46=$B33)*Septembre!$O$13:$O$46)+SUMPRODUCT((Septembre!$M$58:$M$73=$B33)*Septembre!$O$58:$O$73) -> 0 € | AV34: =SUMPRODUCT((Septembre!$V$8:$V$76=$B33)*Septembre!$X$8:$X$76) -> 0 € | AX34: 0 € | AY34: =SUMPRODUCT((Octobre!$D$164:$D$232=$B33)*Octobre!$F$164:$F$232) -> 0 € | AZ34: =SUMPRODUCT((Octobre!$M$13:$M$46=$B33)*Octobre!$O$13:$O$46)+SUMPRODUCT((Octobre!$M$58:$M$73=$B33)*Octobre!$O$58:$O$73) -> 0 € | BA34: =SUMPRODUCT((Octobre!$V$8:$V$76=$B33)*Octobre!$X$8:$X$76) -> 0 € | BC34: 0 € | BD34: =SUMPRODUCT((Novembre!$D$164:$D$232=$B33)*Novembre!$F$164:$F$232) -> 0 € | BE34: =SUMPRODUCT((Novembre!$M$13:$M$46=$B33)*Novembre!$O$13:$O$46)+SUMPRODUCT((Novembre!$M$58:$M$73=$B33)*Novembre!$O$58:$O$73) -> 0 € | BF34: =SUMPRODUCT((Novembre!$V$8:$V$76=$B33)*Novembre!$X$8:$X$76) -> 0 € | BH34: 0 € | BI34: =SUMPRODUCT((Décembre!$D$164:$D$232=$B33)*Décembre!$F$164:$F$232) -> 0 € | BJ34: =SUMPRODUCT((Décembre!$M$13:$M$46=$B33)*Décembre!$O$13:$O$46)+SUMPRODUCT((Décembre!$M$58:$M$73=$B33)*Décembre!$O$58:$O$73) -> 0 € | BK34: =SUMPRODUCT((Décembre!$V$8:$V$76=$B33)*Décembre!$X$8:$X$76) -> 0 €
B35: Scolarité | C35: 0 € | D35: =C35+E35 -> 280 € | E35: 280 € | F35: =SUMPRODUCT(('Janvier '!$D$164:$D$232=$B35)*'Janvier '!$G$164:$G$232) -> 280.00 € | G35: =SUMPRODUCT(('Janvier '!$M$13:$M$46=$B35)*'Janvier '!$P$13:$P$46)-SUMPRODUCT(('Janvier '!$M$58:$M$73=$B35)*'Janvier '!$P$58:$P$73) -> 0.00 € | H35: =SUMPRODUCT(('Janvier '!$V$8:$V$76=$B35)*'Janvier '!$Y$8:$Y$76) -> 0.00 € | I35: =H35+J35 -> 280 € | J35: 280 € | K35: =SUMPRODUCT((Fevrier!$D$164:$D$232=$B35)*Fevrier!$G$164:$G$232) -> 280.00 € | L35: =SUMPRODUCT((Fevrier!$M$13:$M$46=$B35)*Fevrier!$P$13:$P$46)-SUMPRODUCT((Fevrier!$M$58:$M$73=$B35)*Fevrier!$P$58:$P$73) -> 0.00 € | M35: =SUMPRODUCT((Fevrier!$V$8:$V$76=$B35)*Fevrier!$Y$8:$Y$76) -> 0.00 € | N35: =M35+O35 -> 280 € | O35: 280 € | P35: =SUMPRODUCT((Mars!$D$164:$D$232=$B35)*Mars!$G$164:$G$232) -> 280.00 € | Q35: =SUMPRODUCT((Mars!$M$13:$M$46=$B35)*Mars!$P$13:$P$46)-SUMPRODUCT((Mars!$M$58:$M$73=$B35)*Mars!$P$58:$P$73) -> 0.00 € | R35: =SUMPRODUCT((Mars!$V$8:$V$76=$B35)*Mars!$Y$8:$Y$76) -> 0.00 € | S35: =R35+T35 -> 280 € | T35: 280 € | U35: =SUMPRODUCT((Avril!$D$164:$D$232=$B35)*Avril!$G$164:$G$232) -> 280.00 € | V35: =SUMPRODUCT((Avril!$M$13:$M$46=$B35)*Avril!$P$13:$P$46)-SUMPRODUCT((Avril!$M$58:$M$73=$B35)*Avril!$P$58:$P$73) -> 0.00 € | W35: =SUMPRODUCT((Avril!$V$8:$V$76=$B35)*Avril!$Y$8:$Y$76) -> 0.00 € | X35: =W35+Y35 -> 280 € | Y35: 280 € | Z35: =SUMPRODUCT((Mai!$D$164:$D$232=$B35)*Mai!$G$164:$G$232) -> 280.00 € | AA35: =SUMPRODUCT((Mai!$M$13:$M$46=$B35)*Mai!$P$13:$P$46)-SUMPRODUCT((Mai!$M$58:$M$73=$B35)*Mai!$P$58:$P$73) -> 0.00 € | AB35: =SUMPRODUCT((Mai!$V$8:$V$76=$B35)*Mai!$Y$8:$Y$76) -> 0.00 € | AC35: =AB35+AD35 -> 280 € | AD35: 280 € | AE35: =SUMPRODUCT((Juin!$D$164:$D$232=$B35)*Juin!$G$164:$G$232) -> 280.00 € | AF35: =SUMPRODUCT((Juin!$M$13:$M$46=$B35)*Juin!$P$13:$P$46)-SUMPRODUCT((Juin!$M$58:$M$73=$B35)*Juin!$P$58:$P$73) -> 0.00 € | AG35: =SUMPRODUCT((Juin!$V$8:$V$76=$B35)*Juin!$Y$8:$Y$76) -> 0.00 € | AH35: =AG35+AI35 -> 280 € | AI35: 280 € | AJ35: =SUMPRODUCT((Juillet!$D$164:$D$232=$B35)*Juillet!$G$164:$G$232) -> 280.00 € | AK35: =SUMPRODUCT((Juillet!$M$13:$M$46=$B35)*Juillet!$P$13:$P$46)-SUMPRODUCT((Juillet!$M$58:$M$73=$B35)*Juillet!$P$58:$P$73) -> 0.00 € | AL35: =SUMPRODUCT((Juillet!$V$8:$V$76=$B35)*Juillet!$Y$8:$Y$76) -> 0.00 € | AM35: =AL35+AN35 -> 280 € | AN35: 280 € | AO35: =SUMPRODUCT((Aout!$D$164:$D$232=$B35)*Aout!$G$164:$G$232) -> 280.00 € | AP35: =SUMPRODUCT((Aout!$M$13:$M$46=$B35)*Aout!$P$13:$P$46)-SUMPRODUCT((Aout!$M$58:$M$73=$B35)*Aout!$P$58:$P$73) -> 0.00 € | AQ35: =SUMPRODUCT((Aout!$V$8:$V$76=$B35)*Aout!$Y$8:$Y$76) -> 0.00 € | AR35: =AQ35+AS35 -> 280 € | AS35: 280 € | AT35: =SUMPRODUCT((Septembre!$D$164:$D$232=$B35)*Septembre!$G$164:$G$232) -> 280.00 € | AU35: =SUMPRODUCT((Septembre!$M$13:$M$46=$B35)*Septembre!$P$13:$P$46)-SUMPRODUCT((Septembre!$M$58:$M$73=$B35)*Septembre!$P$58:$P$73) -> 0.00 € | AV35: =SUMPRODUCT((Septembre!$V$8:$V$76=$B35)*Septembre!$Y$8:$Y$76) -> 0.00 € | AW35: =AV35+AX35 -> 280 € | AX35: 280 € | AY35: =SUMPRODUCT((Octobre!$D$164:$D$232=$B35)*Octobre!$G$164:$G$232) -> 280.00 € | AZ35: =SUMPRODUCT((Octobre!$M$13:$M$46=$B35)*Octobre!$P$13:$P$46)-SUMPRODUCT((Octobre!$M$58:$M$73=$B35)*Octobre!$P$58:$P$73) -> 0.00 € | BA35: =SUMPRODUCT((Octobre!$V$8:$V$76=$B35)*Octobre!$Y$8:$Y$76) -> 0.00 € | BB35: =BA35+BC35 -> 280 € | BC35: 280 € | BD35: =SUMPRODUCT((Novembre!$D$164:$D$232=$B35)*Novembre!$G$164:$G$232) -> 280.00 € | BE35: =SUMPRODUCT((Novembre!$M$13:$M$46=$B35)*Novembre!$P$13:$P$46)-SUMPRODUCT((Novembre!$M$58:$M$73=$B35)*Novembre!$P$58:$P$73) -> 0.00 € | BF35: =SUMPRODUCT((Novembre!$V$8:$V$76=$B35)*Novembre!$Y$8:$Y$76) -> 0.00 € | BG35: =BF35+BH35 -> 280 € | BH35: 280 € | BI35: =SUMPRODUCT((Décembre!$D$164:$D$232=$B35)*Décembre!$G$164:$G$232) -> 280.00 € | BJ35: =SUMPRODUCT((Décembre!$M$13:$M$46=$B35)*Décembre!$P$13:$P$46)-SUMPRODUCT((Décembre!$M$58:$M$73=$B35)*Décembre!$P$58:$P$73) -> 0.00 € | BK35: =SUMPRODUCT((Décembre!$V$8:$V$76=$B35)*Décembre!$Y$8:$Y$76) -> 0.00 €
E36: 55 € | F36: =SUMPRODUCT(('Janvier '!$D$164:$D$232=$B35)*'Janvier '!$F$164:$F$232) -> 55 € | G36: =SUMPRODUCT(('Janvier '!$M$13:$M$46=$B35)*'Janvier '!$O$13:$O$46)+SUMPRODUCT(('Janvier '!$M$58:$M$73=$B35)*'Janvier '!$O$58:$O$73) -> 0 € | H36: =SUMPRODUCT(('Janvier '!$V$8:$V$76=$B35)*'Janvier '!$X$8:$X$76) -> 0 € | J36: 0 € | K36: =SUMPRODUCT((Fevrier!$D$164:$D$232=$B35)*Fevrier!$F$164:$F$232) -> 0 € | L36: =SUMPRODUCT((Fevrier!$M$13:$M$46=$B35)*Fevrier!$O$13:$O$46)+SUMPRODUCT((Fevrier!$M$58:$M$73=$B35)*Fevrier!$O$58:$O$73) -> 0 € | M36: =SUMPRODUCT((Fevrier!$V$8:$V$76=$B35)*Fevrier!$X$8:$X$76) -> 0 € | O36: 0 € | P36: =SUMPRODUCT((Mars!$D$164:$D$232=$B35)*Mars!$F$164:$F$232) -> 0 € | Q36: =SUMPRODUCT((Mars!$M$13:$M$46=$B35)*Mars!$O$13:$O$46)+SUMPRODUCT((Mars!$M$58:$M$73=$B35)*Mars!$O$58:$O$73) -> 0 € | R36: =SUMPRODUCT((Mars!$V$8:$V$76=$B35)*Mars!$X$8:$X$76) -> 0 € | T36: 0 € | U36: =SUMPRODUCT((Avril!$D$164:$D$232=$B35)*Avril!$F$164:$F$232) -> 0 € | V36: =SUMPRODUCT((Avril!$M$13:$M$46=$B35)*Avril!$O$13:$O$46)+SUMPRODUCT((Avril!$M$58:$M$73=$B35)*Avril!$O$58:$O$73) -> 0 € | W36: =SUMPRODUCT((Avril!$V$8:$V$76=$B35)*Avril!$X$8:$X$76) -> 0 € | Y36: 0 € | Z36: =SUMPRODUCT((Mai!$D$164:$D$232=$B35)*Mai!$F$164:$F$232) -> 0 € | AA36: =SUMPRODUCT((Mai!$M$13:$M$46=$B35)*Mai!$O$13:$O$46)+SUMPRODUCT((Mai!$M$58:$M$73=$B35)*Mai!$O$58:$O$73) -> 0 € | AB36: =SUMPRODUCT((Mai!$V$8:$V$76=$B35)*Mai!$X$8:$X$76) -> 0 € | AD36: 0 € | AE36: =SUMPRODUCT((Juin!$D$164:$D$232=$B35)*Juin!$F$164:$F$232) -> 0 € | AF36: =SUMPRODUCT((Juin!$M$13:$M$46=$B35)*Juin!$O$13:$O$46)+SUMPRODUCT((Juin!$M$58:$M$73=$B35)*Juin!$O$58:$O$73) -> 0 € | AG36: =SUMPRODUCT((Juin!$V$8:$V$76=$B35)*Juin!$X$8:$X$76) -> 0 € | AI36: 0 € | AJ36: =SUMPRODUCT((Juillet!$D$164:$D$232=$B35)*Juillet!$F$164:$F$232) -> 0 € | AK36: =SUMPRODUCT((Juillet!$M$13:$M$46=$B35)*Juillet!$O$13:$O$46)+SUMPRODUCT((Juillet!$M$58:$M$73=$B35)*Juillet!$O$58:$O$73) -> 0 € | AL36: =SUMPRODUCT((Juillet!$V$8:$V$76=$B35)*Juillet!$X$8:$X$76) -> 0 € | AN36: 0 € | AO36: =SUMPRODUCT((Aout!$D$164:$D$232=$B35)*Aout!$F$164:$F$232) -> 0 € | AP36: =SUMPRODUCT((Aout!$M$13:$M$46=$B35)*Aout!$O$13:$O$46)+SUMPRODUCT((Aout!$M$58:$M$73=$B35)*Aout!$O$58:$O$73) -> 0 € | AQ36: =SUMPRODUCT((Aout!$V$8:$V$76=$B35)*Aout!$X$8:$X$76) -> 0 € | AS36: 0 € | AT36: =SUMPRODUCT((Septembre!$D$164:$D$232=$B35)*Septembre!$F$164:$F$232) -> 0 € | AU36: =SUMPRODUCT((Septembre!$M$13:$M$46=$B35)*Septembre!$O$13:$O$46)+SUMPRODUCT((Septembre!$M$58:$M$73=$B35)*Septembre!$O$58:$O$73) -> 0 € | AV36: =SUMPRODUCT((Septembre!$V$8:$V$76=$B35)*Septembre!$X$8:$X$76) -> 0 € | AX36: 0 € | AY36: =SUMPRODUCT((Octobre!$D$164:$D$232=$B35)*Octobre!$F$164:$F$232) -> 0 € | AZ36: =SUMPRODUCT((Octobre!$M$13:$M$46=$B35)*Octobre!$O$13:$O$46)+SUMPRODUCT((Octobre!$M$58:$M$73=$B35)*Octobre!$O$58:$O$73) -> 0 € | BA36: =SUMPRODUCT((Octobre!$V$8:$V$76=$B35)*Octobre!$X$8:$X$76) -> 0 € | BC36: 0 € | BD36: =SUMPRODUCT((Novembre!$D$164:$D$232=$B35)*Novembre!$F$164:$F$232) -> 0 € | BE36: =SUMPRODUCT((Novembre!$M$13:$M$46=$B35)*Novembre!$O$13:$O$46)+SUMPRODUCT((Novembre!$M$58:$M$73=$B35)*Novembre!$O$58:$O$73) -> 0 € | BF36: =SUMPRODUCT((Novembre!$V$8:$V$76=$B35)*Novembre!$X$8:$X$76) -> 0 € | BH36: 0 € | BI36: =SUMPRODUCT((Décembre!$D$164:$D$232=$B35)*Décembre!$F$164:$F$232) -> 0 € | BJ36: =SUMPRODUCT((Décembre!$M$13:$M$46=$B35)*Décembre!$O$13:$O$46)+SUMPRODUCT((Décembre!$M$58:$M$73=$B35)*Décembre!$O$58:$O$73) -> 0 € | BK36: =SUMPRODUCT((Décembre!$V$8:$V$76=$B35)*Décembre!$X$8:$X$76) -> 0 €
B37: Prêt Duster | C37: 0 € | D37: =C37+E37 -> 324 € | E37: 324 € | F37: =SUMPRODUCT(('Janvier '!$D$164:$D$232=$B37)*'Janvier '!$G$164:$G$232) -> 323.97 € | G37: =SUMPRODUCT(('Janvier '!$M$13:$M$46=$B37)*'Janvier '!$P$13:$P$46)-SUMPRODUCT(('Janvier '!$M$58:$M$73=$B37)*'Janvier '!$P$58:$P$73) -> 0.00 € | H37: =SUMPRODUCT(('Janvier '!$V$8:$V$76=$B37)*'Janvier '!$Y$8:$Y$76) -> 0.00 € | I37: =H37+J37 -> 324 € | J37: 324 € | K37: =SUMPRODUCT((Fevrier!$D$164:$D$232=$B37)*Fevrier!$G$164:$G$232) -> 323.97 € | L37: =SUMPRODUCT((Fevrier!$M$13:$M$46=$B37)*Fevrier!$P$13:$P$46)-SUMPRODUCT((Fevrier!$M$58:$M$73=$B37)*Fevrier!$P$58:$P$73) -> 0.00 € | M37: =SUMPRODUCT((Fevrier!$V$8:$V$76=$B37)*Fevrier!$Y$8:$Y$76) -> 0.00 € | N37: =M37+O37 -> 324 € | O37: 324 € | P37: =SUMPRODUCT((Mars!$D$164:$D$232=$B37)*Mars!$G$164:$G$232) -> 323.97 € | Q37: =SUMPRODUCT((Mars!$M$13:$M$46=$B37)*Mars!$P$13:$P$46)-SUMPRODUCT((Mars!$M$58:$M$73=$B37)*Mars!$P$58:$P$73) -> 0.00 € | R37: =SUMPRODUCT((Mars!$V$8:$V$76=$B37)*Mars!$Y$8:$Y$76) -> 0.00 € | S37: =R37+T37 -> 324 € | T37: 324 € | U37: =SUMPRODUCT((Avril!$D$164:$D$232=$B37)*Avril!$G$164:$G$232) -> 323.97 € | V37: =SUMPRODUCT((Avril!$M$13:$M$46=$B37)*Avril!$P$13:$P$46)-SUMPRODUCT((Avril!$M$58:$M$73=$B37)*Avril!$P$58:$P$73) -> 0.00 € | W37: =SUMPRODUCT((Avril!$V$8:$V$76=$B37)*Avril!$Y$8:$Y$76) -> 0.00 € | X37: =W37+Y37 -> 324 € | Y37: 324 € | Z37: =SUMPRODUCT((Mai!$D$164:$D$232=$B37)*Mai!$G$164:$G$232) -> 323.97 € | AA37: =SUMPRODUCT((Mai!$M$13:$M$46=$B37)*Mai!$P$13:$P$46)-SUMPRODUCT((Mai!$M$58:$M$73=$B37)*Mai!$P$58:$P$73) -> 0.00 € | AB37: =SUMPRODUCT((Mai!$V$8:$V$76=$B37)*Mai!$Y$8:$Y$76) -> 0.00 € | AC37: =AB37+AD37 -> 324 € | AD37: 324 € | AE37: =SUMPRODUCT((Juin!$D$164:$D$232=$B37)*Juin!$G$164:$G$232) -> 323.97 € | AF37: =SUMPRODUCT((Juin!$M$13:$M$46=$B37)*Juin!$P$13:$P$46)-SUMPRODUCT((Juin!$M$58:$M$73=$B37)*Juin!$P$58:$P$73) -> 0.00 € | AG37: =SUMPRODUCT((Juin!$V$8:$V$76=$B37)*Juin!$Y$8:$Y$76) -> 0.00 € | AH37: =AG37+AI37 -> 324 € | AI37: 324 € | AJ37: =SUMPRODUCT((Juillet!$D$164:$D$232=$B37)*Juillet!$G$164:$G$232) -> 323.97 € | AK37: =SUMPRODUCT((Juillet!$M$13:$M$46=$B37)*Juillet!$P$13:$P$46)-SUMPRODUCT((Juillet!$M$58:$M$73=$B37)*Juillet!$P$58:$P$73) -> 0.00 € | AL37: =SUMPRODUCT((Juillet!$V$8:$V$76=$B37)*Juillet!$Y$8:$Y$76) -> 0.00 € | AM37: =AL37+AN37 -> 324 € | AN37: 324 € | AO37: =SUMPRODUCT((Aout!$D$164:$D$232=$B37)*Aout!$G$164:$G$232) -> 323.97 € | AP37: =SUMPRODUCT((Aout!$M$13:$M$46=$B37)*Aout!$P$13:$P$46)-SUMPRODUCT((Aout!$M$58:$M$73=$B37)*Aout!$P$58:$P$73) -> 0.00 € | AQ37: =SUMPRODUCT((Aout!$V$8:$V$76=$B37)*Aout!$Y$8:$Y$76) -> 0.00 € | AR37: =AQ37+AS37 -> 324 € | AS37: 324 € | AT37: =SUMPRODUCT((Septembre!$D$164:$D$232=$B37)*Septembre!$G$164:$G$232) -> 323.97 € | AU37: =SUMPRODUCT((Septembre!$M$13:$M$46=$B37)*Septembre!$P$13:$P$46)-SUMPRODUCT((Septembre!$M$58:$M$73=$B37)*Septembre!$P$58:$P$73) -> 0.00 € | AV37: =SUMPRODUCT((Septembre!$V$8:$V$76=$B37)*Septembre!$Y$8:$Y$76) -> 0.00 € | AW37: =AV37+AX37 -> 324 € | AX37: 324 € | AY37: =SUMPRODUCT((Octobre!$D$164:$D$232=$B37)*Octobre!$G$164:$G$232) -> 323.97 € | AZ37: =SUMPRODUCT((Octobre!$M$13:$M$46=$B37)*Octobre!$P$13:$P$46)-SUMPRODUCT((Octobre!$M$58:$M$73=$B37)*Octobre!$P$58:$P$73) -> 0.00 € | BA37: =SUMPRODUCT((Octobre!$V$8:$V$76=$B37)*Octobre!$Y$8:$Y$76) -> 0.00 € | BB37: =BA37+BC37 -> 324 € | BC37: 324 € | BD37: =SUMPRODUCT((Novembre!$D$164:$D$232=$B37)*Novembre!$G$164:$G$232) -> 323.97 € | BE37: =SUMPRODUCT((Novembre!$M$13:$M$46=$B37)*Novembre!$P$13:$P$46)-SUMPRODUCT((Novembre!$M$58:$M$73=$B37)*Novembre!$P$58:$P$73) -> 0.00 € | BF37: =SUMPRODUCT((Novembre!$V$8:$V$76=$B37)*Novembre!$Y$8:$Y$76) -> 0.00 € | BG37: =BF37+BH37 -> 324 € | BH37: 324 € | BI37: =SUMPRODUCT((Décembre!$D$164:$D$232=$B37)*Décembre!$G$164:$G$232) -> 323.97 € | BJ37: =SUMPRODUCT((Décembre!$M$13:$M$46=$B37)*Décembre!$P$13:$P$46)-SUMPRODUCT((Décembre!$M$58:$M$73=$B37)*Décembre!$P$58:$P$73) -> 0.00 € | BK37: =SUMPRODUCT((Décembre!$V$8:$V$76=$B37)*Décembre!$Y$8:$Y$76) -> 0.00 €
E38: 0 € | F38: =SUMPRODUCT(('Janvier '!$D$164:$D$232=$B37)*'Janvier '!$F$164:$F$232) -> 0 € | G38: =SUMPRODUCT(('Janvier '!$M$13:$M$46=$B37)*'Janvier '!$O$13:$O$46)+SUMPRODUCT(('Janvier '!$M$58:$M$73=$B37)*'Janvier '!$O$58:$O$73) -> 0 € | H38: =SUMPRODUCT(('Janvier '!$V$8:$V$76=$B37)*'Janvier '!$X$8:$X$76) -> 0 € | J38: 324 € | K38: =SUMPRODUCT((Fevrier!$D$164:$D$232=$B37)*Fevrier!$F$164:$F$232) -> 324 € | L38: =SUMPRODUCT((Fevrier!$M$13:$M$46=$B37)*Fevrier!$O$13:$O$46)+SUMPRODUCT((Fevrier!$M$58:$M$73=$B37)*Fevrier!$O$58:$O$73) -> 0 € | M38: =SUMPRODUCT((Fevrier!$V$8:$V$76=$B37)*Fevrier!$X$8:$X$76) -> 0 € | O38: 324 € | P38: =SUMPRODUCT((Mars!$D$164:$D$232=$B37)*Mars!$F$164:$F$232) -> 324 € | Q38: =SUMPRODUCT((Mars!$M$13:$M$46=$B37)*Mars!$O$13:$O$46)+SUMPRODUCT((Mars!$M$58:$M$73=$B37)*Mars!$O$58:$O$73) -> 0 € | R38: =SUMPRODUCT((Mars!$V$8:$V$76=$B37)*Mars!$X$8:$X$76) -> 0 € | T38: 324 € | U38: =SUMPRODUCT((Avril!$D$164:$D$232=$B37)*Avril!$F$164:$F$232) -> 324 € | V38: =SUMPRODUCT((Avril!$M$13:$M$46=$B37)*Avril!$O$13:$O$46)+SUMPRODUCT((Avril!$M$58:$M$73=$B37)*Avril!$O$58:$O$73) -> 0 € | W38: =SUMPRODUCT((Avril!$V$8:$V$76=$B37)*Avril!$X$8:$X$76) -> 0 € | Y38: 324 € | Z38: =SUMPRODUCT((Mai!$D$164:$D$232=$B37)*Mai!$F$164:$F$232) -> 324 € | AA38: =SUMPRODUCT((Mai!$M$13:$M$46=$B37)*Mai!$O$13:$O$46)+SUMPRODUCT((Mai!$M$58:$M$73=$B37)*Mai!$O$58:$O$73) -> 0 € | AB38: =SUMPRODUCT((Mai!$V$8:$V$76=$B37)*Mai!$X$8:$X$76) -> 0 € | AD38: 324 € | AE38: =SUMPRODUCT((Juin!$D$164:$D$232=$B37)*Juin!$F$164:$F$232) -> 324 € | AF38: =SUMPRODUCT((Juin!$M$13:$M$46=$B37)*Juin!$O$13:$O$46)+SUMPRODUCT((Juin!$M$58:$M$73=$B37)*Juin!$O$58:$O$73) -> 0 € | AG38: =SUMPRODUCT((Juin!$V$8:$V$76=$B37)*Juin!$X$8:$X$76) -> 0 € | AI38: 324 € | AJ38: =SUMPRODUCT((Juillet!$D$164:$D$232=$B37)*Juillet!$F$164:$F$232) -> 324 € | AK38: =SUMPRODUCT((Juillet!$M$13:$M$46=$B37)*Juillet!$O$13:$O$46)+SUMPRODUCT((Juillet!$M$58:$M$73=$B37)*Juillet!$O$58:$O$73) -> 0 € | AL38: =SUMPRODUCT((Juillet!$V$8:$V$76=$B37)*Juillet!$X$8:$X$76) -> 0 € | AN38: 324 € | AO38: =SUMPRODUCT((Aout!$D$164:$D$232=$B37)*Aout!$F$164:$F$232) -> 324 € | AP38: =SUMPRODUCT((Aout!$M$13:$M$46=$B37)*Aout!$O$13:$O$46)+SUMPRODUCT((Aout!$M$58:$M$73=$B37)*Aout!$O$58:$O$73) -> 0 € | AQ38: =SUMPRODUCT((Aout!$V$8:$V$76=$B37)*Aout!$X$8:$X$76) -> 0 € | AS38: 324 € | AT38: =SUMPRODUCT((Septembre!$D$164:$D$232=$B37)*Septembre!$F$164:$F$232) -> 324 € | AU38: =SUMPRODUCT((Septembre!$M$13:$M$46=$B37)*Septembre!$O$13:$O$46)+SUMPRODUCT((Septembre!$M$58:$M$73=$B37)*Septembre!$O$58:$O$73) -> 0 € | AV38: =SUMPRODUCT((Septembre!$V$8:$V$76=$B37)*Septembre!$X$8:$X$76) -> 0 € | AX38: 324 € | AY38: =SUMPRODUCT((Octobre!$D$164:$D$232=$B37)*Octobre!$F$164:$F$232) -> 324 € | AZ38: =SUMPRODUCT((Octobre!$M$13:$M$46=$B37)*Octobre!$O$13:$O$46)+SUMPRODUCT((Octobre!$M$58:$M$73=$B37)*Octobre!$O$58:$O$73) -> 0 € | BA38: =SUMPRODUCT((Octobre!$V$8:$V$76=$B37)*Octobre!$X$8:$X$76) -> 0 € | BC38: 324 € | BD38: =SUMPRODUCT((Novembre!$D$164:$D$232=$B37)*Novembre!$F$164:$F$232) -> 324 € | BE38: =SUMPRODUCT((Novembre!$M$13:$M$46=$B37)*Novembre!$O$13:$O$46)+SUMPRODUCT((Novembre!$M$58:$M$73=$B37)*Novembre!$O$58:$O$73) -> 0 € | BF38: =SUMPRODUCT((Novembre!$V$8:$V$76=$B37)*Novembre!$X$8:$X$76) -> 0 € | BH38: 324 € | BI38: =SUMPRODUCT((Décembre!$D$164:$D$232=$B37)*Décembre!$F$164:$F$232) -> 324 € | BJ38: =SUMPRODUCT((Décembre!$M$13:$M$46=$B37)*Décembre!$O$13:$O$46)+SUMPRODUCT((Décembre!$M$58:$M$73=$B37)*Décembre!$O$58:$O$73) -> 0 € | BK38: =SUMPRODUCT((Décembre!$V$8:$V$76=$B37)*Décembre!$X$8:$X$76) -> 0 €
B39: mutuelle | C39: 0 € | D39: =C39+E39 -> 70 € | E39: 70 € | F39: =SUMPRODUCT(('Janvier '!$D$164:$D$232=$B39)*'Janvier '!$G$164:$G$232) -> 70.00 € | G39: =SUMPRODUCT(('Janvier '!$M$13:$M$46=$B39)*'Janvier '!$P$13:$P$46)-SUMPRODUCT(('Janvier '!$M$58:$M$73=$B39)*'Janvier '!$P$58:$P$73) -> 0.00 € | H39: =SUMPRODUCT(('Janvier '!$V$8:$V$76=$B39)*'Janvier '!$Y$8:$Y$76) -> 0.00 € | I39: =H39+J39 -> 70 € | J39: 70 € | K39: =SUMPRODUCT((Fevrier!$D$164:$D$232=$B39)*Fevrier!$G$164:$G$232) -> 70.00 € | L39: =SUMPRODUCT((Fevrier!$M$13:$M$46=$B39)*Fevrier!$P$13:$P$46)-SUMPRODUCT((Fevrier!$M$58:$M$73=$B39)*Fevrier!$P$58:$P$73) -> 0.00 € | M39: =SUMPRODUCT((Fevrier!$V$8:$V$76=$B39)*Fevrier!$Y$8:$Y$76) -> 0.00 € | N39: =M39+O39 -> 70 € | O39: 70 € | P39: =SUMPRODUCT((Mars!$D$164:$D$232=$B39)*Mars!$G$164:$G$232) -> 70.00 € | Q39: =SUMPRODUCT((Mars!$M$13:$M$46=$B39)*Mars!$P$13:$P$46)-SUMPRODUCT((Mars!$M$58:$M$73=$B39)*Mars!$P$58:$P$73) -> 0.00 € | R39: =SUMPRODUCT((Mars!$V$8:$V$76=$B39)*Mars!$Y$8:$Y$76) -> 0.00 € | S39: =R39+T39 -> 70 € | T39: 70 € | U39: =SUMPRODUCT((Avril!$D$164:$D$232=$B39)*Avril!$G$164:$G$232) -> 70.00 € | V39: =SUMPRODUCT((Avril!$M$13:$M$46=$B39)*Avril!$P$13:$P$46)-SUMPRODUCT((Avril!$M$58:$M$73=$B39)*Avril!$P$58:$P$73) -> 0.00 € | W39: =SUMPRODUCT((Avril!$V$8:$V$76=$B39)*Avril!$Y$8:$Y$76) -> 0.00 € | X39: =W39+Y39 -> 70 € | Y39: 70 € | Z39: =SUMPRODUCT((Mai!$D$164:$D$232=$B39)*Mai!$G$164:$G$232) -> 70.00 € | AA39: =SUMPRODUCT((Mai!$M$13:$M$46=$B39)*Mai!$P$13:$P$46)-SUMPRODUCT((Mai!$M$58:$M$73=$B39)*Mai!$P$58:$P$73) -> 0.00 € | AB39: =SUMPRODUCT((Mai!$V$8:$V$76=$B39)*Mai!$Y$8:$Y$76) -> 0.00 € | AC39: =AB39+AD39 -> 70 € | AD39: 70 € | AE39: =SUMPRODUCT((Juin!$D$164:$D$232=$B39)*Juin!$G$164:$G$232) -> 70.00 € | AF39: =SUMPRODUCT((Juin!$M$13:$M$46=$B39)*Juin!$P$13:$P$46)-SUMPRODUCT((Juin!$M$58:$M$73=$B39)*Juin!$P$58:$P$73) -> 0.00 € | AG39: =SUMPRODUCT((Juin!$V$8:$V$76=$B39)*Juin!$Y$8:$Y$76) -> 0.00 € | AH39: =AG39+AI39 -> 70 € | AI39: 70 € | AJ39: =SUMPRODUCT((Juillet!$D$164:$D$232=$B39)*Juillet!$G$164:$G$232) -> 70.00 € | AK39: =SUMPRODUCT((Juillet!$M$13:$M$46=$B39)*Juillet!$P$13:$P$46)-SUMPRODUCT((Juillet!$M$58:$M$73=$B39)*Juillet!$P$58:$P$73) -> 0.00 € | AL39: =SUMPRODUCT((Juillet!$V$8:$V$76=$B39)*Juillet!$Y$8:$Y$76) -> 0.00 € | AM39: =AL39+AN39 -> 70 € | AN39: 70 € | AO39: =SUMPRODUCT((Aout!$D$164:$D$232=$B39)*Aout!$G$164:$G$232) -> 70.00 € | AP39: =SUMPRODUCT((Aout!$M$13:$M$46=$B39)*Aout!$P$13:$P$46)-SUMPRODUCT((Aout!$M$58:$M$73=$B39)*Aout!$P$58:$P$73) -> 0.00 € | AQ39: =SUMPRODUCT((Aout!$V$8:$V$76=$B39)*Aout!$Y$8:$Y$76) -> 0.00 € | AR39: =AQ39+AS39 -> 70 € | AS39: 70 € | AT39: =SUMPRODUCT((Septembre!$D$164:$D$232=$B39)*Septembre!$G$164:$G$232) -> 70.00 € | AU39: =SUMPRODUCT((Septembre!$M$13:$M$46=$B39)*Septembre!$P$13:$P$46)-SUMPRODUCT((Septembre!$M$58:$M$73=$B39)*Septembre!$P$58:$P$73) -> 0.00 € | AV39: =SUMPRODUCT((Septembre!$V$8:$V$76=$B39)*Septembre!$Y$8:$Y$76) -> 0.00 € | AW39: =AV39+AX39 -> 70 € | AX39: 70 € | AY39: =SUMPRODUCT((Octobre!$D$164:$D$232=$B39)*Octobre!$G$164:$G$232) -> 70.00 € | AZ39: =SUMPRODUCT((Octobre!$M$13:$M$46=$B39)*Octobre!$P$13:$P$46)-SUMPRODUCT((Octobre!$M$58:$M$73=$B39)*Octobre!$P$58:$P$73) -> 0.00 € | BA39: =SUMPRODUCT((Octobre!$V$8:$V$76=$B39)*Octobre!$Y$8:$Y$76) -> 0.00 € | BB39: =BA39+BC39 -> 70 € | BC39: 70 € | BD39: =SUMPRODUCT((Novembre!$D$164:$D$232=$B39)*Novembre!$G$164:$G$232) -> 70.00 € | BE39: =SUMPRODUCT((Novembre!$M$13:$M$46=$B39)*Novembre!$P$13:$P$46)-SUMPRODUCT((Novembre!$M$58:$M$73=$B39)*Novembre!$P$58:$P$73) -> 0.00 € | BF39: =SUMPRODUCT((Novembre!$V$8:$V$76=$B39)*Novembre!$Y$8:$Y$76) -> 0.00 € | BG39: =BF39+BH39 -> 70 € | BH39: 70 € | BI39: =SUMPRODUCT((Décembre!$D$164:$D$232=$B39)*Décembre!$G$164:$G$232) -> 70.00 € | BJ39: =SUMPRODUCT((Décembre!$M$13:$M$46=$B39)*Décembre!$P$13:$P$46)-SUMPRODUCT((Décembre!$M$58:$M$73=$B39)*Décembre!$P$58:$P$73) -> 0.00 € | BK39: =SUMPRODUCT((Décembre!$V$8:$V$76=$B39)*Décembre!$Y$8:$Y$76) -> 0.00 €
E40: 0 € | F40: =SUMPRODUCT(('Janvier '!$D$164:$D$232=$B39)*'Janvier '!$F$164:$F$232) -> 0 € | G40: =SUMPRODUCT(('Janvier '!$M$13:$M$46=$B39)*'Janvier '!$O$13:$O$46)+SUMPRODUCT(('Janvier '!$M$58:$M$73=$B39)*'Janvier '!$O$58:$O$73) -> 0 € | H40: =SUMPRODUCT(('Janvier '!$V$8:$V$76=$B39)*'Janvier '!$X$8:$X$76) -> 0 € | J40: 70 € | K40: =SUMPRODUCT((Fevrier!$D$164:$D$232=$B39)*Fevrier!$F$164:$F$232) -> 70 € | L40: =SUMPRODUCT((Fevrier!$M$13:$M$46=$B39)*Fevrier!$O$13:$O$46)+SUMPRODUCT((Fevrier!$M$58:$M$73=$B39)*Fevrier!$O$58:$O$73) -> 0 € | M40: =SUMPRODUCT((Fevrier!$V$8:$V$76=$B39)*Fevrier!$X$8:$X$76) -> 0 € | O40: 70 € | P40: =SUMPRODUCT((Mars!$D$164:$D$232=$B39)*Mars!$F$164:$F$232) -> 70 € | Q40: =SUMPRODUCT((Mars!$M$13:$M$46=$B39)*Mars!$O$13:$O$46)+SUMPRODUCT((Mars!$M$58:$M$73=$B39)*Mars!$O$58:$O$73) -> 0 € | R40: =SUMPRODUCT((Mars!$V$8:$V$76=$B39)*Mars!$X$8:$X$76) -> 0 € | T40: 70 € | U40: =SUMPRODUCT((Avril!$D$164:$D$232=$B39)*Avril!$F$164:$F$232) -> 70 € | V40: =SUMPRODUCT((Avril!$M$13:$M$46=$B39)*Avril!$O$13:$O$46)+SUMPRODUCT((Avril!$M$58:$M$73=$B39)*Avril!$O$58:$O$73) -> 0 € | W40: =SUMPRODUCT((Avril!$V$8:$V$76=$B39)*Avril!$X$8:$X$76) -> 0 € | Y40: 70 € | Z40: =SUMPRODUCT((Mai!$D$164:$D$232=$B39)*Mai!$F$164:$F$232) -> 70 € | AA40: =SUMPRODUCT((Mai!$M$13:$M$46=$B39)*Mai!$O$13:$O$46)+SUMPRODUCT((Mai!$M$58:$M$73=$B39)*Mai!$O$58:$O$73) -> 0 € | AB40: =SUMPRODUCT((Mai!$V$8:$V$76=$B39)*Mai!$X$8:$X$76) -> 0 € | AD40: 70 € | AE40: =SUMPRODUCT((Juin!$D$164:$D$232=$B39)*Juin!$F$164:$F$232) -> 70 € | AF40: =SUMPRODUCT((Juin!$M$13:$M$46=$B39)*Juin!$O$13:$O$46)+SUMPRODUCT((Juin!$M$58:$M$73=$B39)*Juin!$O$58:$O$73) -> 0 € | AG40: =SUMPRODUCT((Juin!$V$8:$V$76=$B39)*Juin!$X$8:$X$76) -> 0 € | AI40: 70 € | AJ40: =SUMPRODUCT((Juillet!$D$164:$D$232=$B39)*Juillet!$F$164:$F$232) -> 70 € | AK40: =SUMPRODUCT((Juillet!$M$13:$M$46=$B39)*Juillet!$O$13:$O$46)+SUMPRODUCT((Juillet!$M$58:$M$73=$B39)*Juillet!$O$58:$O$73) -> 0 € | AL40: =SUMPRODUCT((Juillet!$V$8:$V$76=$B39)*Juillet!$X$8:$X$76) -> 0 € | AN40: 70 € | AO40: =SUMPRODUCT((Aout!$D$164:$D$232=$B39)*Aout!$F$164:$F$232) -> 70 € | AP40: =SUMPRODUCT((Aout!$M$13:$M$46=$B39)*Aout!$O$13:$O$46)+SUMPRODUCT((Aout!$M$58:$M$73=$B39)*Aout!$O$58:$O$73) -> 0 € | AQ40: =SUMPRODUCT((Aout!$V$8:$V$76=$B39)*Aout!$X$8:$X$76) -> 0 € | AS40: 70 € | AT40: =SUMPRODUCT((Septembre!$D$164:$D$232=$B39)*Septembre!$F$164:$F$232) -> 70 € | AU40: =SUMPRODUCT((Septembre!$M$13:$M$46=$B39)*Septembre!$O$13:$O$46)+SUMPRODUCT((Septembre!$M$58:$M$73=$B39)*Septembre!$O$58:$O$73) -> 0 € | AV40: =SUMPRODUCT((Septembre!$V$8:$V$76=$B39)*Septembre!$X$8:$X$76) -> 0 € | AX40: 70 € | AY40: =SUMPRODUCT((Octobre!$D$164:$D$232=$B39)*Octobre!$F$164:$F$232) -> 70 € | AZ40: =SUMPRODUCT((Octobre!$M$13:$M$46=$B39)*Octobre!$O$13:$O$46)+SUMPRODUCT((Octobre!$M$58:$M$73=$B39)*Octobre!$O$58:$O$73) -> 0 € | BA40: =SUMPRODUCT((Octobre!$V$8:$V$76=$B39)*Octobre!$X$8:$X$76) -> 0 € | BC40: 70 € | BD40: =SUMPRODUCT((Novembre!$D$164:$D$232=$B39)*Novembre!$F$164:$F$232) -> 70 € | BE40: =SUMPRODUCT((Novembre!$M$13:$M$46=$B39)*Novembre!$O$13:$O$46)+SUMPRODUCT((Novembre!$M$58:$M$73=$B39)*Novembre!$O$58:$O$73) -> 0 € | BF40: =SUMPRODUCT((Novembre!$V$8:$V$76=$B39)*Novembre!$X$8:$X$76) -> 0 € | BH40: 70 € | BI40: =SUMPRODUCT((Décembre!$D$164:$D$232=$B39)*Décembre!$F$164:$F$232) -> 70 € | BJ40: =SUMPRODUCT((Décembre!$M$13:$M$46=$B39)*Décembre!$O$13:$O$46)+SUMPRODUCT((Décembre!$M$58:$M$73=$B39)*Décembre!$O$58:$O$73) -> 0 € | BK40: =SUMPRODUCT((Décembre!$V$8:$V$76=$B39)*Décembre!$X$8:$X$76) -> 0 €
B41: somme debut | C41: =C35+C17+C15+C7+C5+C3 -> 0 €

Sheet Janvier
J1: Compte chèque | S1: Livret A | AB1: LEP
A2: Cpt Charlie | B2: Compte chèque Charlie | J2: Livret A Charlie | K2: Livret A | S2: LEP Charlie | T2: LEP
E5: Fin de moi précédent | G5: -61.36 € | K5: =IF((P9+P54=P5),0,1) -> 0 | N5: Fin de moi précédent | P5: 800.00 € | W5: Fin de moi précédent | Y5: 160
B7: N° de transaction | C7: Date | D7: Objet | E7: Précision | F7: debit | G7: Crédit | H7: Type de paiment | I7: Divers | K7: Animaux | T7: N° de transaction | U7: Date | V7: Objet | W7: Précision | X7: debit | Y7: Crédit | Z7: Type de paiment | AA7: Divers
B8: 1 | C8: 2024-01-02 | D8: Salaire | E8: Décembre | G8: 2,304.59 € | H8: Virement banquaire | T8: 1 | U8: 2024-01-05 | V8: travaux | Y8: 50.00 € | Z8: Virement intercompte
B9: 2 | C9: 2024-01-05 | D9: Bois | F9: 60.00 € | H9: Virement intercompte | I9: Cpt Cjoint | N9: Fin de moi précédent | P9: 500.00 € | T9: 2
B10: 3 | C10: 2024-01-05 | D10: Prêt maison | F10: 443.23 € | H10: Virement intercompte | I10: Cpt Cjoint | T10: 3
B11: 4 | C11: 2024-01-05 | D11: Prêt travaux | F11: 70.34 € | H11: Virement intercompte | I11: Cpt Cjoint | K11: N° de transaction | L11: Date | M11: Objet | N11: Précision | O11: debit | P11: Crédit | Q11: Type de paiment | R11: Divers | T11: 4
B12: 5 | C12: 2024-01-05 | D12: Prêt travaux | F12: 155.37 € | H12: Virement intercompte | I12: Cpt Cjoint | T12: 5
B13: 6 | C13: 2024-01-05 | D13: Frais Banquaire | F13: 10.00 € | H13: Virement intercompte | I13: Cpt Cjoint | K13: 1 | L13: 2024-01-05 | M13: animaux | P13: 70.00 € | Q13: Virement intercompte | T13: 6
B14: 7 | C14: 2024-01-05 | D14: Eau | F14: 55.00 € | H14: Virement intercompte | I14: Cpt Cjoint | K14: 2 | T14: 7
B15: 8 | C15: 2024-01-05 | D15: Prêt Duster | F15: 323.97 € | H15: Virement intercompte | I15: Cpt Cjoint | K15: 3 | T15: 8
B16: 9 | C16: 2024-01-05 | D16: Assurances | F16: 130.00 € | H16: Virement intercompte | I16: Cpt Cjoint | K16: 4 | T16: 9
B17: 10 | C17: 2024-01-05 | D17: Téléphone | F17: 55.00 € | H17: Virement intercompte | I17: Cpt Cjoint | K17: 5 | T17: 10
B18: 11 | C18: 2024-01-05 | D18: mutuelle | F18: 70.00 € | H18: Virement intercompte | I18: Cpt Cjoint | K18: 6 | T18: 11
B19: 12 | C19: 2024-01-05 | D19: Electricité | F19: 105.00 € | H19: Virement intercompte | I19: Cpt Cjoint | K19: 7 | T19: 12
B20: 13 | C20: 2024-01-05 | D20: gaz | F20: 70.00 € | H20: Virement intercompte | I20: Cpt Cjoint | K20: 8 | T20: 13
B21: 14 | C21: 2024-01-05 | D21: Impot et taxe | F21: 100.00 € | H21: Virement intercompte | I21: Livret A Charlie | K21: 9 | T21: 14
B22: 15 | C22: 2024-01-05 | D22: Travaux | F22: 50.00 € | H22: Virement intercompte | I22: LEP Charlie | K22: 10 | T22: 15
B23: 16 | C23: 2024-01-05 | D23: Animaux | F23: 70.00 € | H23: Virement intercompte | I23: Livret A Charlie | K23: 11 | T23: 16
B24: 17 | C24: 2024-01-05 | D24: Entretien voiture | F24: 75.00 € | H24: Virement intercompte | I24: Cpt Cjoint | K24: 12 | T24: 17
B25: 18 | C25: 2024-01-01 | D25: Loisir | E25: Weigth Watcher | F25: 8.75 € | H25: Paypal | K25: 13 | T25: 18
B26: 19 | C26: 2024-01-07 | D26: Loisir | E26: Familleo | F26: 5.99 € | H26: Prélèvement | K26: 14 | T26: 19
B27: 20 | C27: 2024-01-08 | D27: Loisir | E27: Netflix | F27: 18.99 € | H27: Paypal | K27: 15 | T27: 20
B28: 21 | K28: 16 | T28: 21
B29: 22 | K29: 17 | T29: 22
B30: 23 | K30: 18 | T30: 23
B31: 24 | K31: 19 | T31: 24
B32: 25 | K32: 20 | T32: 25
B33: 26 | K33: 21 | T33: 26
B34: 27 | K34: 22 | T34: 27
B35: 28 | K35: 23 | T35: 28
B36: 29 | K36: 24 | T36: 29
B37: 30 | K37: 25 | T37: 30
B38: 31 | K38: 26 | T38: 31
B39: 32 | K39: 27 | T39: 32
B40: 33 | K40: 28 | T40: 33
B41: 34 | K41: 29 | T41: 34
B42: 35 | K42: 30 | T42: 35
B43: 36 | K43: 31 | T43: 36
B44: 37 | K44: 32 | T44: 37
B45: 38 | K45: 33 | T45: 38
B46: 39 | K46: 34 | T46: 39
B47: 40 | N47: Sous Total | O47: =SUM(O13:O46) -> 0.00 € | P47: 70.00 € | T47: 40
B48: 41 | N48: Total | O48: =P47-O47+P9 -> 570.00 € | T48: 41
B49: 42 | T49: 42
B50: 43 | T50: 43
B51: 44 | K51: Impot et taxe | T51: 44
B52: 45 | T52: 45
B53: 46 | T53: 46
B54: 47 | N54: Fin de moi précédent | P54: 300.00 € | T54: 47
B55: 48 | T55: 48
B56: 49 | K56: N° de transaction | L56: Date | M56: Objet | N56: Précision | O56: debit | P56: Crédit | Q56: Virement intercompte | R56: Divers | T56: 49
B57: 50 | T57: 50
B58: 51 | K58: 1 | L58: 2024-01-05 | M58: Impot et taxe | N58: charlie | P58: 100.00 € | Q58: Virement intercompte | T58: 51
B59: 52 | K59: 2 | T59: 52
B60: 53 | K60: 3 | T60: 53
B61: 54 | K61: 4 | T61: 54
B62: 55 | K62: 5 | T62: 55
B63: 56 | K63: 6 | T63: 56
B64: 57 | K64: 7 | T64: 57
B65: 58 | K65: 8 | T65: 58
B66: 59 | K66: 9 | T66: 59
B67: 60 | K67: 10 | T67: 60
B68: 61 | K68: 11 | T68: 61
B69: 62 | K69: 12 | T69: 62
B70: 63 | K70: 13 | T70: 63
B71: 64 | K71: 14 | T71: 64
B72: 65 | K72: 15 | T72: 65
B73: 66 | K73: 16 | T73: 66
B74: 67 | N74: Sous Total | O74: =SUM(O58:O73) -> 0.00 € | P74: 100.00 € | T74: 67
B75: 68 | N75: Total | O75: =P74-O74+P54 -> 400.00 € | T75: 68
B76: 69 | T76: 69
E77: Sous Total | F77: =SUM(F8:F76) -> 1,876.64 € | G77: 2,304.59 € | N77: Sous Total | O77: =O74+O47 -> 0.00 € | P77: 170.00 € | W77: Sous Total | X77: =SUM(X8:X76) -> 0.00 € | Y77: 50.00 €
E78: Total | F78: =G77-F77+G5 -> 366.59 € | N78: Total | O78: =P5+P77-O77 -> 970.00 € | W78: Total | X78: =Y5+Y77-X77 -> 210.00 €
A79: Charlie
A80: Cpt Mapie | B80: Compte chèque Mapie | K80: Livret A Mapie | T80: LEP Mapie
E83: Fin de moi précédent | G83: 0 | N83: Fin de moi précédent | P83: 2,471.43 € | W83: Fin de moi précédent | Y83: 3,092.20 €
B85: N° de transaction | C85: Date | D85: Objet | E85: Précision | F85: debit | G85: Crédit | H85: Type de paiment | I85: Divers | K85: N° de transaction | L85: Date | M85: Objet | N85: Précision | O85: debit | P85: Crédit | Q85: Type de paiment | R85: Divers | T85: N° de transaction | U85: Date | V85: Objet | W85: Précision | X85: debit | Y85: Crédit | Z85: Type de paiment | AA85: Divers
B86: 1 | C86: 2024-01-02 | D86: Salaire | E86: aide de fin de formation | G86: 723.23 € | H86: Virement banquaire | K86: 1 | T86: 1
B87: 2 | C87: 2024-01-03 | D87: Salaire | E87: CAF | G87: 416.31 € | H87: Virement banquaire | I87: Cpt Cjoint | K87: 2 | T87: 2
B88: 3 | C88: 2024-01-05 | D88: Frais Banquaire | F88: 10.00 € | H88: Virement intercompte | I88: Cpt Cjoint | K88: 3 | T88: 3
B89: 4 | C89: 2024-01-05 | D89: Scolarité | F89: 280.00 € | H89: Virement intercompte | I89: Cpt Cjoint | K89: 4 | T89: 4
B90: 5 | C90: 2024-01-05 | D90: sport | F90: 130.00 € | H90: Virement intercompte | I90: Cpt Cjoint | K90: 5 | T90: 5
B91: 6 | C91: 2024-01-05 | D91: Nourrice | E91: salaire | F91: 120.00 € | H91: Virement intercompte | I91: Cpt Cjoint | K91: 6 | T91: 6
B92: 7 | C92: 2024-01-05 | D92: Nourrice | E92: congé | F92: 50.00 € | H92: Virement intercompte | I92: Cpt Cjoint | K92: 7 | T92: 7
B93: 8 | C93: 2024-01-05 | D93: Epargne | E93: Arzhel | F93: 20.00 € | H93: Virement intercompte | I93: Livret A Arzhel | K93: 8 | T93: 8
B94: 9 | C94: 2024-01-05 | D94: Epargne | E94: Azylis | F94: 20.00 € | H94: Virement intercompte | I94: Livret A Azylis | K94: 9 | T94: 9
B95: 10 | C95: 2024-01-05 | D95: Epargne | E95: Azekiel | F95: 30.00 € | H95: Virement intercompte | I95: Livret A Azekiel | K95: 10 | T95: 10
B96: 11 | K96: 11 | T96: 11
B97: 12 | K97: 12 | T97: 12
B98: 13 | K98: 13 | T98: 13
B99: 14 | K99: 14 | T99: 14
B100: 15 | K100: 15 | T100: 15
B101: 16 | K101: 16 | T101: 16
B102: 17 | K102: 17 | T102: 17
B103: 18 | K103: 18 | T103: 18
B104: 19 | K104: 19 | T104: 19
B105: 20 | K105: 20 | T105: 20
B106: 21 | K106: 21 | T106: 21
B107: 22 | K107: 22 | T107: 22
B108: 23 | K108: 23 | T108: 23
B109: 24 | K109: 24 | T109: 24
B110: 25 | K110: 25 | T110: 25
B111: 26 | K111: 26 | T111: 26
B112: 27 | K112: 27 | T112: 27
B113: 28 | K113: 28 | T113: 28
B114: 29 | K114: 29 | T114: 29
B115: 30 | K115: 30 | T115: 30
B116: 31 | K116: 31 | T116: 31
B117: 32 | K117: 32 | T117: 32
B118: 33 | K118: 33 | T118: 33
B119: 34 | K119: 34 | T119: 34
B120: 35 | K120: 35 | T120: 35
B121: 36 | K121: 36 | T121: 36
B122: 37 | K122: 37 | T122: 37
B123: 38 | K123: 38 | T123: 38
B124: 39 | K124: 39 | T124: 39
B125: 40 | K125: 40 | T125: 40
B126: 41 | K126: 41 | T126: 41
B127: 42 | K127: 42 | T127: 42
B128: 43 | K128: 43 | T128: 43
B129: 44 | K129: 44 | T129: 44
B130: 45 | K130: 45 | T130: 45
B131: 46 | K131: 46 | T131: 46
B132: 47 | K132: 47 | T132: 47
B133: 48 | K133: 48 | T133: 48
B134: 49 | K134: 49 | T134: 49
B135: 50 | K135: 50 | T135: 50
B136: 51 | K136: 51 | T136: 51
B137: 52 | K137: 52 | T137: 52
B138: 53 | K138: 53 | T138: 53
B139: 54 | K139: 54 | T139: 54
B140: 55 | K140: 55 | T140: 55
B141: 56 | K141: 56 | T141: 56
B142: 57 | K142: 57 | T142: 57
B143: 58 | K143: 58 | T143: 58
B144: 59 | K144: 59 | T144: 59
B145: 60 | K145: 60 | T145: 60
B146: 61 | K146: 61 | T146: 61
B147: 62 | K147: 62 | T147: 62
B148: 63 | K148: 63 | T148: 63
B149: 64 | K149: 64 | T149: 64
B150: 65 | K150: 65 | T150: 65
B151: 66 | K151: 66 | T151: 66
B152: 67 | K152: 67 | T152: 67
B153: 68 | K153: 68 | T153: 68
B154: 69 | K154: 70 | T154: 70
E155: Sous Total | F155: =SUM(F86:F154) -> 660.00 € | G155: 1,139.54 € | N155: Sous Total | O155: =SUM(O86:O154) -> 0 | P155: 0 | W155: Sous Total | X155: =SUM(X86:X154) -> 0 | Y155: 0
E156: Total | F156: =G155-F155+G83 -> 479.54 € | N156: Total | O156: =P155-O155+P83 -> 2,471.43 € | W156: Total | X156: =Y155-X155+Y83 -> 3,092.20 €
A157: Mapie
A158: Cpt Joint | B158: Compte maison
E161: Fin de moi précédent | G161: 1,113.55 €
B163: N° de transaction | C163: Date | D163: Objet | E163: Précision | F163: debit | G163: Crédit | H163: Type de paiment | I163: Divers
B164: 1 | C164: 2024-01-05 | D164: Electricité | G164: 105.00 € | H164: Virement intercompte
B165: 2 | C165: 2024-01-05 | D165: gaz | G165: 70.00 € | H165: Virement intercompte
B166: 3 | C166: 2024-01-05 | D166: Bois | G166: 60.00 € | H166: Virement intercompte
B167: 4 | C167: 2024-01-05 | D167: Prêt maison | G167: 443.23 € | H167: Virement intercompte
B168: 5 | C168: 2024-01-05 | D168: Prêt travaux | G168: 70.34 € | H168: Virement intercompte
B169: 6 | C169: 2024-01-05 | D169: Prêt travaux | G169: 155.37 € | H169: Virement intercompte
B170: 7 | C170: 2024-01-05 | D170: Frais Banquaire | G170: 10.00 € | H170: Virement Mapie
B171: 8 | C171: 2024-01-05 | D171: Frais Banquaire | G171: 10.00 € | H171: Virement intercompte
B172: 9 | C172: 2024-01-05 | D172: Frais Banquaire | H172: Virement banquaire
B173: 10 | C173: 2024-01-05 | D173: Eau | G173: 55.00 € | H173: Virement intercompte
B174: 11 | C174: 2024-01-05 | D174: Prêt Duster | G174: 323.97 € | H174: Virement intercompte
B175: 12 | C175: 2024-01-05 | D175: Scolarité | G175: 280.00 € | H175: Virement Mapie
B176: 13 | C176: 2024-01-05 | D176: sport | G176: 130.00 € | H176: Virement Mapie
B177: 14 | C177: 2024-01-05 | D177: Assurances | G177: 130.00 € | H177: Virement intercompte
B178: 15 | C178: 2024-01-05 | D178: Téléphone | G178: 55.00 € | H178: Virement intercompte
B179: 16 | C179: 2024-01-05 | D179: mutuelle | G179: 70.00 € | H179: Virement intercompte
B180: 17 | C180: 2024-01-05 | D180: Nourrice | G180: 120.00 €
B181: 18 | C181: 2024-01-05 | D181: Nourrice | E181: congé | G181: 50.00 € | H181: Virement Mapie
B182: 19 | C182: 2024-01-05 | D182: Nourrice | E182: recouvrement PAJE | G182: 319.07 € | H182: Virement banquaire
B183: 20 | C183: 2024-01-05 | D183: Entretien voiture | G183: 75.00 € | H183: Virement intercompte
B184: 21 | D184: Nourrice | E184: Salaire | H184: Virement banquaire
B185: 22 | C185: 2024-01-04 | D185: Electricité | F185: 103.00 € | H185: Prélèvement
B186: 23 | C186: 2024-01-08 | D186: gaz | F186: 49.00 € | H186: Prélèvement
B187: 24 | D187: Prêt maison | H187: Prélèvement
B188: 25 | D188: Prêt travaux | H188: Prélèvement
B189: 26 | D189: Prêt travaux | H189: Prélèvement
B190: 27 | D190: Frais Banquaire | H190: Prélèvement
B191: 28 | D191: Prêt Duster | H191: Prélèvement
B192: 29 | D192: Scolarité | H192: Prélèvement
B193: 30 | C193: 2024-01-04 | D193: Téléphone | F193: 16.84 € | H193: Prélèvement
B194: 31 | C194: 2024-01-01 | D194: Téléphone | F194: 28.99 € | H194: Prélèvement
B195: 32 | D195: mutuelle | H195: Prélèvement
B196: 33 | C196: 2024-01-04 | D196: Scolarité | E196: Azylis centre aéré | F196: 55.14 € | H196: Prélèvement
B197: 34
B198: 35
B199: 36
B200: 37
B201: 38
B202: 39
B203: 40
B204: 41
B205: 42
B206: 43
B207: 44
B208: 45
B209: 46
... 92 more rows

Sheet Fevrier
J1: Compte chèque | S1: Livret A | AB1: LEP
A2: Cpt Charlie | B2: Compte chèque Charlie | J2: Livret A Charlie | K2: Livret A | S2: LEP Charlie | T2: LEP
E5: Fin de moi précédent | G5: ='Janvier '!F78:G78 -> 366.59 € | H5: 0.00 € | K5: =IF((P9+P54=P5),0,1) -> 0 | N5: Fin de moi précédent | P5: ='Janvier '!O78:P78 -> 970.00 € | Q5: 0 | W5: Fin de moi précédent | Y5: ='Janvier '!X78:Y78 -> 210 | Z5: 0
B7: N° de transaction | C7: Date | D7: Objet | E7: Précision | F7: debit | G7: Crédit | H7: Type de paiment | I7: Divers | K7: Animaux | T7: N° de transaction | U7: Date | V7: Objet | W7: Précision | X7: debit | Y7: Crédit | Z7: Type de paiment | AA7: Divers
B8: 1 | C8: 2024-02-02 | D8: Salaire | E8: Décembre | G8: 2,304.59 € | H8: Virement banquaire | T8: 1 | U8: 2024-02-05 | V8: travaux | Y8: 50.00 € | Z8: Virement intercompte
B9: 2 | C9: 2024-02-05 | D9: Bois | F9: 60.00 € | H9: Virement intercompte | I9: Cpt Cjoint | N9: Fin de moi précédent | P9: ='Janvier '!O48:P48 -> 570.00 € | Q9: 0 | T9: 2
B10: 3 | C10: 2024-02-05 | D10: Prêt maison | F10: 443.23 € | H10: Virement intercompte | I10: Cpt Cjoint | T10: 3
B11: 4 | C11: 2024-02-05 | D11: Prêt travaux | F11: 70.34 € | H11: Virement intercompte | I11: Cpt Cjoint | K11: N° de transaction | L11: Date | M11: Objet | N11: Précision | O11: debit | P11: Crédit | Q11: Type de paiment | R11: Divers | T11: 4
B12: 5 | C12: 2024-02-05 | D12: Prêt travaux | F12: 155.37 € | H12: Virement intercompte | I12: Cpt Cjoint | T12: 5
B13: 6 | C13: 2024-02-05 | D13: Frais Banquaire | F13: 10.00 € | H13: Virement intercompte | I13: Cpt Cjoint | K13: 1 | L13: 2024-02-05 | M13: animaux | P13: 70.00 € | Q13: Virement intercompte | T13: 6
B14: 7 | C14: 2024-02-05 | D14: Eau | F14: 55.00 € | H14: Virement intercompte | I14: Cpt Cjoint | K14: 2 | T14: 7
B15: 8 | C15: 2024-02-05 | D15: Prêt Duster | F15: 323.97 € | H15: Virement intercompte | I15: Cpt Cjoint | K15: 3 | T15: 8
B16: 9 | C16: 2024-02-05 | D16: Assurances | F16: 130.00 € | H16: Virement intercompte | I16: Cpt Cjoint | K16: 4 | T16: 9
B17: 10 | C17: 2024-02-05 | D17: Téléphone | F17: 55.00 € | H17: Virement intercompte | I17: Cpt Cjoint | K17: 5 | T17: 10
B18: 11 | C18: 2024-02-05 | D18: mutuelle | F18: 70.00 € | H18: Virement intercompte | I18: Cpt Cjoint | K18: 6 | T18: 11
B19: 12 | C19: 2024-02-05 | D19: Electricité | F19: 105.00 € | H19: Virement intercompte | I19: Cpt Cjoint | K19: 7 | T19: 12
B20: 13 | C20: 2024-02-05 | D20: gaz | F20: 70.00 € | H20: Virement intercompte | I20: Cpt Cjoint | K20: 8 | T20: 13
B21: 14 | C21: 2024-02-05 | D21: Impot et taxe | F21: 100.00 € | H21: Virement intercompte | I21: Livret A Charlie | K21: 9 | T21: 14
B22: 15 | C22: 2024-02-05 | D22: Travaux | F22: 50.00 € | H22: Virement intercompte | I22: LEP Charlie | K22: 10 | T22: 15
B23: 16 | C23: 2024-02-05 | D23: Animaux | F23: 70.00 € | H23: Virement intercompte | I23: Livret A Charlie | K23: 11 | T23: 16
B24: 17 | C24: 2024-02-05 | D24: Entretien voiture | F24: 75.00 € | H24: Virement intercompte | I24: Cpt Cjoint | K24: 12 | T24: 17
B25: 18 | D25: Loisir | E25: Weigth Watcher | F25: 8.75 € | H25: Paypal | K25: 13 | T25: 18
B26: 19 | D26: Loisir | E26: Familleo | F26: 5.99 € | H26: Prélèvement | K26: 14 | T26: 19
B27: 20 | E27: Netflix | F27: 18.99 € | K27: 15 | T27: 20
B28: 21 | K28: 16 | T28: 21
B29: 22 | K29: 17 | T29: 22
B30: 23 | K30: 18 | T30: 23
B31: 24 | K31: 19 | T31: 24
B32: 25 | K32: 20 | T32: 25
B33: 26 | K33: 21 | T33: 26
B34: 27 | K34: 22 | T34: 27
B35: 28 | K35: 23 | T35: 28
B36: 29 | K36: 24 | T36: 29
B37: 30 | K37: 25 | T37: 30
B38: 31 | K38: 26 | T38: 31
B39: 32 | K39: 27 | T39: 32
B40: 33 | K40: 28 | T40: 33
B41: 34 | K41: 29 | T41: 34
B42: 35 | K42: 30 | T42: 35
B43: 36 | K43: 31 | T43: 36
B44: 37 | K44: 32 | T44: 37
B45: 38 | K45: 33 | T45: 38
B46: 39 | K46: 34 | T46: 39
B47: 40 | N47: Sous Total | O47: =SUM(O13:O46) -> 0.00 € | P47: 70.00 € | T47: 40
B48: 41 | N48: Total | O48: =P47-O47+P9 -> 640.00 € | T48: 41
B49: 42 | T49: 42
B50: 43 | T50: 43
B51: 44 | K51: Impot et taxe | T51: 44
B52: 45 | T52: 45
B53: 46 | T53: 46
B54: 47 | N54: Fin de moi précédent | P54: ='Janvier '!O75:P75 -> 400.00 € | Q54: 0 | T54: 47
B55: 48 | T55: 48
B56: 49 | K56: N° de transaction | L56: Date | M56: Objet | N56: Précision | O56: debit | P56: Crédit | Q56: Virement intercompte | R56: Divers | T56: 49
B57: 50 | T57: 50
B58: 51 | K58: 1 | L58: 2024-02-05 | M58: Impot et taxe | N58: charlie | P58: 100.00 € | Q58: Virement intercompte | T58: 51
B59: 52 | K59: 2 | T59: 52
B60: 53 | K60: 3 | T60: 53
B61: 54 | K61: 4 | T61: 54
B62: 55 | K62: 5 | T62: 55
B63: 56 | K63: 6 | T63: 56
B64: 57 | K64: 7 | T64: 57
B65: 58 | K65: 8 | T65: 58
B66: 59 | K66: 9 | T66: 59
B67: 60 | K67: 10 | T67: 60
B68: 61 | K68: 11 | T68: 61
B69: 62 | K69: 12 | T69: 62
B70: 63 | K70: 13 | T70: 63
B71: 64 | K71: 14 | T71: 64
B72: 65 | K72: 15 | T72: 65
B73: 66 | K73: 16 | T73: 66
B74: 67 | N74: Sous Total | O74: =SUM(O58:O73) -> 0.00 € | P74: 100.00 € | T74: 67
B75: 68 | N75: Total | O75: =P74-O74+P54 -> 500.00 € | T75: 68
B76: 69 | T76: 69
E77: Sous Total | F77: =SUM(F8:F76) -> 1,876.64 € | G77: 2,304.59 € | N77: Sous Total | O77: =O74+O47 -> 0.00 € | P77: 170.00 € | W77: Sous Total | X77: =SUM(X8:X76) -> 0.00 € | Y77: 50.00 €
E78: Total | F78: =G5+G77-F77 -> 794.54 € | N78: Total | O78: =P5+P77-O77 -> 1,140.00 € | W78: Total | X78: =Y5+Y77-X77 -> 260.00 €
A79: Charlie
A80: Cpt Mapie | B80: Compte chèque Mapie | K80: Livret A Mapie | T80: LEP Mapie
E83: Fin de moi précédent | G83: ='Janvier '!F156:G156 -> 479.54 € | H83: 0.00 € | N83: Fin de moi précédent | P83: ='Janvier '!O156:P156 -> 2,471.43 € | Q83: 0.00 € | W83: Fin de moi précédent | Y83: ='Janvier '!X156:Y156 -> 3,092.20 € | Z83: 0.00 €
B85: N° de transaction | C85: Date | D85: Objet | E85: Précision | F85: debit | G85: Crédit | H85: Type de paiment | I85: Divers | K85: N° de transaction | L85: Date | M85: Objet | N85: Précision | O85: debit | P85: Crédit | Q85: Type de paiment | R85: Divers | T85: N° de transaction | U85: Date | V85: Objet | W85: Précision | X85: debit | Y85: Crédit | Z85: Type de paiment | AA85: Divers
B86: 1 | C86: 2024-02-02 | D86: Salaire | E86: aide de fin de formation | G86: 723.23 € | H86: Virement banquaire | K86: 1 | T86: 1
B87: 2 | C87: 2024-02-03 | D87: Salaire | E87: CAF | G87: 416.31 € | H87: Virement banquaire | I87: Cpt Cjoint | K87: 2 | T87: 2
B88: 3 | C88: 2024-02-05 | D88: Frais Banquaire | F88: 10.00 € | H88: Virement intercompte | I88: Cpt Cjoint | K88: 3 | T88: 3
B89: 4 | C89: 2024-02-05 | D89: Scolarité | F89: 280.00 € | H89: Virement intercompte | I89: Cpt Cjoint | K89: 4 | T89: 4
B90: 5 | C90: 2024-02-05 | D90: sport | F90: 130.00 € | H90: Virement intercompte | I90: Cpt Cjoint | K90: 5 | T90: 5
B91: 6 | C91: 2024-02-05 | D91: Nourrice | E91: salaire | F91: 120.00 € | H91: Virement intercompte | I91: Cpt Cjoint | K91: 6 | T91: 6
B92: 7 | C92: 2024-02-05 | D92: Nourrice | E92: congé | F92: 50.00 € | H92: Virement intercompte | I92: Cpt Cjoint | K92: 7 | T92: 7
B93: 8 | C93: 2024-02-05 | D93: Epargne | E93: Arzhel | F93: 20.00 € | H93: Virement intercompte | I93: Livret A Azylis | K93: 8 | T93: 8
B94: 9 | C94: 2024-02-05 | D94: Epargne | E94: Azylis | F94: 20.00 € | H94: Virement intercompte | I94: Livret A Azylis | K94: 9 | T94: 9
B95: 10 | C95: 2024-02-05 | D95: Epargne | E95: Azekiel | F95: 30.00 € | H95: Virement intercompte | I95: Livret A Azekiel | K95: 10 | T95: 10
B96: 11 | K96: 11 | T96: 11
B97: 12 | K97: 12 | T97: 12
B98: 13 | K98: 13 | T98: 13
B99: 14 | K99: 14 | T99: 14
B100: 15 | K100: 15 | T100: 15
B101: 16 | K101: 16 | T101: 16
B102: 17 | K102: 17 | T102: 17
B103: 18 | K103: 18 | T103: 18
B104: 19 | K104: 19 | T104: 19
B105: 20 | K105: 20 | T105: 20
B106: 21 | K106: 21 | T106: 21
B107: 22 | K107: 22 | T107: 22
B108: 23 | K108: 23 | T108: 23
B109: 24 | K109: 24 | T109: 24
B110: 25 | K110: 25 | T110: 25
B111: 26 | K111: 26 | T111: 26
B112: 27 | K112: 27 | T112: 27
B113: 28 | K113: 28 | T113: 28
B114: 29 | K114: 29 | T114: 29
B115: 30 | K115: 30 | T115: 30
B116: 31 | K116: 31 | T116: 31
B117: 32 | K117: 32 | T117: 32
B118: 33 | K118: 33 | T118: 33
B119: 34 | K119: 34 | T119: 34
B120: 35 | K120: 35 | T120: 35
B121: 36 | K121: 36 | T121: 36
B122: 37 | K122: 37 | T122: 37
B123: 38 | K123: 38 | T123: 38
B124: 39 | K124: 39 | T124: 39
B125: 40 | K125: 40 | T125: 40
B126: 41 | K126: 41 | T126: 41
B127: 42 | K127: 42 | T127: 42
B128: 43 | K128: 43 | T128: 43
B129: 44 | K129: 44 | T129: 44
B130: 45 | K130: 45 | T130: 45
B131: 46 | K131: 46 | T131: 46
B132: 47 | K132: 47 | T132: 47
B133: 48 | K133: 48 | T133: 48
B134: 49 | K134: 49 | T134: 49
B135: 50 | K135: 50 | T135: 50
B136: 51 | K136: 51 | T136: 51
B137: 52 | K137: 52 | T137: 52
B138: 53 | K138: 53 | T138: 53
B139: 54 | K139: 54 | T139: 54
B140: 55 | K140: 55 | T140: 55
B141: 56 | K141: 56 | T141: 56
B142: 57 | K142: 57 | T142: 57
B143: 58 | K143: 58 | T143: 58
B144: 59 | K144: 59 | T144: 59
B145: 60 | K145: 60 | T145: 60
B146: 61 | K146: 61 | T146: 61
B147: 62 | K147: 62 | T147: 62
B148: 63 | K148: 63 | T148: 63
B149: 64 | K149: 64 | T149: 64
B150: 65 | K150: 65 | T150: 65
B151: 66 | K151: 66 | T151: 66
B152: 67 | K152: 67 | T152: 67
B153: 68 | K153: 68 | T153: 68
B154: 69 | K154: 70 | T154: 70
E155: Sous Total | F155: =SUM(F86:F154) -> 660.00 € | G155: 1,139.54 € | N155: Sous Total | O155: =SUM(O86:O154) -> 0 | P155: =SUM(P86:P154) -> 0 | W155: Sous Total | X155: =SUM(X86:X154) -> 0 | Y155: 0
E156: Total | F156: =G155-F155+G83 -> 959.08 € | N156: Total | O156: =P155-O155+P83 -> 2,471.43 € | W156: Total | X156: =Y155-X155+Y83 -> 3,092.20 €
A157: Mapie
A158: Cpt Joint | B158: Compte maison
E161: Fin de moi précédent | G161: ='Janvier '!F234:G234 -> 3,392.56 € | H161: 0.00 €
B163: N° de transaction | C163: Date | D163: Objet | E163: Précision | F163: debit | G163: Crédit | H163: Type de paiment | I163: Divers
B164: 1 | C164: 2024-02-05 | D164: Electricité | G164: 105.00 € | H164: Virement intercompte
B165: 2 | C165: 2024-02-05 | D165: gaz | G165: 70.00 € | H165: Virement intercompte
B166: 3 | C166: 2024-02-05 | D166: Bois | G166: 60.00 € | H166: Virement intercompte
B167: 4 | C167: 2024-02-05 | D167: Prêt maison | G167: 443.23 € | H167: Virement intercompte
B168: 5 | C168: 2024-02-05 | D168: Prêt travaux | G168: 70.34 € | H168: Virement intercompte
B169: 6 | C169: 2024-02-05 | D169: Prêt travaux | G169: 155.37 € | H169: Virement intercompte
B170: 7 | C170: 2024-02-05 | D170: Frais Banquaire | G170: 10.00 € | H170: Virement Mapie
B171: 8 | C171: 2024-02-05 | D171: Frais Banquaire | G171: 10.00 € | H171: Virement intercompte
B172: 9 | C172: 2024-02-05 | D172: Frais Banquaire | G172: 9.18 € | H172: Virement banquaire
B173: 10 | C173: 2024-02-05 | D173: Eau | G173: 55.00 € | H173: Virement intercompte
B174: 11 | C174: 2024-02-05 | D174: Prêt Duster | G174: 323.97 € | H174: Virement intercompte
B175: 12 | C175: 2024-02-05 | D175: Scolarité | G175: 280.00 € | H175: Virement Mapie
B176: 13 | C176: 2024-02-05 | D176: sport | G176: 130.00 € | H176: Virement Mapie
B177: 14 | C177: 2024-02-05 | D177: Assurances | G177: 130.00 € | H177: Virement intercompte
B178: 15 | C178: 2024-02-05 | D178: Téléphone | G178: 55.00 € | H178: Virement intercompte
B179: 16 | C179: 2024-02-05 | D179: mutuelle | G179: 70.00 € | H179: Virement intercompte
B180: 17 | C180: 2024-02-05 | D180: salaire | G180: 120.00 €
B181: 18 | C181: 2024-02-05 | D181: Nourrice | E181: congé | G181: 50.00 € | H181: Virement Mapie
B182: 19 | C182: 2024-02-05 | D182: Nourrice | E182: recouvrement PAJE | G182: 319.07 € | H182: Virement banquaire
B183: 20 | C183: 2024-02-05 | D183: Entretien voiture | G183: 75.00 € | H183: Virement intercompte
B184: 21 | D184: Nourrice | E184: Salaire | H184: Virement banquaire
B185: 22 | D185: Electricité | F185: 103.00 € | H185: Prélèvement
B186: 23 | D186: gaz | F186: 49.00 € | H186: Prélèvement
B187: 24 | D187: Prêt maison | F187: 443.23 € | H187: Prélèvement
B188: 25 | D188: Prêt travaux | F188: 70.34 € | H188: Prélèvement
B189: 26 | D189: Prêt travaux | F189: 155.37 € | H189: Prélèvement
B190: 27 | D190: Frais Banquaire | F190: 23.46 € | H190: Prélèvement
B191: 28 | D191: Prêt Duster | F191: 323.97 € | H191: Prélèvement
B192: 29 | D192: Scolarité | H192: Prélèvement
B193: 30 | D193: Téléphone | F193: 16.84 € | H193: Prélèvement
B194: 31 | D194: Téléphone | F194: 28.99 € | H194: Prélèvement
B195: 32 | D195: mutuelle | F195: 70.00 € | H195: Prélèvement
B196: 33
B197: 34
B198: 35
B199: 36
B200: 37
B201: 38
B202: 39
B203: 40
B204: 41
B205: 42
B206: 43
B207: 44
B208: 45
B209: 46
... 92 more rows

Sheet Mars
J1: Compte chèque | S1: Livret A | AB1: LEP
A2: Cpt Charlie | B2: Compte chèque Charlie | J2: Livret A Charlie | K2: Livret A | S2: LEP Charlie | T2: LEP
E5: Fin de moi précédent | G5: =Fevrier!F78 -> 794.54 € | K5: =IF((P9+P54=P5),0,1) -> 0 | N5: Fin de moi précédent | P5: =Fevrier!O78 -> 1,140.00 € | W5: Fin de moi précédent | Y5: =Fevrier!X78 -> 260
B7: N° de transaction | C7: Date | D7: Objet | E7: Précision | F7: debit | G7: Crédit | H7: Type de paiment | I7: Divers | K7: Animaux | T7: N° de transaction | U7: Date | V7: Objet | W7: Précision | X7: debit | Y7: Crédit | Z7: Type de paiment | AA7: Divers
B8: 1 | C8: 2024-03-02 | D8: Salaire | E8: Décembre | G8: 2,304.59 € | H8: Virement banquaire | T8: 1 | U8: 2024-03-05 | V8: travaux | Y8: 50.00 € | Z8: Virement intercompte
B9: 2 | C9: 2024-03-05 | D9: Bois | F9: 60.00 € | H9: Virement intercompte | I9: Cpt Cjoint | N9: Fin de moi précédent | P9: =Fevrier!O48 -> 640.00 € | T9: 2
B10: 3 | C10: 2024-03-05 | D10: Prêt maison | F10: 443.23 € | H10: Virement intercompte | I10: Cpt Cjoint | T10: 3
B11: 4 | C11: 2024-03-05 | D11: Prêt travaux | F11: 70.34 € | H11: Virement intercompte | I11: Cpt Cjoint | K11: N° de transaction | L11: Date | M11: Objet | N11: Précision | O11: debit | P11: Crédit | Q11: Type de paiment | R11: Divers | T11: 4
B12: 5 | C12: 2024-03-05 | D12: Prêt travaux | F12: 155.37 € | H12: Virement intercompte | I12: Cpt Cjoint | T12: 5
B13: 6 | C13: 2024-03-05 | D13: Frais Banquaire | F13: 10.00 € | H13: Virement intercompte | I13: Cpt Cjoint | K13: 1 | L13: 2024-03-05 | M13: animaux | P13: 70.00 € | Q13: Virement intercompte | T13: 6
B14: 7 | C14: 2024-03-05 | D14: Eau | F14: 55.00 € | H14: Virement intercompte | I14: Cpt Cjoint | K14: 2 | T14: 7
B15: 8 | C15: 2024-03-05 | D15: Prêt Duster | F15: 323.97 € | H15: Virement intercompte | I15: Cpt Cjoint | K15: 3 | T15: 8
B16: 9 | C16: 2024-03-05 | D16: Assurances | F16: 130.00 € | H16: Virement intercompte | I16: Cpt Cjoint | K16: 4 | T16: 9
B17: 10 | C17: 2024-03-05 | D17: Téléphone | F17: 55.00 € | H17: Virement intercompte | I17: Cpt Cjoint | K17: 5 | T17: 10
B18: 11 | C18: 2024-03-05 | D18: mutuelle | F18: 70.00 € | H18: Virement intercompte | I18: Cpt Cjoint | K18: 6 | T18: 11
B19: 12 | C19: 2024-03-05 | D19: Electricité | F19: 105.00 € | H19: Virement intercompte | I19: Cpt Cjoint | K19: 7 | T19: 12
B20: 13 | C20: 2024-03-05 | D20: gaz | F20: 70.00 € | H20: Virement intercompte | I20: Cpt Cjoint | K20: 8 | T20: 13
B21: 14 | C21: 2024-03-05 | D21: Impot et taxe | F21: 100.00 € | H21: Virement intercompte | I21: Livret A Charlie | K21: 9 | T21: 14
B22: 15 | C22: 2024-03-05 | D22: Travaux | F22: 50.00 € | H22: Virement intercompte | I22: LEP Charlie | K22: 10 | T22: 15
B23: 16 | C23: 2024-03-05 | D23: Animaux | F23: 70.00 € | H23: Virement intercompte | I23: Livret A Charlie | K23: 11 | T23: 16
B24: 17 | C24: 2024-03-05 | D24: Entretien voiture | F24: 75.00 € | H24: Virement intercompte | I24: Cpt Cjoint | K24: 12 | T24: 17
B25: 18 | D25: Loisir | E25: Weigth Watcher | F25: 8.75 € | H25: Paypal | K25: 13 | T25: 18
B26: 19 | D26: Loisir | E26: Familleo | F26: 5.99 € | H26: Prélèvement | K26: 14 | T26: 19
B27: 20 | E27: Netflix | F27: 18.99 € | K27: 15 | T27: 20
B28: 21 | K28: 16 | T28: 21
B29: 22 | K29: 17 | T29: 22
B30: 23 | K30: 18 | T30: 23
B31: 24 | K31: 19 | T31: 24
B32: 25 | K32: 20 | T32: 25
B33: 26 | K33: 21 | T33: 26
B34: 27 | K34: 22 | T34: 27
B35: 28 | K35: 23 | T35: 28
B36: 29 | K36: 24 | T36: 29
B37: 30 | K37: 25 | T37: 30
B38: 31 | K38: 26 | T38: 31
B39: 32 | K39: 27 | T39: 32
B40: 33 | K40: 28 | T40: 33
B41: 34 | K41: 29 | T41: 34
B42: 35 | K42: 30 | T42: 35
B43: 36 | K43: 31 | T43: 36
B44: 37 | K44: 32 | T44: 37
B45: 38 | K45: 33 | T45: 38
B46: 39 | K46: 34 | T46: 39
B47: 40 | N47: Sous Total | O47: =SUM(O13:O46) -> 0.00 € | P47: 70.00 € | T47: 40
B48: 41 | N48: Total | O48: =P47-O47+P9 -> 710.00 € | T48: 41
B49: 42 | T49: 42
B50: 43 | T50: 43
B51: 44 | K51: Impot et taxe | T51: 44
B52: 45 | T52: 45
B53: 46 | T53: 46
B54: 47 | N54: Fin de moi précédent | P54: =Fevrier!O75 -> 500.00 € | T54: 47
B55: 48 | T55: 48
B56: 49 | K56: N° de transaction | L56: Date | M56: Objet | N56: Précision | O56: debit | P56: Crédit | Q56: Virement intercompte | R56: Divers | T56: 49
B57: 50 | T57: 50
B58: 51 | K58: 1 | L58: 2024-03-05 | M58: Impot et taxe | N58: charlie | P58: 100.00 € | Q58: Virement intercompte | T58: 51
B59: 52 | K59: 2 | T59: 52
B60: 53 | K60: 3 | T60: 53
B61: 54 | K61: 4 | T61: 54
B62: 55 | K62: 5 | T62: 55
B63: 56 | K63: 6 | T63: 56
B64: 57 | K64: 7 | T64: 57
B65: 58 | K65: 8 | T65: 58
B66: 59 | K66: 9 | T66: 59
B67: 60 | K67: 10 | T67: 60
B68: 61 | K68: 11 | T68: 61
B69: 62 | K69: 12 | T69: 62
B70: 63 | K70: 13 | T70: 63
B71: 64 | K71: 14 | T71: 64
B72: 65 | K72: 15 | T72: 65
B73: 66 | K73: 16 | T73: 66
B74: 67 | N74: Sous Total | O74: =SUM(O58:O73) -> 0.00 € | P74: 100.00 € | T74: 67
B75: 68 | N75: Total | O75: =P74-O74+P54 -> 600.00 € | T75: 68
B76: 69 | T76: 69
E77: Sous Total | F77: =SUM(F8:F76) -> 1,876.64 € | G77: 2,304.59 € | N77: Sous Total | O77: =O74+O47 -> 0.00 € | P77: 170.00 € | W77: Sous Total | X77: =SUM(X8:X76) -> 0.00 € | Y77: 50.00 €
E78: Total | F78: =G5+G77-F77 -> 1,222.49 € | N78: Total | O78: =P5+P77-O77 -> 1,310.00 € | W78: Total | X78: =Y5+Y77-X77 -> 310.00 €
A79: Charlie
A80: Cpt Mapie | B80: Compte chèque Mapie | K80: Livret A Mapie | T80: LEP Mapie
E83: Fin de moi précédent | G83: =Fevrier!F156 -> 959.08 € | N83: Fin de moi précédent | P83: =Fevrier!O156 -> 2,471.43 € | W83: Fin de moi précédent | Y83: =Fevrier!X156 -> 3,092.20 €
B85: N° de transaction | C85: Date | D85: Objet | E85: Précision | F85: debit | G85: Crédit | H85: Type de paiment | I85: Divers | K85: N° de transaction | L85: Date | M85: Objet | N85: Précision | O85: debit | P85: Crédit | Q85: Type de paiment | R85: Divers | T85: N° de transaction | U85: Date | V85: Objet | W85: Précision | X85: debit | Y85: Crédit | Z85: Type de paiment | AA85: Divers
B86: 1 | C86: 2024-03-02 | D86: Salaire | E86: aide de fin de formation | G86: 723.23 € | H86: Virement banquaire | K86: 1 | T86: 1
B87: 2 | C87: 2024-03-03 | D87: Salaire | E87: CAF | G87: 416.31 € | H87: Virement banquaire | I87: Cpt Cjoint | K87: 2 | T87: 2
B88: 3 | C88: 2024-03-05 | D88: Frais Banquaire | F88: 10.00 € | H88: Virement intercompte | I88: Cpt Cjoint | K88: 3 | T88: 3
B89: 4 | C89: 2024-03-05 | D89: Scolarité | F89: 280.00 € | H89: Virement intercompte | I89: Cpt Cjoint | K89: 4 | T89: 4
B90: 5 | C90: 2024-03-05 | D90: sport | F90: 130.00 € | H90: Virement intercompte | I90: Cpt Cjoint | K90: 5 | T90: 5
B91: 6 | C91: 2024-03-05 | D91: Nourrice | E91: salaire | F91: 120.00 € | H91: Virement intercompte | I91: Cpt Cjoint | K91: 6 | T91: 6
B92: 7 | C92: 2024-03-05 | D92: Nourrice | E92: congé | F92: 50.00 € | H92: Virement intercompte | I92: Cpt Cjoint | K92: 7 | T92: 7
B93: 8 | C93: 2024-03-05 | D93: Epargne | E93: Arzhel | F93: 20.00 € | H93: Virement intercompte | I93: Livret A Azylis | K93: 8 | T93: 8
B94: 9 | C94: 2024-03-05 | D94: Epargne | E94: Azylis | F94: 20.00 € | H94: Virement intercompte | I94: Livret A Azylis | K94: 9 | T94: 9
B95: 10 | C95: 2024-03-05 | D95: Epargne | E95: Azekiel | F95: 30.00 € | H95: Virement intercompte | I95: Livret A Azekiel | K95: 10 | T95: 10
B96: 11 | K96: 11 | T96: 11
B97: 12 | K97: 12 | T97: 12
B98: 13 | K98: 13 | T98: 13
B99: 14 | K99: 14 | T99: 14
B100: 15 | K100: 15 | T100: 15
B101: 16 | K101: 16 | T101: 16
B102: 17 | K102: 17 | T102: 17
B103: 18 | K103: 18 | T103: 18
B104: 19 | K104: 19 | T104: 19
B105: 20 | K105: 20 | T105: 20
B106: 21 | K106: 21 | T106: 21
B107: 22 | K107: 22 | T107: 22
B108: 23 | K108: 23 | T108: 23
B109: 24 | K109: 24 | T109: 24
B110: 25 | K110: 25 | T110: 25
B111: 26 | K111: 26 | T111: 26
B112: 27 | K112: 27 | T112: 27
B113: 28 | K113: 28 | T113: 28
B114: 29 | K114: 29 | T114: 29
B115: 30 | K115: 30 | T115: 30
B116: 31 | K116: 31 | T116: 31
B117: 32 | K117: 32 | T117: 32
B118: 33 | K118: 33 | T118: 33
B119: 34 | K119: 34 | T119: 34
B120: 35 | K120: 35 | T120: 35
B121: 36 | K121: 36 | T121: 36
B122: 37 | K122: 37 | T122: 37
B123: 38 | K123: 38 | T123: 38
B124: 39 | K124: 39 | T124: 39
B125: 40 | K125: 40 | T125: 40
B126: 41 | K126: 41 | T126: 41
B127: 42 | K127: 42 | T127: 42
B128: 43 | K128: 43 | T128: 43
B129: 44 | K129: 44 | T129: 44
B130: 45 | K130: 45 | T130: 45
B131: 46 | K131: 46 | T131: 46
B132: 47 | K132: 47 | T132: 47
B133: 48 | K133: 48 | T133: 48
B134: 49 | K134: 49 | T134: 49
B135: 50 | K135: 50 | T135: 50
B136: 51 | K136: 51 | T136: 51
B137: 52 | K137: 52 | T137: 52
B138: 53 | K138: 53 | T138: 53
B139: 54 | K139: 54 | T139: 54
B140: 55 | K140: 55 | T140: 55
B141: 56 | K141: 56 | T141: 56
B142: 57 | K142: 57 | T142: 57
B143: 58 | K143: 58 | T143: 58
B144: 59 | K144: 59 | T144: 59
B145: 60 | K145: 60 | T145: 60
B146: 61 | K146: 61 | T146: 61
B147: 62 | K147: 62 | T147: 62
B148: 63 | K148: 63 | T148: 63
B149: 64 | K149: 64 | T149: 64
B150: 65 | K150: 65 | T150: 65
B151: 66 | K151: 66 | T151: 66
B152: 67 | K152: 67 | T152: 67
B153: 68 | K153: 68 | T153: 68
B154: 69 | K154: 70 | T154: 70
E155: Sous Total | F155: =SUM(F86:F154) -> 660.00 € | G155: 1,139.54 € | N155: Sous Total | O155: =SUM(O86:O154) -> 0 | P155: 0 | W155: Sous Total | X155: =SUM(X86:X154) -> 0 | Y155: 0
E156: Total | F156: =G155-F155+G83 -> 1,438.62 € | N156: Total | O156: =P155-O155+P83 -> 2,471.43 € | W156: Total | X156: =Y155-X155+Y83 -> 3,092.20 €
A157: Mapie
A158: Cpt Joint | B158: Compte maison
E161: Fin de moi précédent | G161: =Fevrier!F234 -> 4,649.52 €
B163: N° de transaction | C163: Date | D163: Objet | E163: Précision | F163: debit | G163: Crédit | H163: Type de paiment | I163: Divers
B164: 1 | C164: 2024-03-05 | D164: Electricité | G164: 105.00 € | H164: Virement intercompte
B165: 2 | C165: 2024-03-05 | D165: gaz | G165: 70.00 € | H165: Virement intercompte
B166: 3 | C166: 2024-03-05 | D166: Bois | G166: 60.00 € | H166: Virement intercompte
B167: 4 | C167: 2024-03-05 | D167: Prêt maison | G167: 443.23 € | H167: Virement intercompte
B168: 5 | C168: 2024-03-05 | D168: Prêt travaux | G168: 70.34 € | H168: Virement intercompte
B169: 6 | C169: 2024-03-05 | D169: Prêt travaux | G169: 155.37 € | H169: Virement intercompte
B170: 7 | C170: 2024-03-05 | D170: Frais Banquaire | G170: 10.00 € | H170: Virement Mapie
B171: 8 | C171: 2024-03-05 | D171: Frais Banquaire | G171: 10.00 € | H171: Virement intercompte
B172: 9 | C172: 2024-03-05 | D172: Frais Banquaire | G172: 9.18 € | H172: Virement banquaire
B173: 10 | C173: 2024-03-05 | D173: Eau | G173: 55.00 € | H173: Virement intercompte
B174: 11 | C174: 2024-03-05 | D174: Prêt Duster | G174: 323.97 € | H174: Virement intercompte
B175: 12 | C175: 2024-03-05 | D175: Scolarité | G175: 280.00 € | H175: Virement Mapie
B176: 13 | C176: 2024-03-05 | D176: sport | G176: 130.00 € | H176: Virement Mapie
B177: 14 | C177: 2024-03-05 | D177: Assurances | G177: 130.00 € | H177: Virement intercompte
B178: 15 | C178: 2024-03-05 | D178: Téléphone | G178: 55.00 € | H178: Virement intercompte
B179: 16 | C179: 2024-03-05 | D179: mutuelle | G179: 70.00 € | H179: Virement intercompte
B180: 17 | C180: 2024-03-05 | D180: salaire | G180: 120.00 €
B181: 18 | C181: 2024-03-05 | D181: Nourrice | E181: congé | G181: 50.00 € | H181: Virement Mapie
B182: 19 | C182: 2024-03-05 | D182: Nourrice | E182: recouvrement PAJE | G182: 319.07 € | H182: Virement banquaire
B183: 20 | C183: 2024-03-05 | D183: Entretien voiture | G183: 75.00 € | H183: Virement intercompte
B184: 21 | D184: Nourrice | E184: Salaire | H184: Virement banquaire
B185: 22 | D185: Electricité | F185: 103.00 € | H185: Prélèvement
B186: 23 | D186: gaz | F186: 49.00 € | H186: Prélèvement
B187: 24 | D187: Prêt maison | F187: 443.23 € | H187: Prélèvement
B188: 25 | D188: Prêt travaux | F188: 70.34 € | H188: Prélèvement
B189: 26 | D189: Prêt travaux | F189: 155.37 € | H189: Prélèvement
B190: 27 | D190: Frais Banquaire | F190: 23.46 € | H190: Prélèvement
B191: 28 | D191: Prêt Duster | F191: 323.97 € | H191: Prélèvement
B192: 29 | D192: Scolarité | H192: Prélèvement
B193: 30 | D193: Téléphone | F193: 16.84 € | H193: Prélèvement
B194: 31 | D194: Téléphone | F194: 28.99 € | H194: Prélèvement
B195: 32 | D195: mutuelle | F195: 70.00 € | H195: Prélèvement
B196: 33
B197: 34
B198: 35
B199: 36
B200: 37
B201: 38
B202: 39
B203: 40
B204: 41
B205: 42
B206: 43
B207: 44
B208: 45
B209: 46
... 92 more rows

Sheet Avril
J1: Compte chèque | S1: Livret A | AB1: LEP
A2: Cpt Charlie | B2: Compte chèque Charlie | J2: Livret A Charlie | K2: Livret A | S2: LEP Charlie | T2: LEP
E5: Fin de moi précédent | G5: =Fevrier!F78 -> 794.54 € | K5: =IF((P9+P54=P5),0,1) -> 0 | N5: Fin de moi précédent | P5: =Fevrier!O78 -> 1,140.00 € | W5: Fin de moi précédent | Y5: =Fevrier!X78 -> 260
B7: N° de transaction | C7: Date | D7: Objet | E7: Précision | F7: debit | G7: Crédit | H7: Type de paiment | I7: Divers | K7: Animaux | T7: N° de transaction | U7: Date | V7: Objet | W7: Précision | X7: debit | Y7: Crédit | Z7: Type de paiment | AA7: Divers
B8: 1 | C8: 2024-04-02 | D8: Salaire | E8: Décembre | G8: 2,304.59 € | H8: Virement banquaire | T8: 1 | U8: 2024-04-05 | V8: travaux | Y8: 50.00 € | Z8: Virement intercompte
B9: 2 | C9: 2024-04-05 | D9: Bois | F9: 60.00 € | H9: Virement intercompte | I9: Cpt Cjoint | N9: Fin de moi précédent | P9: =Fevrier!O48 -> 640.00 € | T9: 2
B10: 3 | C10: 2024-04-05 | D10: Prêt maison | F10: 443.23 € | H10: Virement intercompte | I10: Cpt Cjoint | T10: 3
B11: 4 | C11: 2024-04-05 | D11: Prêt travaux | F11: 70.34 € | H11: Virement intercompte | I11: Cpt Cjoint | K11: N° de transaction | L11: Date | M11: Objet | N11: Précision | O11: debit | P11: Crédit | Q11: Type de paiment | R11: Divers | T11: 4
B12: 5 | C12: 2024-04-05 | D12: Prêt travaux | F12: 155.37 € | H12: Virement intercompte | I12: Cpt Cjoint | T12: 5
B13: 6 | C13: 2024-04-05 | D13: Frais Banquaire | F13: 10.00 € | H13: Virement intercompte | I13: Cpt Cjoint | K13: 1 | L13: 2024-04-05 | M13: animaux | P13: 70.00 € | Q13: Virement intercompte | T13: 6
B14: 7 | C14: 2024-04-05 | D14: Eau | F14: 55.00 € | H14: Virement intercompte | I14: Cpt Cjoint | K14: 2 | T14: 7
B15: 8 | C15: 2024-04-05 | D15: Prêt Duster | F15: 323.97 € | H15: Virement intercompte | I15: Cpt Cjoint | K15: 3 | T15: 8
B16: 9 | C16: 2024-04-05 | D16: Assurances | F16: 130.00 € | H16: Virement intercompte | I16: Cpt Cjoint | K16: 4 | T16: 9
B17: 10 | C17: 2024-04-05 | D17: Téléphone | F17: 55.00 € | H17: Virement intercompte | I17: Cpt Cjoint | K17: 5 | T17: 10
B18: 11 | C18: 2024-04-05 | D18: mutuelle | F18: 70.00 € | H18: Virement intercompte | I18: Cpt Cjoint | K18: 6 | T18: 11
B19: 12 | C19: 2024-04-05 | D19: Electricité | F19: 105.00 € | H19: Virement intercompte | I19: Cpt Cjoint | K19: 7 | T19: 12
B20: 13 | C20: 2024-04-05 | D20: gaz | F20: 70.00 € | H20: Virement intercompte | I20: Cpt Cjoint | K20: 8 | T20: 13
B21: 14 | C21: 2024-04-05 | D21: Impot et taxe | F21: 100.00 € | H21: Virement intercompte | I21: Livret A Charlie | K21: 9 | T21: 14
B22: 15 | C22: 2024-04-05 | D22: Travaux | F22: 50.00 € | H22: Virement intercompte | I22: LEP Charlie | K22: 10 | T22: 15
B23: 16 | C23: 2024-04-05 | D23: Animaux | F23: 70.00 € | H23: Virement intercompte | I23: Livret A Charlie | K23: 11 | T23: 16
B24: 17 | C24: 2024-04-05 | D24: Entretien voiture | F24: 75.00 € | H24: Virement intercompte | I24: Cpt Cjoint | K24: 12 | T24: 17
B25: 18 | D25: Loisir | E25: Weigth Watcher | F25: 8.75 € | H25: Paypal | K25: 13 | T25: 18
B26: 19 | D26: Loisir | E26: Familleo | F26: 5.99 € | H26: Prélèvement | K26: 14 | T26: 19
B27: 20 | E27: Netflix | F27: 18.99 € | K27: 15 | T27: 20
B28: 21 | K28: 16 | T28: 21
B29: 22 | K29: 17 | T29: 22
B30: 23 | K30: 18 | T30: 23
B31: 24 | K31: 19 | T31: 24
B32: 25 | K32: 20 | T32: 25
B33: 26 | K33: 21 | T33: 26
B34: 27 | K34: 22 | T34: 27
B35: 28 | K35: 23 | T35: 28
B36: 29 | K36: 24 | T36: 29
B37: 30 | K37: 25 | T37: 30
B38: 31 | K38: 26 | T38: 31
B39: 32 | K39: 27 | T39: 32
B40: 33 | K40: 28 | T40: 33
B41: 34 | K41: 29 | T41: 34
B42: 35 | K42: 30 | T42: 35
B43: 36 | K43: 31 | T43: 36
B44: 37 | K44: 32 | T44: 37
B45: 38 | K45: 33 | T45: 38
B46: 39 | K46: 34 | T46: 39
B47: 40 | N47: Sous Total | O47: =SUM(O13:O46) -> 0.00 € | P47: 70.00 € | T47: 40
B48: 41 | N48: Total | O48: =P47-O47+P9 -> 710.00 € | T48: 41
B49: 42 | T49: 42
B50: 43 | T50: 43
B51: 44 | K51: Impot et taxe | T51: 44
B52: 45 | T52: 45
B53: 46 | T53: 46
B54: 47 | N54: Fin de moi précédent | P54: =Fevrier!O75 -> 500.00 € | T54: 47
B55: 48 | T55: 48
B56: 49 | K56: N° de transaction | L56: Date | M56: Objet | N56: Précision | O56: debit | P56: Crédit | Q56: Virement intercompte | R56: Divers | T56: 49
B57: 50 | T57: 50
B58: 51 | K58: 1 | L58: 2024-04-05 | M58: Impot et taxe | N58: charlie | P58: 100.00 € | Q58: Virement intercompte | T58: 51
B59: 52 | K59: 2 | T59: 52
B60: 53 | K60: 3 | T60: 53
B61: 54 | K61: 4 | T61: 54
B62: 55 | K62: 5 | T62: 55
B63: 56 | K63: 6 | T63: 56
B64: 57 | K64: 7 | T64: 57
B65: 58 | K65: 8 | T65: 58
B66: 59 | K66: 9 | T66: 59
B67: 60 | K67: 10 | T67: 60
B68: 61 | K68: 11 | T68: 61
B69: 62 | K69: 12 | T69: 62
B70: 63 | K70: 13 | T70: 63
B71: 64 | K71: 14 | T71: 64
B72: 65 | K72: 15 | T72: 65
B73: 66 | K73: 16 | T73: 66
B74: 67 | N74: Sous Total | O74: =SUM(O58:O73) -> 0.00 € | P74: 100.00 € | T74: 67
B75: 68 | N75: Total | O75: =P74-O74+P54 -> 600.00 € | T75: 68
B76: 69 | T76: 69
E77: Sous Total | F77: =SUM(F8:F76) -> 1,876.64 € | G77: 2,304.59 € | N77: Sous Total | O77: =O74+O47 -> 0.00 € | P77: 170.00 € | W77: Sous Total | X77: =SUM(X8:X76) -> 0.00 € | Y77: 50.00 €
E78: Total | F78: =G5+G77-F77 -> 1,222.49 € | N78: Total | O78: =P5+P77-O77 -> 1,310.00 € | W78: Total | X78: =Y5+Y77-X77 -> 310.00 €
A79: Charlie
A80: Cpt Mapie | B80: Compte chèque Mapie | K80: Livret A Mapie | T80: LEP Mapie
E83: Fin de moi précédent | G83: =Fevrier!F156 -> 959.08 € | N83: Fin de moi précédent | P83: =Fevrier!O156 -> 2,471.43 € | W83: Fin de moi précédent | Y83: =Fevrier!X156 -> 3,092.20 €
B85: N° de transaction | C85: Date | D85: Objet | E85: Précision | F85: debit | G85: Crédit | H85: Type de paiment | I85: Divers | K85: N° de transaction | L85: Date | M85: Objet | N85: Précision | O85: debit | P85: Crédit | Q85: Type de paiment | R85: Divers | T85: N° de transaction | U85: Date | V85: Objet | W85: Précision | X85: debit | Y85: Crédit | Z85: Type de paiment | AA85: Divers
B86: 1 | C86: 2024-04-02 | D86: Salaire | E86: aide de fin de formation | G86: 723.23 € | H86: Virement banquaire | K86: 1 | T86: 1
B87: 2 | C87: 2024-04-03 | D87: Salaire | E87: CAF | G87: 416.31 € | H87: Virement banquaire | I87: Cpt Cjoint | K87: 2 | T87: 2
B88: 3 | C88: 2024-04-05 | D88: Frais Banquaire | F88: 10.00 € | H88: Virement intercompte | I88: Cpt Cjoint | K88: 3 | T88: 3
B89: 4 | C89: 2024-04-05 | D89: Scolarité | F89: 280.00 € | H89: Virement intercompte | I89: Cpt Cjoint | K89: 4 | T89: 4
B90: 5 | C90: 2024-04-05 | D90: sport | F90: 130.00 € | H90: Virement intercompte | I90: Cpt Cjoint | K90: 5 | T90: 5
B91: 6 | C91: 2024-04-05 | D91: Nourrice | E91: salaire | F91: 120.00 € | H91: Virement intercompte | I91: Cpt Cjoint | K91: 6 | T91: 6
B92: 7 | C92: 2024-04-05 | D92: Nourrice | E92: congé | F92: 50.00 € | H92: Virement intercompte | I92: Cpt Cjoint | K92: 7 | T92: 7
B93: 8 | C93: 2024-04-05 | D93: Epargne | E93: Arzhel | F93: 20.00 € | H93: Virement intercompte | I93: Livret A Azylis | K93: 8 | T93: 8
B94: 9 | C94: 2024-04-05 | D94: Epargne | E94: Azylis | F94: 20.00 € | H94: Virement intercompte | I94: Livret A Azylis | K94: 9 | T94: 9
B95: 10 | C95: 2024-04-05 | D95: Epargne | E95: Azekiel | F95: 30.00 € | H95: Virement intercompte | I95: Livret A Azekiel | K95: 10 | T95: 10
B96: 11 | K96: 11 | T96: 11
B97: 12 | K97: 12 | T97: 12
B98: 13 | K98: 13 | T98: 13
B99: 14 | K99: 14 | T99: 14
B100: 15 | K100: 15 | T100: 15
B101: 16 | K101: 16 | T101: 16
B102: 17 | K102: 17 | T102: 17
B103: 18 | K103: 18 | T103: 18
B104: 19 | K104: 19 | T104: 19
B105: 20 | K105: 20 | T105: 20
B106: 21 | K106: 21 | T106: 21
B107: 22 | K107: 22 | T107: 22
B108: 23 | K108: 23 | T108: 23
B109: 24 | K109: 24 | T109: 24
B110: 25 | K110: 25 | T110: 25
B111: 26 | K111: 26 | T111: 26
B112: 27 | K112: 27 | T112: 27
B113: 28 | K113: 28 | T113: 28
B114: 29 | K114: 29 | T114: 29
B115: 30 | K115: 30 | T115: 30
B116: 31 | K116: 31 | T116: 31
B117: 32 | K117: 32 | T117: 32
B118: 33 | K118: 33 | T118: 33
B119: 34 | K119: 34 | T119: 34
B120: 35 | K120: 35 | T120: 35
B121: 36 | K121: 36 | T121: 36
B122: 37 | K122: 37 | T122: 37
B123: 38 | K123: 38 | T123: 38
B124: 39 | K124: 39 | T124: 39
B125: 40 | K125: 40 | T125: 40
B126: 41 | K126: 41 | T126: 41
B127: 42 | K127: 42 | T127: 42
B128: 43 | K128: 43 | T128: 43
B129: 44 | K129: 44 | T129: 44
B130: 45 | K130: 45 | T130: 45
B131: 46 | K131: 46 | T131: 46
B132: 47 | K132: 47 | T132: 47
B133: 48 | K133: 48 | T133: 48
B134: 49 | K134: 49 | T134: 49
B135: 50 | K135: 50 | T135: 50
B136: 51 | K136: 51 | T136: 51
B137: 52 | K137: 52 | T137: 52
B138: 53 | K138: 53 | T138: 53
B139: 54 | K139: 54 | T139: 54
B140: 55 | K140: 55 | T140: 55
B141: 56 | K141: 56 | T141: 56
B142: 57 | K142: 57 | T142: 57
B143: 58 | K143: 58 | T143: 58
B144: 59 | K144: 59 | T144: 59
B145: 60 | K145: 60 | T145: 60
B146: 61 | K146: 61 | T146: 61
B147: 62 | K147: 62 | T147: 62
B148: 63 | K148: 63 | T148: 63
B149: 64 | K149: 64 | T149: 64
B150: 65 | K150: 65 | T150: 65
B151: 66 | K151: 66 | T151: 66
B152: 67 | K152: 67 | T152: 67
B153: 68 | K153: 68 | T153: 68
B154: 69 | K154: 70 | T154: 70
E155: Sous Total | F155: =SUM(F86:F154) -> 660.00 € | G155: 1,139.54 € | N155: Sous Total | O155: =SUM(O86:O154) -> 0 | P155: 0 | W155: Sous Total | X155: =SUM(X86:X154) -> 0 | Y155: 0
E156: Total | F156: =G155-F155+G83 -> 1,438.62 € | N156: Total | O156: =P155-O155+P83 -> 2,471.43 € | W156: Total | X156: =Y155-X155+Y83 -> 3,092.20 €
A157: Mapie
A158: Cpt Joint | B158: Compte maison
E161: Fin de moi précédent | G161: =Fevrier!F234 -> 4,649.52 €
B163: N° de transaction | C163: Date | D163: Objet | E163: Précision | F163: debit | G163: Crédit | H163: Type de paiment | I163: Divers
B164: 1 | C164: 2024-04-05 | D164: Electricité | G164: 105.00 € | H164: Virement intercompte
B165: 2 | C165: 2024-04-05 | D165: gaz | G165: 70.00 € | H165: Virement intercompte
B166: 3 | C166: 2024-04-05 | D166: Bois | G166: 60.00 € | H166: Virement intercompte
B167: 4 | C167: 2024-04-05 | D167: Prêt maison | G167: 443.23 € | H167: Virement intercompte
B168: 5 | C168: 2024-04-05 | D168: Prêt travaux | G168: 70.34 € | H168: Virement intercompte
B169: 6 | C169: 2024-04-05 | D169: Prêt travaux | G169: 155.37 € | H169: Virement intercompte
B170: 7 | C170: 2024-04-05 | D170: Frais Banquaire | G170: 10.00 € | H170: Virement Mapie
B171: 8 | C171: 2024-04-05 | D171: Frais Banquaire | G171: 10.00 € | H171: Virement intercompte
B172: 9 | C172: 2024-04-05 | D172: Frais Banquaire | G172: 9.18 € | H172: Virement banquaire
B173: 10 | C173: 2024-04-05 | D173: Eau | G173: 55.00 € | H173: Virement intercompte
B174: 11 | C174: 2024-04-05 | D174: Prêt Duster | G174: 323.97 € | H174: Virement intercompte
B175: 12 | C175: 2024-04-05 | D175: Scolarité | G175: 280.00 € | H175: Virement Mapie
B176: 13 | C176: 2024-04-05 | D176: sport | G176: 130.00 € | H176: Virement Mapie
B177: 14 | C177: 2024-04-05 | D177: Assurances | G177: 130.00 € | H177: Virement intercompte
B178: 15 | C178: 2024-04-05 | D178: Téléphone | G178: 55.00 € | H178: Virement intercompte
B179: 16 | C179: 2024-04-05 | D179: mutuelle | G179: 70.00 € | H179: Virement intercompte
B180: 17 | C180: 2024-04-05 | D180: salaire | G180: 120.00 €
B181: 18 | C181: 2024-04-05 | D181: Nourrice | E181: congé | G181: 50.00 € | H181: Virement Mapie
B182: 19 | C182: 2024-04-05 | D182: Nourrice | E182: recouvrement PAJE | G182: 319.07 € | H182: Virement banquaire
B183: 20 | C183: 2024-04-05 | D183: Entretien voiture | G183: 75.00 € | H183: Virement intercompte
B184: 21 | D184: Nourrice | E184: Salaire | H184: Virement banquaire
B185: 22 | D185: Electricité | F185: 103.00 € | H185: Prélèvement
B186: 23 | D186: gaz | F186: 49.00 € | H186: Prélèvement
B187: 24 | D187: Prêt maison | F187: 443.23 € | H187: Prélèvement
B188: 25 | D188: Prêt travaux | F188: 70.34 € | H188: Prélèvement
B189: 26 | D189: Prêt travaux | F189: 155.37 € | H189: Prélèvement
B190: 27 | D190: Frais Banquaire | F190: 23.46 € | H190: Prélèvement
B191: 28 | D191: Prêt Duster | F191: 323.97 € | H191: Prélèvement
B192: 29 | D192: Scolarité | H192: Prélèvement
B193: 30 | D193: Téléphone | F193: 16.84 € | H193: Prélèvement
B194: 31 | D194: Téléphone | F194: 28.99 € | H194: Prélèvement
B195: 32 | D195: mutuelle | F195: 70.00 € | H195: Prélèvement
B196: 33
B197: 34
B198: 35
B199: 36
B200: 37
B201: 38
B202: 39
B203: 40
B204: 41
B205: 42
B206: 43
B207: 44
B208: 45
B209: 46
... 92 more rows

Sheet Mai
J1: Compte chèque | S1: Livret A | AB1: LEP
A2: Cpt Charlie | B2: Compte chèque Charlie | J2: Livret A Charlie | K2: Livret A | S2: LEP Charlie | T2: LEP
E5: Fin de moi précédent | G5: =Fevrier!F78 -> 794.54 € | K5: =IF((P9+P54=P5),0,1) -> 0 | N5: Fin de moi précédent | P5: =Fevrier!O78 -> 1,140.00 € | W5: Fin de moi précédent | Y5: =Fevrier!X78 -> 260
B7: N° de transaction | C7: Date | D7: Objet | E7: Précision | F7: debit | G7: Crédit | H7: Type de paiment | I7: Divers | K7: Animaux | T7: N° de transaction | U7: Date | V7: Objet | W7: Précision | X7: debit | Y7: Crédit | Z7: Type de paiment | AA7: Divers
B8: 1 | C8: 2024-05-02 | D8: Salaire | E8: Décembre | G8: 2,304.59 € | H8: Virement banquaire | T8: 1 | U8: 2024-05-05 | V8: travaux | Y8: 50.00 € | Z8: Virement intercompte
B9: 2 | C9: 2024-05-05 | D9: Bois | F9: 60.00 € | H9: Virement intercompte | I9: Cpt Cjoint | N9: Fin de moi précédent | P9: =Fevrier!O48 -> 640.00 € | T9: 2
B10: 3 | C10: 2024-05-05 | D10: Prêt maison | F10: 443.23 € | H10: Virement intercompte | I10: Cpt Cjoint | T10: 3
B11: 4 | C11: 2024-05-05 | D11: Prêt travaux | F11: 70.34 € | H11: Virement intercompte | I11: Cpt Cjoint | K11: N° de transaction | L11: Date | M11: Objet | N11: Précision | O11: debit | P11: Crédit | Q11: Type de paiment | R11: Divers | T11: 4
B12: 5 | C12: 2024-05-05 | D12: Prêt travaux | F12: 155.37 € | H12: Virement intercompte | I12: Cpt Cjoint | T12: 5
B13: 6 | C13: 2024-05-05 | D13: Frais Banquaire | F13: 10.00 € | H13: Virement intercompte | I13: Cpt Cjoint | K13: 1 | L13: 2024-05-05 | M13: animaux | P13: 70.00 € | Q13: Virement intercompte | T13: 6
B14: 7 | C14: 2024-05-05 | D14: Eau | F14: 55.00 € | H14: Virement intercompte | I14: Cpt Cjoint | K14: 2 | T14: 7
B15: 8 | C15: 2024-05-05 | D15: Prêt Duster | F15: 323.97 € | H15: Virement intercompte | I15: Cpt Cjoint | K15: 3 | T15: 8
B16: 9 | C16: 2024-05-05 | D16: Assurances | F16: 130.00 € | H16: Virement intercompte | I16: Cpt Cjoint | K16: 4 | T16: 9
B17: 10 | C17: 2024-05-05 | D17: Téléphone | F17: 55.00 € | H17: Virement intercompte | I17: Cpt Cjoint | K17: 5 | T17: 10
B18: 11 | C18: 2024-05-05 | D18: mutuelle | F18: 70.00 € | H18: Virement intercompte | I18: Cpt Cjoint | K18: 6 | T18: 11
B19: 12 | C19: 2024-05-05 | D19: Electricité | F19: 105.00 € | H19: Virement intercompte | I19: Cpt Cjoint | K19: 7 | T19: 12
B20: 13 | C20: 2024-05-05 | D20: gaz | F20: 70.00 € | H20: Virement intercompte | I20: Cpt Cjoint | K20: 8 | T20: 13
B21: 14 | C21: 2024-05-05 | D21: Impot et taxe | F21: 100.00 € | H21: Virement intercompte | I21: Livret A Charlie | K21: 9 | T21: 14
B22: 15 | C22: 2024-05-05 | D22: Travaux | F22: 50.00 € | H22: Virement intercompte | I22: LEP Charlie | K22: 10 | T22: 15
B23: 16 | C23: 2024-05-05 | D23: Animaux | F23: 70.00 € | H23: Virement intercompte | I23: Livret A Charlie | K23: 11 | T23: 16
B24: 17 | C24: 2024-05-05 | D24: Entretien voiture | F24: 75.00 € | H24: Virement intercompte | I24: Cpt Cjoint | K24: 12 | T24: 17
B25: 18 | D25: Loisir | E25: Weigth Watcher | F25: 8.75 € | H25: Paypal | K25: 13 | T25: 18
B26: 19 | D26: Loisir | E26: Familleo | F26: 5.99 € | H26: Prélèvement | K26: 14 | T26: 19
B27: 20 | E27: Netflix | F27: 18.99 € | K27: 15 | T27: 20
B28: 21 | K28: 16 | T28: 21
B29: 22 | K29: 17 | T29: 22
B30: 23 | K30: 18 | T30: 23
B31: 24 | K31: 19 | T31: 24
B32: 25 | K32: 20 | T32: 25
B33: 26 | K33: 21 | T33: 26
B34: 27 | K34: 22 | T34: 27
B35: 28 | K35: 23 | T35: 28
B36: 29 | K36: 24 | T36: 29
B37: 30 | K37: 25 | T37: 30
B38: 31 | K38: 26 | T38: 31
B39: 32 | K39: 27 | T39: 32
B40: 33 | K40: 28 | T40: 33
B41: 34 | K41: 29 | T41: 34
B42: 35 | K42: 30 | T42: 35
B43: 36 | K43: 31 | T43: 36
B44: 37 | K44: 32 | T44: 37
B45: 38 | K45: 33 | T45: 38
B46: 39 | K46: 34 | T46: 39
B47: 40 | N47: Sous Total | O47: =SUM(O13:O46) -> 0.00 € | P47: 70.00 € | T47: 40
B48: 41 | N48: Total | O48: =P47-O47+P9 -> 710.00 € | T48: 41
B49: 42 | T49: 42
B50: 43 | T50: 43
B51: 44 | K51: Impot et taxe | T51: 44
B52: 45 | T52: 45
B53: 46 | T53: 46
B54: 47 | N54: Fin de moi précédent | P54: =Fevrier!O75 -> 500.00 € | T54: 47
B55: 48 | T55: 48
B56: 49 | K56: N° de transaction | L56: Date | M56: Objet | N56: Précision | O56: debit | P56: Crédit | Q56: Virement intercompte | R56: Divers | T56: 49
B57: 50 | T57: 50
B58: 51 | K58: 1 | L58: 2024-05-05 | M58: Impot et taxe | N58: charlie | P58: 100.00 € | Q58: Virement intercompte | T58: 51
B59: 52 | K59: 2 | T59: 52
B60: 53 | K60: 3 | T60: 53
B61: 54 | K61: 4 | T61: 54
B62: 55 | K62: 5 | T62: 55
B63: 56 | K63: 6 | T63: 56
B64: 57 | K64: 7 | T64: 57
B65: 58 | K65: 8 | T65: 58
B66: 59 | K66: 9 | T66: 59
B67: 60 | K67: 10 | T67: 60
B68: 61 | K68: 11 | T68: 61
B69: 62 | K69: 12 | T69: 62
B70: 63 | K70: 13 | T70: 63
B71: 64 | K71: 14 | T71: 64
B72: 65 | K72: 15 | T72: 65
B73: 66 | K73: 16 | T73: 66
B74: 67 | N74: Sous Total | O74: =SUM(O58:O73) -> 0.00 € | P74: 100.00 € | T74: 67
B75: 68 | N75: Total | O75: =P74-O74+P54 -> 600.00 € | T75: 68
B76: 69 | T76: 69
E77: Sous Total | F77: =SUM(F8:F76) -> 1,876.64 € | G77: 2,304.59 € | N77: Sous Total | O77: =O74+O47 -> 0.00 € | P77: 170.00 € | W77: Sous Total | X77: =SUM(X8:X76) -> 0.00 € | Y77: 50.00 €
E78: Total | F78: =G5+G77-F77 -> 1,222.49 € | N78: Total | O78: =P5+P77-O77 -> 1,310.00 € | W78: Total | X78: =Y5+Y77-X77 -> 310.00 €
A79: Charlie
A80: Cpt Mapie | B80: Compte chèque Mapie | K80: Livret A Mapie | T80: LEP Mapie
E83: Fin de moi précédent | G83: =Fevrier!F156 -> 959.08 € | N83: Fin de moi précédent | P83: =Fevrier!O156 -> 2,471.43 € | W83: Fin de moi précédent | Y83: =Fevrier!X156 -> 3,092.20 €
B85: N° de transaction | C85: Date | D85: Objet | E85: Précision | F85: debit | G85: Crédit | H85: Type de paiment | I85: Divers | K85: N° de transaction | L85: Date | M85: Objet | N85: Précision | O85: debit | P85: Crédit | Q85: Type de paiment | R85: Divers | T85: N° de transaction | U85: Date | V85: Objet | W85: Précision | X85: debit | Y85: Crédit | Z85: Type de paiment | AA85: Divers
B86: 1 | C86: 2024-05-02 | D86: Salaire | E86: aide de fin de formation | G86: 723.23 € | H86: Virement banquaire | K86: 1 | T86: 1
B87: 2 | C87: 2024-05-03 | D87: Salaire | E87: CAF | G87: 416.31 € | H87: Virement banquaire | I87: Cpt Cjoint | K87: 2 | T87: 2
B88: 3 | C88: 2024-05-05 | D88: Frais Banquaire | F88: 10.00 € | H88: Virement intercompte | I88: Cpt Cjoint | K88: 3 | T88: 3
B89: 4 | C89: 2024-05-05 | D89: Scolarité | F89: 280.00 € | H89: Virement intercompte | I89: Cpt Cjoint | K89: 4 | T89: 4
B90: 5 | C90: 2024-05-05 | D90: sport | F90: 130.00 € | H90: Virement intercompte | I90: Cpt Cjoint | K90: 5 | T90: 5
B91: 6 | C91: 2024-05-05 | D91: Nourrice | E91: salaire | F91: 120.00 € | H91: Virement intercompte | I91: Cpt Cjoint | K91: 6 | T91: 6
B92: 7 | C92: 2024-05-05 | D92: Nourrice | E92: congé | F92: 50.00 € | H92: Virement intercompte | I92: Cpt Cjoint | K92: 7 | T92: 7
B93: 8 | C93: 2024-05-05 | D93: Epargne | E93: Arzhel | F93: 20.00 € | H93: Virement intercompte | I93: Livret A Azylis | K93: 8 | T93: 8
B94: 9 | C94: 2024-05-05 | D94: Epargne | E94: Azylis | F94: 20.00 € | H94: Virement intercompte | I94: Livret A Azylis | K94: 9 | T94: 9
B95: 10 | C95: 2024-05-05 | D95: Epargne | E95: Azekiel | F95: 30.00 € | H95: Virement intercompte | I95: Livret A Azekiel | K95: 10 | T95: 10
B96: 11 | K96: 11 | T96: 11
B97: 12 | K97: 12 | T97: 12
B98: 13 | K98: 13 | T98: 13
B99: 14 | K99: 14 | T99: 14
B100: 15 | K100: 15 | T100: 15
B101: 16 | K101: 16 | T101: 16
B102: 17 | K102: 17 | T102: 17
B103: 18 | K103: 18 | T103: 18
B104: 19 | K104: 19 | T104: 19
B105: 20 | K105: 20 | T105: 20
B106: 21 | K106: 21 | T106: 21
B107: 22 | K107: 22 | T107: 22
B108: 23 | K108: 23 | T108: 23
B109: 24 | K109: 24 | T109: 24
B110: 25 | K110: 25 | T110: 25
B111: 26 | K111: 26 | T111: 26
B112: 27 | K112: 27 | T112: 27
B113: 28 | K113: 28 | T113: 28
B114: 29 | K114: 29 | T114: 29
B115: 30 | K115: 30 | T115: 30
B116: 31 | K116: 31 | T116: 31
B117: 32 | K117: 32 | T117: 32
B118: 33 | K118: 33 | T118: 33
B119: 34 | K119: 34 | T119: 34
B120: 35 | K120: 35 | T120: 35
B121: 36 | K121: 36 | T121: 36
B122: 37 | K122: 37 | T122: 37
B123: 38 | K123: 38 | T123: 38
B124: 39 | K124: 39 | T124: 39
B125: 40 | K125: 40 | T125: 40
B126: 41 | K126: 41 | T126: 41
B127: 42 | K127: 42 | T127: 42
B128: 43 | K128: 43 | T128: 43
B129: 44 | K129: 44 | T129: 44
B130: 45 | K130: 45 | T130: 45
B131: 46 | K131: 46 | T131: 46
B132: 47 | K132: 47 | T132: 47
B133: 48 | K133: 48 | T133: 48
B134: 49 | K134: 49 | T134: 49
B135: 50 | K135: 50 | T135: 50
B136: 51 | K136: 51 | T136: 51
B137: 52 | K137: 52 | T137: 52
B138: 53 | K138: 53 | T138: 53
B139: 54 | K139: 54 | T139: 54
B140: 55 | K140: 55 | T140: 55
B141: 56 | K141: 56 | T141: 56
B142: 57 | K142: 57 | T142: 57
B143: 58 | K143: 58 | T143: 58
B144: 59 | K144: 59 | T144: 59
B145: 60 | K145: 60 | T145: 60
B146: 61 | K146: 61 | T146: 61
B147: 62 | K147: 62 | T147: 62
B148: 63 | K148: 63 | T148: 63
B149: 64 | K149: 64 | T149: 64
B150: 65 | K150: 65 | T150: 65
B151: 66 | K151: 66 | T151: 66
B152: 67 | K152: 67 | T152: 67
B153: 68 | K153: 68 | T153: 68
B154: 69 | K154: 70 | T154: 70
E155: Sous Total | F155: =SUM(F86:F154) -> 660.00 € | G155: 1,139.54 € | N155: Sous Total | O155: =SUM(O86:O154) -> 0 | P155: 0 | W155: Sous Total | X155: =SUM(X86:X154) -> 0 | Y155: 0
E156: Total | F156: =G155-F155+G83 -> 1,438.62 € | N156: Total | O156: =P155-O155+P83 -> 2,471.43 € | W156: Total | X156: =Y155-X155+Y83 -> 3,092.20 €
A157: Mapie
A158: Cpt Joint | B158: Compte maison
E161: Fin de moi précédent | G161: =Fevrier!F234 -> 4,649.52 €
B163: N° de transaction | C163: Date | D163: Objet | E163: Précision | F163: debit | G163: Crédit | H163: Type de paiment | I163: Divers
B164: 1 | C164: 2024-05-05 | D164: Electricité | G164: 105.00 € | H164: Virement intercompte
B165: 2 | C165: 2024-05-05 | D165: gaz | G165: 70.00 € | H165: Virement intercompte
B166: 3 | C166: 2024-05-05 | D166: Bois | G166: 60.00 € | H166: Virement intercompte
B167: 4 | C167: 2024-05-05 | D167: Prêt maison | G167: 443.23 € | H167: Virement intercompte
B168: 5 | C168: 2024-05-05 | D168: Prêt travaux | G168: 70.34 € | H168: Virement intercompte
B169: 6 | C169: 2024-05-05 | D169: Prêt travaux | G169: 155.37 € | H169: Virement intercompte
B170: 7 | C170: 2024-05-05 | D170: Frais Banquaire | G170: 10.00 € | H170: Virement Mapie
B171: 8 | C171: 2024-05-05 | D171: Frais Banquaire | G171: 10.00 € | H171: Virement intercompte
B172: 9 | C172: 2024-05-05 | D172: Frais Banquaire | G172: 9.18 € | H172: Virement banquaire
B173: 10 | C173: 2024-05-05 | D173: Eau | G173: 55.00 € | H173: Virement intercompte
B174: 11 | C174: 2024-05-05 | D174: Prêt Duster | G174: 323.97 € | H174: Virement intercompte
B175: 12 | C175: 2024-05-05 | D175: Scolarité | G175: 280.00 € | H175: Virement Mapie
B176: 13 | C176: 2024-05-05 | D176: sport | G176: 130.00 € | H176: Virement Mapie
B177: 14 | C177: 2024-05-05 | D177: Assurances | G177: 130.00 € | H177: Virement intercompte
B178: 15 | C178: 2024-05-05 | D178: Téléphone | G178: 55.00 € | H178: Virement intercompte
B179: 16 | C179: 2024-05-05 | D179: mutuelle | G179: 70.00 € | H179: Virement intercompte
B180: 17 | C180: 2024-05-05 | D180: salaire | G180: 120.00 €
B181: 18 | C181: 2024-05-05 | D181: Nourrice | E181: congé | G181: 50.00 € | H181: Virement Mapie
B182: 19 | C182: 2024-05-05 | D182: Nourrice | E182: recouvrement PAJE | G182: 319.07 € | H182: Virement banquaire
B183: 20 | C183: 2024-05-05 | D183: Entretien voiture | G183: 75.00 € | H183: Virement intercompte
B184: 21 | D184: Nourrice | E184: Salaire | H184: Virement banquaire
B185: 22 | D185: Electricité | F185: 103.00 € | H185: Prélèvement
B186: 23 | D186: gaz | F186: 49.00 € | H186: Prélèvement
B187: 24 | D187: Prêt maison | F187: 443.23 € | H187: Prélèvement
B188: 25 | D188: Prêt travaux | F188: 70.34 € | H188: Prélèvement
B189: 26 | D189: Prêt travaux | F189: 155.37 € | H189: Prélèvement
B190: 27 | D190: Frais Banquaire | F190: 23.46 € | H190: Prélèvement
B191: 28 | D191: Prêt Duster | F191: 323.97 € | H191: Prélèvement
B192: 29 | D192: Scolarité | H192: Prélèvement
B193: 30 | D193: Téléphone | F193: 16.84 € | H193: Prélèvement
B194: 31 | D194: Téléphone | F194: 28.99 € | H194: Prélèvement
B195: 32 | D195: mutuelle | F195: 70.00 € | H195: Prélèvement
B196: 33
B197: 34
B198: 35
B199: 36
B200: 37
B201: 38
B202: 39
B203: 40
B204: 41
B205: 42
B206: 43
B207: 44
B208: 45
B209: 46
... 92 more rows

Sheet Juin
J1: Compte chèque | S1: Livret A | AB1: LEP
A2: Cpt Charlie | B2: Compte chèque Charlie | J2: Livret A Charlie | K2: Livret A | S2: LEP Charlie | T2: LEP
E5: Fin de moi précédent | G5: =Fevrier!F78 -> 794.54 € | K5: =IF((P9+P54=P5),0,1) -> 0 | N5: Fin de moi précédent | P5: =Fevrier!O78 -> 1,140.00 € | W5: Fin de moi précédent | Y5: =Fevrier!X78 -> 260
B7: N° de transaction | C7: Date | D7: Objet | E7: Précision | F7: debit | G7: Crédit | H7: Type de paiment | I7: Divers | K7: Animaux | T7: N° de transaction | U7: Date | V7: Objet | W7: Précision | X7: debit | Y7: Crédit | Z7: Type de paiment | AA7: Divers
B8: 1 | C8: 2024-06-02 | D8: Salaire | E8: Décembre | G8: 2,304.59 € | H8: Virement banquaire | T8: 1 | U8: 2024-06-05 | V8: travaux | Y8: 50.00 € | Z8: Virement intercompte
B9: 2 | C9: 2024-06-05 | D9: Bois | F9: 60.00 € | H9: Virement intercompte | I9: Cpt Cjoint | N9: Fin de moi précédent | P9: =Fevrier!O48 -> 640.00 € | T9: 2
B10: 3 | C10: 2024-06-05 | D10: Prêt maison | F10: 443.23 € | H10: Virement intercompte | I10: Cpt Cjoint | T10: 3
B11: 4 | C11: 2024-06-05 | D11: Prêt travaux | F11: 70.34 € | H11: Virement intercompte | I11: Cpt Cjoint | K11: N° de transaction | L11: Date | M11: Objet | N11: Précision | O11: debit | P11: Crédit | Q11: Type de paiment | R11: Divers | T11: 4
B12: 5 | C12: 2024-06-05 | D12: Prêt travaux | F12: 155.37 € | H12: Virement intercompte | I12: Cpt Cjoint | T12: 5
B13: 6 | C13: 2024-06-05 | D13: Frais Banquaire | F13: 10.00 € | H13: Virement intercompte | I13: Cpt Cjoint | K13: 1 | L13: 2024-06-05 | M13: animaux | P13: 70.00 € | Q13: Virement intercompte | T13: 6
B14: 7 | C14: 2024-06-05 | D14: Eau | F14: 55.00 € | H14: Virement intercompte | I14: Cpt Cjoint | K14: 2 | T14: 7
B15: 8 | C15: 2024-06-05 | D15: Prêt Duster | F15: 323.97 € | H15: Virement intercompte | I15: Cpt Cjoint | K15: 3 | T15: 8
B16: 9 | C16: 2024-06-05 | D16: Assurances | F16: 130.00 € | H16: Virement intercompte | I16: Cpt Cjoint | K16: 4 | T16: 9
B17: 10 | C17: 2024-06-05 | D17: Téléphone | F17: 55.00 € | H17: Virement intercompte | I17: Cpt Cjoint | K17: 5 | T17: 10
B18: 11 | C18: 2024-06-05 | D18: mutuelle | F18: 70.00 € | H18: Virement intercompte | I18: Cpt Cjoint | K18: 6 | T18: 11
B19: 12 | C19: 2024-06-05 | D19: Electricité | F19: 105.00 € | H19: Virement intercompte | I19: Cpt Cjoint | K19: 7 | T19: 12
B20: 13 | C20: 2024-06-05 | D20: gaz | F20: 70.00 € | H20: Virement intercompte | I20: Cpt Cjoint | K20: 8 | T20: 13
B21: 14 | C21: 2024-06-05 | D21: Impot et taxe | F21: 100.00 € | H21: Virement intercompte | I21: Livret A Charlie | K21: 9 | T21: 14
B22: 15 | C22: 2024-06-05 | D22: Travaux | F22: 50.00 € | H22: Virement intercompte | I22: LEP Charlie | K22: 10 | T22: 15
B23: 16 | C23: 2024-06-05 | D23: Animaux | F23: 70.00 € | H23: Virement intercompte | I23: Livret A Charlie | K23: 11 | T23: 16
B24: 17 | C24: 2024-06-05 | D24: Entretien voiture | F24: 75.00 € | H24: Virement intercompte | I24: Cpt Cjoint | K24: 12 | T24: 17
B25: 18 | D25: Loisir | E25: Weigth Watcher | F25: 8.75 € | H25: Paypal | K25: 13 | T25: 18
B26: 19 | D26: Loisir | E26: Familleo | F26: 5.99 € | H26: Prélèvement | K26: 14 | T26: 19
B27: 20 | E27: Netflix | F27: 18.99 € | K27: 15 | T27: 20
B28: 21 | K28: 16 | T28: 21
B29: 22 | K29: 17 | T29: 22
B30: 23 | K30: 18 | T30: 23
B31: 24 | K31: 19 | T31: 24
B32: 25 | K32: 20 | T32: 25
B33: 26 | K33: 21 | T33: 26
B34: 27 | K34: 22 | T34: 27
B35: 28 | K35: 23 | T35: 28
B36: 29 | K36: 24 | T36: 29
B37: 30 | K37: 25 | T37: 30
B38: 31 | K38: 26 | T38: 31
B39: 32 | K39: 27 | T39: 32
B40: 33 | K40: 28 | T40: 33
B41: 34 | K41: 29 | T41: 34
B42: 35 | K42: 30 | T42: 35
B43: 36 | K43: 31 | T43: 36
B44: 37 | K44: 32 | T44: 37
B45: 38 | K45: 33 | T45: 38
B46: 39 | K46: 34 | T46: 39
B47: 40 | N47: Sous Total | O47: =SUM(O13:O46) -> 0.00 € | P47: 70.00 € | T47: 40
B48: 41 | N48: Total | O48: =P47-O47+P9 -> 710.00 € | T48: 41
B49: 42 | T49: 42
B50: 43 | T50: 43
B51: 44 | K51: Impot et taxe | T51: 44
B52: 45 | T52: 45
B53: 46 | T53: 46
B54: 47 | N54: Fin de moi précédent | P54: =Fevrier!O75 -> 500.00 € | T54: 47
B55: 48 | T55: 48
B56: 49 | K56: N° de transaction | L56: Date | M56: Objet | N56: Précision | O56: debit | P56: Crédit | Q56: Virement intercompte | R56: Divers | T56: 49
B57: 50 | T57: 50
B58: 51 | K58: 1 | L58: 2024-06-05 | M58: Impot et taxe | N58: charlie | P58: 100.00 € | Q58: Virement intercompte | T58: 51
B59: 52 | K59: 2 | T59: 52
B60: 53 | K60: 3 | T60: 53
B61: 54 | K61: 4 | T61: 54
B62: 55 | K62: 5 | T62: 55
B63: 56 | K63: 6 | T63: 56
B64: 57 | K64: 7 | T64: 57
B65: 58 | K65: 8 | T65: 58
B66: 59 | K66: 9 | T66: 59
B67: 60 | K67: 10 | T67: 60
B68: 61 | K68: 11 | T68: 61
B69: 62 | K69: 12 | T69: 62
B70: 63 | K70: 13 | T70: 63
B71: 64 | K71: 14 | T71: 64
B72: 65 | K72: 15 | T72: 65
B73: 66 | K73: 16 | T73: 66
B74: 67 | N74: Sous Total | O74: =SUM(O58:O73) -> 0.00 € | P74: 100.00 € | T74: 67
B75: 68 | N75: Total | O75: =P74-O74+P54 -> 600.00 € | T75: 68
B76: 69 | T76: 69
E77: Sous Total | F77: =SUM(F8:F76) -> 1,876.64 € | G77: 2,304.59 € | N77: Sous Total | O77: =O74+O47 -> 0.00 € | P77: 170.00 € | W77: Sous Total | X77: =SUM(X8:X76) -> 0.00 € | Y77: 50.00 €
E78: Total | F78: =G5+G77-F77 -> 1,222.49 € | N78: Total | O78: =P5+P77-O77 -> 1,310.00 € | W78: Total | X78: =Y5+Y77-X77 -> 310.00 €
A79: Charlie
A80: Cpt Mapie | B80: Compte chèque Mapie | K80: Livret A Mapie | T80: LEP Mapie
E83: Fin de moi précédent | G83: =Fevrier!F156 -> 959.08 € | N83: Fin de moi précédent | P83: =Fevrier!O156 -> 2,471.43 € | W83: Fin de moi précédent | Y83: =Fevrier!X156 -> 3,092.20 €
B85: N° de transaction | C85: Date | D85: Objet | E85: Précision | F85: debit | G85: Crédit | H85: Type de paiment | I85: Divers | K85: N° de transaction | L85: Date | M85: Objet | N85: Précision | O85: debit | P85: Crédit | Q85: Type de paiment | R85: Divers | T85: N° de transaction | U85: Date | V85: Objet | W85: Précision | X85: debit | Y85: Crédit | Z85: Type de paiment | AA85: Divers
B86: 1 | C86: 2024-06-02 | D86: Salaire | E86: aide de fin de formation | G86: 723.23 € | H86: Virement banquaire | K86: 1 | T86: 1
B87: 2 | C87: 2024-06-03 | D87: Salaire | E87: CAF | G87: 416.31 € | H87: Virement banquaire | I87: Cpt Cjoint | K87: 2 | T87: 2
B88: 3 | C88: 2024-06-05 | D88: Frais Banquaire | F88: 10.00 € | H88: Virement intercompte | I88: Cpt Cjoint | K88: 3 | T88: 3
B89: 4 | C89: 2024-06-05 | D89: Scolarité | F89: 280.00 € | H89: Virement intercompte | I89: Cpt Cjoint | K89: 4 | T89: 4
B90: 5 | C90: 2024-06-05 | D90: sport | F90: 130.00 € | H90: Virement intercompte | I90: Cpt Cjoint | K90: 5 | T90: 5
B91: 6 | C91: 2024-06-05 | D91: Nourrice | E91: salaire | F91: 120.00 € | H91: Virement intercompte | I91: Cpt Cjoint | K91: 6 | T91: 6
B92: 7 | C92: 2024-06-05 | D92: Nourrice | E92: congé | F92: 50.00 € | H92: Virement intercompte | I92: Cpt Cjoint | K92: 7 | T92: 7
B93: 8 | C93: 2024-06-05 | D93: Epargne | E93: Arzhel | F93: 20.00 € | H93: Virement intercompte | I93: Livret A Azylis | K93: 8 | T93: 8
B94: 9 | C94: 2024-06-05 | D94: Epargne | E94: Azylis | F94: 20.00 € | H94: Virement intercompte | I94: Livret A Azylis | K94: 9 | T94: 9
B95: 10 | C95: 2024-06-05 | D95: Epargne | E95: Azekiel | F95: 30.00 € | H95: Virement intercompte | I95: Livret A Azekiel | K95: 10 | T95: 10
B96: 11 | K96: 11 | T96: 11
B97: 12 | K97: 12 | T97: 12
B98: 13 | K98: 13 | T98: 13
B99: 14 | K99: 14 | T99: 14
B100: 15 | K100: 15 | T100: 15
B101: 16 | K101: 16 | T101: 16
B102: 17 | K102: 17 | T102: 17
B103: 18 | K103: 18 | T103: 18
B104: 19 | K104: 19 | T104: 19
B105: 20 | K105: 20 | T105: 20
B106: 21 | K106: 21 | T106: 21
B107: 22 | K107: 22 | T107: 22
B108: 23 | K108: 23 | T108: 23
B109: 24 | K109: 24 | T109: 24
B110: 25 | K110: 25 | T110: 25
B111: 26 | K111: 26 | T111: 26
B112: 27 | K112: 27 | T112: 27
B113: 28 | K113: 28 | T113: 28
B114: 29 | K114: 29 | T114: 29
B115: 30 | K115: 30 | T115: 30
B116: 31 | K116: 31 | T116: 31
B117: 32 | K117: 32 | T117: 32
B118: 33 | K118: 33 | T118: 33
B119: 34 | K119: 34 | T119: 34
B120: 35 | K120: 35 | T120: 35
B121: 36 | K121: 36 | T121: 36
B122: 37 | K122: 37 | T122: 37
B123: 38 | K123: 38 | T123: 38
B124: 39 | K124: 39 | T124: 39
B125: 40 | K125: 40 | T125: 40
B126: 41 | K126: 41 | T126: 41
B127: 42 | K127: 42 | T127: 42
B128: 43 | K128: 43 | T128: 43
B129: 44 | K129: 44 | T129: 44
B130: 45 | K130: 45 | T130: 45
B131: 46 | K131: 46 | T131: 46
B132: 47 | K132: 47 | T132: 47
B133: 48 | K133: 48 | T133: 48
B134: 49 | K134: 49 | T134: 49
B135: 50 | K135: 50 | T135: 50
B136: 51 | K136: 51 | T136: 51
B137: 52 | K137: 52 | T137: 52
B138: 53 | K138: 53 | T138: 53
B139: 54 | K139: 54 | T139: 54
B140: 55 | K140: 55 | T140: 55
B141: 56 | K141: 56 | T141: 56
B142: 57 | K142: 57 | T142: 57
B143: 58 | K143: 58 | T143: 58
B144: 59 | K144: 59 | T144: 59
B145: 60 | K145: 60 | T145: 60
B146: 61 | K146: 61 | T146: 61
B147: 62 | K147: 62 | T147: 62
B148: 63 | K148: 63 | T148: 63
B149: 64 | K149: 64 | T149: 64
B150: 65 | K150: 65 | T150: 65
B151: 66 | K151: 66 | T151: 66
B152: 67 | K152: 67 | T152: 67
B153: 68 | K153: 68 | T153: 68
B154: 69 | K154: 70 | T154: 70
E155: Sous Total | F155: =SUM(F86:F154) -> 660.00 € | G155: 1,139.54 € | N155: Sous Total | O155: =SUM(O86:O154) -> 0 | P155: 0 | W155: Sous Total | X155: =SUM(X86:X154) -> 0 | Y155: 0
E156: Total | F156: =G155-F155+G83 -> 1,438.62 € | N156: Total | O156: =P155-O155+P83 -> 2,471.43 € | W156: Total | X156: =Y155-X155+Y83 -> 3,092.20 €
A157: Mapie
A158: Cpt Joint | B158: Compte maison
E161: Fin de moi précédent | G161: =Fevrier!F234 -> 4,649.52 €
B163: N° de transaction | C163: Date | D163: Objet | E163: Précision | F163: debit | G163: Crédit | H163: Type de paiment | I163: Divers
B164: 1 | C164: 2024-06-05 | D164: Electricité | G164: 105.00 € | H164: Virement intercompte
B165: 2 | C165: 2024-06-05 | D165: gaz | G165: 70.00 € | H165: Virement intercompte
B166: 3 | C166: 2024-06-05 | D166: Bois | G166: 60.00 € | H166: Virement intercompte
B167: 4 | C167: 2024-06-05 | D167: Prêt maison | G167: 443.23 € | H167: Virement intercompte
B168: 5 | C168: 2024-06-05 | D168: Prêt travaux | G168: 70.34 € | H168: Virement intercompte
B169: 6 | C169: 2024-06-05 | D169: Prêt travaux | G169: 155.37 € | H169: Virement intercompte
B170: 7 | C170: 2024-06-05 | D170: Frais Banquaire | G170: 10.00 € | H170: Virement Mapie
B171: 8 | C171: 2024-06-05 | D171: Frais Banquaire | G171: 10.00 € | H171: Virement intercompte
B172: 9 | C172: 2024-06-05 | D172: Frais Banquaire | G172: 9.18 € | H172: Virement banquaire
B173: 10 | C173: 2024-06-05 | D173: Eau | G173: 55.00 € | H173: Virement intercompte
B174: 11 | C174: 2024-06-05 | D174: Prêt Duster | G174: 323.97 € | H174: Virement intercompte
B175: 12 | C175: 2024-06-05 | D175: Scolarité | G175: 280.00 € | H175: Virement Mapie
B176: 13 | C176: 2024-06-05 | D176: sport | G176: 130.00 € | H176: Virement Mapie
B177: 14 | C177: 2024-06-05 | D177: Assurances | G177: 130.00 € | H177: Virement intercompte
B178: 15 | C178: 2024-06-05 | D178: Téléphone | G178: 55.00 € | H178: Virement intercompte
B179: 16 | C179: 2024-06-05 | D179: mutuelle | G179: 70.00 € | H179: Virement intercompte
B180: 17 | C180: 2024-06-05 | D180: salaire | G180: 120.00 €
B181: 18 | C181: 2024-06-05 | D181: Nourrice | E181: congé | G181: 50.00 € | H181: Virement Mapie
B182: 19 | C182: 2024-06-05 | D182: Nourrice | E182: recouvrement PAJE | G182: 319.07 € | H182: Virement banquaire
B183: 20 | C183: 2024-06-05 | D183: Entretien voiture | G183: 75.00 € | H183: Virement intercompte
B184: 21 | D184: Nourrice | E184: Salaire | H184: Virement banquaire
B185: 22 | D185: Electricité | F185: 103.00 € | H185: Prélèvement
B186: 23 | D186: gaz | F186: 49.00 € | H186: Prélèvement
B187: 24 | D187: Prêt maison | F187: 443.23 € | H187: Prélèvement
B188: 25 | D188: Prêt travaux | F188: 70.34 € | H188: Prélèvement
B189: 26 | D189: Prêt travaux | F189: 155.37 € | H189: Prélèvement
B190: 27 | D190: Frais Banquaire | F190: 23.46 € | H190: Prélèvement
B191: 28 | D191: Prêt Duster | F191: 323.97 € | H191: Prélèvement
B192: 29 | D192: Scolarité | H192: Prélèvement
B193: 30 | D193: Téléphone | F193: 16.84 € | H193: Prélèvement
B194: 31 | D194: Téléphone | F194: 28.99 € | H194: Prélèvement
B195: 32 | D195: mutuelle | F195: 70.00 € | H195: Prélèvement
B196: 33
B197: 34
B198: 35
B199: 36
B200: 37
B201: 38
B202: 39
B203: 40
B204: 41
B205: 42
B206: 43
B207: 44
B208: 45
B209: 46
... 92 more rows

Sheet Juillet
J1: Compte chèque | S1: Livret A | AB1: LEP
A2: Cpt Charlie | B2: Compte chèque Charlie | J2: Livret A Charlie | K2: Livret A | S2: LEP Charlie | T2: LEP
E5: Fin de moi précédent | G5: =Fevrier!F78 -> 794.54 € | K5: =IF((P9+P54=P5),0,1) -> 0 | N5: Fin de moi précédent | P5: =Fevrier!O78 -> 1,140.00 € | W5: Fin de moi précédent | Y5: =Fevrier!X78 -> 260
B7: N° de transaction | C7: Date | D7: Objet | E7: Précision | F7: debit | G7: Crédit | H7: Type de paiment | I7: Divers | K7: Animaux | T7: N° de transaction | U7: Date | V7: Objet | W7: Précision | X7: debit | Y7: Crédit | Z7: Type de paiment | AA7: Divers
B8: 1 | C8: 2024-07-02 | D8: Salaire | E8: Décembre | G8: 2,304.59 € | H8: Virement banquaire | T8: 1 | U8: 2024-07-05 | V8: travaux | Y8: 50.00 € | Z8: Virement intercompte
B9: 2 | C9: 2024-07-05 | D9: Bois | F9: 60.00 € | H9: Virement intercompte | I9: Cpt Cjoint | N9: Fin de moi précédent | P9: =Fevrier!O48 -> 640.00 € | T9: 2
B10: 3 | C10: 2024-07-05 | D10: Prêt maison | F10: 443.23 € | H10: Virement intercompte | I10: Cpt Cjoint | T10: 3
B11: 4 | C11: 2024-07-05 | D11: Prêt travaux | F11: 70.34 € | H11: Virement intercompte | I11: Cpt Cjoint | K11: N° de transaction | L11: Date | M11: Objet | N11: Précision | O11: debit | P11: Crédit | Q11: Type de paiment | R11: Divers | T11: 4
B12: 5 | C12: 2024-07-05 | D12: Prêt travaux | F12: 155.37 € | H12: Virement intercompte | I12: Cpt Cjoint | T12: 5
B13: 6 | C13: 2024-07-05 | D13: Frais Banquaire | F13: 10.00 € | H13: Virement intercompte | I13: Cpt Cjoint | K13: 1 | L13: 2024-07-05 | M13: animaux | P13: 70.00 € | Q13: Virement intercompte | T13: 6
B14: 7 | C14: 2024-07-05 | D14: Eau | F14: 55.00 € | H14: Virement intercompte | I14: Cpt Cjoint | K14: 2 | T14: 7
B15: 8 | C15: 2024-07-05 | D15: Prêt Duster | F15: 323.97 € | H15: Virement intercompte | I15: Cpt Cjoint | K15: 3 | T15: 8
B16: 9 | C16: 2024-07-05 | D16: Assurances | F16: 130.00 € | H16: Virement intercompte | I16: Cpt Cjoint | K16: 4 | T16: 9
B17: 10 | C17: 2024-07-05 | D17: Téléphone | F17: 55.00 € | H17: Virement intercompte | I17: Cpt Cjoint | K17: 5 | T17: 10
B18: 11 | C18: 2024-07-05 | D18: mutuelle | F18: 70.00 € | H18: Virement intercompte | I18: Cpt Cjoint | K18: 6 | T18: 11
B19: 12 | C19: 2024-07-05 | D19: Electricité | F19: 105.00 € | H19: Virement intercompte | I19: Cpt Cjoint | K19: 7 | T19: 12
B20: 13 | C20: 2024-07-05 | D20: gaz | F20: 70.00 € | H20: Virement intercompte | I20: Cpt Cjoint | K20: 8 | T20: 13
B21: 14 | C21: 2024-07-05 | D21: Impot et taxe | F21: 100.00 € | H21: Virement intercompte | I21: Livret A Charlie | K21: 9 | T21: 14
B22: 15 | C22: 2024-07-05 | D22: Travaux | F22: 50.00 € | H22: Virement intercompte | I22: LEP Charlie | K22: 10 | T22: 15
B23: 16 | C23: 2024-07-05 | D23: Animaux | F23: 70.00 € | H23: Virement intercompte | I23: Livret A Charlie | K23: 11 | T23: 16
B24: 17 | C24: 2024-07-05 | D24: Entretien voiture | F24: 75.00 € | H24: Virement intercompte | I24: Cpt Cjoint | K24: 12 | T24: 17
B25: 18 | D25: Loisir | E25: Weigth Watcher | F25: 8.75 € | H25: Paypal | K25: 13 | T25: 18
B26: 19 | D26: Loisir | E26: Familleo | F26: 5.99 € | H26: Prélèvement | K26: 14 | T26: 19
B27: 20 | E27: Netflix | F27: 18.99 € | K27: 15 | T27: 20
B28: 21 | K28: 16 | T28: 21
B29: 22 | K29: 17 | T29: 22
B30: 23 | K30: 18 | T30: 23
B31: 24 | K31: 19 | T31: 24
B32: 25 | K32: 20 | T32: 25
B33: 26 | K33: 21 | T33: 26
B34: 27 | K34: 22 | T34: 27
B35: 28 | K35: 23 | T35: 28
B36: 29 | K36: 24 | T36: 29
B37: 30 | K37: 25 | T37: 30
B38: 31 | K38: 26 | T38: 31
B39: 32 | K39: 27 | T39: 32
B40: 33 | K40: 28 | T40: 33
B41: 34 | K41: 29 | T41: 34
B42: 35 | K42: 30 | T42: 35
B43: 36 | K43: 31 | T43: 36
B44: 37 | K44: 32 | T44: 37
B45: 38 | K45: 33 | T45: 38
B46: 39 | K46: 34 | T46: 39
B47: 40 | N47: Sous Total | O47: =SUM(O13:O46) -> 0.00 € | P47: 70.00 € | T47: 40
B48: 41 | N48: Total | O48: =P47-O47+P9 -> 710.00 € | T48: 41
B49: 42 | T49: 42
B50: 43 | T50: 43
B51: 44 | K51: Impot et taxe | T51: 44
B52: 45 | T52: 45
B53: 46 | T53: 46
B54: 47 | N54: Fin de moi précédent | P54: =Fevrier!O75 -> 500.00 € | T54: 47
B55: 48 | T55: 48
B56: 49 | K56: N° de transaction | L56: Date | M56: Objet | N56: Précision | O56: debit | P56: Crédit | Q56: Virement intercompte | R56: Divers | T56: 49
B57: 50 | T57: 50
B58: 51 | K58: 1 | L58: 2024-07-05 | M58: Impot et taxe | N58: charlie | P58: 100.00 € | Q58: Virement intercompte | T58: 51
B59: 52 | K59: 2 | T59: 52
B60: 53 | K60: 3 | T60: 53
B61: 54 | K61: 4 | T61: 54
B62: 55 | K62: 5 | T62: 55
B63: 56 | K63: 6 | T63: 56
B64: 57 | K64: 7 | T64: 57
B65: 58 | K65: 8 | T65: 58
B66: 59 | K66: 9 | T66: 59
B67: 60 | K67: 10 | T67: 60
B68: 61 | K68: 11 | T68: 61
B69: 62 | K69: 12 | T69: 62
B70: 63 | K70: 13 | T70: 63
B71: 64 | K71: 14 | T71: 64
B72: 65 | K72: 15 | T72: 65
B73: 66 | K73: 16 | T73: 66
B74: 67 | N74: Sous Total | O74: =SUM(O58:O73) -> 0.00 € | P74: 100.00 € | T74: 67
B75: 68 | N75: Total | O75: =P74-O74+P54 -> 600.00 € | T75: 68
B76: 69 | T76: 69
E77: Sous Total | F77: =SUM(F8:F76) -> 1,876.64 € | G77: 2,304.59 € | N77: Sous Total | O77: =O74+O47 -> 0.00 € | P77: 170.00 € | W77: Sous Total | X77: =SUM(X8:X76) -> 0.00 € | Y77: 50.00 €
E78: Total | F78: =G5+G77-F77 -> 1,222.49 € | N78: Total | O78: =P5+P77-O77 -> 1,310.00 € | W78: Total | X78: =Y5+Y77-X77 -> 310.00 €
A79: Charlie
A80: Cpt Mapie | B80: Compte chèque Mapie | K80: Livret A Mapie | T80: LEP Mapie
E83: Fin de moi précédent | G83: =Fevrier!F156 -> 959.08 € | N83: Fin de moi précédent | P83: =Fevrier!O156 -> 2,471.43 € | W83: Fin de moi précédent | Y83: =Fevrier!X156 -> 3,092.20 €
B85: N° de transaction | C85: Date | D85: Objet | E85: Précision | F85: debit | G85: Crédit | H85: Type de paiment | I85: Divers | K85: N° de transaction | L85: Date | M85: Objet | N85: Précision | O85: debit | P85: Crédit | Q85: Type de paiment | R85: Divers | T85: N° de transaction | U85: Date | V85: Objet | W85: Précision | X85: debit | Y85: Crédit | Z85: Type de paiment | AA85: Divers
B86: 1 | C86: 2024-07-02 | D86: Salaire | E86: aide de fin de formation | G86: 723.23 € | H86: Virement banquaire | K86: 1 | T86: 1
B87: 2 | C87: 2024-07-03 | D87: Salaire | E87: CAF | G87: 416.31 € | H87: Virement banquaire | I87: Cpt Cjoint | K87: 2 | T87: 2
B88: 3 | C88: 2024-07-05 | D88: Frais Banquaire | F88: 10.00 € | H88: Virement intercompte | I88: Cpt Cjoint | K88: 3 | T88: 3
B89: 4 | C89: 2024-07-05 | D89: Scolarité | F89: 280.00 € | H89: Virement intercompte | I89: Cpt Cjoint | K89: 4 | T89: 4
B90: 5 | C90: 2024-07-05 | D90: sport | F90: 130.00 € | H90: Virement intercompte | I90: Cpt Cjoint | K90: 5 | T90: 5
B91: 6 | C91: 2024-07-05 | D91: Nourrice | E91: salaire | F91: 120.00 € | H91: Virement intercompte | I91: Cpt Cjoint | K91: 6 | T91: 6
B92: 7 | C92: 2024-07-05 | D92: Nourrice | E92: congé | F92: 50.00 € | H92: Virement intercompte | I92: Cpt Cjoint | K92: 7 | T92: 7
B93: 8 | C93: 2024-07-05 | D93: Epargne | E93: Arzhel | F93: 20.00 € | H93: Virement intercompte | I93: Livret A Azylis | K93: 8 | T93: 8
B94: 9 | C94: 2024-07-05 | D94: Epargne | E94: Azylis | F94: 20.00 € | H94: Virement intercompte | I94: Livret A Azylis | K94: 9 | T94: 9
B95: 10 | C95: 2024-07-05 | D95: Epargne | E95: Azekiel | F95: 30.00 € | H95: Virement intercompte | I95: Livret A Azekiel | K95: 10 | T95: 10
B96: 11 | K96: 11 | T96: 11
B97: 12 | K97: 12 | T97: 12
B98: 13 | K98: 13 | T98: 13
B99: 14 | K99: 14 | T99: 14
B100: 15 | K100: 15 | T100: 15
B101: 16 | K101: 16 | T101: 16
B102: 17 | K102: 17 | T102: 17
B103: 18 | K103: 18 | T103: 18
B104: 19 | K104: 19 | T104: 19
B105: 20 | K105: 20 | T105: 20
B106: 21 | K106: 21 | T106: 21
B107: 22 | K107: 22 | T107: 22
B108: 23 | K108: 23 | T108: 23
B109: 24 | K109: 24 | T109: 24
B110: 25 | K110: 25 | T110: 25
B111: 26 | K111: 26 | T111: 26
B112: 27 | K112: 27 | T112: 27
B113: 28 | K113: 28 | T113: 28
B114: 29 | K114: 29 | T114: 29
B115: 30 | K115: 30 | T115: 30
B116: 31 | K116: 31 | T116: 31
B117: 32 | K117: 32 | T117: 32
B118: 33 | K118: 33 | T118: 33
B119: 34 | K119: 34 | T119: 34
B120: 35 | K120: 35 | T120: 35
B121: 36 | K121: 36 | T121: 36
B122: 37 | K122: 37 | T122: 37
B123: 38 | K123: 38 | T123: 38
B124: 39 | K124: 39 | T124: 39
B125: 40 | K125: 40 | T125: 40
B126: 41 | K126: 41 | T126: 41
B127: 42 | K127: 42 | T127: 42
B128: 43 | K128: 43 | T128: 43
B129: 44 | K129: 44 | T129: 44
B130: 45 | K130: 45 | T130: 45
B131: 46 | K131: 46 | T131: 46
B132: 47 | K132: 47 | T132: 47
B133: 48 | K133: 48 | T133: 48
B134: 49 | K134: 49 | T134: 49
B135: 50 | K135: 50 | T135: 50
B136: 51 | K136: 51 | T136: 51
B137: 52 | K137: 52 | T137: 52
B138: 53 | K138: 53 | T138: 53
B139: 54 | K139: 54 | T139: 54
B140: 55 | K140: 55 | T140: 55
B141: 56 | K141: 56 | T141: 56
B142: 57 | K142: 57 | T142: 57
B143: 58 | K143: 58 | T143: 58
B144: 59 | K144: 59 | T144: 59
B145: 60 | K145: 60 | T145: 60
B146: 61 | K146: 61 | T146: 61
B147: 62 | K147: 62 | T147: 62
B148: 63 | K148: 63 | T148: 63
B149: 64 | K149: 64 | T149: 64
B150: 65 | K150: 65 | T150: 65
B151: 66 | K151: 66 | T151: 66
B152: 67 | K152: 67 | T152: 67
B153: 68 | K153: 68 | T153: 68
B154: 69 | K154: 70 | T154: 70
E155: Sous Total | F155: =SUM(F86:F154) -> 660.00 € | G155: 1,139.54 € | N155: Sous Total | O155: =SUM(O86:O154) -> 0 | P155: 0 | W155: Sous Total | X155: =SUM(X86:X154) -> 0 | Y155: 0
E156: Total | F156: =G155-F155+G83 -> 1,438.62 € | N156: Total | O156: =P155-O155+P83 -> 2,471.43 € | W156: Total | X156: =Y155-X155+Y83 -> 3,092.20 €
A157: Mapie
A158: Cpt Joint | B158: Compte maison
E161: Fin de moi précédent | G161: =Fevrier!F234 -> 4,649.52 €
B163: N° de transaction | C163: Date | D163: Objet | E163: Précision | F163: debit | G163: Crédit | H163: Type de paiment | I163: Divers
B164: 1 | C164: 2024-07-05 | D164: Electricité | G164: 105.00 € | H164: Virement intercompte
B165: 2 | C165: 2024-07-05 | D165: gaz | G165: 70.00 € | H165: Virement intercompte
B166: 3 | C166: 2024-07-05 | D166: Bois | G166: 60.00 € | H166: Virement intercompte
B167: 4 | C167: 2024-07-05 | D167: Prêt maison | G167: 443.23 € | H167: Virement intercompte
B168: 5 | C168: 2024-07-05 | D168: Prêt travaux | G168: 70.34 € | H168: Virement intercompte
B169: 6 | C169: 2024-07-05 | D169: Prêt travaux | G169: 155.37 € | H169: Virement intercompte
B170: 7 | C170: 2024-07-05 | D170: Frais Banquaire | G170: 10.00 € | H170: Virement Mapie
B171: 8 | C171: 2024-07-05 | D171: Frais Banquaire | G171: 10.00 € | H171: Virement intercompte
B172: 9 | C172: 2024-07-05 | D172: Frais Banquaire | G172: 9.18 € | H172: Virement banquaire
B173: 10 | C173: 2024-07-05 | D173: Eau | G173: 55.00 € | H173: Virement intercompte
B174: 11 | C174: 2024-07-05 | D174: Prêt Duster | G174: 323.97 € | H174: Virement intercompte
B175: 12 | C175: 2024-07-05 | D175: Scolarité | G175: 280.00 € | H175: Virement Mapie
B176: 13 | C176: 2024-07-05 | D176: sport | G176: 130.00 € | H176: Virement Mapie
B177: 14 | C177: 2024-07-05 | D177: Assurances | G177: 130.00 € | H177: Virement intercompte
B178: 15 | C178: 2024-07-05 | D178: Téléphone | G178: 55.00 € | H178: Virement intercompte
B179: 16 | C179: 2024-07-05 | D179: mutuelle | G179: 70.00 € | H179: Virement intercompte
B180: 17 | C180: 2024-07-05 | D180: salaire | G180: 120.00 €
B181: 18 | C181: 2024-07-05 | D181: Nourrice | E181: congé | G181: 50.00 € | H181: Virement Mapie
B182: 19 | C182: 2024-07-05 | D182: Nourrice | E182: recouvrement PAJE | G182: 319.07 € | H182: Virement banquaire
B183: 20 | C183: 2024-07-05 | D183: Entretien voiture | G183: 75.00 € | H183: Virement intercompte
B184: 21 | D184: Nourrice | E184: Salaire | H184: Virement banquaire
B185: 22 | D185: Electricité | F185: 103.00 € | H185: Prélèvement
B186: 23 | D186: gaz | F186: 49.00 € | H186: Prélèvement
B187: 24 | D187: Prêt maison | F187: 443.23 € | H187: Prélèvement
B188: 25 | D188: Prêt travaux | F188: 70.34 € | H188: Prélèvement
B189: 26 | D189: Prêt travaux | F189: 155.37 € | H189: Prélèvement
B190: 27 | D190: Frais Banquaire | F190: 23.46 € | H190: Prélèvement
B191: 28 | D191: Prêt Duster | F191: 323.97 € | H191: Prélèvement
B192: 29 | D192: Scolarité | H192: Prélèvement
B193: 30 | D193: Téléphone | F193: 16.84 € | H193: Prélèvement
B194: 31 | D194: Téléphone | F194: 28.99 € | H194: Prélèvement
B195: 32 | D195: mutuelle | F195: 70.00 € | H195: Prélèvement
B196: 33
B197: 34
B198: 35
B199: 36
B200: 37
B201: 38
B202: 39
B203: 40
B204: 41
B205: 42
B206: 43
B207: 44
B208: 45
B209: 46
... 92 more rows

Sheet Aout
J1: Compte chèque | S1: Livret A | AB1: LEP
A2: Cpt Charlie | B2: Compte chèque Charlie | J2: Livret A Charlie | K2: Livret A | S2: LEP Charlie | T2: LEP
E5: Fin de moi précédent | G5: =Fevrier!F78 -> 794.54 € | K5: =IF((P9+P54=P5),0,1) -> 0 | N5: Fin de moi précédent | P5: =Fevrier!O78 -> 1,140.00 € | W5: Fin de moi précédent | Y5: =Fevrier!X78 -> 260
B7: N° de transaction | C7: Date | D7: Objet | E7: Précision | F7: debit | G7: Crédit | H7: Type de paiment | I7: Divers | K7: Animaux | T7: N° de transaction | U7: Date | V7: Objet | W7: Précision | X7: debit | Y7: Crédit | Z7: Type de paiment | AA7: Divers
B8: 1 | C8: 2024-08-02 | D8: Salaire | E8: Décembre | G8: 2,304.59 € | H8: Virement banquaire | T8: 1 | U8: 2024-08-05 | V8: travaux | Y8: 50.00 € | Z8: Virement intercompte
B9: 2 | C9: 2024-08-05 | D9: Bois | F9: 60.00 € | H9: Virement intercompte | I9: Cpt Cjoint | N9: Fin de moi précédent | P9: =Fevrier!O48 -> 640.00 € | T9: 2
B10: 3 | C10: 2024-08-05 | D10: Prêt maison | F10: 443.23 € | H10: Virement intercompte | I10: Cpt Cjoint | T10: 3
B11: 4 | C11: 2024-08-05 | D11: Prêt travaux | F11: 70.34 € | H11: Virement intercompte | I11: Cpt Cjoint | K11: N° de transaction | L11: Date | M11: Objet | N11: Précision | O11: debit | P11: Crédit | Q11: Type de paiment | R11: Divers | T11: 4
B12: 5 | C12: 2024-08-05 | D12: Prêt travaux | F12: 155.37 € | H12: Virement intercompte | I12: Cpt Cjoint | T12: 5
B13: 6 | C13: 2024-08-05 | D13: Frais Banquaire | F13: 10.00 € | H13: Virement intercompte | I13: Cpt Cjoint | K13: 1 | L13: 2024-08-05 | M13: animaux | P13: 70.00 € | Q13: Virement intercompte | T13: 6
B14: 7 | C14: 2024-08-05 | D14: Eau | F14: 55.00 € | H14: Virement intercompte | I14: Cpt Cjoint | K14: 2 | T14: 7
B15: 8 | C15: 2024-08-05 | D15: Prêt Duster | F15: 323.97 € | H15: Virement intercompte | I15: Cpt Cjoint | K15: 3 | T15: 8
B16: 9 | C16: 2024-08-05 | D16: Assurances | F16: 130.00 € | H16: Virement intercompte | I16: Cpt Cjoint | K16: 4 | T16: 9
B17: 10 | C17: 2024-08-05 | D17: Téléphone | F17: 55.00 € | H17: Virement intercompte | I17: Cpt Cjoint | K17: 5 | T17: 10
B18: 11 | C18: 2024-08-05 | D18: mutuelle | F18: 70.00 € | H18: Virement intercompte | I18: Cpt Cjoint | K18: 6 | T18: 11
B19: 12 | C19: 2024-08-05 | D19: Electricité | F19: 105.00 € | H19: Virement intercompte | I19: Cpt Cjoint | K19: 7 | T19: 12
B20: 13 | C20: 2024-08-05 | D20: gaz | F20: 70.00 € | H20: Virement intercompte | I20: Cpt Cjoint | K20: 8 | T20: 13
B21: 14 | C21: 2024-08-05 | D21: Impot et taxe | F21: 100.00 € | H21: Virement intercompte | I21: Livret A Charlie | K21: 9 | T21: 14
B22: 15 | C22: 2024-08-05 | D22: Travaux | F22: 50.00 € | H22: Virement intercompte | I22: LEP Charlie | K22: 10 | T22: 15
B23: 16 | C23: 2024-08-05 | D23: Animaux | F23: 70.00 € | H23: Virement intercompte | I23: Livret A Charlie | K23: 11 | T23: 16
B24: 17 | C24: 2024-08-05 | D24: Entretien voiture | F24: 75.00 € | H24: Virement intercompte | I24: Cpt Cjoint | K24: 12 | T24: 17
B25: 18 | D25: Loisir | E25: Weigth Watcher | F25: 8.75 € | H25: Paypal | K25: 13 | T25: 18
B26: 19 | D26: Loisir | E26: Familleo | F26: 5.99 € | H26: Prélèvement | K26: 14 | T26: 19
B27: 20 | E27: Netflix | F27: 18.99 € | K27: 15 | T27: 20
B28: 21 | K28: 16 | T28: 21
B29: 22 | K29: 17 | T29: 22
B30: 23 | K30: 18 | T30: 23
B31: 24 | K31: 19 | T31: 24
B32: 25 | K32: 20 | T32: 25
B33: 26 | K33: 21 | T33: 26
B34: 27 | K34: 22 | T34: 27
B35: 28 | K35: 23 | T35: 28
B36: 29 | K36: 24 | T36: 29
B37: 30 | K37: 25 | T37: 30
B38: 31 | K38: 26 | T38: 31
B39: 32 | K39: 27 | T39: 32
B40: 33 | K40: 28 | T40: 33
B41: 34 | K41: 29 | T41: 34
B42: 35 | K42: 30 | T42: 35
B43: 36 | K43: 31 | T43: 36
B44: 37 | K44: 32 | T44: 37
B45: 38 | K45: 33 | T45: 38
B46: 39 | K46: 34 | T46: 39
B47: 40 | N47: Sous Total | O47: =SUM(O13:O46) -> 0.00 € | P47: 70.00 € | T47: 40
B48: 41 | N48: Total | O48: =P47-O47+P9 -> 710.00 € | T48: 41
B49: 42 | T49: 42
B50: 43 | T50: 43
B51: 44 | K51: Impot et taxe | T51: 44
B52: 45 | T52: 45
B53: 46 | T53: 46
B54: 47 | N54: Fin de moi précédent | P54: =Fevrier!O75 -> 500.00 € | T54: 47
B55: 48 | T55: 48
B56: 49 | K56: N° de transaction | L56: Date | M56: Objet | N56: Précision | O56: debit | P56: Crédit | Q56: Virement intercompte | R56: Divers | T56: 49
B57: 50 | T57: 50
B58: 51 | K58: 1 | L58: 2024-08-05 | M58: Impot et taxe | N58: charlie | P58: 100.00 € | Q58: Virement intercompte | T58: 51
B59: 52 | K59: 2 | T59: 52
B60: 53 | K60: 3 | T60: 53
B61: 54 | K61: 4 | T61: 54
B62: 55 | K62: 5 | T62: 55
B63: 56 | K63: 6 | T63: 56
B64: 57 | K64: 7 | T64: 57
B65: 58 | K65: 8 | T65: 58
B66: 59 | K66: 9 | T66: 59
B67: 60 | K67: 10 | T67: 60
B68: 61 | K68: 11 | T68: 61
B69: 62 | K69: 12 | T69: 62
B70: 63 | K70: 13 | T70: 63
B71: 64 | K71: 14 | T71: 64
B72: 65 | K72: 15 | T72: 65
B73: 66 | K73: 16 | T73: 66
B74: 67 | N74: Sous Total | O74: =SUM(O58:O73) -> 0.00 € | P74: 100.00 € | T74: 67
B75: 68 | N75: Total | O75: =P74-O74+P54 -> 600.00 € | T75: 68
B76: 69 | T76: 69
E77: Sous Total | F77: =SUM(F8:F76) -> 1,876.64 € | G77: 2,304.59 € | N77: Sous Total | O77: =O74+O47 -> 0.00 € | P77: 170.00 € | W77: Sous Total | X77: =SUM(X8:X76) -> 0.00 € | Y77: 50.00 €
E78: Total | F78: =G5+G77-F77 -> 1,222.49 € | N78: Total | O78: =P5+P77-O77 -> 1,310.00 € | W78: Total | X78: =Y5+Y77-X77 -> 310.00 €
A79: Charlie
A80: Cpt Mapie | B80: Compte chèque Mapie | K80: Livret A Mapie | T80: LEP Mapie
E83: Fin de moi précédent | G83: =Fevrier!F156 -> 959.08 € | N83: Fin de moi précédent | P83: =Fevrier!O156 -> 2,471.43 € | W83: Fin de moi précédent | Y83: =Fevrier!X156 -> 3,092.20 €
B85: N° de transaction | C85: Date | D85: Objet | E85: Précision | F85: debit | G85: Crédit | H85: Type de paiment | I85: Divers | K85: N° de transaction | L85: Date | M85: Objet | N85: Précision | O85: debit | P85: Crédit | Q85: Type de paiment | R85: Divers | T85: N° de transaction | U85: Date | V85: Objet | W85: Précision | X85: debit | Y85: Crédit | Z85: Type de paiment | AA85: Divers
B86: 1 | C86: 2024-08-02 | D86: Salaire | E86: aide de fin de formation | G86: 723.23 € | H86: Virement banquaire | K86: 1 | T86: 1
B87: 2 | C87: 2024-08-03 | D87: Salaire | E87: CAF | G87: 416.31 € | H87: Virement banquaire | I87: Cpt Cjoint | K87: 2 | T87: 2
B88: 3 | C88: 2024-08-05 | D88: Frais Banquaire | F88: 10.00 € | H88: Virement intercompte | I88: Cpt Cjoint | K88: 3 | T88: 3
B89: 4 | C89: 2024-08-05 | D89: Scolarité | F89: 280.00 € | H89: Virement intercompte | I89: Cpt Cjoint | K89: 4 | T89: 4
B90: 5 | C90: 2024-08-05 | D90: sport | F90: 130.00 € | H90: Virement intercompte | I90: Cpt Cjoint | K90: 5 | T90: 5
B91: 6 | C91: 2024-08-05 | D91: Nourrice | E91: salaire | F91: 120.00 € | H91: Virement intercompte | I91: Cpt Cjoint | K91: 6 | T91: 6
B92: 7 | C92: 2024-08-05 | D92: Nourrice | E92: congé | F92: 50.00 € | H92: Virement intercompte | I92: Cpt Cjoint | K92: 7 | T92: 7
B93: 8 | C93: 2024-08-05 | D93: Epargne | E93: Arzhel | F93: 20.00 € | H93: Virement intercompte | I93: Livret A Azylis | K93: 8 | T93: 8
B94: 9 | C94: 2024-08-05 | D94: Epargne | E94: Azylis | F94: 20.00 € | H94: Virement intercompte | I94: Livret A Azylis | K94: 9 | T94: 9
B95: 10 | C95: 2024-08-05 | D95: Epargne | E95: Azekiel | F95: 30.00 € | H95: Virement intercompte | I95: Livret A Azekiel | K95: 10 | T95: 10
B96: 11 | K96: 11 | T96: 11
B97: 12 | K97: 12 | T97: 12
B98: 13 | K98: 13 | T98: 13
B99: 14 | K99: 14 | T99: 14
B100: 15 | K100: 15 | T100: 15
B101: 16 | K101: 16 | T101: 16
B102: 17 | K102: 17 | T102: 17
B103: 18 | K103: 18 | T103: 18
B104: 19 | K104: 19 | T104: 19
B105: 20 | K105: 20 | T105: 20
B106: 21 | K106: 21 | T106: 21
B107: 22 | K107: 22 | T107: 22
B108: 23 | K108: 23 | T108: 23
B109: 24 | K109: 24 | T109: 24
B110: 25 | K110: 25 | T110: 25
B111: 26 | K111: 26 | T111: 26
B112: 27 | K112: 27 | T112: 27
B113: 28 | K113: 28 | T113: 28
B114: 29 | K114: 29 | T114: 29
B115: 30 | K115: 30 | T115: 30
B116: 31 | K116: 31 | T116: 31
B117: 32 | K117: 32 | T117: 32
B118: 33 | K118: 33 | T118: 33
B119: 34 | K119: 34 | T119: 34
B120: 35 | K120: 35 | T120: 35
B121: 36 | K121: 36 | T121: 36
B122: 37 | K122: 37 | T122: 37
B123: 38 | K123: 38 | T123: 38
B124: 39 | K124: 39 | T124: 39
B125: 40 | K125: 40 | T125: 40
B126: 41 | K126: 41 | T126: 41
B127: 42 | K127: 42 | T127: 42
B128: 43 | K128: 43 | T128: 43
B129: 44 | K129: 44 | T129: 44
B130: 45 | K130: 45 | T130: 45
B131: 46 | K131: 46 | T131: 46
B132: 47 | K132: 47 | T132: 47
B133: 48 | K133: 48 | T133: 48
B134: 49 | K134: 49 | T134: 49
B135: 50 | K135: 50 | T135: 50
B136: 51 | K136: 51 | T136: 51
B137: 52 | K137: 52 | T137: 52
B138: 53 | K138: 53 | T138: 53
B139: 54 | K139: 54 | T139: 54
B140: 55 | K140: 55 | T140: 55
B141: 56 | K141: 56 | T141: 56
B142: 57 | K142: 57 | T142: 57
B143: 58 | K143: 58 | T143: 58
B144: 59 | K144: 59 | T144: 59
B145: 60 | K145: 60 | T145: 60
B146: 61 | K146: 61 | T146: 61
B147: 62 | K147: 62 | T147: 62
B148: 63 | K148: 63 | T148: 63
B149: 64 | K149: 64 | T149: 64
B150: 65 | K150: 65 | T150: 65
B151: 66 | K151: 66 | T151: 66
B152: 67 | K152: 67 | T152: 67
B153: 68 | K153: 68 | T153: 68
B154: 69 | K154: 70 | T154: 70
E155: Sous Total | F155: =SUM(F86:F154) -> 660.00 € | G155: 1,139.54 € | N155: Sous Total | O155: =SUM(O86:O154) -> 0 | P155: 0 | W155: Sous Total | X155: =SUM(X86:X154) -> 0 | Y155: 0
E156: Total | F156: =G155-F155+G83 -> 1,438.62 € | N156: Total | O156: =P155-O155+P83 -> 2,471.43 € | W156: Total | X156: =Y155-X155+Y83 -> 3,092.20 €
A157: Mapie
A158: Cpt Joint | B158: Compte maison
E161: Fin de moi précédent | G161: =Fevrier!F234 -> 4,649.52 €
B163: N° de transaction | C163: Date | D163: Objet | E163: Précision | F163: debit | G163: Crédit | H163: Type de paiment | I163: Divers
B164: 1 | C164: 2024-08-05 | D164: Electricité | G164: 105.00 € | H164: Virement intercompte
B165: 2 | C165: 2024-08-05 | D165: gaz | G165: 70.00 € | H165: Virement intercompte
B166: 3 | C166: 2024-08-05 | D166: Bois | G166: 60.00 € | H166: Virement intercompte
B167: 4 | C167: 2024-08-05 | D167: Prêt maison | G167: 443.23 € | H167: Virement intercompte
B168: 5 | C168: 2024-08-05 | D168: Prêt travaux | G168: 70.34 € | H168: Virement intercompte
B169: 6 | C169: 2024-08-05 | D169: Prêt travaux | G169: 155.37 € | H169: Virement intercompte
B170: 7 | C170: 2024-08-05 | D170: Frais Banquaire | G170: 10.00 € | H170: Virement Mapie
B171: 8 | C171: 2024-08-05 | D171: Frais Banquaire | G171: 10.00 € | H171: Virement intercompte
B172: 9 | C172: 2024-08-05 | D172: Frais Banquaire | G172: 9.18 € | H172: Virement banquaire
B173: 10 | C173: 2024-08-05 | D173: Eau | G173: 55.00 € | H173: Virement intercompte
B174: 11 | C174: 2024-08-05 | D174: Prêt Duster | G174: 323.97 € | H174: Virement intercompte
B175: 12 | C175: 2024-08-05 | D175: Scolarité | G175: 280.00 € | H175: Virement Mapie
B176: 13 | C176: 2024-08-05 | D176: sport | G176: 130.00 € | H176: Virement Mapie
B177: 14 | C177: 2024-08-05 | D177: Assurances | G177: 130.00 € | H177: Virement intercompte
B178: 15 | C178: 2024-08-05 | D178: Téléphone | G178: 55.00 € | H178: Virement intercompte
B179: 16 | C179: 2024-08-05 | D179: mutuelle | G179: 70.00 € | H179: Virement intercompte
B180: 17 | C180: 2024-08-05 | D180: salaire | G180: 120.00 €
B181: 18 | C181: 2024-08-05 | D181: Nourrice | E181: congé | G181: 50.00 € | H181: Virement Mapie
B182: 19 | C182: 2024-08-05 | D182: Nourrice | E182: recouvrement PAJE | G182: 319.07 € | H182: Virement banquaire
B183: 20 | C183: 2024-08-05 | D183: Entretien voiture | G183: 75.00 € | H183: Virement intercompte
B184: 21 | D184: Nourrice | E184: Salaire | H184: Virement banquaire
B185: 22 | D185: Electricité | F185: 103.00 € | H185: Prélèvement
B186: 23 | D186: gaz | F186: 49.00 € | H186: Prélèvement
B187: 24 | D187: Prêt maison | F187: 443.23 € | H187: Prélèvement
B188: 25 | D188: Prêt travaux | F188: 70.34 € | H188: Prélèvement
B189: 26 | D189: Prêt travaux | F189: 155.37 € | H189: Prélèvement
B190: 27 | D190: Frais Banquaire | F190: 23.46 € | H190: Prélèvement
B191: 28 | D191: Prêt Duster | F191: 323.97 € | H191: Prélèvement
B192: 29 | D192: Scolarité | H192: Prélèvement
B193: 30 | D193: Téléphone | F193: 16.84 € | H193: Prélèvement
B194: 31 | D194: Téléphone | F194: 28.99 € | H194: Prélèvement
B195: 32 | D195: mutuelle | F195: 70.00 € | H195: Prélèvement
B196: 33
B197: 34
B198: 35
B199: 36
B200: 37
B201: 38
B202: 39
B203: 40
B204: 41
B205: 42
B206: 43
B207: 44
B208: 45
B209: 46
... 92 more rows

Sheet Septembre
J1: Compte chèque | S1: Livret A | AB1: LEP
A2: Cpt Charlie | B2: Compte chèque Charlie | J2: Livret A Charlie | K2: Livret A | S2: LEP Charlie | T2: LEP
E5: Fin de moi précédent | G5: =Fevrier!F78 -> 794.54 € | K5: =IF((P9+P54=P5),0,1) -> 0 | N5: Fin de moi précédent | P5: =Fevrier!O78 -> 1,140.00 € | W5: Fin de moi précédent | Y5: =Fevrier!X78 -> 260
B7: N° de transaction | C7: Date | D7: Objet | E7: Précision | F7: debit | G7: Crédit | H7: Type de paiment | I7: Divers | K7: Animaux | T7: N° de transaction | U7: Date | V7: Objet | W7: Précision | X7: debit | Y7: Crédit | Z7: Type de paiment | AA7: Divers
B8: 1 | C8: 2024-09-02 | D8: Salaire | E8: Décembre | G8: 2,304.59 € | H8: Virement banquaire | T8: 1 | U8: 2024-09-05 | V8: travaux | Y8: 50.00 € | Z8: Virement intercompte
B9: 2 | C9: 2024-09-05 | D9: Bois | F9: 60.00 € | H9: Virement intercompte | I9: Cpt Cjoint | N9: Fin de moi précédent | P9: =Fevrier!O48 -> 640.00 € | T9: 2
B10: 3 | C10: 2024-09-05 | D10: Prêt maison | F10: 443.23 € | H10: Virement intercompte | I10: Cpt Cjoint | T10: 3
B11: 4 | C11: 2024-09-05 | D11: Prêt travaux | F11: 70.34 € | H11: Virement intercompte | I11: Cpt Cjoint | K11: N° de transaction | L11: Date | M11: Objet | N11: Précision | O11: debit | P11: Crédit | Q11: Type de paiment | R11: Divers | T11: 4
B12: 5 | C12: 2024-09-05 | D12: Prêt travaux | F12: 155.37 € | H12: Virement intercompte | I12: Cpt Cjoint | T12: 5
B13: 6 | C13: 2024-09-05 | D13: Frais Banquaire | F13: 10.00 € | H13: Virement intercompte | I13: Cpt Cjoint | K13: 1 | L13: 2024-09-05 | M13: animaux | P13: 70.00 € | Q13: Virement intercompte | T13: 6
B14: 7 | C14: 2024-09-05 | D14: Eau | F14: 55.00 € | H14: Virement intercompte | I14: Cpt Cjoint | K14: 2 | T14: 7
B15: 8 | C15: 2024-09-05 | D15: Prêt Duster | F15: 323.97 € | H15: Virement intercompte | I15: Cpt Cjoint | K15: 3 | T15: 8
B16: 9 | C16: 2024-09-05 | D16: Assurances | F16: 130.00 € | H16: Virement intercompte | I16: Cpt Cjoint | K16: 4 | T16: 9
B17: 10 | C17: 2024-09-05 | D17: Téléphone | F17: 55.00 € | H17: Virement intercompte | I17: Cpt Cjoint | K17: 5 | T17: 10
B18: 11 | C18: 2024-09-05 | D18: mutuelle | F18: 70.00 € | H18: Virement intercompte | I18: Cpt Cjoint | K18: 6 | T18: 11
B19: 12 | C19: 2024-09-05 | D19: Electricité | F19: 105.00 € | H19: Virement intercompte | I19: Cpt Cjoint | K19: 7 | T19: 12
B20: 13 | C20: 2024-09-05 | D20: gaz | F20: 70.00 € | H20: Virement intercompte | I20: Cpt Cjoint | K20: 8 | T20: 13
B21: 14 | C21: 2024-09-05 | D21: Impot et taxe | F21: 100.00 € | H21: Virement intercompte | I21: Livret A Charlie | K21: 9 | T21: 14
B22: 15 | C22: 2024-09-05 | D22: Travaux | F22: 50.00 € | H22: Virement intercompte | I22: LEP Charlie | K22: 10 | T22: 15
B23: 16 | C23: 2024-09-05 | D23: Animaux | F23: 70.00 € | H23: Virement intercompte | I23: Livret A Charlie | K23: 11 | T23: 16
B24: 17 | C24: 2024-09-05 | D24: Entretien voiture | F24: 75.00 € | H24: Virement intercompte | I24: Cpt Cjoint | K24: 12 | T24: 17
B25: 18 | D25: Loisir | E25: Weigth Watcher | F25: 8.75 € | H25: Paypal | K25: 13 | T25: 18
B26: 19 | D26: Loisir | E26: Familleo | F26: 5.99 € | H26: Prélèvement | K26: 14 | T26: 19
B27: 20 | E27: Netflix | F27: 18.99 € | K27: 15 | T27: 20
B28: 21 | K28: 16 | T28: 21
B29: 22 | K29: 17 | T29: 22
B30: 23 | K30: 18 | T30: 23
B31: 24 | K31: 19 | T31: 24
B32: 25 | K32: 20 | T32: 25
B33: 26 | K33: 21 | T33: 26
B34: 27 | K34: 22 | T34: 27
B35: 28 | K35: 23 | T35: 28
B36: 29 | K36: 24 | T36: 29
B37: 30 | K37: 25 | T37: 30
B38: 31 | K38: 26 | T38: 31
B39: 32 | K39: 27 | T39: 32
B40: 33 | K40: 28 | T40: 33
B41: 34 | K41: 29 | T41: 34
B42: 35 | K42: 30 | T42: 35
B43: 36 | K43: 31 | T43: 36
B44: 37 | K44: 32 | T44: 37
B45: 38 | K45: 33 | T45: 38
B46: 39 | K46: 34 | T46: 39
B47: 40 | N47: Sous Total | O47: =SUM(O13:O46) -> 0.00 € | P47: 70.00 € | T47: 40
B48: 41 | N48: Total | O48: =P47-O47+P9 -> 710.00 € | T48: 41
B49: 42 | T49: 42
B50: 43 | T50: 43
B51: 44 | K51: Impot et taxe | T51: 44
B52: 45 | T52: 45
B53: 46 | T53: 46
B54: 47 | N54: Fin de moi précédent | P54: =Fevrier!O75 -> 500.00 € | T54: 47
B55: 48 | T55: 48
B56: 49 | K56: N° de transaction | L56: Date | M56: Objet | N56: Précision | O56: debit | P56: Crédit | Q56: Virement intercompte | R56: Divers | T56: 49
B57: 50 | T57: 50
B58: 51 | K58: 1 | L58: 2024-09-05 | M58: Impot et taxe | N58: charlie | P58: 100.00 € | Q58: Virement intercompte | T58: 51
B59: 52 | K59: 2 | T59: 52
B60: 53 | K60: 3 | T60: 53
B61: 54 | K61: 4 | T61: 54
B62: 55 | K62: 5 | T62: 55
B63: 56 | K63: 6 | T63: 56
B64: 57 | K64: 7 | T64: 57
B65: 58 | K65: 8 | T65: 58
B66: 59 | K66: 9 | T66: 59
B67: 60 | K67: 10 | T67: 60
B68: 61 | K68: 11 | T68: 61
B69: 62 | K69: 12 | T69: 62
B70: 63 | K70: 13 | T70: 63
B71: 64 | K71: 14 | T71: 64
B72: 65 | K72: 15 | T72: 65
B73: 66 | K73: 16 | T73: 66
B74: 67 | N74: Sous Total | O74: =SUM(O58:O73) -> 0.00 € | P74: 100.00 € | T74: 67
B75: 68 | N75: Total | O75: =P74-O74+P54 -> 600.00 € | T75: 68
B76: 69 | T76: 69
E77: Sous Total | F77: =SUM(F8:F76) -> 1,876.64 € | G77: 2,304.59 € | N77: Sous Total | O77: =O74+O47 -> 0.00 € | P77: 170.00 € | W77: Sous Total | X77: =SUM(X8:X76) -> 0.00 € | Y77: 50.00 €
E78: Total | F78: =G5+G77-F77 -> 1,222.49 € | N78: Total | O78: =P5+P77-O77 -> 1,310.00 € | W78: Total | X78: =Y5+Y77-X77 -> 310.00 €
A79: Charlie
A80: Cpt Mapie | B80: Compte chèque Mapie | K80: Livret A Mapie | T80: LEP Mapie
E83: Fin de moi précédent | G83: =Fevrier!F156 -> 959.08 € | N83: Fin de moi précédent | P83: =Fevrier!O156 -> 2,471.43 € | W83: Fin de moi précédent | Y83: =Fevrier!X156 -> 3,092.20 €
B85: N° de transaction | C85: Date | D85: Objet | E85: Précision | F85: debit | G85: Crédit | H85: Type de paiment | I85: Divers | K85: N° de transaction | L85: Date | M85: Objet | N85: Précision | O85: debit | P85: Crédit | Q85: Type de paiment | R85: Divers | T85: N° de transaction | U85: Date | V85: Objet | W85: Précision | X85: debit | Y85: Crédit | Z85: Type de paiment | AA85: Divers
B86: 1 | C86: 2024-09-02 | D86: Salaire | E86: aide de fin de formation | G86: 723.23 € | H86: Virement banquaire | K86: 1 | T86: 1
B87: 2 | C87: 2024-09-03 | D87: Salaire | E87: CAF | G87: 416.31 € | H87: Virement banquaire | I87: Cpt Cjoint | K87: 2 | T87: 2
B88: 3 | C88: 2024-09-05 | D88: Frais Banquaire | F88: 10.00 € | H88: Virement intercompte | I88: Cpt Cjoint | K88: 3 | T88: 3
B89: 4 | C89: 2024-09-05 | D89: Scolarité | F89: 280.00 € | H89: Virement intercompte | I89: Cpt Cjoint | K89: 4 | T89: 4
B90: 5 | C90: 2024-09-05 | D90: sport | F90: 130.00 € | H90: Virement intercompte | I90: Cpt Cjoint | K90: 5 | T90: 5
B91: 6 | C91: 2024-09-05 | D91: Nourrice | E91: salaire | F91: 120.00 € | H91: Virement intercompte | I91: Cpt Cjoint | K91: 6 | T91: 6
B92: 7 | C92: 2024-09-05 | D92: Nourrice | E92: congé | F92: 50.00 € | H92: Virement intercompte | I92: Cpt Cjoint | K92: 7 | T92: 7
B93: 8 | C93: 2024-09-05 | D93: Epargne | E93: Arzhel | F93: 20.00 € | H93: Virement intercompte | I93: Livret A Azylis | K93: 8 | T93: 8
B94: 9 | C94: 2024-09-05 | D94: Epargne | E94: Azylis | F94: 20.00 € | H94: Virement intercompte | I94: Livret A Azylis | K94: 9 | T94: 9
B95: 10 | C95: 2024-09-05 | D95: Epargne | E95: Azekiel | F95: 30.00 € | H95: Virement intercompte | I95: Livret A Azekiel | K95: 10 | T95: 10
B96: 11 | K96: 11 | T96: 11
B97: 12 | K97: 12 | T97: 12
B98: 13 | K98: 13 | T98: 13
B99: 14 | K99: 14 | T99: 14
B100: 15 | K100: 15 | T100: 15
B101: 16 | K101: 16 | T101: 16
B102: 17 | K102: 17 | T102: 17
B103: 18 | K103: 18 | T103: 18
B104: 19 | K104: 19 | T104: 19
B105: 20 | K105: 20 | T105: 20
B106: 21 | K106: 21 | T106: 21
B107: 22 | K107: 22 | T107: 22
B108: 23 | K108: 23 | T108: 23
B109: 24 | K109: 24 | T109: 24
B110: 25 | K110: 25 | T110: 25
B111: 26 | K111: 26 | T111: 26
B112: 27 | K112: 27 | T112: 27
B113: 28 | K113: 28 | T113: 28
B114: 29 | K114: 29 | T114: 29
B115: 30 | K115: 30 | T115: 30
B116: 31 | K116: 31 | T116: 31
B117: 32 | K117: 32 | T117: 32
B118: 33 | K118: 33 | T118: 33
B119: 34 | K119: 34 | T119: 34
B120: 35 | K120: 35 | T120: 35
B121: 36 | K121: 36 | T121: 36
B122: 37 | K122: 37 | T122: 37
B123: 38 | K123: 38 | T123: 38
B124: 39 | K124: 39 | T124: 39
B125: 40 | K125: 40 | T125: 40
B126: 41 | K126: 41 | T126: 41
B127: 42 | K127: 42 | T127: 42
B128: 43 | K128: 43 | T128: 43
B129: 44 | K129: 44 | T129: 44
B130: 45 | K130: 45 | T130: 45
B131: 46 | K131: 46 | T131: 46
B132: 47 | K132: 47 | T132: 47
B133: 48 | K133: 48 | T133: 48
B134: 49 | K134: 49 | T134: 49
B135: 50 | K135: 50 | T135: 50
B136: 51 | K136: 51 | T136: 51
B137: 52 | K137: 52 | T137: 52
B138: 53 | K138: 53 | T138: 53
B139: 54 | K139: 54 | T139: 54
B140: 55 | K140: 55 | T140: 55
B141: 56 | K141: 56 | T141: 56
B142: 57 | K142: 57 | T142: 57
B143: 58 | K143: 58 | T143: 58
B144: 59 | K144: 59 | T144: 59
B145: 60 | K145: 60 | T145: 60
B146: 61 | K146: 61 | T146: 61
B147: 62 | K147: 62 | T147: 62
B148: 63 | K148: 63 | T148: 63
B149: 64 | K149: 64 | T149: 64
B150: 65 | K150: 65 | T150: 65
B151: 66 | K151: 66 | T151: 66
B152: 67 | K152: 67 | T152: 67
B153: 68 | K153: 68 | T153: 68
B154: 69 | K154: 70 | T154: 70
E155: Sous Total | F155: =SUM(F86:F154) -> 660.00 € | G155: 1,139.54 € | N155: Sous Total | O155: =SUM(O86:O154) -> 0 | P155: 0 | W155: Sous Total | X155: =SUM(X86:X154) -> 0 | Y155: 0
E156: Total | F156: =G155-F155+G83 -> 1,438.62 € | N156: Total | O156: =P155-O155+P83 -> 2,471.43 € | W156: Total | X156: =Y155-X155+Y83 -> 3,092.20 €
A157: Mapie
A158: Cpt Joint | B158: Compte maison
E161: Fin de moi précédent | G161: =Fevrier!F234 -> 4,649.52 €
B163: N° de transaction | C163: Date | D163: Objet | E163: Précision | F163: debit | G163: Crédit | H163: Type de paiment | I163: Divers
B164: 1 | C164: 2024-09-05 | D164: Electricité | G164: 105.00 € | H164: Virement intercompte
B165: 2 | C165: 2024-09-05 | D165: gaz | G165: 70.00 € | H165: Virement intercompte
B166: 3 | C166: 2024-09-05 | D166: Bois | G166: 60.00 € | H166: Virement intercompte
B167: 4 | C167: 2024-09-05 | D167: Prêt maison | G167: 443.23 € | H167: Virement intercompte
B168: 5 | C168: 2024-09-05 | D168: Prêt travaux | G168: 70.34 € | H168: Virement intercompte
B169: 6 | C169: 2024-09-05 | D169: Prêt travaux | G169: 155.37 € | H169: Virement intercompte
B170: 7 | C170: 2024-09-05 | D170: Frais Banquaire | G170: 10.00 € | H170: Virement Mapie
B171: 8 | C171: 2024-09-05 | D171: Frais Banquaire | G171: 10.00 € | H171: Virement intercompte
B172: 9 | C172: 2024-09-05 | D172: Frais Banquaire | G172: 9.18 € | H172: Virement banquaire
B173: 10 | C173: 2024-09-05 | D173: Eau | G173: 55.00 € | H173: Virement intercompte
B174: 11 | C174: 2024-09-05 | D174: Prêt Duster | G174: 323.97 € | H174: Virement intercompte
B175: 12 | C175: 2024-09-05 | D175: Scolarité | G175: 280.00 € | H175: Virement Mapie
B176: 13 | C176: 2024-09-05 | D176: sport | G176: 130.00 € | H176: Virement Mapie
B177: 14 | C177: 2024-09-05 | D177: Assurances | G177: 130.00 € | H177: Virement intercompte
B178: 15 | C178: 2024-09-05 | D178: Téléphone | G178: 55.00 € | H178: Virement intercompte
B179: 16 | C179: 2024-09-05 | D179: mutuelle | G179: 70.00 € | H179: Virement intercompte
B180: 17 | C180: 2024-09-05 | D180: salaire | G180: 120.00 €
B181: 18 | C181: 2024-09-05 | D181: Nourrice | E181: congé | G181: 50.00 € | H181: Virement Mapie
B182: 19 | C182: 2024-09-05 | D182: Nourrice | E182: recouvrement PAJE | G182: 319.07 € | H182: Virement banquaire
B183: 20 | C183: 2024-09-05 | D183: Entretien voiture | G183: 75.00 € | H183: Virement intercompte
B184: 21 | D184: Nourrice | E184: Salaire | H184: Virement banquaire
B185: 22 | D185: Electricité | F185: 103.00 € | H185: Prélèvement
B186: 23 | D186: gaz | F186: 49.00 € | H186: Prélèvement
B187: 24 | D187: Prêt maison | F187: 443.23 € | H187: Prélèvement
B188: 25 | D188: Prêt travaux | F188: 70.34 € | H188: Prélèvement
B189: 26 | D189: Prêt travaux | F189: 155.37 € | H189: Prélèvement
B190: 27 | D190: Frais Banquaire | F190: 23.46 € | H190: Prélèvement
B191: 28 | D191: Prêt Duster | F191: 323.97 € | H191: Prélèvement
B192: 29 | D192: Scolarité | H192: Prélèvement
B193: 30 | D193: Téléphone | F193: 16.84 € | H193: Prélèvement
B194: 31 | D194: Téléphone | F194: 28.99 € | H194: Prélèvement
B195: 32 | D195: mutuelle | F195: 70.00 € | H195: Prélèvement
B196: 33
B197: 34
B198: 35
B199: 36
B200: 37
B201: 38
B202: 39
B203: 40
B204: 41
B205: 42
B206: 43
B207: 44
B208: 45
B209: 46
... 92 more rows

Sheet Octobre
J1: Compte chèque | S1: Livret A | AB1: LEP
A2: Cpt Charlie | B2: Compte chèque Charlie | J2: Livret A Charlie | K2: Livret A | S2: LEP Charlie | T2: LEP
E5: Fin de moi précédent | G5: =Fevrier!F78 -> 794.54 € | K5: =IF((P9+P54=P5),0,1) -> 0 | N5: Fin de moi précédent | P5: =Fevrier!O78 -> 1,140.00 € | W5: Fin de moi précédent | Y5: =Fevrier!X78 -> 260
B7: N° de transaction | C7: Date | D7: Objet | E7: Précision | F7: debit | G7: Crédit | H7: Type de paiment | I7: Divers | K7: Animaux | T7: N° de transaction | U7: Date | V7: Objet | W7: Précision | X7: debit | Y7: Crédit | Z7: Type de paiment | AA7: Divers
B8: 1 | C8: 2024-10-02 | D8: Salaire | E8: Décembre | G8: 2,304.59 € | H8: Virement banquaire | T8: 1 | U8: 2024-10-05 | V8: travaux | Y8: 50.00 € | Z8: Virement intercompte
B9: 2 | C9: 2024-10-05 | D9: Bois | F9: 60.00 € | H9: Virement intercompte | I9: Cpt Cjoint | N9: Fin de moi précédent | P9: =Fevrier!O48 -> 640.00 € | T9: 2
B10: 3 | C10: 2024-10-05 | D10: Prêt maison | F10: 443.23 € | H10: Virement intercompte | I10: Cpt Cjoint | T10: 3
B11: 4 | C11: 2024-10-05 | D11: Prêt travaux | F11: 70.34 € | H11: Virement intercompte | I11: Cpt Cjoint | K11: N° de transaction | L11: Date | M11: Objet | N11: Précision | O11: debit | P11: Crédit | Q11: Type de paiment | R11: Divers | T11: 4
B12: 5 | C12: 2024-10-05 | D12: Prêt travaux | F12: 155.37 € | H12: Virement intercompte | I12: Cpt Cjoint | T12: 5
B13: 6 | C13: 2024-10-05 | D13: Frais Banquaire | F13: 10.00 € | H13: Virement intercompte | I13: Cpt Cjoint | K13: 1 | L13: 2024-10-05 | M13: animaux | P13: 70.00 € | Q13: Virement intercompte | T13: 6
B14: 7 | C14: 2024-10-05 | D14: Eau | F14: 55.00 € | H14: Virement intercompte | I14: Cpt Cjoint | K14: 2 | T14: 7
B15: 8 | C15: 2024-10-05 | D15: Prêt Duster | F15: 323.97 € | H15: Virement intercompte | I15: Cpt Cjoint | K15: 3 | T15: 8
B16: 9 | C16: 2024-10-05 | D16: Assurances | F16: 130.00 € | H16: Virement intercompte | I16: Cpt Cjoint | K16: 4 | T16: 9
B17: 10 | C17: 2024-10-05 | D17: Téléphone | F17: 55.00 € | H17: Virement intercompte | I17: Cpt Cjoint | K17: 5 | T17: 10
B18: 11 | C18: 2024-10-05 | D18: mutuelle | F18: 70.00 € | H18: Virement intercompte | I18: Cpt Cjoint | K18: 6 | T18: 11
B19: 12 | C19: 2024-10-05 | D19: Electricité | F19: 105.00 € | H19: Virement intercompte | I19: Cpt Cjoint | K19: 7 | T19: 12
B20: 13 | C20: 2024-10-05 | D20: gaz | F20: 70.00 € | H20: Virement intercompte | I20: Cpt Cjoint | K20: 8 | T20: 13
B21: 14 | C21: 2024-10-05 | D21: Impot et taxe | F21: 100.00 € | H21: Virement intercompte | I21: Livret A Charlie | K21: 9 | T21: 14
B22: 15 | C22: 2024-10-05 | D22: Travaux | F22: 50.00 € | H22: Virement intercompte | I22: LEP Charlie | K22: 10 | T22: 15
B23: 16 | C23: 2024-10-05 | D23: Animaux | F23: 70.00 € | H23: Virement intercompte | I23: Livret A Charlie | K23: 11 | T23: 16
B24: 17 | C24: 2024-10-05 | D24: Entretien voiture | F24: 75.00 € | H24: Virement intercompte | I24: Cpt Cjoint | K24: 12 | T24: 17
B25: 18 | D25: Loisir | E25: Weigth Watcher | F25: 8.75 € | H25: Paypal | K25: 13 | T25: 18
B26: 19 | D26: Loisir | E26: Familleo | F26: 5.99 € | H26: Prélèvement | K26: 14 | T26: 19
B27: 20 | E27: Netflix | F27: 18.99 € | K27: 15 | T27: 20
B28: 21 | K28: 16 | T28: 21
B29: 22 | K29: 17 | T29: 22
B30: 23 | K30: 18 | T30: 23
B31: 24 | K31: 19 | T31: 24
B32: 25 | K32: 20 | T32: 25
B33: 26 | K33: 21 | T33: 26
B34: 27 | K34: 22 | T34: 27
B35: 28 | K35: 23 | T35: 28
B36: 29 | K36: 24 | T36: 29
B37: 30 | K37: 25 | T37: 30
B38: 31 | K38: 26 | T38: 31
B39: 32 | K39: 27 | T39: 32
B40: 33 | K40: 28 | T40: 33
B41: 34 | K41: 29 | T41: 34
B42: 35 | K42: 30 | T42: 35
B43: 36 | K43: 31 | T43: 36
B44: 37 | K44: 32 | T44: 37
B45: 38 | K45: 33 | T45: 38
B46: 39 | K46: 34 | T46: 39
B47: 40 | N47: Sous Total | O47: =SUM(O13:O46) -> 0.00 € | P47: 70.00 € | T47: 40
B48: 41 | N48: Total | O48: =P47-O47+P9 -> 710.00 € | T48: 41
B49: 42 | T49: 42
B50: 43 | T50: 43
B51: 44 | K51: Impot et taxe | T51: 44
B52: 45 | T52: 45
B53: 46 | T53: 46
B54: 47 | N54: Fin de moi précédent | P54: =Fevrier!O75 -> 500.00 € | T54: 47
B55: 48 | T55: 48
B56: 49 | K56: N° de transaction | L56: Date | M56: Objet | N56: Précision | O56: debit | P56: Crédit | Q56: Virement intercompte | R56: Divers | T56: 49
B57: 50 | T57: 50
B58: 51 | K58: 1 | L58: 2024-10-05 | M58: Impot et taxe | N58: charlie | P58: 100.00 € | Q58: Virement intercompte | T58: 51
B59: 52 | K59: 2 | T59: 52
B60: 53 | K60: 3 | T60: 53
B61: 54 | K61: 4 | T61: 54
B62: 55 | K62: 5 | T62: 55
B63: 56 | K63: 6 | T63: 56
B64: 57 | K64: 7 | T64: 57
B65: 58 | K65: 8 | T65: 58
B66: 59 | K66: 9 | T66: 59
B67: 60 | K67: 10 | T67: 60
B68: 61 | K68: 11 | T68: 61
B69: 62 | K69: 12 | T69: 62
B70: 63 | K70: 13 | T70: 63
B71: 64 | K71: 14 | T71: 64
B72: 65 | K72: 15 | T72: 65
B73: 66 | K73: 16 | T73: 66
B74: 67 | N74: Sous Total | O74: =SUM(O58:O73) -> 0.00 € | P74: 100.00 € | T74: 67
B75: 68 | N75: Total | O75: =P74-O74+P54 -> 600.00 € | T75: 68
B76: 69 | T76: 69
E77: Sous Total | F77: =SUM(F8:F76) -> 1,876.64 € | G77: 2,304.59 € | N77: Sous Total | O77: =O74+O47 -> 0.00 € | P77: 170.00 € | W77: Sous Total | X77: =SUM(X8:X76) -> 0.00 € | Y77: 50.00 €
E78: Total | F78: =G5+G77-F77 -> 1,222.49 € | N78: Total | O78: =P5+P77-O77 -> 1,310.00 € | W78: Total | X78: =Y5+Y77-X77 -> 310.00 €
A79: Charlie
A80: Cpt Mapie | B80: Compte chèque Mapie | K80: Livret A Mapie | T80: LEP Mapie
E83: Fin de moi précédent | G83: =Fevrier!F156 -> 959.08 € | N83: Fin de moi précédent | P83: =Fevrier!O156 -> 2,471.43 € | W83: Fin de moi précédent | Y83: =Fevrier!X156 -> 3,092.20 €
B85: N° de transaction | C85: Date | D85: Objet | E85: Précision | F85: debit | G85: Crédit | H85: Type de paiment | I85: Divers | K85: N° de transaction | L85: Date | M85: Objet | N85: Précision | O85: debit | P85: Crédit | Q85: Type de paiment | R85: Divers | T85: N° de transaction | U85: Date | V85: Objet | W85: Précision | X85: debit | Y85: Crédit | Z85: Type de paiment | AA85: Divers
B86: 1 | C86: 2024-10-02 | D86: Salaire | E86: aide de fin de formation | G86: 723.23 € | H86: Virement banquaire | K86: 1 | T86: 1
B87: 2 | C87: 2024-10-03 | D87: Salaire | E87: CAF | G87: 416.31 € | H87: Virement banquaire | I87: Cpt Cjoint | K87: 2 | T87: 2
B88: 3 | C88: 2024-10-05 | D88: Frais Banquaire | F88: 10.00 € | H88: Virement intercompte | I88: Cpt Cjoint | K88: 3 | T88: 3
B89: 4 | C89: 2024-10-05 | D89: Scolarité | F89: 280.00 € | H89: Virement intercompte | I89: Cpt Cjoint | K89: 4 | T89: 4
B90: 5 | C90: 2024-10-05 | D90: sport | F90: 130.00 € | H90: Virement intercompte | I90: Cpt Cjoint | K90: 5 | T90: 5
B91: 6 | C91: 2024-10-05 | D91: Nourrice | E91: salaire | F91: 120.00 € | H91: Virement intercompte | I91: Cpt Cjoint | K91: 6 | T91: 6
B92: 7 | C92: 2024-10-05 | D92: Nourrice | E92: congé | F92: 50.00 € | H92: Virement intercompte | I92: Cpt Cjoint | K92: 7 | T92: 7
B93: 8 | C93: 2024-10-05 | D93: Epargne | E93: Arzhel | F93: 20.00 € | H93: Virement intercompte | I93: Livret A Azylis | K93: 8 | T93: 8
B94: 9 | C94: 2024-10-05 | D94: Epargne | E94: Azylis | F94: 20.00 € | H94: Virement intercompte | I94: Livret A Azylis | K94: 9 | T94: 9
B95: 10 | C95: 2024-10-05 | D95: Epargne | E95: Azekiel | F95: 30.00 € | H95: Virement intercompte | I95: Livret A Azekiel | K95: 10 | T95: 10
B96: 11 | K96: 11 | T96: 11
B97: 12 | K97: 12 | T97: 12
B98: 13 | K98: 13 | T98: 13
B99: 14 | K99: 14 | T99: 14
B100: 15 | K100: 15 | T100: 15
B101: 16 | K101: 16 | T101: 16
B102: 17 | K102: 17 | T102: 17
B103: 18 | K103: 18 | T103: 18
B104: 19 | K104: 19 | T104: 19
B105: 20 | K105: 20 | T105: 20
B106: 21 | K106: 21 | T106: 21
B107: 22 | K107: 22 | T107: 22
B108: 23 | K108: 23 | T108: 23
B109: 24 | K109: 24 | T109: 24
B110: 25 | K110: 25 | T110: 25
B111: 26 | K111: 26 | T111: 26
B112: 27 | K112: 27 | T112: 27
B113: 28 | K113: 28 | T113: 28
B114: 29 | K114: 29 | T114: 29
B115: 30 | K115: 30 | T115: 30
B116: 31 | K116: 31 | T116: 31
B117: 32 | K117: 32 | T117: 32
B118: 33 | K118: 33 | T118: 33
B119: 34 | K119: 34 | T119: 34
B120: 35 | K120: 35 | T120: 35
B121: 36 | K121: 36 | T121: 36
B122: 37 | K122: 37 | T122: 37
B123: 38 | K123: 38 | T123: 38
B124: 39 | K124: 39 | T124: 39
B125: 40 | K125: 40 | T125: 40
B126: 41 | K126: 41 | T126: 41
B127: 42 | K127: 42 | T127: 42
B128: 43 | K128: 43 | T128: 43
B129: 44 | K129: 44 | T129: 44
B130: 45 | K130: 45 | T130: 45
B131: 46 | K131: 46 | T131: 46
B132: 47 | K132: 47 | T132: 47
B133: 48 | K133: 48 | T133: 48
B134: 49 | K134: 49 | T134: 49
B135: 50 | K135: 50 | T135: 50
B136: 51 | K136: 51 | T136: 51
B137: 52 | K137: 52 | T137: 52
B138: 53 | K138: 53 | T138: 53
B139: 54 | K139: 54 | T139: 54
B140: 55 | K140: 55 | T140: 55
B141: 56 | K141: 56 | T141: 56
B142: 57 | K142: 57 | T142: 57
B143: 58 | K143: 58 | T143: 58
B144: 59 | K144: 59 | T144: 59
B145: 60 | K145: 60 | T145: 60
B146: 61 | K146: 61 | T146: 61
B147: 62 | K147: 62 | T147: 62
B148: 63 | K148: 63 | T148: 63
B149: 64 | K149: 64 | T149: 64
B150: 65 | K150: 65 | T150: 65
B151: 66 | K151: 66 | T151: 66
B152: 67 | K152: 67 | T152: 67
B153: 68 | K153: 68 | T153: 68
B154: 69 | K154: 70 | T154: 70
E155: Sous Total | F155: =SUM(F86:F154) -> 660.00 € | G155: 1,139.54 € | N155: Sous Total | O155: =SUM(O86:O154) -> 0 | P155: 0 | W155: Sous Total | X155: =SUM(X86:X154) -> 0 | Y155: 0
E156: Total | F156: =G155-F155+G83 -> 1,438.62 € | N156: Total | O156: =P155-O155+P83 -> 2,471.43 € | W156: Total | X156: =Y155-X155+Y83 -> 3,092.20 €
A157: Mapie
A158: Cpt Joint | B158: Compte maison
E161: Fin de moi précédent | G161: =Fevrier!F234 -> 4,649.52 €
B163: N° de transaction | C163: Date | D163: Objet | E163: Précision | F163: debit | G163: Crédit | H163: Type de paiment | I163: Divers
B164: 1 | C164: 2024-10-05 | D164: Electricité | G164: 105.00 € | H164: Virement intercompte
B165: 2 | C165: 2024-10-05 | D165: gaz | G165: 70.00 € | H165: Virement intercompte
B166: 3 | C166: 2024-10-05 | D166: Bois | G166: 60.00 € | H166: Virement intercompte
B167: 4 | C167: 2024-10-05 | D167: Prêt maison | G167: 443.23 € | H167: Virement intercompte
B168: 5 | C168: 2024-10-05 | D168: Prêt travaux | G168: 70.34 € | H168: Virement intercompte
B169: 6 | C169: 2024-10-05 | D169: Prêt travaux | G169: 155.37 € | H169: Virement intercompte
B170: 7 | C170: 2024-10-05 | D170: Frais Banquaire | G170: 10.00 € | H170: Virement Mapie
B171: 8 | C171: 2024-10-05 | D171: Frais Banquaire | G171: 10.00 € | H171: Virement intercompte
B172: 9 | C172: 2024-10-05 | D172: Frais Banquaire | G172: 9.18 € | H172: Virement banquaire
B173: 10 | C173: 2024-10-05 | D173: Eau | G173: 55.00 € | H173: Virement intercompte
B174: 11 | C174: 2024-10-05 | D174: Prêt Duster | G174: 323.97 € | H174: Virement intercompte
B175: 12 | C175: 2024-10-05 | D175: Scolarité | G175: 280.00 € | H175: Virement Mapie
B176: 13 | C176: 2024-10-05 | D176: sport | G176: 130.00 € | H176: Virement Mapie
B177: 14 | C177: 2024-10-05 | D177: Assurances | G177: 130.00 € | H177: Virement intercompte
B178: 15 | C178: 2024-10-05 | D178: Téléphone | G178: 55.00 € | H178: Virement intercompte
B179: 16 | C179: 2024-10-05 | D179: mutuelle | G179: 70.00 € | H179: Virement intercompte
B180: 17 | C180: 2024-10-05 | D180: salaire | G180: 120.00 €
B181: 18 | C181: 2024-10-05 | D181: Nourrice | E181: congé | G181: 50.00 € | H181: Virement Mapie
B182: 19 | C182: 2024-10-05 | D182: Nourrice | E182: recouvrement PAJE | G182: 319.07 € | H182: Virement banquaire
B183: 20 | C183: 2024-10-05 | D183: Entretien voiture | G183: 75.00 € | H183: Virement intercompte
B184: 21 | D184: Nourrice | E184: Salaire | H184: Virement banquaire
B185: 22 | D185: Electricité | F185: 103.00 € | H185: Prélèvement
B186: 23 | D186: gaz | F186: 49.00 € | H186: Prélèvement
B187: 24 | D187: Prêt maison | F187: 443.23 € | H187: Prélèvement
B188: 25 | D188: Prêt travaux | F188: 70.34 € | H188: Prélèvement
B189: 26 | D189: Prêt travaux | F189: 155.37 € | H189: Prélèvement
B190: 27 | D190: Frais Banquaire | F190: 23.46 € | H190: Prélèvement
B191: 28 | D191: Prêt Duster | F191: 323.97 € | H191: Prélèvement
B192: 29 | D192: Scolarité | H192: Prélèvement
B193: 30 | D193: Téléphone | F193: 16.84 € | H193: Prélèvement
B194: 31 | D194: Téléphone | F194: 28.99 € | H194: Prélèvement
B195: 32 | D195: mutuelle | F195: 70.00 € | H195: Prélèvement
B196: 33
B197: 34
B198: 35
B199: 36
B200: 37
B201: 38
B202: 39
B203: 40
B204: 41
B205: 42
B206: 43
B207: 44
B208: 45
B209: 46
... 92 more rows

Sheet Novembre
J1: Compte chèque | S1: Livret A | AB1: LEP
A2: Cpt Charlie | B2: Compte chèque Charlie | J2: Livret A Charlie | K2: Livret A | S2: LEP Charlie | T2: LEP
E5: Fin de moi précédent | G5: =Fevrier!F78 -> 794.54 € | K5: =IF((P9+P54=P5),0,1) -> 0 | N5: Fin de moi précédent | P5: =Fevrier!O78 -> 1,140.00 € | W5: Fin de moi précédent | Y5: =Fevrier!X78 -> 260
B7: N° de transaction | C7: Date | D7: Objet | E7: Précision | F7: debit | G7: Crédit | H7: Type de paiment | I7: Divers | K7: Animaux | T7: N° de transaction | U7: Date | V7: Objet | W7: Précision | X7: debit | Y7: Crédit | Z7: Type de paiment | AA7: Divers
B8: 1 | C8: 2024-11-02 | D8: Salaire | E8: Décembre | G8: 2,304.59 € | H8: Virement banquaire | T8: 1 | U8: 2024-11-05 | V8: travaux | Y8: 50.00 € | Z8: Virement intercompte
B9: 2 | C9: 2024-11-05 | D9: Bois | F9: 60.00 € | H9: Virement intercompte | I9: Cpt Cjoint | N9: Fin de moi précédent | P9: =Fevrier!O48 -> 640.00 € | T9: 2
B10: 3 | C10: 2024-11-05 | D10: Prêt maison | F10: 443.23 € | H10: Virement intercompte | I10: Cpt Cjoint | T10: 3
B11: 4 | C11: 2024-11-05 | D11: Prêt travaux | F11: 70.34 € | H11: Virement intercompte | I11: Cpt Cjoint | K11: N° de transaction | L11: Date | M11: Objet | N11: Précision | O11: debit | P11: Crédit | Q11: Type de paiment | R11: Divers | T11: 4
B12: 5 | C12: 2024-11-05 | D12: Prêt travaux | F12: 155.37 € | H12: Virement intercompte | I12: Cpt Cjoint | T12: 5
B13: 6 | C13: 2024-11-05 | D13: Frais Banquaire | F13: 10.00 € | H13: Virement intercompte | I13: Cpt Cjoint | K13: 1 | L13: 2024-11-05 | M13: animaux | P13: 70.00 € | Q13: Virement intercompte | T13: 6
B14: 7 | C14: 2024-11-05 | D14: Eau | F14: 55.00 € | H14: Virement intercompte | I14: Cpt Cjoint | K14: 2 | T14: 7
B15: 8 | C15: 2024-11-05 | D15: Prêt Duster | F15: 323.97 € | H15: Virement intercompte | I15: Cpt Cjoint | K15: 3 | T15: 8
B16: 9 | C16: 2024-11-05 | D16: Assurances | F16: 130.00 € | H16: Virement intercompte | I16: Cpt Cjoint | K16: 4 | T16: 9
B17: 10 | C17: 2024-11-05 | D17: Téléphone | F17: 55.00 € | H17: Virement intercompte | I17: Cpt Cjoint | K17: 5 | T17: 10
B18: 11 | C18: 2024-11-05 | D18: mutuelle | F18: 70.00 € | H18: Virement intercompte | I18: Cpt Cjoint | K18: 6 | T18: 11
B19: 12 | C19: 2024-11-05 | D19: Electricité | F19: 105.00 € | H19: Virement intercompte | I19: Cpt Cjoint | K19: 7 | T19: 12
B20: 13 | C20: 2024-11-05 | D20: gaz | F20: 70.00 € | H20: Virement intercompte | I20: Cpt Cjoint | K20: 8 | T20: 13
B21: 14 | C21: 2024-11-05 | D21: Impot et taxe | F21: 100.00 € | H21: Virement intercompte | I21: Livret A Charlie | K21: 9 | T21: 14
B22: 15 | C22: 2024-11-05 | D22: Travaux | F22: 50.00 € | H22: Virement intercompte | I22: LEP Charlie | K22: 10 | T22: 15
B23: 16 | C23: 2024-11-05 | D23: Animaux | F23: 70.00 € | H23: Virement intercompte | I23: Livret A Charlie | K23: 11 | T23: 16
B24: 17 | C24: 2024-11-05 | D24: Entretien voiture | F24: 75.00 € | H24: Virement intercompte | I24: Cpt Cjoint | K24: 12 | T24: 17
B25: 18 | D25: Loisir | E25: Weigth Watcher | F25: 8.75 € | H25: Paypal | K25: 13 | T25: 18
B26: 19 | D26: Loisir | E26: Familleo | F26: 5.99 € | H26: Prélèvement | K26: 14 | T26: 19
B27: 20 | E27: Netflix | F27: 18.99 € | K27: 15 | T27: 20
B28: 21 | K28: 16 | T28: 21
B29: 22 | K29: 17 | T29: 22
B30: 23 | K30: 18 | T30: 23
B31: 24 | K31: 19 | T31: 24
B32: 25 | K32: 20 | T32: 25
B33: 26 | K33: 21 | T33: 26
B34: 27 | K34: 22 | T34: 27
B35: 28 | K35: 23 | T35: 28
B36: 29 | K36: 24 | T36: 29
B37: 30 | K37: 25 | T37: 30
B38: 31 | K38: 26 | T38: 31
B39: 32 | K39: 27 | T39: 32
B40: 33 | K40: 28 | T40: 33
B41: 34 | K41: 29 | T41: 34
B42: 35 | K42: 30 | T42: 35
B43: 36 | K43: 31 | T43: 36
B44: 37 | K44: 32 | T44: 37
B45: 38 | K45: 33 | T45: 38
B46: 39 | K46: 34 | T46: 39
B47: 40 | N47: Sous Total | O47: =SUM(O13:O46) -> 0.00 € | P47: 70.00 € | T47: 40
B48: 41 | N48: Total | O48: =P47-O47+P9 -> 710.00 € | T48: 41
B49: 42 | T49: 42
B50: 43 | T50: 43
B51: 44 | K51: Impot et taxe | T51: 44
B52: 45 | T52: 45
B53: 46 | T53: 46
B54: 47 | N54: Fin de moi précédent | P54: =Fevrier!O75 -> 500.00 € | T54: 47
B55: 48 | T55: 48
B56: 49 | K56: N° de transaction | L56: Date | M56: Objet | N56: Précision | O56: debit | P56: Crédit | Q56: Virement intercompte | R56: Divers | T56: 49
B57: 50 | T57: 50
B58: 51 | K58: 1 | L58: 2024-11-05 | M58: Impot et taxe | N58: charlie | P58: 100.00 € | Q58: Virement intercompte | T58: 51
B59: 52 | K59: 2 | T59: 52
B60: 53 | K60: 3 | T60: 53
B61: 54 | K61: 4 | T61: 54
B62: 55 | K62: 5 | T62: 55
B63: 56 | K63: 6 | T63: 56
B64: 57 | K64: 7 | T64: 57
B65: 58 | K65: 8 | T65: 58
B66: 59 | K66: 9 | T66: 59
B67: 60 | K67: 10 | T67: 60
B68: 61 | K68: 11 | T68: 61
B69: 62 | K69: 12 | T69: 62
B70: 63 | K70: 13 | T70: 63
B71: 64 | K71: 14 | T71: 64
B72: 65 | K72: 15 | T72: 65
B73: 66 | K73: 16 | T73: 66
B74: 67 | N74: Sous Total | O74: =SUM(O58:O73) -> 0.00 € | P74: 100.00 € | T74: 67
B75: 68 | N75: Total | O75: =P74-O74+P54 -> 600.00 € | T75: 68
B76: 69 | T76: 69
E77: Sous Total | F77: =SUM(F8:F76) -> 1,876.64 € | G77: 2,304.59 € | N77: Sous Total | O77: =O74+O47 -> 0.00 € | P77: 170.00 € | W77: Sous Total | X77: =SUM(X8:X76) -> 0.00 € | Y77: 50.00 €
E78: Total | F78: =G5+G77-F77 -> 1,222.49 € | N78: Total | O78: =P5+P77-O77 -> 1,310.00 € | W78: Total | X78: =Y5+Y77-X77 -> 310.00 €
A79: Charlie
A80: Cpt Mapie | B80: Compte chèque Mapie | K80: Livret A Mapie | T80: LEP Mapie
E83: Fin de moi précédent | G83: =Fevrier!F156 -> 959.08 € | N83: Fin de moi précédent | P83: =Fevrier!O156 -> 2,471.43 € | W83: Fin de moi précédent | Y83: =Fevrier!X156 -> 3,092.20 €
B85: N° de transaction | C85: Date | D85: Objet | E85: Précision | F85: debit | G85: Crédit | H85: Type de paiment | I85: Divers | K85: N° de transaction | L85: Date | M85: Objet | N85: Précision | O85: debit | P85: Crédit | Q85: Type de paiment | R85: Divers | T85: N° de transaction | U85: Date | V85: Objet | W85: Précision | X85: debit | Y85: Crédit | Z85: Type de paiment | AA85: Divers
B86: 1 | C86: 2024-11-02 | D86: Salaire | E86: aide de fin de formation | G86: 723.23 € | H86: Virement banquaire | K86: 1 | T86: 1
B87: 2 | C87: 2024-11-03 | D87: Salaire | E87: CAF | G87: 416.31 € | H87: Virement banquaire | I87: Cpt Cjoint | K87: 2 | T87: 2
B88: 3 | C88: 2024-11-05 | D88: Frais Banquaire | F88: 10.00 € | H88: Virement intercompte | I88: Cpt Cjoint | K88: 3 | T88: 3
B89: 4 | C89: 2024-11-05 | D89: Scolarité | F89: 280.00 € | H89: Virement intercompte | I89: Cpt Cjoint | K89: 4 | T89: 4
B90: 5 | C90: 2024-11-05 | D90: sport | F90: 130.00 € | H90: Virement intercompte | I90: Cpt Cjoint | K90: 5 | T90: 5
B91: 6 | C91: 2024-11-05 | D91: Nourrice | E91: salaire | F91: 120.00 € | H91: Virement intercompte | I91: Cpt Cjoint | K91: 6 | T91: 6
B92: 7 | C92: 2024-11-05 | D92: Nourrice | E92: congé | F92: 50.00 € | H92: Virement intercompte | I92: Cpt Cjoint | K92: 7 | T92: 7
B93: 8 | C93: 2024-11-05 | D93: Epargne | E93: Arzhel | F93: 20.00 € | H93: Virement intercompte | I93: Livret A Azylis | K93: 8 | T93: 8
B94: 9 | C94: 2024-11-05 | D94: Epargne | E94: Azylis | F94: 20.00 € | H94: Virement intercompte | I94: Livret A Azylis | K94: 9 | T94: 9
B95: 10 | C95: 2024-11-05 | D95: Epargne | E95: Azekiel | F95: 30.00 € | H95: Virement intercompte | I95: Livret A Azekiel | K95: 10 | T95: 10
B96: 11 | K96: 11 | T96: 11
B97: 12 | K97: 12 | T97: 12
B98: 13 | K98: 13 | T98: 13
B99: 14 | K99: 14 | T99: 14
B100: 15 | K100: 15 | T100: 15
B101: 16 | K101: 16 | T101: 16
B102: 17 | K102: 17 | T102: 17
B103: 18 | K103: 18 | T103: 18
B104: 19 | K104: 19 | T104: 19
B105: 20 | K105: 20 | T105: 20
B106: 21 | K106: 21 | T106: 21
B107: 22 | K107: 22 | T107: 22
B108: 23 | K108: 23 | T108: 23
B109: 24 | K109: 24 | T109: 24
B110: 25 | K110: 25 | T110: 25
B111: 26 | K111: 26 | T111: 26
B112: 27 | K112: 27 | T112: 27
B113: 28 | K113: 28 | T113: 28
B114: 29 | K114: 29 | T114: 29
B115: 30 | K115: 30 | T115: 30
B116: 31 | K116: 31 | T116: 31
B117: 32 | K117: 32 | T117: 32
B118: 33 | K118: 33 | T118: 33
B119: 34 | K119: 34 | T119: 34
B120: 35 | K120: 35 | T120: 35
B121: 36 | K121: 36 | T121: 36
B122: 37 | K122: 37 | T122: 37
B123: 38 | K123: 38 | T123: 38
B124: 39 | K124: 39 | T124: 39
B125: 40 | K125: 40 | T125: 40
B126: 41 | K126: 41 | T126: 41
B127: 42 | K127: 42 | T127: 42
B128: 43 | K128: 43 | T128: 43
B129: 44 | K129: 44 | T129: 44
B130: 45 | K130: 45 | T130: 45
B131: 46 | K131: 46 | T131: 46
B132: 47 | K132: 47 | T132: 47
B133: 48 | K133: 48 | T133: 48
B134: 49 | K134: 49 | T134: 49
B135: 50 | K135: 50 | T135: 50
B136: 51 | K136: 51 | T136: 51
B137: 52 | K137: 52 | T137: 52
B138: 53 | K138: 53 | T138: 53
B139: 54 | K139: 54 | T139: 54
B140: 55 | K140: 55 | T140: 55
B141: 56 | K141: 56 | T141: 56
B142: 57 | K142: 57 | T142: 57
B143: 58 | K143: 58 | T143: 58
B144: 59 | K144: 59 | T144: 59
B145: 60 | K145: 60 | T145: 60
B146: 61 | K146: 61 | T146: 61
B147: 62 | K147: 62 | T147: 62
B148: 63 | K148: 63 | T148: 63
B149: 64 | K149: 64 | T149: 64
B150: 65 | K150: 65 | T150: 65
B151: 66 | K151: 66 | T151: 66
B152: 67 | K152: 67 | T152: 67
B153: 68 | K153: 68 | T153: 68
B154: 69 | K154: 70 | T154: 70
E155: Sous Total | F155: =SUM(F86:F154) -> 660.00 € | G155: 1,139.54 € | N155: Sous Total | O155: =SUM(O86:O154) -> 0 | P155: 0 | W155: Sous Total | X155: =SUM(X86:X154) -> 0 | Y155: 0
E156: Total | F156: =G155-F155+G83 -> 1,438.62 € | N156: Total | O156: =P155-O155+P83 -> 2,471.43 € | W156: Total | X156: =Y155-X155+Y83 -> 3,092.20 €
A157: Mapie
A158: Cpt Joint | B158: Compte maison
E161: Fin de moi précédent | G161: =Fevrier!F234 -> 4,649.52 €
B163: N° de transaction | C163: Date | D163: Objet | E163: Précision | F163: debit | G163: Crédit | H163: Type de paiment | I163: Divers
B164: 1 | C164: 2024-11-05 | D164: Electricité | G164: 105.00 € | H164: Virement intercompte
B165: 2 | C165: 2024-11-05 | D165: gaz | G165: 70.00 € | H165: Virement intercompte
B166: 3 | C166: 2024-11-05 | D166: Bois | G166: 60.00 € | H166: Virement intercompte
B167: 4 | C167: 2024-11-05 | D167: Prêt maison | G167: 443.23 € | H167: Virement intercompte
B168: 5 | C168: 2024-11-05 | D168: Prêt travaux | G168: 70.34 € | H168: Virement intercompte
B169: 6 | C169: 2024-11-05 | D169: Prêt travaux | G169: 155.37 € | H169: Virement intercompte
B170: 7 | C170: 2024-11-05 | D170: Frais Banquaire | G170: 10.00 € | H170: Virement Mapie
B171: 8 | C171: 2024-11-05 | D171: Frais Banquaire | G171: 10.00 € | H171: Virement intercompte
B172: 9 | C172: 2024-11-05 | D172: Frais Banquaire | G172: 9.18 € | H172: Virement banquaire
B173: 10 | C173: 2024-11-05 | D173: Eau | G173: 55.00 € | H173: Virement intercompte
B174: 11 | C174: 2024-11-05 | D174: Prêt Duster | G174: 323.97 € | H174: Virement intercompte
B175: 12 | C175: 2024-11-05 | D175: Scolarité | G175: 280.00 € | H175: Virement Mapie
B176: 13 | C176: 2024-11-05 | D176: sport | G176: 130.00 € | H176: Virement Mapie
B177: 14 | C177: 2024-11-05 | D177: Assurances | G177: 130.00 € | H177: Virement intercompte
B178: 15 | C178: 2024-11-05 | D178: Téléphone | G178: 55.00 € | H178: Virement intercompte
B179: 16 | C179: 2024-11-05 | D179: mutuelle | G179: 70.00 € | H179: Virement intercompte
B180: 17 | C180: 2024-11-05 | D180: salaire | G180: 120.00 €
B181: 18 | C181: 2024-11-05 | D181: Nourrice | E181: congé | G181: 50.00 € | H181: Virement Mapie
B182: 19 | C182: 2024-11-05 | D182: Nourrice | E182: recouvrement PAJE | G182: 319.07 € | H182: Virement banquaire
B183: 20 | C183: 2024-11-05 | D183: Entretien voiture | G183: 75.00 € | H183: Virement intercompte
B184: 21 | D184: Nourrice | E184: Salaire | H184: Virement banquaire
B185: 22 | D185: Electricité | F185: 103.00 € | H185: Prélèvement
B186: 23 | D186: gaz | F186: 49.00 € | H186: Prélèvement
B187: 24 | D187: Prêt maison | F187: 443.23 € | H187: Prélèvement
B188: 25 | D188: Prêt travaux | F188: 70.34 € | H188: Prélèvement
B189: 26 | D189: Prêt travaux | F189: 155.37 € | H189: Prélèvement
B190: 27 | D190: Frais Banquaire | F190: 23.46 € | H190: Prélèvement
B191: 28 | D191: Prêt Duster | F191: 323.97 € | H191: Prélèvement
B192: 29 | D192: Scolarité | H192: Prélèvement
B193: 30 | D193: Téléphone | F193: 16.84 € | H193: Prélèvement
B194: 31 | D194: Téléphone | F194: 28.99 € | H194: Prélèvement
B195: 32 | D195: mutuelle | F195: 70.00 € | H195: Prélèvement
B196: 33
B197: 34
B198: 35
B199: 36
B200: 37
B201: 38
B202: 39
B203: 40
B204: 41
B205: 42
B206: 43
B207: 44
B208: 45
B209: 46
... 92 more rows

Sheet Décembre
J1: Compte chèque | S1: Livret A | AB1: LEP
A2: Cpt Charlie | B2: Compte chèque Charlie | J2: Livret A Charlie | K2: Livret A | S2: LEP Charlie | T2: LEP
E5: Fin de moi précédent | G5: =Fevrier!F78 -> 794.54 € | K5: =IF((P9+P54=P5),0,1) -> 0 | N5: Fin de moi précédent | P5: =Fevrier!O78 -> 1,140.00 € | W5: Fin de moi précédent | Y5: =Fevrier!X78 -> 260
B7: N° de transaction | C7: Date | D7: Objet | E7: Précision | F7: debit | G7: Crédit | H7: Type de paiment | I7: Divers | K7: Animaux | T7: N° de transaction | U7: Date | V7: Objet | W7: Précision | X7: debit | Y7: Crédit | Z7: Type de paiment | AA7: Divers
B8: 1 | C8: 2024-12-02 | D8: Salaire | E8: Décembre | G8: 2,304.59 € | H8: Virement banquaire | T8: 1 | U8: 2024-12-05 | V8: travaux | Y8: 50.00 € | Z8: Virement intercompte
B9: 2 | C9: 2024-12-05 | D9: Bois | F9: 60.00 € | H9: Virement intercompte | I9: Cpt Cjoint | N9: Fin de moi précédent | P9: =Fevrier!O48 -> 640.00 € | T9: 2
B10: 3 | C10: 2024-12-05 | D10: Prêt maison | F10: 443.23 € | H10: Virement intercompte | I10: Cpt Cjoint | T10: 3
B11: 4 | C11: 2024-12-05 | D11: Prêt travaux | F11: 70.34 € | H11: Virement intercompte | I11: Cpt Cjoint | K11: N° de transaction | L11: Date | M11: Objet | N11: Précision | O11: debit | P11: Crédit | Q11: Type de paiment | R11: Divers | T11: 4
B12: 5 | C12: 2024-12-05 | D12: Prêt travaux | F12: 155.37 € | H12: Virement intercompte | I12: Cpt Cjoint | T12: 5
B13: 6 | C13: 2024-12-05 | D13: Frais Banquaire | F13: 10.00 € | H13: Virement intercompte | I13: Cpt Cjoint | K13: 1 | L13: 2024-12-05 | M13: animaux | P13: 70.00 € | Q13: Virement intercompte | T13: 6
B14: 7 | C14: 2024-12-05 | D14: Eau | F14: 55.00 € | H14: Virement intercompte | I14: Cpt Cjoint | K14: 2 | T14: 7
B15: 8 | C15: 2024-12-05 | D15: Prêt Duster | F15: 323.97 € | H15: Virement intercompte | I15: Cpt Cjoint | K15: 3 | T15: 8
B16: 9 | C16: 2024-12-05 | D16: Assurances | F16: 130.00 € | H16: Virement intercompte | I16: Cpt Cjoint | K16: 4 | T16: 9
B17: 10 | C17: 2024-12-05 | D17: Téléphone | F17: 55.00 € | H17: Virement intercompte | I17: Cpt Cjoint | K17: 5 | T17: 10
B18: 11 | C18: 2024-12-05 | D18: mutuelle | F18: 70.00 € | H18: Virement intercompte | I18: Cpt Cjoint | K18: 6 | T18: 11
B19: 12 | C19: 2024-12-05 | D19: Electricité | F19: 105.00 € | H19: Virement intercompte | I19: Cpt Cjoint | K19: 7 | T19: 12
B20: 13 | C20: 2024-12-05 | D20: gaz | F20: 70.00 € | H20: Virement intercompte | I20: Cpt Cjoint | K20: 8 | T20: 13
B21: 14 | C21: 2024-12-05 | D21: Impot et taxe | F21: 100.00 € | H21: Virement intercompte | I21: Livret A Charlie | K21: 9 | T21: 14
B22: 15 | C22: 2024-12-05 | D22: Travaux | F22: 50.00 € | H22: Virement intercompte | I22: LEP Charlie | K22: 10 | T22: 15
B23: 16 | C23: 2024-12-05 | D23: Animaux | F23: 70.00 € | H23: Virement intercompte | I23: Livret A Charlie | K23: 11 | T23: 16
B24: 17 | C24: 2024-12-05 | D24: Entretien voiture | F24: 75.00 € | H24: Virement intercompte | I24: Cpt Cjoint | K24: 12 | T24: 17
B25: 18 | D25: Loisir | E25: Weigth Watcher | F25: 8.75 € | H25: Paypal | K25: 13 | T25: 18
B26: 19 | D26: Loisir | E26: Familleo | F26: 5.99 € | H26: Prélèvement | K26: 14 | T26: 19
B27: 20 | E27: Netflix | F27: 18.99 € | K27: 15 | T27: 20
B28: 21 | K28: 16 | T28: 21
B29: 22 | K29: 17 | T29: 22
B30: 23 | K30: 18 | T30: 23
B31: 24 | K31: 19 | T31: 24
B32: 25 | K32: 20 | T32: 25
B33: 26 | K33: 21 | T33: 26
B34: 27 | K34: 22 | T34: 27
B35: 28 | K35: 23 | T35: 28
